Workbook

Sheet START
A1: =muni -> LIM332 Greater Letaba

Sheet Instructions
D2: 2020
X4: Yes
X5: No
W7: Type of Entities Range: | X7: Parent Municipality
X8: Consolidated Information
W10: Date of Adjustment | X10: 27 February 2019
W19: MTREF Range: | X19: 2008
X20: 2009
X21: 2010
X22: 2011
X23: 2012
X24: 2013
X25: 2014
X26: 2015
X27: 2016
X28: 2017
X29: 2018
X30: 2019
X31: 2020
X32: 2021
W33: MTREF Linked: | X33: 2022
W34: MTREF:
X35: 11
W36: Fin Year: | X36: =INDEX(X19:X33,X35,1) -> 2018
X38: =MTREF&"/"&RIGHT(MTREF,2)+1 -> 2018/19

Sheet Template names (hidden)
A1: Common sheet headings
A2: Head1 | B2: =HLOOKUP(MTREF,Headings,2) -> 2017/18 | C2: Prior year -1
A3: Head1A | B3: =HLOOKUP(MTREF,Headings,3) -> 2016/17 | C3: Prior year -2
A4: Head1B | B4: =HLOOKUP(MTREF,Headings,4) -> 2015/16 | C4: Prior year -3
A5: Head2 | B5: =HLOOKUP(MTREF,Headings,7) -> Budget Year 2018/19 | C5: Year of approved budget
A6: Head2A | B6: =HLOOKUP(MTREF,Headings,6) -> 2018/19 | C6: Approved budget year
A7: Head3 | B7: =HLOOKUP(MTREF,Headings,5) -> 2018/19 Medium Term Revenue & Expenditure Framework | C7: MTREF header name
A8: Head3A | B8: Medium Term Revenue and Expenditure Framework
A9: Head4 | B9: Current year
A10: Head5 | B10: Audited Outcome
A11: Head5A | B11: Outcome
A12: Head5B | B12: Pre-audit outcome
A13: Head6 | B13: Original Budget
A14: Head7 | B14: Adjusted Budget
A15: Head8 | B15: Full Year Forecast
A16: Head9 | B16: =HLOOKUP(MTREF,Headings,7) -> Budget Year 2018/19 | C16: 1st year of MTREF | D16: Year1
A17: Head10 | B17: =HLOOKUP(MTREF,Headings,8) -> Budget Year +1 2019/20 | C17: 2nd year of MTREF | D17: Year2
A18: Head11 | B18: =HLOOKUP(MTREF,Headings,9) -> Budget Year +2 2020/21 | C18: 3rd year of MTREF | D18: Year3
A19: Head24 | B19: Description | D19: Desc
A20: Head26 | B20: Vote Description | D20: VDesc
A21: Head27 | B21: Ref
A22: Head27a | B22: References
A23: Head28 | B23: Surplus/ (Deficit) for the year | D23: Result
A24: Head29 | B24: Annual target 2007/08
A25: Head30 | B25: Revised target 2007/08
A26: Head31 | B26: Quarter ended 30 September
A27: Head32 | B27: Quarter ended 31 December
A28: Head33 | B28: Quarter ended 31 March
A29: Head34 | B29: Quarter ended 30 June
A30: Head35 | B30: Variance explanation
A31: Head36 | B31: YTD Actual 31 Dec
A32: Head37 | B32: YTD Budget 31 Dec
A33: Head38 | B33: Monthly actual
A34: Head39 | B34: YearTD actual
A35: Head40 | B35: YearTD budget
A36: Head41 | B36: YTD variance
A37: Head42 | B37: Surplus/ (Deficit) for the yr/period
A38: Head43 | B38: =Head3&" Summary" -> 2018/19 Medium Term Revenue & Expenditure Framework Summary
A39: Head44 | B39: 2001 Census
A40: Head45 | B40: 2011 Census
A41: Head46 | B41: - Adjustments Budget - January 2007
A42: Head47 | B42: Previous target year to complete
A43: Head48 | B43: Present value
A44: Head49
A45: Head50 | B45: Other Adjusts.
A46: Head51 | B46: Accum. Funds
A47: Head52 | B47: Multi-year capital
A48: Head53 | B48: Unfore. Unavoid.
A49: Head54 | B49: Prior Adjusted
A50: Head55 | B50: Nat. or Prov. Govt
A51: Head56 | B51: Total Adjusts.
A52: Head57 | B52: Month DD, YYYY -
A53: Head58 | B53: Parent muni.
A54: Head59 | B54: Downward adjusts
A55: SFPerf1 | B55: Budgeted Financial Performance
A56: SFPerf2 | B56: Forecast Financial Performance
A57: SFPos1 | B57: Budgeted Financial Position
A58: SFPos2 | B58: Forecast Financial Position
A59: Cash1 | B59: Budget Cash Flow
A60: Cash2 | B60: Forecast Cash Flow
A61: RandM | B61: Expenditure includes repairs & maintenance of R'000
A62: Standard nomenclature
A63: Muni | B63: ='Lookup and lists'!B28 -> LIM332 Greater Letaba
A64: Municipal Entities | B64: 2 | C64: Type of report: | D64: 1
A65: =IF((MuniEntities=1)*(MuniType=2),"YES","NO") -> NO | B65: Does this municipality have entities (consolidated budget and entity budgets required)? YES/NO
A66: Mid Year Review/Adjustment Budget schedules & tables | E66: Consolidated header | F66: Parent municipality header
A67: ADJSum | B67: =D67&IF(Consolques="YES",E67,F67) -> Table B1 Adjustments Budget Summary | D67: Table B1 | E67: ="Consolidated "&F67 -> Consolidated Adjustments Budget Summary | F67: ="Adjustments Budget Summary" -> Adjustments Budget Summary
A68: ADJ2 | B68: Table B3 Adjustments Budget Financial Performance (revenue and expenditure by municipal vote) | D68: Table B3 | E68: ="Consolidated "&F68 -> Consolidated Adjustments Budget Financial Performance (revenue and expenditure by municipal vote) | F68: ="Adjustments Budget Financial Performance (revenue and expenditure by municipal vote)" -> Adjustments Budget Financial Performance (revenue and expenditure by municipal vote)
A69: ADJ3 | B69: Table B2 Adjustments Budget Financial Performance (functional classification) | D69: Table B2 | E69: Consolidated Adjustments Budget Financial Performance (functional classification) | F69: ="Adjustments Budget Financial Performance (functional classification)" -> Adjustments Budget Financial Performance (functional classification)
A70: ADJ4 | B70: Table B4 Adjustments Budget Financial Performance (revenue and expenditure) | D70: Table B4 | E70: Consolidated Adjustments Budget Financial Performance (revenue and expenditure) | F70: ="Adjustments Budget Financial Performance (revenue and expenditure)" -> Adjustments Budget Financial Performance (revenue and expenditure)
A71: ADJ5 | B71: Table B5 Adjustments Capital Expenditure Budget by vote and funding | D71: Table B5 | E71: Consolidated Adjustments Capital Expenditure Budget by vote and funding | F71: ="Adjustments Capital Expenditure Budget by vote and funding" -> Adjustments Capital Expenditure Budget by vote and funding
A72: ADJ6 | B72: Table B6 Adjustments Budget Financial Position | D72: Table B6 | E72: Consolidated Adjustments Budget Financial Position | F72: ="Adjustments Budget Financial Position" -> Adjustments Budget Financial Position
A73: ADJ7 | B73: Table B7 Adjustments Budget Cash Flows | D73: Table B7 | E73: Consolidated Adjustments Budget Cash Flows | F73: ="Adjustments Budget Cash Flows" -> Adjustments Budget Cash Flows
A74: ADJ8 | B74: Table B8 Cash backed reserves/accumulated surplus reconciliation | D74: Table B8 | E74: Consolidated Cash backed reserves/accumulated surplus reconciliation | F74: ="Cash backed reserves/accumulated surplus reconciliation" -> Cash backed reserves/accumulated surplus reconciliation
A75: ADJ9 | B75: Table B9 Asset Management | D75: Table B9 | E75: Consolidated Asset Management | F75: ="Asset Management" -> Asset Management
A76: ADJ10 | B76: Table B10 Basic service delivery measurement | D76: Table B10 | E76: Consolidated Basic service delivery measurement | F76: ="Basic service delivery measurement" -> Basic service delivery measurement
A77: ADJB1 | B77: Supporting Table SB1 Supporting detail to 'Budgeted Financial Performance' | D77: =D101&"Table SB1 " -> Supporting Table SB1 | E77: Consolidated Supporting detail to 'Budgeted Financial Performance' | F77: ="Supporting detail to 'Budgeted Financial Performance'" -> Supporting detail to 'Budgeted Financial Performance'
A78: ADJB2 | B78: Supporting Table SB2 Supporting detail to 'Financial Position Budget' | D78: =D101&"Table SB2 " -> Supporting Table SB2 | E78: Consolidated Supporting detail to 'Financial Position Budget' | F78: ="Supporting detail to 'Financial Position Budget'" -> Supporting detail to 'Financial Position Budget'
A79: ADJB3 | B79: Supporting Table SB3 Adjustments to the SDBIP - performance objectives | D79: =D101&"Table SB3 " -> Supporting Table SB3 | E79: Consolidated Adjustments to the SDBIP - performance objectives | F79: ="Adjustments to the SDBIP - performance objectives" -> Adjustments to the SDBIP - performance objectives
A80: ADJB4 | B80: Supporting Table SB4 Adjustments to budgeted performance indicators and benchmarks | D80: =D101&"Table SB4 " -> Supporting Table SB4 | E80: Consolidated Adjustments to budgeted performance indicators and benchmarks | F80: ="Adjustments to budgeted performance indicators and benchmarks" -> Adjustments to budgeted performance indicators and benchmarks
A81: ADJB5 | B81: Supporting Table SB5 Adjustments Budget - social, economic and demographic statistics and assumptions | D81: =D101&"Table SB5 " -> Supporting Table SB5 | E81: Consolidated Adjustments Budget - social, economic and demographic statistics and assumptions | F81: ="Adjustments Budget - social, economic and demographic statistics and assumptions" -> Adjustments Budget - social, economic and demographic statistics and assumptions
A82: ADJB6 | B82: Supporting Table SB6 Adjustments Budget - funding measurement | D82: =D101&"Table SB6 " -> Supporting Table SB6 | E82: Consolidated Adjustments Budget - funding measurement | F82: ="Adjustments Budget - funding measurement" -> Adjustments Budget - funding measurement
A83: ADJB7 | B83: Supporting Table SB7 Adjustments Budget - transfers and grant receipts | D83: =D101&"Table SB7 " -> Supporting Table SB7 | E83: Consolidated Adjustments Budget - transfers and grant receipts | F83: ="Adjustments Budget - transfers and grant receipts" -> Adjustments Budget - transfers and grant receipts
A84: ADJB8 | B84: Supporting Table SB8 Adjustments Budget - expenditure on transfers and grant programme | D84: =D101&"Table SB8 " -> Supporting Table SB8 | E84: Consolidated Adjustments Budget - expenditure on transfers and grant programme | F84: ="Adjustments Budget - expenditure on transfers and grant programme" -> Adjustments Budget - expenditure on transfers and grant programme
A85: ADJB9 | B85: Supporting Table SB9 Adjustments Budget - reconciliation of transfers, grant receipts, and unspent funds | D85: =D101&"Table SB9 " -> Supporting Table SB9 | E85: Consolidated Adjustments Budget - reconciliation of transfers, grant receipts, and unspent funds | F85: ="Adjustments Budget - reconciliation of transfers, grant receipts, and unspent funds" -> Adjustments Budget - reconciliation of transfers, grant receipts, and unspent funds
A86: ADJB10 | B86: Supporting Table SB10 Adjustments Budget - transfers and grants made by the municipality | D86: =D101&"Table SB10 " -> Supporting Table SB10 | E86: Consolidated Adjustments Budget - transfers and grants made by the municipality | F86: ="Adjustments Budget - transfers and grants made by the municipality" -> Adjustments Budget - transfers and grants made by the municipality
A87: ADJB11 | B87: Supporting Table SB11 Adjustments Budget - councillor and staff benefits | D87: =D101&"Table SB11 " -> Supporting Table SB11 | E87: Consolidated Adjustments Budget - councillor and staff benefits | F87: ="Adjustments Budget - councillor and staff benefits" -> Adjustments Budget - councillor and staff benefits
A88: ADJB12 | B88: Supporting Table SB12 Adjustments Budget - monthly revenue and expenditure (municipal vote) | D88: =D101&"Table SB12 " -> Supporting Table SB12 | E88: Consolidated Adjustments Budget - monthly revenue and expenditure (municipal vote) | F88: ="Adjustments Budget - monthly revenue and expenditure (municipal vote)" -> Adjustments Budget - monthly revenue and expenditure (municipal vote)
A89: ADJB13 | B89: Supporting Table SB13 Adjustments Budget - monthly revenue and expenditure (functional classification) | D89: =D101&"Table SB13 " -> Supporting Table SB13 | E89: Consolidated Adjustments Budget - monthly revenue and expenditure (functional classification) | F89: ="Adjustments Budget - monthly revenue and expenditure (functional classification)" -> Adjustments Budget - monthly revenue and expenditure (functional classification)
A90: ADJB14 | B90: Supporting Table SB14 Adjustments Budget - monthly revenue and expenditure | D90: =D101&"Table SB14 " -> Supporting Table SB14 | E90: Consolidated Adjustments Budget - monthly revenue and expenditure | F90: ="Adjustments Budget - monthly revenue and expenditure" -> Adjustments Budget - monthly revenue and expenditure
A91: ADJB15 | B91: Supporting Table SB15 Adjustments Budget - monthly cash flow | D91: =D101&"Table SB15 " -> Supporting Table SB15 | E91: Consolidated Adjustments Budget - monthly cash flow | F91: ="Adjustments Budget - monthly cash flow" -> Adjustments Budget - monthly cash flow
A92: ADJB16 | B92: Supporting Table SB16 Adjustments Budget - monthly capital expenditure (municipal vote) | D92: =D101&"Table SB16 " -> Supporting Table SB16 | E92: Consolidated Adjustments Budget - monthly capital expenditure (municipal vote) | F92: ="Adjustments Budget - monthly capital expenditure (municipal vote)" -> Adjustments Budget - monthly capital expenditure (municipal vote)
A93: ADJB17 | B93: Supporting Table SB17 Adjustments Budget - monthly capital expenditure (functional classification) | D93: =D101&"Table SB17 " -> Supporting Table SB17 | E93: Consolidated Adjustments Budget - monthly capital expenditure (functional classification) | F93: ="Adjustments Budget - monthly capital expenditure (functional classification)" -> Adjustments Budget - monthly capital expenditure (functional classification)
A94: ADJB18a | B94: Supporting Table SB18a Adjustments Budget - capital expenditure on new assets by asset class | D94: =D101&"Table SB18a " -> Supporting Table SB18a | E94: Consolidated Adjustments Budget - capital expenditure on new assets by asset class | F94: ="Adjustments Budget - capital expenditure on new assets by asset class" -> Adjustments Budget - capital expenditure on new assets by asset class
A95: ADJB18b | B95: Supporting Table SB18b Adjustments Budget - capital expenditure on renewal of existing assets by asset class | D95: =D101&"Table SB18b " -> Supporting Table SB18b | E95: ="Consolidated "&F95 -> Consolidated Adjustments Budget - capital expenditure on renewal of existing assets by asset class | F95: ="Adjustments Budget - capital expenditure on renewal of existing assets by asset class" -> Adjustments Budget - capital expenditure on renewal of existing assets by asset class
A96: ADJB18c | B96: Supporting Table SB18c Adjustments Budget - expenditure on repairs and maintenance by asset class | D96: =D101&"Table SB18c " -> Supporting Table SB18c | E96: ="Consolidated "&F96 -> Consolidated Adjustments Budget - expenditure on repairs and maintenance by asset class | F96: ="Adjustments Budget - expenditure on repairs and maintenance by asset class" -> Adjustments Budget - expenditure on repairs and maintenance by asset class
A97: ADJB18d | B97: Supporting Table SB18d Adjustments Budget - depreciation by asset class | D97: =D101&"Table SB18d " -> Supporting Table SB18d | E97: ="Consolidated "&F97 -> Consolidated Adjustments Budget - depreciation by asset class | F97: ="Adjustments Budget - depreciation by asset class" -> Adjustments Budget - depreciation by asset class
A98: ADJB18e | B98: Supporting Table SB18d Adjustments Budget - capital expenditure on upgrading of existing assets by asset class | D98: =D101&"Table SB18d " -> Supporting Table SB18d | E98: ="Consolidated "&F98 -> Consolidated Adjustments Budget - capital expenditure on upgrading of existing assets by asset class | F98: ="Adjustments Budget - capital expenditure on upgrading of existing assets by asset class" -> Adjustments Budget - capital expenditure on upgrading of existing assets by asset class
A99: ADJB19 | B99: Supporting Table SB19 List of capital programmes and projects affected by Adjustments Budget | D99: =D101&"Table SB19 " -> Supporting Table SB19 | E99: Consolidated List of capital programmes and projects affected by Adjustments Budget | F99: ="List of capital programmes and projects affected by Adjustments Budget" -> List of capital programmes and projects affected by Adjustments Budget
A100: ADJB20 | B100: Supporting Table SB20 Not required | D100: =D101&"Table SB20 " -> Supporting Table SB20 | E100: ="Adjusted Budget Municipal Entity Performance Summary" -> Adjusted Budget Municipal Entity Performance Summary | F100: Not required
D101: Supporting

Sheet Lookup and lists (hidden)
A1: Description | B1: 2007 | C1: 2008 | D1: 2009 | E1: 2010 | F1: 2011 | G1: 2012 | H1: 2013 | I1: 2014 | J1: 2015 | K1: 2016 | L1: 2017 | M1: 2018 | N1: 2019 | O1: 2020 | Q1: Grants: | R1: National - opex | S1: Provincial - opex | T1: National - capex | U1: Provincial - capex | V1: YESNO
A2: ='Template names'!C2 -> Prior year -1 | B2: 2006/07 | C2: 2007/08 | D2: 2008/09 | E2: =E1-1&"/"&RIGHT(E1,2)-0 -> 2009/10 | F2: 2010/11 | G2: 2011/12 | H2: 2012/13 | I2: 2013/14 | J2: 2014/15 | K2: 2015/16 | L2: 2016/17 | M2: 2017/18 | N2: 2018/19 | O2: 2019/20 | R2: Local Government Equitable Share | S2: Health subsidy | T2: Municipal Infrastructure Grant (MIG) | U2: Agriculture | V2: Yes
A3: ='Template names'!C3 -> Prior year -2 | B3: 2005/06 | C3: 2006/07 | D3: 2007/08 | E3: =E1-2&"/"&RIGHT(E1,2)-1 -> 2008/9 | F3: 2009/10 | G3: 2010/11 | H3: 2011/12 | I3: 2012/13 | J3: 2013/14 | K3: 2014/15 | L3: 2015/16 | M3: 2016/17 | N3: 2017/18 | O3: 2018/19 | R3: RSC Levy Replacement | S3: Ambulance subsidy | T3: Public Transport and Systems | U3: Education | V3: No
A4: ='Template names'!C4 -> Prior year -3 | B4: 2004/05 | C4: 2005/06 | D4: 2006/07 | E4: =E1-3&"/"&RIGHT(E1,2)-2 -> 2007/8 | F4: 2008/9 | G4: 2009/10 | H4: 2010/11 | I4: 2011/12 | J4: 2012/13 | K4: 2013/14 | L4: 2014/15 | M4: 2015/16 | N4: 2016/17 | O4: 2017/18 | R4: Finance Management | S4: Housing | T4: Rural Transport Services and Infrastructure | U4: Health
A5: ='Template names'!C7 -> MTREF header name | B5: 2007/08 Medium Term Revenue & Expenditure Framework | C5: 2008/09 Medium Term Revenue & Expenditure Framework | D5: 2009/10 Medium Term Revenue & Expenditure Framework | E5: =E1&"/"&RIGHT(E1,2)+1&" Medium Term Revenue & Expenditure Framework" -> 2010/11 Medium Term Revenue & Expenditure Framework | F5: 2011/12 Medium Term Revenue & Expenditure Framework | G5: 2012/13 Medium Term Revenue & Expenditure Framework | H5: 2013/14 Medium Term Revenue & Expenditure Framework | I5: 2014/15 Medium Term Revenue & Expenditure Framework | J5: 2015/16 Medium Term Revenue & Expenditure Framework | K5: 2016/17 Medium Term Revenue & Expenditure Framework | L5: 2017/18 Medium Term Revenue & Expenditure Framework | M5: 2018/19 Medium Term Revenue & Expenditure Framework | N5: 2019/20 Medium Term Revenue & Expenditure Framework | O5: 2020/21 Medium Term Revenue & Expenditure Framework | R5: Municipal Systems Improvement | S5: Sport and Recreation | T5: Regional Bulk Infrastructure | U5: Housing and Local Government
A6: ='Template names'!C6 -> Approved budget year | B6: 2007/08 | C6: 2008/09 | D6: 2009/10 | E6: =E1&"/"&RIGHT(E1,2)+1 -> 2010/11 | F6: 2011/12 | G6: 2012/13 | H6: 2013/14 | I6: 2014/15 | J6: 2015/16 | K6: 2016/17 | L6: 2017/18 | M6: 2018/19 | N6: 2019/20 | O6: 2020/21 | R6: Water Services Operating Subsidy | T6: Rural Households Infrastructure | U6: Other Departments
A7: ='Template names'!C16 -> 1st year of MTREF | B7: Budget Year 2007/08 | C7: Budget Year 2008/09 | D7: Budget Year 2009/10 | E7: ="Budget Year "&E1&"/"&RIGHT(E1,2)+1 -> Budget Year 2010/11 | F7: Budget Year 2011/12 | G7: Budget Year 2012/13 | H7: Budget Year 2013/14 | I7: Budget Year 2014/15 | J7: Budget Year 2015/16 | K7: Budget Year 2016/17 | L7: Budget Year 2017/18 | M7: Budget Year 2018/19 | N7: Budget Year 2019/20 | O7: Budget Year 2020/21 | R7: Energy Efficiency and Demand Management | T7: Neighbourhood Development Partnership | U7: Public Works, Roads, Transport
A8: ='Template names'!C17 -> 2nd year of MTREF | B8: Budget Year +1 2008/09 | C8: Budget Year +1 2009/10 | D8: Budget Year +1 2010/11 | E8: ="Budget Year +1 "&E1+1&"/"&RIGHT(E1,2)+2 -> Budget Year +1 2011/12 | F8: Budget Year +1 2012/13 | G8: Budget Year +1 2013/14 | H8: Budget Year +1 2014/15 | I8: Budget Year +1 2015/16 | J8: Budget Year +1 2016/17 | K8: Budget Year +1 2017/18 | L8: Budget Year +1 2018/19 | M8: Budget Year +1 2019/20 | N8: Budget Year +1 2020/21 | O8: Budget Year +1 2021/22 | R8: Integrated National Electrification Programme | T8: 2010 FIFA World Cup Stadiums Development | U8: Sport and Recreation
A9: ='Template names'!C18 -> 3rd year of MTREF | B9: Budget Year +2 2009/10 | C9: Budget Year +2 2010/11 | D9: Budget Year +2 2011/12 | E9: ="Budget Year +2 "&E1+2&"/"&RIGHT(E1,2)+3 -> Budget Year +2 2012/13 | F9: Budget Year +2 2013/14 | G9: Budget Year +2 2014/15 | H9: Budget Year +2 2015/16 | I9: Budget Year +2 2016/17 | J9: Budget Year +2 2017/18 | K9: Budget Year +2 2018/19 | L9: Budget Year +2 2019/20 | M9: Budget Year +2 2020/21 | N9: Budget Year +2 2021/22 | O9: Budget Year +2 2022/23 | R9: Municipal Drought Relief
A10: Adjustments Budget | B10: Annual target 2007/08 | C10: Annual target 2008/09 | D10: Annual target 2009/10 | E10: ="Annual target " & E1&"/"&RIGHT(E1,2)+1 -> Annual target 2010/11 | F10: Annual target 2011/12 | G10: Annual target 2012/13 | H10: Annual target 2013/14 | I10: Annual target 2014/15 | J10: Annual target 2015/16 | K10: Annual target 2016/17 | L10: Annual target 2017/18 | M10: Annual target 2018/19 | N10: Annual target 2019/20 | O10: Annual target 2020/21 | R10: 2010 FIFA World Cup Operating
A11: NOTE: This sheet should not be directly amended - select headings from sheet 'S' | R11: Electricity Demand Side Management
R12: EPWP Incentive
R15: Asset Class | S15: Asset sub-class Old | T15: Asset sub-class | U15: IUDF | V15: MTSF
R17: Roads Infrastructure | S17: Roads, Pavements & Bridges | T17: Roads | U17: Spatial integration | V17: Quality basic education
R18: Storm water Infrastructure | S18: Storm water | T18: Road Structures | U18: Inclusion and access | V18: A long and healthy life for all South Africans
R19: Electrical Infrastructure | S19: Generation | T19: Road Furniture | U19: Growth | V19: All people in South Africa are and feel safe
R20: Water Supply Infrastructure | S20: Transmission & Reticulation | T20: Capital Spares | U20: Governance | V20: Decent employment through inclusive growth
R21: Sanitation Infrastructure | S21: Street Lighting | T21: Drainage Collection | V21: A skilled and capable workforce to support an inclusive growth path
R22: Solid Waste Infrastructure | S22: Dams & Reservoirs | T22: Storm water Conveyance | V22: An efficient, competitive and responsive economic infrastructure network
R23: Rail Infrastructure | S23: Water purification | T23: Attenuation | V23: Vibrant, equitable, sustainable rural communities contributing towards food security for all
R24: Coastal Infrastructure | S24: Reticulation | T24: Power Plants | V24: Sustainable human settlements and improved quality of household life
R25: Information and Communication Infrastructure | S25: Sewerage purification | T25: HV Substations | V25: Responsive, accountable, effective and efficient local government
R26: Community Facilities | S26: Waste Management | T26: HV Switching Station | V26: Protect and enhance our environmental assets and natural resources
A27: Name link | B27: 130 | R27: Sport and Recreation Facilities | S27: Transportation | T27: HV Transmission Conductors | V27: Create a better South Africa and contribute to a better Africa and a better world
A28: Name of Muni | B28: =INDEX(B29:B312,B27,1) -> LIM332 Greater Letaba | R28: Heritage assets | S28: Gas | T28: MV Substations | V28: An efficient, effective and development-oriented public service
B29: Choose name from list | C29: Set name on 'Instructions' sheet | R29: Revenue Generating | S29: Parks & gardens | T29: MV Switching Stations | V29: A comprehensive, responsive and sustainable social protection system
B30: BUF Buffalo City | C30: Eastern Cape | R30: Non-revenue Generating | S30: Sportsfields & stadia | T30: MV Networks | V30: A diverse, socially cohesive society with a common national identity
B31: NMA Nelson Mandela Bay | C31: Eastern Cape | R31: Operational Buildings | S31: Swimming pools | T31: LV Networks
B32: EC101 Dr. Beyers Naude | C32: Eastern Cape | R32: Housing | S32: Community halls | T32: Capital Spares
B33: EC102 Blue Crane Route | C33: Eastern Cape | R33: Biological or Cultivated Assets | S33: Libraries | T33: Dams and Weirs
B34: EC104 Makana | C34: Eastern Cape | R34: Servitudes | S34: Recreational facilities | T34: Boreholes
B35: EC105 Ndlambe | C35: Eastern Cape | R35: Licences and Rights | S35: Fire, safety & emergency | T35: Reservoirs
B36: EC106 Sundays River Valley | C36: Eastern Cape | R36: Computer Equipment | S36: Security and policing | T36: Pump Stations
B37: EC108 Kouga | C37: Eastern Cape | R37: Furniture and Office Equipment | S37: Buses | T37: Water Treatment Works
B38: EC109 Kou-Kamma | C38: Eastern Cape | R38: Machinery and Equipment | S38: Clinics | T38: Bulk Mains
B39: DC10 Sarah Baartman | C39: Eastern Cape | R39: Transport Assets | S39: Museums & Art Galleries | T39: Distribution
B40: EC121 Mbhashe | C40: Eastern Cape | R40: Land | S40: Cemeteries | T40: Distribution Points
B41: EC122 Mnquma | C41: Eastern Cape | R41: Zoo's, Marine and Non-biological Animals | S41: Social rental housing | T41: PRV Stations
B42: EC123 Great Kei | C42: Eastern Cape | S42: Buildings | T42: Capital Spares
B43: EC124 Amahlathi | C43: Eastern Cape | S43: Housing development | T43: Pump Station
B44: EC126 Ngqushwa | C44: Eastern Cape | S44: General vehicles | T44: Reticulation
B45: EC129 Raymond Mhlaba | C45: Eastern Cape | S45: Specialised vehicles - Refuse | T45: Waste Water Treatment Works
B46: DC12 Amathole | C46: Eastern Cape | S46: Specialised vehicles - Fire | T46: Outfall Sewers
B47: EC131 Inxuba Yethemba | C47: Eastern Cape | S47: Specialised vehicles - Conservancy | T47: Toilet Facilities
B48: EC135 Intsika Yethu | C48: Eastern Cape | S48: Specialised vehicles - Ambulances | T48: Capital Spares
B49: EC136 Emalahleni (Ec) | C49: Eastern Cape | S49: Plant & equipment | T49: Landfill Sites
B50: EC137 Engcobo | C50: Eastern Cape | S50: Computers - hardware/equipment | T50: Waste Transfer Stations
B51: EC138 Sakhisizwe | C51: Eastern Cape | S51: Furniture and other office equipment | T51: Waste Processing Facilities
B52: EC139 Enoch Mgijima | C52: Eastern Cape | S52: Abattoirs | T52: Waste Drop-off Points
B53: DC13 Chris Hani | C53: Eastern Cape | S53: Markets | T53: Waste Separation Facilities
B54: EC141 Elundini | C54: Eastern Cape | S54: Civic Land and Buildings | T54: Electricity Generation Facilities
B55: EC142 Senqu | C55: Eastern Cape | S55: Other Buildings | T55: Capital Spares
B56: EC145 Walter Sisulu | C56: Eastern Cape | S56: Other Land | T56: Rail Lines
B57: DC14 Joe Gqabi | C57: Eastern Cape | S57: Surplus Assets - (Investment or Inventory) | T57: Rail Structures
B58: EC153 Ngquza Hills | C58: Eastern Cape | S58: Computers - software & programming | T58: Rail Furniture
B59: EC154 Port St Johns | C59: Eastern Cape | S59: Other | T59: Drainage Collection
B60: EC155 Nyandeni | C60: Eastern Cape | T60: Storm water Conveyance
B61: EC156 Mhlontlo | C61: Eastern Cape | R61: SB 19 | T61: Attenuation
B62: EC157 King Sabata Dalindyebo | C62: Eastern Cape | R62: Yes | T62: MV Substations
B63: DC15 O .R. Tambo | C63: Eastern Cape | R63: No | T63: LV Networks
B64: EC441 Matatiele | C64: Eastern Cape | T64: Capital Spares
B65: EC442 Umzimvubu | C65: Eastern Cape | T65: Sand Pumps
B66: EC443 Mbizana | C66: Eastern Cape | T66: Piers
B67: EC444 Ntabankulu | C67: Eastern Cape | T67: Revetments
B68: DC44 Alfred Nzo | C68: Eastern Cape | T68: Promenades
B69: MAN Mangaung | C69: Free State | T69: Capital Spares
B70: FS161 Letsemeng | C70: Free State | T70: Data Centres
B71: FS162 Kopanong | C71: Free State | T71: Core Layers
B72: FS163 Mohokare | C72: Free State | T72: Distribution Layers
B73: DC16 Xhariep | C73: Free State | T73: Capital Spares
B74: FS181 Masilonyana | C74: Free State | T74: Halls
B75: FS182 Tokologo | C75: Free State | T75: Centres
B76: FS183 Tswelopele | C76: Free State | T76: Crèches
B77: FS184 Matjhabeng | C77: Free State | T77: Clinics/Care Centres
B78: FS185 Nala | C78: Free State | T78: Fire/Ambulance Stations
B79: DC18 Lejweleputswa | C79: Free State | T79: Testing Stations
B80: FS191 Setsoto | C80: Free State | T80: Museums
B81: FS192 Dihlabeng | C81: Free State | T81: Galleries
B82: FS193 Nketoana | C82: Free State | T82: Theatres
B83: FS194 Maluti-a-Phofung | C83: Free State | T83: Libraries
B84: FS195 Phumelela | C84: Free State | T84: Cemeteries/Crematoria
B85: FS196 Mantsopa | C85: Free State | T85: Police
B86: DC19 Thabo Mofutsanyana | C86: Free State | T86: Purls
B87: FS201 Moqhaka | C87: Free State | T87: Public Open Space
B88: FS203 Ngwathe | C88: Free State | T88: Nature Reserves
B89: FS204 Metsimaholo | C89: Free State | T89: Public Ablution Facilities
B90: FS205 Mafube | C90: Free State | T90: Markets
B91: DC20 Fezile Dabi | C91: Free State | T91: Stalls
B92: EKU Ekurhuleni Metro | C92: Gauteng | T92: Abattoirs
B93: JHB City Of Johannesburg | C93: Gauteng | T93: Airports
B94: TSH City Of Tshwane | C94: Gauteng | T94: Taxi Ranks/Bus Terminals
B95: GT421 Emfuleni | C95: Gauteng | T95: Capital Spares
B96: GT422 Midvaal | C96: Gauteng | T96: Indoor Facilities
B97: GT423 Lesedi | C97: Gauteng | T97: Outdoor Facilities
B98: DC42 Sedibeng | C98: Gauteng | T98: Capital Spares
B99: GT481 Mogale City | C99: Gauteng | T99: Monuments
B100: GT484 Merafong City | C100: Gauteng | T100: Historic Buildings
B101: GT485 GT485 | C101: Gauteng | T101: Works of Art
B102: DC48 West Rand | C102: Gauteng | T102: Conservation Areas
B103: ETH eThekwini | C103: Kwazulu-Natal | T103: Other Heritage
B104: KZN212 Umdoni | C104: Kwazulu-Natal | T104: Improved Property
B105: KZN213 Umzumbe | C105: Kwazulu-Natal | T105: Unimproved Property
B106: KZN214 uMuziwabantu | C106: Kwazulu-Natal | T106: Municipal Offices
B107: KZN216 Ray Nkonyeni | C107: Kwazulu-Natal | T107: Pay/Enquiry Points
B108: DC21 Ugu | C108: Kwazulu-Natal | T108: Building Plan Offices
B109: KZN221 uMshwathi | C109: Kwazulu-Natal | T109: Workshops
B110: KZN222 uMngeni | C110: Kwazulu-Natal | T110: Yards
B111: KZN223 Mpofana | C111: Kwazulu-Natal | T111: Stores
B112: KZN224 Impendle | C112: Kwazulu-Natal | T112: Laboratories
B113: KZN225 Msunduzi | C113: Kwazulu-Natal | T113: Training Centres
B114: KZN226 Mkhambathini | C114: Kwazulu-Natal | T114: Manufacturing Plant
B115: KZN227 Richmond | C115: Kwazulu-Natal | T115: Depots
B116: DC22 uMgungundlovu | C116: Kwazulu-Natal | T116: Capital Spares
B117: KZN235 Okhahlamba | C117: Kwazulu-Natal | T117: Staff Housing
B118: KZN237 Inkosi Langalibalele | C118: Kwazulu-Natal | T118: Social Housing
B119: KZN238 Alfred Duma | C119: Kwazulu-Natal | T119: Capital Spares
B120: DC23 Uthukela | C120: Kwazulu-Natal | T120: Water Rights
B121: KZN241 Endumeni | C121: Kwazulu-Natal | T121: Effluent Licenses
B122: KZN242 Nquthu | C122: Kwazulu-Natal | T122: Solid Waste Licenses
B123: KZN244 Msinga | C123: Kwazulu-Natal | T123: Computer Software and Applications
B124: KZN245 Umvoti | C124: Kwazulu-Natal | T124: Load Settlement Software Applications
B125: DC24 Umzinyathi | C125: Kwazulu-Natal | T125: Unspecified
B126: KZN252 Newcastle | C126: Kwazulu-Natal
B127: KZN253 eMadlangeni | C127: Kwazulu-Natal
B128: KZN254 Dannhauser | C128: Kwazulu-Natal
B129: DC25 Amajuba | C129: Kwazulu-Natal
B130: KZN261 eDumbe | C130: Kwazulu-Natal
B131: KZN262 uPhongolo | C131: Kwazulu-Natal
B132: KZN263 Abaqulusi | C132: Kwazulu-Natal
B133: KZN265 Nongoma | C133: Kwazulu-Natal
B134: KZN266 Ulundi | C134: Kwazulu-Natal
B135: DC26 Zululand | C135: Kwazulu-Natal
B136: KZN271 Umhlabuyalingana | C136: Kwazulu-Natal
B137: KZN272 Jozini | C137: Kwazulu-Natal
B138: KZN275 Mtubatuba | C138: Kwazulu-Natal
B139: KZN276 The New Big 5 False Bay | C139: Kwazulu-Natal
B140: DC27 Umkhanyakude | C140: Kwazulu-Natal
B141: KZN281 Mfolozi | C141: Kwazulu-Natal
B142: KZN282 uMhlathuze | C142: Kwazulu-Natal
B143: KZN284 uMlalazi | C143: Kwazulu-Natal
B144: KZN285 Mthonjaneni | C144: Kwazulu-Natal
B145: KZN286 Nkandla | C145: Kwazulu-Natal
B146: DC28 King Cetshwayo | C146: Kwazulu-Natal
B147: KZN291 Mandeni | C147: Kwazulu-Natal
B148: KZN292 KwaDukuza | C148: Kwazulu-Natal
B149: KZN293 Ndwedwe | C149: Kwazulu-Natal
B150: KZN294 Maphumulo | C150: Kwazulu-Natal
B151: DC29 iLembe | C151: Kwazulu-Natal
B152: KZN433 Greater Kokstad | C152: Kwazulu-Natal
B153: KZN434 Ubuhlebezwe | C153: Kwazulu-Natal
B154: KZN435 Umzimkhulu | C154: Kwazulu-Natal
B155: KZN436 Dr Nkosazana Dlamini Zuma | C155: Kwazulu-Natal
B156: DC43 Harry Gwala | C156: Kwazulu-Natal
B157: LIM331 Greater Giyani | C157: Limpopo
B158: LIM332 Greater Letaba | C158: Limpopo
B159: LIM333 Greater Tzaneen | C159: Limpopo
B160: LIM334 Ba-Phalaborwa | C160: Limpopo
B161: LIM335 Maruleng | C161: Limpopo
B162: DC33 Mopani | C162: Limpopo
B163: LIM341 Musina | C163: Limpopo
B164: LIM343 Thulamela | C164: Limpopo
B165: LIM344 Makhado | C165: Limpopo
B166: LIM345 LIM345 | C166: Limpopo
B167: DC34 Vhembe | C167: Limpopo
B168: LIM351 Blouberg | C168: Limpopo
B169: LIM353 Molemole | C169: Limpopo
B170: LIM354 Polokwane | C170: Limpopo
B171: LIM355 Lepelle-Nkumpi | C171: Limpopo
B172: DC35 Capricorn | C172: Limpopo
B173: LIM361 Thabazimbi | C173: Limpopo
B174: LIM362 Lephalale | C174: Limpopo
B175: LIM366 Bela Bela | C175: Limpopo
B176: LIM367 Mogalakwena | C176: Limpopo
B177: LIM368 LIM368 | C177: Limpopo
B178: DC36 Waterberg | C178: Limpopo
B179: LIM471 Ephraim Mogale | C179: Limpopo
B180: LIM472 Elias Motsoaledi | C180: Limpopo
B181: LIM473 Makhuduthamaga | C181: Limpopo
B182: LIM476 LIM476 | C182: Limpopo
B183: DC47 Sekhukhune | C183: Limpopo
B184: MP301 Albert Luthuli | C184: Mpumalanga
B185: MP302 Msukaligwa | C185: Mpumalanga
B186: MP303 Mkhondo | C186: Mpumalanga
B187: MP304 Pixley Ka Seme (MP) | C187: Mpumalanga
B188: MP305 Lekwa | C188: Mpumalanga
B189: MP306 Dipaleseng | C189: Mpumalanga
B190: MP307 Govan Mbeki | C190: Mpumalanga
B191: DC30 Gert Sibande | C191: Mpumalanga
B192: MP311 Victor Khanye | C192: Mpumalanga
B193: MP312 Emalahleni (Mp) | C193: Mpumalanga
B194: MP313 Steve Tshwete | C194: Mpumalanga
B195: MP314 Emakhazeni | C195: Mpumalanga
B196: MP315 Thembisile Hani | C196: Mpumalanga
B197: MP316 Dr J.S. Moroka | C197: Mpumalanga
B198: DC31 Nkangala | C198: Mpumalanga
B199: MP321 Thaba Chweu | C199: Mpumalanga
B200: MP324 Nkomazi | C200: Mpumalanga
B201: MP325 Bushbuckridge | C201: Mpumalanga
B202: MP326 City of Mbombela | C202: Mpumalanga
B203: DC32 Ehlanzeni | C203: Mpumalanga
... 84 more rows

Sheet Org structure
A1: Organisational Structure Votes | C1: Organisational Structure Sub-Votes | E1: Display Sub-Votes
A2: Vote 1 - Executive & Council | B2: Vote 1 | C2: Executive & Council
A3: Vote 2 - Finance and Administration | B3: 1.1 | C3: Mayor and Council | D3: =CONCATENATE(B3, " - ", C3) -> 1,1 - Mayor and Council | E3: 1,1 - Mayor and Council
A4: Vote 3 - Internal Audit | B4: 1.2 | C4: Municipal Manager | D4: 1,2 - Municipal Manager | E4: 1,2 - Municipal Manager
A5: Vote 4 - Community and Public Safety | B5: 1.3 | D5: 1,3 -
A6: Vote 5 - Sports and Recreation | B6: 1.4 | D6: 1,4 -
A7: Vote 6 - Housing | B7: 1.5 | D7: 1,5 -
A8: Vote 7 - Planning and development | B8: 1.6 | D8: 1,6 -
A9: Vote 8 - Road Transport | B9: 1.7 | D9: 1,7 -
A10: Vote 9 - Energy Sources | B10: 1.8 | D10: 1,8 -
A11: Vote 10 - Waste Water Management | B11: 1.9 | D11: 1,9 -
A12: Vote 11 - Waste Management | B12: 1.10 | D12: 1.10 -
A13: =B123&" - "&C123 -> Vote 12 - [NAME OF VOTE 12] | B13: Vote 2 | C13: Finance and Administration
A14: =B134&" - "&C134 -> Vote 13 - [NAME OF VOTE 13] | B14: 2.1 | C14: Administrative and Corporate Support | D14: =CONCATENATE(B14, " - ", C14) -> 2,1 - Administrative and Corporate Support | E14: 2,1 - Administrative and Corporate Support
A15: =B145&" - "&C145 -> Vote 14 - [NAME OF VOTE 14] | B15: 2.2 | C15: Asset Management | D15: 2,2 - Asset Management | E15: 2,2 - Asset Management
A16: =B156&" - "&C156 -> Vote 15 - [NAME OF VOTE 15] | B16: 2.3 | C16: Budget and Treasury Office | D16: 2,3 - Budget and Treasury Office | E16: 2,3 - Budget and Treasury Office
B17: 2.4 | C17: Human Resource | D17: 2,4 - Human Resource | E17: 2,4 - Human Resource
B18: 2.5 | C18: Information Technology | D18: 2,5 - Information Technology | E18: 2,5 - Information Technology
B19: 2.6 | C19: Legal Services | D19: 2,6 - Legal Services | E19: 2,6 - Legal Services
B20: 2.7 | C20: Customer Relation and Coordination | D20: 2,7 - Customer Relation and Coordination | E20: 2,7 - Customer Relation and Coordination
B21: 2.8 | C21: Property Services | D21: 2,8 - Property Services | E21: 2,8 - Property Services
B22: 2.9 | C22: Risk Management | D22: 2,9 - Risk Management | E22: 2,9 - Risk Management
B23: 2.10 | C23: Supply Chain Management | D23: 2.10 - Supply Chain Management | E23: 2.10 - Supply Chain Management
B24: Vote 3 | C24: Internal Audit
B25: 3.1 | C25: Governance Function | D25: =CONCATENATE(B25, " - ", C25) -> 3,1 - Governance Function | E25: 3,1 - Governance Function
B26: 3.2 | D26: 3,2 -
B27: 3.3 | D27: 3,3 -
B28: 3.4 | D28: 3,4 -
B29: 3.5 | D29: 3,5 -
B30: 3.6 | D30: 3,6 -
B31: 3.7 | D31: 3,7 -
B32: 3.8 | D32: 3,8 -
B33: 3.9 | D33: 3,9 -
B34: 3.10 | D34: 3.10 -
B35: Vote 4 | C35: Community and Public Safety
B36: 4.1 | C36: Cemetries and crematoriums | D36: =CONCATENATE(B36, " - ", C36) -> 4,1 - Cemetries and crematoriums | E36: 4,1 - Cemetries and crematoriums
B37: 4.2 | C37: Community halls and Facilities | D37: 4,2 - Community halls and Facilities | E37: 4,2 - Community halls and Facilities
B38: 4.3 | C38: Disaster Management | D38: 4,3 - Disaster Management | E38: 4,3 - Disaster Management
B39: 4.4 | C39: Libraries and Archives | D39: 4,4 - Libraries and Archives | E39: 4,4 - Libraries and Archives
B40: 4.5 | D40: 4,5 -
B41: 4.6 | D41: 4,6 -
B42: 4.7 | D42: 4,7 -
B43: 4.8 | D43: 4,8 -
B44: 4.9 | D44: 4,9 -
B45: 4.10 | D45: 4.10 -
B46: Vote 5 | C46: Sports and Recreation
B47: 5.1 | C47: Community parks | D47: =CONCATENATE(B47, " - ", C47) -> 5,1 - Community parks | E47: 5,1 - Community parks
B48: 5.2 | D48: 5,2 -
B49: 5.3 | D49: 5,3 -
B50: 5.4 | D50: 5,4 -
B51: 5.5 | D51: 5,5 -
B52: 5.6 | D52: 5,6 -
B53: 5.7 | D53: 5,7 -
B54: 5.8 | D54: 5,8 -
B55: 5.9 | D55: 5,9 -
B56: 5.10 | D56: 5.10 -
B57: Vote 6 | C57: Housing
B58: 6.1 | C58: Housing | D58: =CONCATENATE(B58, " - ", C58) -> 6,1 - Housing | E58: 6,1 - Housing
B59: 6.2 | D59: 6,2 -
B60: 6.3 | D60: 6,3 -
B61: 6.4 | D61: 6,4 -
B62: 6.5 | D62: 6,5 -
B63: 6.6 | D63: 6,6 -
B64: 6.7 | D64: 6,7 -
B65: 6.8 | D65: 6,8 -
B66: 6.9 | D66: 6,9 -
B67: 6.10 | D67: 6.10 -
B68: Vote 7 | C68: Planning and development
B69: 7.1 | C69: Corporate Wide Strategic Planning (IDP & LED) | D69: =CONCATENATE(B69, " - ", C69) -> 7,1 - Corporate Wide Strategic Planning (IDP & LED) | E69: 7,1 - Corporate Wide Strategic Planning (IDP & LED)
B70: 7.2 | C70: Town Planning and Building Regulations | D70: 7,2 - Town Planning and Building Regulations | E70: 7,2 - Town Planning and Building Regulations
B71: 7.3 | C71: Project Management Unit | D71: 7,3 - Project Management Unit | E71: 7,3 - Project Management Unit
B72: 7.4 | D72: 7,4 -
B73: 7.5 | D73: 7,5 -
B74: 7.6 | D74: 7,6 -
B75: 7.7 | D75: 7,7 -
B76: 7.8 | D76: 7,8 -
B77: 7.9 | D77: 7,9 -
B78: 7.10 | D78: 7.10 -
B79: Vote 8 | C79: Road Transport
B80: 8.1 | C80: Road and Traffic Regulations | D80: =CONCATENATE(B80, " - ", C80) -> 8,1 - Road and Traffic Regulations | E80: 8,1 - Road and Traffic Regulations
B81: 8.2 | C81: Roads | D81: 8,2 - Roads | E81: 8,2 - Roads
B82: 8.3 | C82: Taxi Ranks | D82: 8,3 - Taxi Ranks | E82: 8,3 - Taxi Ranks
B83: 8.4 | D83: 8,4 -
B84: 8.5 | D84: 8,5 -
B85: 8.6 | D85: 8,6 -
B86: 8.7 | D86: 8,7 -
B87: 8.8 | D87: 8,8 -
B88: 8.9 | D88: 8,9 -
B89: 8.10 | D89: 8.10 -
B90: Vote 9 | C90: Energy Sources
B91: 9.1 | C91: Electricity | D91: =CONCATENATE(B91, " - ", C91) -> 9,1 - Electricity | E91: 9,1 - Electricity
B92: 9.2 | C92: Street Lighting | D92: 9,2 - Street Lighting | E92: 9,2 - Street Lighting
B93: 9.3 | D93: 9,3 -
B94: 9.4 | D94: 9,4 -
B95: 9.5 | D95: 9,5 -
B96: 9.6 | D96: 9,6 -
B97: 9.7 | D97: 9,7 -
B98: 9.8 | D98: 9,8 -
B99: 9.9 | D99: 9,9 -
B100: 9.10 | D100: 9.10 -
B101: Vote 10 | C101: Waste Water Management
B102: 10.1 | C102: Public Toilets | D102: =CONCATENATE(B102, " - ", C102) -> 10,1 - Public Toilets | E102: 10,1 - Public Toilets
B103: 10.2 | D103: 10,2 -
B104: 10.3 | D104: 10,3 -
B105: 10.4 | D105: 10,4 -
B106: 10.5 | D106: 10,5 -
B107: 10.6 | D107: 10,6 -
B108: 10.7 | D108: 10,7 -
B109: 10.8 | D109: 10,8 -
B110: 10.9 | D110: 10,9 -
B111: 10.10 | D111: 10.10 -
B112: Vote 11 | C112: Waste Management
B113: 11.1 | C113: Solid Waste Removal | D113: =CONCATENATE(B113, " - ", C113) -> 11,1 - Solid Waste Removal | E113: 11,1 - Solid Waste Removal
B114: 11.2 | D114: 11,2 -
B115: 11.3 | D115: 11,3 -
B116: 11.4 | D116: 11,4 -
B117: 11.5 | D117: 11,5 -
B118: 11.6 | D118: 11,6 -
B119: 11.7 | D119: 11,7 -
B120: 11.8 | D120: 11,8 -
B121: 11.9 | D121: 11,9 -
B122: 11.10 | D122: 11.10 -
B123: Vote 12 | C123: [NAME OF VOTE 12]
B124: 12.1 | C124: [Name of sub-vote] | D124: =CONCATENATE(B124, " - ", C124) -> 12,1 - [Name of sub-vote] | E124: 12.1 - [Name of sub-vote]
B125: 12.2 | C125: [Name of sub-vote] | D125: 12,2 - [Name of sub-vote]
B126: 12.3 | C126: [Name of sub-vote] | D126: 12,3 - [Name of sub-vote]
B127: 12.4 | C127: [Name of sub-vote] | D127: 12,4 - [Name of sub-vote]
B128: 12.5 | C128: [Name of sub-vote] | D128: 12,5 - [Name of sub-vote]
B129: 12.6 | C129: [Name of sub-vote] | D129: 12,6 - [Name of sub-vote]
B130: 12.7 | C130: [Name of sub-vote] | D130: 12,7 - [Name of sub-vote]
B131: 12.8 | C131: [Name of sub-vote] | D131: 12,8 - [Name of sub-vote]
B132: 12.9 | C132: [Name of sub-vote] | D132: 12,9 - [Name of sub-vote]
B133: 12.10 | C133: [Name of sub-vote] | D133: 12.10 - [Name of sub-vote]
B134: Vote 13 | C134: [NAME OF VOTE 13]
B135: 13.1 | C135: [Name of sub-vote] | D135: =CONCATENATE(B135, " - ", C135) -> 13,1 - [Name of sub-vote] | E135: 13.1 - [Name of sub-vote]
B136: 13.2 | C136: [Name of sub-vote] | D136: 13,2 - [Name of sub-vote]
B137: 13.3 | C137: [Name of sub-vote] | D137: 13,3 - [Name of sub-vote]
B138: 13.4 | C138: [Name of sub-vote] | D138: 13,4 - [Name of sub-vote]
B139: 13.5 | C139: [Name of sub-vote] | D139: 13,5 - [Name of sub-vote]
B140: 13.6 | C140: [Name of sub-vote] | D140: 13,6 - [Name of sub-vote]
B141: 13.7 | C141: [Name of sub-vote] | D141: 13,7 - [Name of sub-vote]
B142: 13.8 | C142: [Name of sub-vote] | D142: 13,8 - [Name of sub-vote]
B143: 13.9 | C143: [Name of sub-vote] | D143: 13,9 - [Name of sub-vote]
B144: 13.10 | C144: [Name of sub-vote] | D144: 13.10 - [Name of sub-vote]
B145: Vote 14 | C145: [NAME OF VOTE 14]
B146: 14.1 | C146: [Name of sub-vote] | D146: =CONCATENATE(B146, " - ", C146) -> 14,1 - [Name of sub-vote] | E146: 14.1 - [Name of sub-vote]
B147: 14.2 | C147: [Name of sub-vote] | D147: 14,2 - [Name of sub-vote]
B148: 14.3 | C148: [Name of sub-vote] | D148: 14,3 - [Name of sub-vote]
B149: 14.4 | C149: [Name of sub-vote] | D149: 14,4 - [Name of sub-vote]
B150: 14.5 | C150: [Name of sub-vote] | D150: 14,5 - [Name of sub-vote]
B151: 14.6 | C151: [Name of sub-vote] | D151: 14,6 - [Name of sub-vote]
B152: 14.7 | C152: [Name of sub-vote] | D152: 14,7 - [Name of sub-vote]
B153: 14.8 | C153: [Name of sub-vote] | D153: 14,8 - [Name of sub-vote]
B154: 14.9 | C154: [Name of sub-vote] | D154: 14,9 - [Name of sub-vote]
B155: 14.10 | C155: [Name of sub-vote] | D155: 14.10 - [Name of sub-vote]
B156: Vote 15 | C156: [NAME OF VOTE 15]
B157: 15.1 | C157: [Name of sub-vote] | D157: =CONCATENATE(B157, " - ", C157) -> 15,1 - [Name of sub-vote] | E157: 15.1 - [Name of sub-vote]
B158: 15.2 | C158: [Name of sub-vote] | D158: 15,2 - [Name of sub-vote]
B159: 15.3 | C159: [Name of sub-vote] | D159: 15,3 - [Name of sub-vote]
B160: 15.4 | C160: [Name of sub-vote] | D160: 15,4 - [Name of sub-vote]
B161: 15.5 | C161: [Name of sub-vote] | D161: 15,5 - [Name of sub-vote]
B162: 15.6 | C162: [Name of sub-vote] | D162: 15,6 - [Name of sub-vote]
B163: 15.7 | C163: [Name of sub-vote] | D163: 15,7 - [Name of sub-vote]
B164: 15.8 | C164: [Name of sub-vote] | D164: 15,8 - [Name of sub-vote]
B165: 15.9 | C165: [Name of sub-vote] | D165: 15,9 - [Name of sub-vote]
B166: 15.10 | C166: [Name of sub-vote] | D166: 15.10 - [Name of sub-vote]

Sheet Contacts
A1: ='Template names'!$B$63&" - "&" Contact Information" -> LIM332 Greater Letaba - Contact Information
A3: A. GENERAL INFORMATION
A4: Municipality | B4: ='Template names'!$B$63 -> LIM332 Greater Letaba | C4: Set name on 'Instructions' sheet
A6: Grade | C6: 1 Grade in terms of the Remuneration of Public Office Bearers Act.
A8: Province | B8: =IF(B4>" ",VLOOKUP(B4,'Lookup and lists'!B29:C312,2, FALSE)," ") -> Limpopo
A10: Web Address | B10: www.greaterletaba.gov.za
A12: e-mail Address
A14: B. CONTACT INFORMATION
A15: Postal address:
A16: P.O. Box | B16: 36
A17: City / Town | B17: Modjadjiskloof
A18: Postal Code | B18: 835
A20: Street address
A21: Building | B21: Civic Centre
A22: Street No. & Name | B22: 44 Botha Street
A23: City / Town | B23: Modjadjiskloof
A24: Postal Code | B24: 835
A26: General Contacts
A27: Telephone number | B27: 015 309 9246/7/8
A28: Fax number | B28: 015 309 9419
A30: C. POLITICAL LEADERSHIP
A31: Speaker: | C31: Secretary/PA to the Speaker:
A32: ID Number | B32: 6704290418087 | C32: ID Number | D32: "7305100539085
A33: Title | B33: Ms | C33: Title | D33: Ms
A34: Name | B34: Makhananisa M.D | C34: Name | D34: Mutshendze TM
A35: Telephone number | B35: 015 309 9246 | C35: Telephone number | D35: 015 309 9246
A36: Cell number | B36: 082 418 8635 | C36: Cell number | D36: 073 227 7640
A37: Fax number | B37: 015 309 9419 | C37: Fax number | D37: 015 309 9419
A38: E-mail address | B38: speaker@glm.gov.za | C38: E-mail address | D38: mollym@glm.gov.za
A40: Mayor/Executive Mayor: | C40: Secretary/PA to the Mayor/Executive Mayor:
A41: ID Number | B41: "6302025730080 | C41: ID Number | D41: "7905070311082
A42: Title | B42: Mr | C42: Title | D42: Ms
A43: Name | B43: Matlou M.P | C43: Name | D43: Maapolela D.W
A44: Telephone number | B44: 015 309 9246 | C44: Telephone number | D44: 015 309 9246
A45: Cell number | B45: 079 153 5627 | C45: Cell number | D45: 083 977 3072
A46: Fax number | B46: 015 309 9419 | C46: Fax number | D46: 015 309 9419
A47: E-mail address | B47: mayor@glm.gov.za | C47: E-mail address | D47: nkelem@glm.gov.za
A49: Deputy Mayor/Executive Mayor: | C49: Secretary/PA to the Deputy Mayor/Executive Mayor:
A50: ID Number | C50: ID Number
A51: Title | C51: Title
A52: Name | C52: Name
A53: Telephone number | C53: Telephone number
A54: Cell number | C54: Cell number
A55: Fax number | C55: Fax number
A56: E-mail address | C56: E-mail address
A58: D. MANAGEMENT LEADERSHIP
A59: Municipal Manager: | C59: Secretary/PA to the Municipal Manager:
A60: ID Number | B60: '7209095504080 | C60: ID Number | D60: 7212280485081
A61: Title | B61: Mr | C61: Title | D61: Ms
A62: Name | B62: Dr K.I Sirovha | C62: Name | D62: M.F Masipa
A63: Telephone number | B63: 015 309 9451 | C63: Telephone number | D63: 0153099246
A64: Cell number | B64: 0721239734 | C64: Cell number | D64: 0828440350
A65: Fax number | B65: 015 309 9419 | C65: Fax number | D65: 0153099419
A66: E-mail address | B66: InnocentS@glm.gov.za | C66: E-mail address | D66: secretarymm@glm.gov.za
A68: Chief Financial Officer | C68: Secretary/PA to the Chief Financial Officer
A69: ID Number | B69: "7211080336080 | C69: ID Number | D69: "8405280648083
A70: Title | B70: Mrs | C70: Title | D70: Ms
A71: Name | B71: Mankgabe M.F | C71: Name | D71: Mashatola M.C
A72: Telephone number | B72: 0153099246 | C72: Telephone number | D72: 015 309 9246
A73: Cell number | B73: 076 715 9510 | C73: Cell number | D73: 081 046 4536
A74: Fax number | B74: 0153099419 | C74: Fax number | D74: 015 309 9419
A75: E-mail address | B75: mologil@webmail.co.za | C75: E-mail address | D75: mmachawelam@glm.gov.za
A77: Official responsible for submitting financial information | C77: Official responsible for submitting financial information
A78: ID Number | B78: "8505230737082 | C78: ID Number | D78: "9006111065080
A79: Title | B79: Ms | C79: Title | D79: Ms
A80: Name | B80: Nomsa Makhubela | C80: Name | D80: Tracy Baloyi
A81: Telephone number | B81: 015 309 9246 | C81: Telephone number | D81: 015 309 9246
A82: Cell number | B82: 064 750 1437 | C82: Cell number | D82: 083 271 0762
A83: Fax number | B83: 015 309 9419 | C83: Fax number | D83: 015 309 9419
A84: E-mail address | B84: nomsam@glm.gov.za | C84: E-mail address | D84: Tracyb@glm.gov.za
A85: Official responsible for submitting financial information | C85: Official responsible for submitting financial information
A86: ID Number | C86: ID Number
A87: Title | B87: Mr | C87: Title
A88: Name | B88: Mamatlepa LM | C88: Name
A89: Telephone number | B89: 015 309 9246 | C89: Telephone number
A90: Cell number | B90: 076 167 8941 | C90: Cell number
A91: Fax number | B91: 015 309 9419 | C91: Fax number
A92: E-mail address | B92: lesleym@glm.gov.za | C92: E-mail address
A93: Official responsible for submitting financial information | C93: Official responsible for submitting financial information
A94: ID Number | C94: ID Number
A95: Title | C95: Title
A96: Name | C96: Name
A97: Telephone number | C97: Telephone number
A98: Cell number | C98: Cell number
A99: Fax number | C99: Fax number
A100: E-mail address | C100: E-mail address
A101: Official responsible for submitting financial information | C101: Official responsible for submitting financial information
A102: ID Number | C102: ID Number
A103: Title | C103: Title
A104: Name | C104: Name
A105: Telephone number | C105: Telephone number
A106: Cell number | C106: Cell number
A107: Fax number | C107: Fax number
A108: E-mail address | C108: E-mail address
A109: Official responsible for submitting financial information | C109: Official responsible for submitting financial information
A110: ID Number | C110: ID Number
A111: Title | C111: Title
A112: Name | C112: Name
A113: Telephone number | C113: Telephone number
A114: Cell number | C114: Cell number
A115: Fax number | C115: Fax number
A116: E-mail address | C116: E-mail address
A117: Official responsible for submitting financial information | C117: Official responsible for submitting financial information
A118: ID Number | C118: ID Number
A119: Title | C119: Title
A120: Name | C120: Name
A121: Telephone number | C121: Telephone number
A122: Cell number | C122: Cell number
A123: Fax number | C123: Fax number
A124: E-mail address | C124: E-mail address
A125: Official responsible for submitting financial information | C125: Official responsible for submitting financial information
A126: ID Number | C126: ID Number
A127: Title | C127: Title
A128: Name | C128: Name
A129: Telephone number | C129: Telephone number
A130: Cell number | C130: Cell number
A131: Fax number | C131: Fax number
A132: E-mail address | C132: E-mail address
A133: Official responsible for submitting financial information
A134: ID Number
A135: Title
A136: Name
A137: Telephone number
A138: Cell number
A139: Fax number
A140: E-mail address

Sheet B1-Sum
A1: =muni&" - "&adjsum&" - "&Date -> LIM332 Greater Letaba - Table B1 Adjustments Budget Summary - 27 February 2019
A2: =desc -> Description | B2: =Head2 -> Budget Year 2018/19 | K2: =Head10 -> Budget Year +1 2019/20 | L2: =Head11 -> Budget Year +2 2020/21
B3: =Head6 -> Original Budget | C3: =Head54 -> Prior Adjusted | D3: =Head51 -> Accum. Funds | E3: =Head52 -> Multi-year capital | F3: =Head53 -> Unfore. Unavoid. | G3: =Head55 -> Nat. or Prov. Govt | H3: =Head50 -> Other Adjusts. | I3: =Head56 -> Total Adjusts. | J3: =Head7 -> Adjusted Budget | K3: =Head7 -> Adjusted Budget | L3: =Head7 -> Adjusted Budget
C4: 1 | D4: 2 | E4: 3 | F4: 4 | G4: 5 | H4: 6 | I4: 7 | J4: 8
A5: R thousands | B5: A | C5: A1 | D5: B | E5: C | F5: D | G5: E | H5: F | I5: G | J5: H
A6: Financial Performance
A7: Property rates | B7: =SUM('B4-FinPerf RE'!C7:C7) -> 12255327.57 | C7: =SUM('B4-FinPerf RE'!D7:D7) -> 0 | D7: =SUM('B4-FinPerf RE'!E7:E7) -> 0 | E7: =SUM('B4-FinPerf RE'!F7:F7) -> 0 | F7: =SUM('B4-FinPerf RE'!G7:G7) -> 0 | G7: =SUM('B4-FinPerf RE'!H7:H7) -> 0 | H7: =SUM('B4-FinPerf RE'!I7:I7) -> 4607959 | I7: =SUM(D7:H7) -> 4607959 | J7: =IF(C7=0,B7+I7,C7+I7) -> 16863286.57 | K7: =SUM('B4-FinPerf RE'!L7:L7) -> 16894401 | L7: =SUM('B4-FinPerf RE'!M7:M7) -> 17992537
A8: Service charges | B8: =SUM('B4-FinPerf RE'!C8:C12) -> 18902040.03 | C8: =SUM('B4-FinPerf RE'!D8:D12) -> 0 | D8: =SUM('B4-FinPerf RE'!E8:E12) -> 0 | E8: =SUM('B4-FinPerf RE'!F8:F12) -> 0 | F8: =SUM('B4-FinPerf RE'!G8:G12) -> 0 | G8: =SUM('B4-FinPerf RE'!H8:H12) -> 0 | H8: =SUM('B4-FinPerf RE'!I8:I12) -> 13808000 | I8: 13808000 | J8: 32710040.03 | K8: =SUM('B4-FinPerf RE'!L8:L12) -> 31641193 | L8: =SUM('B4-FinPerf RE'!M8:M12) -> 33697871
A9: Investment revenue | B9: ='B4-FinPerf RE'!C14 -> 4519515.44 | C9: ='B4-FinPerf RE'!D14 -> 0 | D9: ='B4-FinPerf RE'!E14 -> 0 | E9: ='B4-FinPerf RE'!F14 -> 0 | F9: ='B4-FinPerf RE'!G14 -> 0 | G9: ='B4-FinPerf RE'!H14 -> 0 | H9: ='B4-FinPerf RE'!I14 -> 0 | I9: 0 | J9: 4519515.44 | K9: ='B4-FinPerf RE'!L14 -> 4813283 | L9: ='B4-FinPerf RE'!M14 -> 5126147
A10: Transfers recognised - operational | B10: ='B4-FinPerf RE'!C20 -> 248358000 | C10: ='B4-FinPerf RE'!D20 -> 0 | D10: ='B4-FinPerf RE'!E20 -> 0 | E10: ='B4-FinPerf RE'!F20 -> 0 | F10: ='B4-FinPerf RE'!G20 -> 0 | G10: ='B4-FinPerf RE'!H20 -> 0 | H10: ='B4-FinPerf RE'!I20 -> 0 | I10: 0 | J10: 248358000 | K10: ='B4-FinPerf RE'!L20 -> 274109000 | L10: ='B4-FinPerf RE'!M20 -> 297262000
A11: Other own revenue | B11: ='B4-FinPerf RE'!C13+'B4-FinPerf RE'!C15+'B4-FinPerf RE'!C16+'B4-FinPerf RE'!C17+'B4-FinPerf RE'!C18+'B4-FinPerf RE'!C19+'B4-FinPerf RE'!C21+'B4-FinPerf RE'!C22 -> 56221797.19 | C11: ='B4-FinPerf RE'!D13+'B4-FinPerf RE'!D15+'B4-FinPerf RE'!D16+'B4-FinPerf RE'!D17+'B4-FinPerf RE'!D18+'B4-FinPerf RE'!D19+'B4-FinPerf RE'!D21+'B4-FinPerf RE'!D22 -> 0 | D11: ='B4-FinPerf RE'!E13+'B4-FinPerf RE'!E15+'B4-FinPerf RE'!E16+'B4-FinPerf RE'!E17+'B4-FinPerf RE'!E18+'B4-FinPerf RE'!E19+'B4-FinPerf RE'!E21+'B4-FinPerf RE'!E22 -> 0 | E11: ='B4-FinPerf RE'!F13+'B4-FinPerf RE'!F15+'B4-FinPerf RE'!F16+'B4-FinPerf RE'!F17+'B4-FinPerf RE'!F18+'B4-FinPerf RE'!F19+'B4-FinPerf RE'!F21+'B4-FinPerf RE'!F22 -> 0 | F11: ='B4-FinPerf RE'!G13+'B4-FinPerf RE'!G15+'B4-FinPerf RE'!G16+'B4-FinPerf RE'!G17+'B4-FinPerf RE'!G18+'B4-FinPerf RE'!G19+'B4-FinPerf RE'!G21+'B4-FinPerf RE'!G22 -> 0 | G11: ='B4-FinPerf RE'!H13+'B4-FinPerf RE'!H15+'B4-FinPerf RE'!H16+'B4-FinPerf RE'!H17+'B4-FinPerf RE'!H18+'B4-FinPerf RE'!H19+'B4-FinPerf RE'!H21+'B4-FinPerf RE'!H22 -> 0 | H11: ='B4-FinPerf RE'!I13+'B4-FinPerf RE'!I15+'B4-FinPerf RE'!I16+'B4-FinPerf RE'!I17+'B4-FinPerf RE'!I18+'B4-FinPerf RE'!I19+'B4-FinPerf RE'!I21+'B4-FinPerf RE'!I22 -> 28009241 | I11: 28009241 | J11: 84231038.19 | K11: ='B4-FinPerf RE'!L13+'B4-FinPerf RE'!L15+'B4-FinPerf RE'!L16+'B4-FinPerf RE'!L17+'B4-FinPerf RE'!L18+'B4-FinPerf RE'!L19+'B4-FinPerf RE'!L21+'B4-FinPerf RE'!L22 -> 60535704 | L11: ='B4-FinPerf RE'!M13+'B4-FinPerf RE'!M15+'B4-FinPerf RE'!M16+'B4-FinPerf RE'!M17+'B4-FinPerf RE'!M18+'B4-FinPerf RE'!M19+'B4-FinPerf RE'!M21+'B4-FinPerf RE'!M22 -> 64470523
A12: Total Revenue (excluding capital transfers and contributions) | B12: =SUM(B7:B11) -> 340256680.2 | C12: 0 | D12: 0 | E12: 0 | F12: 0 | G12: 0 | H12: 46425200 | I12: 46425200 | J12: 386681880.2 | K12: 387993581 | L12: 418549078
A13: Employee costs | B13: ='B4-FinPerf RE'!C26 -> 78303797.25 | C13: ='B4-FinPerf RE'!D26 -> 0 | D13: ='B4-FinPerf RE'!E26 -> 0 | E13: ='B4-FinPerf RE'!F26 -> 0 | F13: ='B4-FinPerf RE'!G26 -> 0 | G13: ='B4-FinPerf RE'!H26 -> 0 | H13: ='B4-FinPerf RE'!I26 -> 16962495 | I13: =SUM(D13:H13) -> 16962495 | J13: =IF(C13=0,B13+I13,C13+I13) -> 95266292.25 | K13: ='B4-FinPerf RE'!L26 -> 101544882 | L13: ='B4-FinPerf RE'!M26 -> 108008806
A14: Remuneration of councillors | B14: ='B4-FinPerf RE'!C27 -> 22467855 | C14: ='B4-FinPerf RE'!D27 -> 0 | D14: ='B4-FinPerf RE'!E27 -> 0 | E14: ='B4-FinPerf RE'!F27 -> 0 | F14: ='B4-FinPerf RE'!G27 -> 0 | G14: ='B4-FinPerf RE'!H27 -> 0 | H14: ='B4-FinPerf RE'!I27 -> 414177 | I14: 414177 | J14: 22882032 | K14: ='B4-FinPerf RE'!L27 -> 24369368 | L14: ='B4-FinPerf RE'!M27 -> 25953376
A15: Depreciation & asset impairment | B15: ='B4-FinPerf RE'!C29 -> 5043379.81 | C15: ='B4-FinPerf RE'!D29 -> 0 | D15: ='B4-FinPerf RE'!E29 -> 0 | E15: ='B4-FinPerf RE'!F29 -> 0 | F15: ='B4-FinPerf RE'!G29 -> 0 | G15: ='B4-FinPerf RE'!H29 -> 0 | H15: ='B4-FinPerf RE'!I29 -> 898831 | I15: 898831 | J15: 5942210.81 | K15: ='B4-FinPerf RE'!L29 -> 6865248 | L15: ='B4-FinPerf RE'!M29 -> 7311489
A16: Finance charges | B16: ='B4-FinPerf RE'!C30 -> 0 | C16: ='B4-FinPerf RE'!D30 -> 0 | D16: ='B4-FinPerf RE'!E30 -> 0 | E16: ='B4-FinPerf RE'!F30 -> 0 | F16: ='B4-FinPerf RE'!G30 -> 0 | G16: ='B4-FinPerf RE'!H30 -> 0 | H16: ='B4-FinPerf RE'!I30 -> 0 | I16: 0 | J16: 0 | K16: ='B4-FinPerf RE'!L30 -> 0 | L16: ='B4-FinPerf RE'!M30 -> 0
A17: Materials and bulk purchases | B17: =SUM('B4-FinPerf RE'!C31:C32) -> 17096559 | C17: =SUM('B4-FinPerf RE'!D31:D32) -> 0 | D17: =SUM('B4-FinPerf RE'!E31:E32) -> 0 | E17: =SUM('B4-FinPerf RE'!F31:F32) -> 0 | F17: =SUM('B4-FinPerf RE'!G31:G32) -> 0 | G17: =SUM('B4-FinPerf RE'!H31:H32) -> 0 | H17: =SUM('B4-FinPerf RE'!I31:I32) -> 0 | I17: 0 | J17: 17096559 | K17: =SUM('B4-FinPerf RE'!L31:L32) -> 18207835 | L17: =SUM('B4-FinPerf RE'!M31:M32) -> 19391344
A18: Transfers and grants | B18: ='B4-FinPerf RE'!C34 -> 0 | C18: ='B4-FinPerf RE'!D34 -> 0 | D18: ='B4-FinPerf RE'!E34 -> 0 | E18: ='B4-FinPerf RE'!F34 -> 0 | F18: ='B4-FinPerf RE'!G34 -> 0 | G18: ='B4-FinPerf RE'!H34 -> 0 | H18: ='B4-FinPerf RE'!I34 -> 0 | I18: 0 | J18: 0 | K18: ='B4-FinPerf RE'!L34 -> 0 | L18: ='B4-FinPerf RE'!M34 -> 0
A19: Other expenditure | B19: ='B4-FinPerf RE'!C37-SUM('B1-Sum'!B13:B18) -> 100518770.3 | C19: ='B4-FinPerf RE'!D37-SUM('B1-Sum'!C13:C18) -> 0 | D19: ='B4-FinPerf RE'!E37-SUM('B1-Sum'!D13:D18) -> 0 | E19: ='B4-FinPerf RE'!F37-SUM('B1-Sum'!E13:E18) -> 0 | F19: ='B4-FinPerf RE'!G37-SUM('B1-Sum'!F13:F18) -> 0 | G19: ='B4-FinPerf RE'!H37-SUM('B1-Sum'!G13:G18) -> 0 | H19: ='B4-FinPerf RE'!I37-SUM('B1-Sum'!H13:H18) -> 33756952.7 | I19: 33756952.7 | J19: 134275723 | K19: ='B4-FinPerf RE'!L37-SUM('B1-Sum'!K13:K18) -> 130860233.3 | L19: ='B4-FinPerf RE'!M37-SUM('B1-Sum'!L13:L18) -> 139156711.4
A20: Total Expenditure | B20: =SUM(B13:B19) -> 223430361.4 | C20: 0 | D20: 0 | E20: 0 | F20: 0 | G20: 0 | H20: 52032455.7 | I20: 52032455.7 | J20: 275462817.1 | K20: 281847566.3 | L20: 299821726.4
A21: Surplus/(Deficit) | B21: =B12-B20 -> 116826318.9 | C21: 0 | D21: 0 | E21: 0 | F21: 0 | G21: 0 | H21: -5607255.7 | I21: -5607255.7 | J21: 111219063.2 | K21: 106146014.7 | L21: 118727351.6
A22: Transfers recognised - capital | B22: ='B4-FinPerf RE'!C40 -> 62443000 | C22: ='B4-FinPerf RE'!D40 -> 0 | D22: ='B4-FinPerf RE'!E40 -> 0 | E22: ='B4-FinPerf RE'!F40 -> 0 | F22: ='B4-FinPerf RE'!G40 -> 0 | G22: ='B4-FinPerf RE'!H40 -> 0 | H22: ='B4-FinPerf RE'!I40 -> 0 | I22: =SUM(D22:H22) -> 0 | J22: =IF(C22=0,B22+I22,C22+I22) -> 62443000 | K22: ='B4-FinPerf RE'!L40 -> 68243000 | L22: ='B4-FinPerf RE'!M40 -> 73283000
A23: Contributions recognised - capital & contributed assets | B23: =SUM('B4-FinPerf RE'!C41:C42) -> 0 | C23: =SUM('B4-FinPerf RE'!D41:D42) -> 0 | D23: =SUM('B4-FinPerf RE'!E41:E42) -> 0 | E23: =SUM('B4-FinPerf RE'!F41:F42) -> 0 | F23: =SUM('B4-FinPerf RE'!G41:G42) -> 0 | G23: =SUM('B4-FinPerf RE'!H41:H42) -> 0 | H23: =SUM('B4-FinPerf RE'!I41:I42) -> 0 | I23: =SUM(D23:H23) -> 0 | J23: =IF(C23=0,B23+I23,C23+I23) -> 0 | K23: =SUM('B4-FinPerf RE'!L41:L42) -> 0 | L23: =SUM('B4-FinPerf RE'!M41:M42) -> 0
A24: Surplus/(Deficit) after capital transfers & contributions | B24: =B21+SUM(B22:B23) -> 179269318.9 | C24: 0 | D24: 0 | E24: 0 | F24: 0 | G24: 0 | H24: -5607255.7 | I24: =SUM(D24:H24) -> -5607255.7 | J24: =IF(C24=0,B24+I24,C24+I24) -> 173662063.2 | K24: 174389014.7 | L24: 192010351.6
A25: Share of surplus/ (deficit) of associate | B25: ='B4-FinPerf RE'!C48 -> 0 | C25: ='B4-FinPerf RE'!D48 -> 0 | D25: ='B4-FinPerf RE'!E48 -> 0 | E25: ='B4-FinPerf RE'!F48 -> 0 | F25: ='B4-FinPerf RE'!G48 -> 0 | G25: ='B4-FinPerf RE'!H48 -> 0 | H25: ='B4-FinPerf RE'!I48 -> 0 | I25: =SUM(D25:H25) -> 0 | J25: =IF(C25=0,B25+I25,C25+I25) -> 0 | K25: ='B4-FinPerf RE'!L48 -> 0 | L25: ='B4-FinPerf RE'!M48 -> 0
A26: Surplus/ (Deficit) for the year | B26: =B24+B25 -> 179269318.9 | C26: 0 | D26: 0 | E26: 0 | F26: 0 | G26: 0 | H26: -5607255.7 | I26: -5607255.7 | J26: 173662063.2 | K26: 174389014.7 | L26: 192010351.6
A28: Capital expenditure & funds sources
A29: Capital expenditure | B29: ='B5-Capex'!C42 -> 179277319.1 | C29: ='B5-Capex'!D42 -> 0 | D29: ='B5-Capex'!E42 -> 0 | E29: ='B5-Capex'!F42 -> 0 | F29: ='B5-Capex'!G42 -> 0 | G29: ='B5-Capex'!H42 -> 0 | H29: ='B5-Capex'!I42 -> -5615913 | I29: =SUM(D29:H29) -> -5615913 | J29: =IF(C29=0,B29+I29,C29+I29) -> 173661406.1 | K29: ='B5-Capex'!L42 -> 174388883 | L29: ='B5-Capex'!M42 -> 192009876
A30: Transfers recognised - capital | B30: ='B5-Capex'!C72 -> 62443000 | C30: ='B5-Capex'!D72 -> 0 | D30: ='B5-Capex'!E72 -> 0 | E30: ='B5-Capex'!F72 -> 0 | F30: ='B5-Capex'!G72 -> 0 | G30: ='B5-Capex'!H72 -> 0 | H30: ='B5-Capex'!I72 -> 0 | I30: =SUM(D30:H30) -> 0 | J30: =IF(C30=0,B30+I30,C30+I30) -> 62443000 | K30: ='B5-Capex'!L72 -> 68243000 | L30: ='B5-Capex'!M72 -> 73283000
A31: Public contributions & donations | B31: ='B5-Capex'!C73 -> 0 | C31: ='B5-Capex'!D73 -> 0 | D31: ='B5-Capex'!E73 -> 0 | E31: ='B5-Capex'!F73 -> 0 | F31: ='B5-Capex'!G73 -> 0 | G31: ='B5-Capex'!H73 -> 0 | H31: ='B5-Capex'!I73 -> 0 | I31: =SUM(D31:H31) -> 0 | J31: =IF(C31=0,B31+I31,C31+I31) -> 0 | K31: ='B5-Capex'!L73 -> 0 | L31: ='B5-Capex'!M73 -> 0
A32: Borrowing | B32: ='B5-Capex'!C74 -> 0 | C32: ='B5-Capex'!D74 -> 0 | D32: ='B5-Capex'!E74 -> 0 | E32: ='B5-Capex'!F74 -> 0 | F32: ='B5-Capex'!G74 -> 0 | G32: ='B5-Capex'!H74 -> 0 | H32: ='B5-Capex'!I74 -> 0 | I32: =SUM(D32:H32) -> 0 | J32: =IF(C32=0,B32+I32,C32+I32) -> 0 | K32: ='B5-Capex'!L74 -> 0 | L32: ='B5-Capex'!M74 -> 0
A33: Internally generated funds | B33: ='B5-Capex'!C75 -> 116834318.9 | C33: ='B5-Capex'!D75 -> 0 | D33: ='B5-Capex'!E75 -> 0 | E33: ='B5-Capex'!F75 -> 0 | F33: ='B5-Capex'!G75 -> 0 | G33: ='B5-Capex'!#REF! ->  | H33: ='B5-Capex'!H75 -> 0 | I33: =SUM(D33:H33) ->  | J33: =IF(C33=0,B33+I33,C33+I33) ->  | K33: ='B5-Capex'!L75 -> 118557914 | L33: ='B5-Capex'!M75 -> 115157538
A34: Total sources of capital funds | B34: =SUM(B30:B33) -> 179277318.9 | C34: 0 | D34: 0 | E34: 0 | F34: 0 | H34: 0 | K34: 186800914 | L34: 188440538
A36: Financial position
A37: Total current assets | B37: ='B6-FinPos'!C14 -> 96189276.33 | C37: ='B6-FinPos'!D14 -> 0 | D37: ='B6-FinPos'!E14 -> 0 | E37: ='B6-FinPos'!F14 -> 0 | F37: ='B6-FinPos'!G14 -> 0 | G37: ='B6-FinPos'!H14 -> 0 | H37: ='B6-FinPos'!I14 -> -25695000 | I37: =SUM(D37:H37) -> -25695000 | J37: =IF(C37=0,B37+I37,C37+I37) -> 70494276.33 | K37: ='B6-FinPos'!L14 -> 76810948.05 | L37: ='B6-FinPos'!M14 -> 80766325.19
A38: Total non current assets | B38: ='B6-FinPos'!C26 -> 854921586.6 | C38: ='B6-FinPos'!D26 -> 0 | D38: ='B6-FinPos'!E26 -> 0 | E38: ='B6-FinPos'!F26 -> 0 | F38: ='B6-FinPos'!G26 -> 0 | G38: ='B6-FinPos'!H26 -> 0 | H38: ='B6-FinPos'!I26 -> -5305913 | I38: =SUM(D38:H38) -> -5305913 | J38: =IF(C38=0,B38+I38,C38+I38) -> 849615673.6 | K38: ='B6-FinPos'!L26 -> 1005104576 | L38: ='B6-FinPos'!M26 -> 1011401355
A39: Total current liabilities | B39: ='B6-FinPos'!C36 -> 36063204.06 | C39: ='B6-FinPos'!D36 -> 0 | D39: ='B6-FinPos'!E36 -> 0 | E39: ='B6-FinPos'!F36 -> 0 | F39: ='B6-FinPos'!G36 -> 0 | G39: ='B6-FinPos'!H36 -> 0 | H39: ='B6-FinPos'!I36 -> 0 | I39: =SUM(D39:H39) -> 0 | J39: =IF(C39=0,B39+I39,C39+I39) -> 36063204.06 | K39: ='B6-FinPos'!L36 -> 35389897.85 | L39: ='B6-FinPos'!M36 -> 36511342.23
A40: Total non current liabilities | B40: ='B6-FinPos'!C41 -> 14744449.65 | C40: ='B6-FinPos'!D41 -> 0 | D40: ='B6-FinPos'!E41 -> 0 | E40: ='B6-FinPos'!F41 -> 0 | F40: ='B6-FinPos'!G41 -> 0 | G40: ='B6-FinPos'!H41 -> 0 | H40: ='B6-FinPos'!I41 -> 0 | I40: =SUM(D40:H40) -> 0 | J40: =IF(C40=0,B40+I40,C40+I40) -> 14744449.65 | K40: ='B6-FinPos'!L41 -> 15410142.73 | L40: ='B6-FinPos'!M41 -> 16124776.58
A41: Community wealth/Equity | B41: ='B6-FinPos'!C50 -> 900303209.2 | C41: ='B6-FinPos'!D50 -> 0 | D41: ='B6-FinPos'!E50 -> 0 | E41: ='B6-FinPos'!F50 -> 0 | F41: ='B6-FinPos'!G50 -> 0 | G41: ='B6-FinPos'!H50 -> 0 | H41: ='B6-FinPos'!I50 -> -31000913 | I41: =SUM(D41:H41) -> -31000913 | J41: =IF(C41=0,B41+I41,C41+I41) -> 869302296.2 | K41: ='B6-FinPos'!L50 -> 1031115483 | L41: ='B6-FinPos'!M50 -> 1039531561
A43: Cash flows
A44: Net cash from (used) operating | B44: ='B7-CFlow'!C19 -> 151493540.5 | C44: ='B7-CFlow'!D19 -> 0 | D44: ='B7-CFlow'!E19 -> 0 | E44: ='B7-CFlow'!F19 -> 0 | F44: ='B7-CFlow'!G19 -> 0 | G44: ='B7-CFlow'!H19 -> 0 | H44: ='B7-CFlow'!I19 -> 1619000 | I44: =SUM(D44:H44) -> 1619000 | J44: =IF(C44=0,B44+I44,C44+I44) -> 153112540.5 | K44: ='B7-CFlow'!L19 -> 184553523.4 | L44: ='B7-CFlow'!M19 -> 200369368.6
A45: Net cash from (used) investing | B45: ='B7-CFlow'!C29 -> -144514398 | C45: ='B7-CFlow'!D29 -> 0 | D45: ='B7-CFlow'!E29 -> 0 | E45: ='B7-CFlow'!F29 -> 0 | F45: ='B7-CFlow'!G29 -> 0 | G45: ='B7-CFlow'!H29 -> 0 | H45: ='B7-CFlow'!I29 -> -18243000 | I45: =SUM(D45:H45) -> -18243000 | J45: =IF(C45=0,B45+I45,C45+I45) -> -162757398 | K45: ='B7-CFlow'!L29 -> -182943742 | L45: ='B7-CFlow'!M29 -> -200086737
A46: Net cash from (used) financing | B46: ='B7-CFlow'!C38 -> 0 | C46: ='B7-CFlow'!D38 -> 0 | D46: ='B7-CFlow'!E38 -> 0 | E46: ='B7-CFlow'!F38 -> 0 | F46: ='B7-CFlow'!G38 -> 0 | G46: ='B7-CFlow'!H38 -> 0 | H46: ='B7-CFlow'!I38 -> 0 | I46: =SUM(D46:H46) -> 0 | J46: =IF(C46=0,B46+I46,C46+I46) -> 0 | K46: ='B7-CFlow'!L38 -> 0 | L46: ='B7-CFlow'!M38 -> 0
A47: Cash/cash equivalents at the year end | B47: ='B7-CFlow'!C42 -> 20650142.49 | C47: ='B7-CFlow'!D42 -> 0 | D47: ='B7-CFlow'!E42 -> 0 | E47: ='B7-CFlow'!F42 -> 0 | F47: ='B7-CFlow'!G42 -> 0 | G47: ='B7-CFlow'!H42 -> 0 | H47: ='B7-CFlow'!I42 -> -16624000 | I47: =SUM(D47:H47) -> -16624000 | J47: =IF(C47=0,B47+I47,C47+I47) -> 4026142.487 | K47: ='B7-CFlow'!L42 -> 5635781.4 | L47: ='B7-CFlow'!M42 -> 5918631.6
A49: Cash backing/surplus reconciliation
A50: Cash and investments available | B50: ='B8-ResRecon'!C10 -> 29721281.53 | C50: ='B8-ResRecon'!D10 -> 0 | D50: ='B8-ResRecon'!E10 -> 0 | E50: ='B8-ResRecon'!F10 -> 0 | F50: ='B8-ResRecon'!G10 -> 0 | G50: ='B8-ResRecon'!H10 -> 0 | H50: ='B8-ResRecon'!I10 -> -25695000 | I50: =SUM(D50:H50) -> -25695000 | J50: =IF(C50=0,B50+I50,C50+I50) -> 4026281.53 | K50: ='B8-ResRecon'!L10 -> 7026281.53 | L50: ='B8-ResRecon'!M10 -> 7528502.014
A51: Application of cash and investments | B51: ='B8-ResRecon'!C20 -> 24636889.65 | C51: ='B8-ResRecon'!D20 -> 0 | D51: ='B8-ResRecon'!E20 -> 0 | E51: ='B8-ResRecon'!F20 -> 0 | F51: ='B8-ResRecon'!G20 -> 0 | G51: ='B8-ResRecon'!H20 -> 0 | H51: ='B8-ResRecon'!I20 -> -6427857 | I51: =SUM(D51:H51) -> -6427857 | J51: =IF(C51=0,B51+I51,C51+I51) -> 18209032.65 | K51: ='B8-ResRecon'!L20 -> 19259850.65 | L51: ='B8-ResRecon'!M20 -> 18757749.65
A52: Balance - surplus (shortfall) | B52: =B50-B51 -> 5084391.882 | C52: 0 | D52: 0 | E52: 0 | F52: 0 | G52: 0 | H52: -19267143 | I52: -19267143 | J52: -14182751.12 | K52: -12233569.12 | L52: -11229247.63
A54: Asset Management
A55: Asset register summary (WDV) | B55: ='B9-Asset'!C167 -> 854373086.6 | C55: ='B9-Asset'!D167 -> 0 | D55: ='B9-Asset'!E167 -> 0 | E55: ='B9-Asset'!F167 -> 0 | F55: ='B9-Asset'!G167 -> 0 | G55: ='B9-Asset'!H167 -> 0 | H55: ='B9-Asset'!I167 -> -5615913 | I55: =SUM(D55:H55) -> -5615913 | J55: =IF(C55=0,B55+I55,C55+I55) -> 848757173.6 | K55: ='B9-Asset'!L167 -> 1004229336 | L55: ='B9-Asset'!M167 -> 1010508144
A56: Depreciation & asset impairment | B56: ='B9-Asset'!C170 -> 5043379.812 | C56: ='B9-Asset'!D170 -> 0 | D56: ='B9-Asset'!E170 -> 0 | E56: ='B9-Asset'!F170 -> 0 | F56: ='B9-Asset'!G170 -> 0 | G56: ='B9-Asset'!H170 -> 0 | H56: ='B9-Asset'!I170 -> 898831.77 | I56: =SUM(D56:H56) -> 898831.77 | J56: =IF(C56=0,B56+I56,C56+I56) -> 5942211.582 | K56: ='B9-Asset'!L170 -> 6865247.683 | L56: ='B9-Asset'!M170 -> 7311489.318
A57: Renewal of Existing Assets | B57: ='B9-Asset'!C39 -> 27083510.54 | C57: ='B9-Asset'!D39 -> 0 | D57: ='B9-Asset'!E39 -> 0 | E57: ='B9-Asset'!F39 -> 0 | F57: ='B9-Asset'!G39 -> 0 | G57: ='B9-Asset'!H39 -> 0 | H57: ='B9-Asset'!I39 -> 0 | I57: =SUM(D57:H57) -> 0 | J57: =IF(C57=0,B57+I57,C57+I57) -> 27083510.54 | K57: ='B9-Asset'!L39 -> 0 | L57: ='B9-Asset'!M39 -> 0
A58: Repairs and Maintenance | B58: ='B9-Asset'!C171 -> 22098649.14 | C58: ='B9-Asset'!D171 -> 0 | D58: ='B9-Asset'!E171 -> 0 | E58: ='B9-Asset'!F171 -> 0 | F58: ='B9-Asset'!G171 -> 0 | G58: ='B9-Asset'!H171 -> 0 | H58: ='B9-Asset'!I171 -> 668652 | I58: =SUM(D58:H58) -> 668652 | J58: =IF(C58=0,B58+I58,C58+I58) -> 22767301.14 | K58: ='B9-Asset'!L171 -> 11633000 | L58: ='B9-Asset'!M171 -> 12343000
A60: Free services
A61: Cost of Free Basic Services provided | B61: ='B10-SerDel'!C62 -> 8000 | C61: ='B10-SerDel'!D62 -> 0 | D61: ='B10-SerDel'!E62 -> 0 | E61: ='B10-SerDel'!F62 -> 0 | F61: ='B10-SerDel'!G62 -> 0 | G61: ='B10-SerDel'!H62 -> 0 | H61: ='B10-SerDel'!I62 -> 0 | I61: ='B10-SerDel'!J62 -> 0 | J61: ='B10-SerDel'!K62 -> 8000 | K61: ='B10-SerDel'!L62 -> 8000 | L61: ='B10-SerDel'!M62 -> 8000
A62: Revenue cost of free services provided | B62: ='B10-SerDel'!C81 -> 11191527.48 | C62: ='B10-SerDel'!D81 -> 0 | D62: ='B10-SerDel'!E81 -> 0 | E62: ='B10-SerDel'!F81 -> 0 | F62: ='B10-SerDel'!G81 -> 0 | G62: ='B10-SerDel'!H81 -> 0 | H62: ='B10-SerDel'!I81 -> 0 | I62: ='B10-SerDel'!J81 -> 0 | J62: ='B10-SerDel'!K81 -> 11191527.48 | K62: ='B10-SerDel'!L81 -> 11708412.07 | L62: ='B10-SerDel'!M81 -> 12258896.07
A63: Households below minimum service level
A64: Water: | B64: ='B10-SerDel'!C16 -> 67067 | C64: ='B10-SerDel'!D16 -> 0 | D64: ='B10-SerDel'!E16 -> 0 | E64: ='B10-SerDel'!F16 -> 0 | F64: ='B10-SerDel'!G16 -> 0 | G64: ='B10-SerDel'!H16 -> 0 | H64: ='B10-SerDel'!I16 -> 0 | I64: =SUM(D64:H64) -> 0 | J64: =IF(C64=0,B64+I64,C64+I64) -> 67067 | K64: ='B10-SerDel'!L16 -> 67067 | L64: ='B10-SerDel'!M16 -> 67067
A65: Sanitation/sewerage: | B65: ='B10-SerDel'!C28 -> 11021 | C65: ='B10-SerDel'!D28 -> 0 | D65: ='B10-SerDel'!E28 -> 0 | E65: ='B10-SerDel'!F28 -> 0 | F65: ='B10-SerDel'!G28 -> 0 | G65: ='B10-SerDel'!H28 -> 0 | H65: ='B10-SerDel'!I28 -> 0 | I65: =SUM(D65:H65) -> 0 | J65: =IF(C65=0,B65+I65,C65+I65) -> 11021 | K65: ='B10-SerDel'!L28 -> 11021 | L65: ='B10-SerDel'!M28 -> 11021
A66: Energy: | B66: ='B10-SerDel'!C37 -> 4805 | C66: ='B10-SerDel'!D37 -> 0 | D66: ='B10-SerDel'!E37 -> 0 | E66: ='B10-SerDel'!F37 -> 0 | F66: ='B10-SerDel'!G37 -> 0 | G66: ='B10-SerDel'!H37 -> 0 | H66: ='B10-SerDel'!I37 -> 0 | I66: =SUM(D66:H66) -> 0 | J66: =IF(C66=0,B66+I66,C66+I66) -> 4805 | K66: ='B10-SerDel'!L37 -> 4805 | L66: ='B10-SerDel'!M37 -> 4805
A67: Refuse: | B67: ='B10-SerDel'!C47 -> 59613 | C67: ='B10-SerDel'!D47 -> 0 | D67: ='B10-SerDel'!E47 -> 0 | E67: ='B10-SerDel'!F47 -> 0 | F67: ='B10-SerDel'!G47 -> 0 | G67: ='B10-SerDel'!H47 -> 0 | H67: ='B10-SerDel'!I47 -> 0 | I67: =SUM(D67:H67) -> 0 | J67: =IF(C67=0,B67+I67,C67+I67) -> 59613 | K67: ='B10-SerDel'!L47 -> 59613 | L67: ='B10-SerDel'!M47 -> 59613
A69: References
A70: 1. Only complete if a previous adjusted budget has been approved in the same financial year. Reflect most recent adjusted budget.
A71: 2. Additional cash-backed accumulated funds/unspent funds (MFMA section 18(1)(b) and section 28(2)(e)) identified after the Original Budget approved and after annual financial statements audited (note: only where underspending could not reasonably have been foreseen)
A72: 3. Increases of funds approved under MFMA section 31
A73: 4. Adjustments approved in accordance with MFMA section 29
A74: 5. Adjustments to transfers from National or Provincial Government
A75: 6. Adjusts. = 'Other' Adjustments proposed to be approved; including revenue under-collection (MFMA section 28(2)(a)); additional revenue appropriation on existing programmes (section 28(2))(b); projected savings (section 28(2)(d)); error correction (section 28(2)(f))
A76: 7. G = B + C + D + E + F
A77: 8. Adjusted Budget H = (A or A1/2 etc) + G

Sheet B2-FinPerf SC
A1: =muni&" - "&_ADJ3&" - "&Date -> LIM332 Greater Letaba - Table B2 Adjustments Budget Financial Performance (functional classification) - 27 February 2019
A2: ="Standard "&desc -> Standard Description | B2: =head27 -> Ref | C2: =Head2 -> Budget Year 2018/19 | L2: =Head10 -> Budget Year +1 2019/20 | M2: =Head11 -> Budget Year +2 2020/21
C3: =Head6 -> Original Budget | D3: =Head54 -> Prior Adjusted | E3: =Head51 -> Accum. Funds | F3: =Head52 -> Multi-year capital | G3: =Head53 -> Unfore. Unavoid. | H3: =Head55 -> Nat. or Prov. Govt | I3: =Head50 -> Other Adjusts. | J3: =Head56 -> Total Adjusts. | K3: =Head7 -> Adjusted Budget | L3: =Head7 -> Adjusted Budget | M3: =Head7 -> Adjusted Budget
D4: 5 | E4: =D4+1 -> 6 | F4: 7 | G4: 8 | H4: 9 | I4: 10 | J4: 11 | K4: 12
A5: R thousands | B5: 1, 4 | C5: A | D5: A1 | E5: B | F5: C | G5: D | H5: E | I5: F | J5: G | K5: H
A6: Revenue - Functional
A7: Governance and administration | C7: =SUM(C8:C10) -> 366195307 | D7: =SUM(D8:D10) -> 0 | E7: 0 | F7: 0 | G7: 0 | H7: 0 | I7: 15394214 | J7: =SUM(J8:J10) -> 15394214 | K7: =SUM(K8:K10) -> 381589521 | L7: =SUM(L8:L10) -> 384096221 | M7: =SUM(M8:M10) -> 413827901.5
A8: Executive and council | C8: =B2B!C8 -> 0 | D8: =B2B!D8 -> 0 | E8: =B2B!E8 -> 0 | F8: =B2B!F8 -> 0 | G8: =B2B!G8 -> 0 | H8: =B2B!H8 -> 0 | I8: =B2B!I8 -> 0 | J8: =SUM(E8:I8) -> 0 | K8: =IF(D8=0,C8+J8,D8+J8) -> 0 | L8: =B2B!L8 -> 0 | M8: =B2B!M8 -> 0
A9: Finance and administration | C9: =B2B!C11 -> 366195307 | D9: =B2B!D11 -> 0 | E9: =B2B!E11 -> 0 | F9: =B2B!F11 -> 0 | G9: =B2B!G11 -> 0 | H9: =B2B!H11 -> 0 | I9: =B2B!I11 -> 15394214 | J9: =SUM(E9:I9) -> 15394214 | K9: =IF(D9=0,C9+J9,D9+J9) -> 381589521 | L9: =B2B!L11 -> 384096221 | M9: =B2B!M11 -> 413827901.5
A10: Internal audit | C10: =B2B!C26 -> 0 | D10: =B2B!D26 -> 0 | E10: =B2B!E26 -> 0 | F10: =B2B!F26 -> 0 | G10: =B2B!G26 -> 0 | H10: =B2B!H26 -> 0 | I10: =B2B!I26 -> 0 | J10: =SUM(E10:I10) -> 0 | K10: =IF(D10=0,C10+J10,D10+J10) -> 0 | L10: =B2B!L26 -> 0 | M10: =B2B!M26 -> 0
A11: Community and public safety | C11: =SUM(C12:C16) -> 0 | D11: =SUM(D12:D16) -> 0 | E11: 0 | F11: 0 | G11: 0 | H11: 0 | I11: 0 | J11: =SUM(J12:J16) -> 0 | K11: =SUM(K12:K16) -> 0 | L11: =SUM(L12:L16) -> 0 | M11: =SUM(M12:M16) -> 0
A12: Community and social services | C12: =B2B!C29 -> 0 | D12: =B2B!D29 -> 0 | E12: =B2B!E29 -> 0 | F12: =B2B!F29 -> 0 | G12: =B2B!G29 -> 0 | H12: =B2B!H29 -> 0 | I12: =B2B!I29 -> 0 | J12: =SUM(E12:I12) -> 0 | K12: =IF(D12=0,C12+J12,D12+J12) -> 0 | L12: =B2B!L29 -> 0 | M12: =B2B!M29 -> 0
A13: Sport and recreation | C13: =B2B!C51 -> 0 | D13: =B2B!D51 -> 0 | E13: =B2B!E51 -> 0 | F13: =B2B!F51 -> 0 | G13: =B2B!G51 -> 0 | H13: =B2B!H51 -> 0 | I13: =B2B!I51 -> 0 | J13: =SUM(E13:I13) -> 0 | K13: =IF(D13=0,C13+J13,D13+J13) -> 0 | L13: =B2B!L51 -> 0 | M13: =B2B!M51 -> 0
A14: Public safety | C14: =B2B!C57 -> 0 | D14: =B2B!D57 -> 0 | E14: =B2B!E57 -> 0 | F14: =B2B!F57 -> 0 | G14: =B2B!G57 -> 0 | H14: =B2B!H57 -> 0 | I14: =B2B!I57 -> 0 | J14: =SUM(E14:I14) -> 0 | K14: =IF(D14=0,C14+J14,D14+J14) -> 0 | L14: =B2B!L57 -> 0 | M14: =B2B!M57 -> 0
A15: Housing | C15: =B2B!C64 -> 0 | D15: =B2B!D64 -> 0 | E15: =B2B!E64 -> 0 | F15: =B2B!F64 -> 0 | G15: =B2B!G64 -> 0 | H15: =B2B!H64 -> 0 | I15: =B2B!I64 -> 0 | J15: =SUM(E15:I15) -> 0 | K15: =IF(D15=0,C15+J15,D15+J15) -> 0 | L15: =B2B!L64 -> 0 | M15: =B2B!M64 -> 0
A16: Health | C16: =B2B!C67 -> 0 | D16: =B2B!D67 -> 0 | E16: =B2B!E67 -> 0 | F16: =B2B!F67 -> 0 | G16: =B2B!G67 -> 0 | H16: =B2B!H67 -> 0 | I16: =B2B!I67 -> 0 | J16: =SUM(E16:I16) -> 0 | K16: =IF(D16=0,C16+J16,D16+J16) -> 0 | L16: =B2B!L67 -> 0 | M16: =B2B!M67 -> 0
A17: Economic and environmental services | C17: =SUM(C18:C20) -> 11461019 | D17: =SUM(D18:D20) -> 0 | E17: 0 | F17: 0 | G17: 0 | H17: 0 | I17: 14600000 | J17: =SUM(J18:J20) -> 14600000 | K17: =SUM(K18:K20) -> 26061019 | L17: =SUM(L18:L20) -> 27754985 | M17: =SUM(M18:M20) -> 29559059
A18: Planning and development | C18: =B2B!C76 -> 0 | D18: =B2B!D76 -> 0 | E18: =B2B!E76 -> 0 | F18: =B2B!F76 -> 0 | G18: =B2B!G76 -> 0 | H18: =B2B!H76 -> 0 | I18: =B2B!I76 -> 0 | J18: =SUM(E18:I18) -> 0 | K18: =IF(D18=0,C18+J18,D18+J18) -> 0 | L18: =B2B!L76 -> 0 | M18: =B2B!M76 -> 0
A19: Road transport | C19: =B2B!C87 -> 11461019 | D19: =B2B!D87 -> 0 | E19: =B2B!E87 -> 0 | F19: =B2B!F87 -> 0 | G19: =B2B!G87 -> 0 | H19: =B2B!H87 -> 0 | I19: =B2B!I87 -> 14600000 | J19: =SUM(E19:I19) -> 14600000 | K19: =IF(D19=0,C19+J19,D19+J19) -> 26061019 | L19: =B2B!L87 -> 27754985 | M19: =B2B!M87 -> 29559059
A20: Environmental protection | C20: =B2B!C94 -> 0 | D20: =B2B!D94 -> 0 | E20: =B2B!E94 -> 0 | F20: =B2B!F94 -> 0 | G20: =B2B!G94 -> 0 | H20: =B2B!H94 -> 0 | I20: =B2B!I94 -> 0 | J20: =SUM(E20:I20) -> 0 | K20: =IF(D20=0,C20+J20,D20+J20) -> 0 | L20: =B2B!L94 -> 0 | M20: =B2B!M94 -> 0
A21: Trading services | C21: =SUM(C22:C25) -> 25051354.47 | D21: =SUM(D22:D25) -> 0 | E21: 0 | F21: 0 | G21: 0 | H21: 0 | I21: 16422987 | J21: 16422987 | K21: 41474341.47 | L21: 44386277 | M21: 48445111
A22: Energy sources | C22: =B2B!C102 -> 18807957.47 | D22: =B2B!D102 -> 0 | E22: =B2B!E102 -> 0 | F22: =B2B!F102 -> 0 | G22: =B2B!G102 -> 0 | H22: =B2B!H102 -> 0 | I22: =B2B!I102 -> 14422987 | J22: =SUM(E22:I22) -> 14422987 | K22: =IF(D22=0,C22+J22,D22+J22) -> 33230944.47 | L22: =B2B!L102 -> 36672060 | M22: =B2B!M102 -> 40229469
A23: Water management | C23: =B2B!C106 -> 0 | D23: =B2B!D106 -> 0 | E23: =B2B!E106 -> 0 | F23: =B2B!F106 -> 0 | G23: =B2B!G106 -> 0 | H23: =B2B!H106 -> 0 | I23: =B2B!I106 -> 0 | J23: =SUM(E23:I23) -> 0 | K23: =IF(D23=0,C23+J23,D23+J23) -> 0 | L23: =B2B!L106 -> 0 | M23: =B2B!M106 -> 0
A24: Waste water management | C24: =B2B!C110 -> 0 | D24: =B2B!D110 -> 0 | E24: =B2B!E110 -> 0 | F24: =B2B!F110 -> 0 | G24: =B2B!G110 -> 0 | H24: =B2B!H110 -> 0 | I24: =B2B!I110 -> 0 | J24: =SUM(E24:I24) -> 0 | K24: =IF(D24=0,C24+J24,D24+J24) -> 0 | L24: =B2B!L110 -> 0 | M24: =B2B!M110 -> 0
A25: Waste management | C25: =B2B!C115 -> 6243397 | D25: =B2B!D115 -> 0 | E25: =B2B!E115 -> 0 | F25: =B2B!F115 -> 0 | G25: =B2B!G115 -> 0 | H25: =B2B!H115 -> 0 | I25: =B2B!I115 -> 2000000 | J25: =SUM(E25:I25) -> 2000000 | K25: =IF(D25=0,C25+J25,D25+J25) -> 8243397 | L25: =B2B!L115 -> 7714217 | M25: =B2B!M115 -> 8215642
A26: Other | C26: =B2B!C120 -> 0 | D26: =B2B!D120 -> 0 | E26: =B2B!E120 -> 0 | F26: =B2B!F120 -> 0 | G26: =B2B!G120 -> 0 | H26: =B2B!H120 -> 0 | I26: =B2B!I120 -> 0 | J26: =SUM(E26:I26) -> 0 | K26: =IF(D26=0,C26+J26,D26+J26) -> 0 | L26: =B2B!L120 -> 0 | M26: =B2B!M120 -> 0
A27: ="Total "&A6 -> Total Revenue - Functional | B27: 2 | C27: =C7+C11+C17+C21+C26 -> 402707680.4 | D27: =D7+D11+D17+D21+D26 -> 0 | E27: 0 | F27: 0 | G27: 0 | H27: 0 | I27: 46417201 | J27: 46417201 | K27: 449124881.4 | L27: 456237483 | M27: 491832071.5
A29: Expenditure - Functional
A30: Governance and administration | C30: =SUM(C31:C33) -> 124146230.9 | D30: =SUM(D31:D33) -> 0 | E30: 0 | F30: 0 | G30: 0 | H30: 0 | I30: 21605438 | J30: =SUM(J31:J33) -> 21605438 | K30: =SUM(K31:K33) -> 145751668.9 | L30: =SUM(L31:L33) -> 156319101 | M30: =SUM(M31:M33) -> 166179736
A31: Executive and council | C31: =B2B!C131 -> 47800391.17 | D31: =B2B!D131 -> 0 | E31: =B2B!E131 -> 0 | F31: =B2B!F131 -> 0 | G31: =B2B!G131 -> 0 | H31: =B2B!H131 -> 0 | I31: =B2B!I131 -> 4582728 | J31: =SUM(E31:I31) -> 4582728 | K31: =IF(D31=0,C31+J31,D31+J31) -> 52383119.17 | L31: =B2B!L131 -> 56492940 | M31: =B2B!M131 -> 60004430
A32: Finance and administration | C32: =B2B!C134 -> 74406900.69 | D32: =B2B!D134 -> 0 | E32: =B2B!E134 -> 0 | F32: =B2B!F134 -> 0 | G32: =B2B!G134 -> 0 | H32: =B2B!H134 -> 0 | I32: =B2B!I134 -> 16494696 | J32: =SUM(E32:I32) -> 16494696 | K32: =IF(D32=0,C32+J32,D32+J32) -> 90901596.69 | L32: =B2B!L134 -> 97198856 | M32: =B2B!M134 -> 103377226
A33: Internal audit | C33: =B2B!C149 -> 1938939.02 | D33: =B2B!D149 -> 0 | E33: =B2B!E149 -> 0 | F33: =B2B!F149 -> 0 | G33: =B2B!G149 -> 0 | H33: =B2B!H149 -> 0 | I33: =B2B!I149 -> 528014 | J33: =SUM(E33:I33) -> 528014 | K33: =IF(D33=0,C33+J33,D33+J33) -> 2466953.02 | L33: =B2B!L149 -> 2627305 | M33: =B2B!M149 -> 2798080
A34: Community and public safety | C34: =SUM(C35:C39) -> 12752759.72 | D34: =SUM(D35:D39) -> 0 | E34: 0 | F34: 0 | G34: 0 | H34: 0 | I34: 5320886 | J34: =SUM(J35:J39) -> 5320886 | K34: =SUM(K35:K39) -> 18073645.72 | L34: =SUM(L35:L39) -> 19248432 | M34: =SUM(M35:M39) -> 20499580
A35: Community and social services | C35: =B2B!C152 -> 4334295.18 | D35: =B2B!D152 -> 0 | E35: =B2B!E152 -> 0 | F35: =B2B!F152 -> 0 | G35: =B2B!G152 -> 0 | H35: =B2B!H152 -> 0 | I35: =B2B!I152 -> 681923 | J35: =SUM(E35:I35) -> 681923 | K35: =IF(D35=0,C35+J35,D35+J35) -> 5016218.18 | L35: =B2B!L152 -> 5342273 | M35: =B2B!M152 -> 5689520
A36: Sport and recreation | C36: =B2B!C174 -> 7690965.43 | D36: =B2B!D174 -> 0 | E36: =B2B!E174 -> 0 | F36: =B2B!F174 -> 0 | G36: =B2B!G174 -> 0 | H36: =B2B!H174 -> 0 | I36: =B2B!I174 -> 4638963 | J36: =SUM(E36:I36) -> 4638963 | K36: =IF(D36=0,C36+J36,D36+J36) -> 12329928.43 | L36: =B2B!L174 -> 13131373 | M36: =B2B!M174 -> 13984913
A37: Public safety | C37: =B2B!C180 -> 0 | D37: =B2B!D180 -> 0 | E37: =B2B!E180 -> 0 | F37: =B2B!F180 -> 0 | G37: =B2B!G180 -> 0 | H37: =B2B!H180 -> 0 | I37: =B2B!I180 -> 0 | J37: =SUM(E37:I37) -> 0 | K37: =IF(D37=0,C37+J37,D37+J37) -> 0 | L37: =B2B!L180 -> 0 | M37: =B2B!M180 -> 0
A38: Housing | C38: =B2B!C187 -> 727499.11 | D38: =B2B!D187 -> 0 | E38: =B2B!E187 -> 0 | F38: =B2B!F187 -> 0 | G38: =B2B!G187 -> 0 | H38: =B2B!H187 -> 0 | I38: =B2B!I187 -> 0 | J38: =SUM(E38:I38) -> 0 | K38: =IF(D38=0,C38+J38,D38+J38) -> 727499.11 | L38: =B2B!L187 -> 774786 | M38: =B2B!M187 -> 825147
A39: Health | C39: =B2B!C190 -> 0 | D39: =B2B!D190 -> 0 | E39: =B2B!E190 -> 0 | F39: =B2B!F190 -> 0 | G39: =B2B!G190 -> 0 | H39: =B2B!H190 -> 0 | I39: =B2B!I190 -> 0 | J39: =SUM(E39:I39) -> 0 | K39: =IF(D39=0,C39+J39,D39+J39) -> 0 | L39: =B2B!L190 -> 0 | M39: =B2B!M190 -> 0
A40: Economic and environmental services | C40: =SUM(C41:C43) -> 48381784.74 | D40: =SUM(D41:D43) -> 0 | E40: 0 | F40: 0 | G40: 0 | H40: 0 | I40: 17036145 | J40: =SUM(J41:J43) -> 17036145 | K40: =SUM(K41:K43) -> 65417929.74 | L40: =SUM(L41:L43) -> 57055622 | M40: =SUM(M41:M43) -> 60718751
A41: Planning and development | C41: =B2B!C199 -> 13504109.48 | D41: =B2B!D199 -> 0 | E41: =B2B!E199 -> 0 | F41: =B2B!F199 -> 0 | G41: =B2B!G199 -> 0 | H41: =B2B!H199 -> 0 | I41: =B2B!I199 -> -1917559 | J41: =SUM(E41:I41) -> -1917559 | K41: =IF(D41=0,C41+J41,D41+J41) -> 11586550.48 | L41: =B2B!L199 -> 12339676 | M41: =B2B!M199 -> 13141754
A42: Road transport | C42: =B2B!C210 -> 34877675.26 | D42: =B2B!D210 -> 0 | E42: =B2B!E210 -> 0 | F42: =B2B!F210 -> 0 | G42: =B2B!G210 -> 0 | H42: =B2B!H210 -> 0 | I42: =B2B!I210 -> 18953704 | J42: =SUM(E42:I42) -> 18953704 | K42: =IF(D42=0,C42+J42,D42+J42) -> 53831379.26 | L42: =B2B!L210 -> 44715946 | M42: =B2B!M210 -> 47576997
A43: Environmental protection | C43: =B2B!C217 -> 0 | D43: =B2B!D217 -> 0 | E43: =B2B!E217 -> 0 | F43: =B2B!F217 -> 0 | G43: =B2B!G217 -> 0 | H43: =B2B!H217 -> 0 | I43: =B2B!I217 -> 0 | J43: =SUM(E43:I43) -> 0 | K43: =IF(D43=0,C43+J43,D43+J43) -> 0 | L43: =B2B!L217 -> 0 | M43: =B2B!M217 -> 0
A44: Trading services | C44: =SUM(C45:C48) -> 38149586.19 | D44: =SUM(D45:D48) -> 0 | E44: 0 | F44: 0 | G44: 0 | H44: 0 | I44: 8070636 | J44: 8070636 | K44: 46220222.19 | L44: 49224534 | M44: 52424129
A45: Energy sources | C45: =B2B!C225 -> 32487354.72 | D45: =B2B!D225 -> 0 | E45: =B2B!E225 -> 0 | F45: =B2B!F225 -> 0 | G45: =B2B!G225 -> 0 | H45: =B2B!H225 -> 0 | I45: =B2B!I225 -> 7962807 | J45: =SUM(E45:I45) -> 7962807 | K45: =IF(D45=0,C45+J45,D45+J45) -> 40450161.72 | L45: =B2B!L225 -> 43079420 | M45: =B2B!M225 -> 45879583
A46: Water management | C46: =B2B!C229 -> 0 | D46: =B2B!D229 -> 0 | E46: =B2B!E229 -> 0 | F46: =B2B!F229 -> 0 | G46: =B2B!G229 -> 0 | H46: =B2B!H229 -> 0 | I46: =B2B!I229 -> 0 | J46: =SUM(E46:I46) -> 0 | K46: =IF(D46=0,C46+J46,D46+J46) -> 0 | L46: =B2B!L229 -> 0 | M46: =B2B!M229 -> 0
A47: Waste water management | C47: =B2B!C233 -> 686133 | D47: =B2B!D233 -> 0 | E47: =B2B!E233 -> 0 | F47: =B2B!F233 -> 0 | G47: =B2B!G233 -> 0 | H47: =B2B!H233 -> 0 | I47: =B2B!I233 -> 14324 | J47: =SUM(E47:I47) -> 14324 | K47: =IF(D47=0,C47+J47,D47+J47) -> 700457 | L47: =B2B!L233 -> 745986 | M47: =B2B!M233 -> 794475
A48: Waste management | C48: =B2B!C238 -> 4976098.47 | D48: =B2B!D238 -> 0 | E48: =B2B!E238 -> 0 | F48: =B2B!F238 -> 0 | G48: =B2B!G238 -> 0 | H48: =B2B!H238 -> 0 | I48: =B2B!I238 -> 93505 | J48: =SUM(E48:I48) -> 93505 | K48: =IF(D48=0,C48+J48,D48+J48) -> 5069603.47 | L48: =B2B!L238 -> 5399128 | M48: =B2B!M238 -> 5750071
A49: Other | C49: =B2B!C243 -> 0 | D49: =B2B!D243 -> 0 | E49: =B2B!E243 -> 0 | F49: =B2B!F243 -> 0 | G49: =B2B!G243 -> 0 | H49: =B2B!H243 -> 0 | I49: =B2B!I243 -> 0 | J49: =SUM(E49:I49) -> 0 | K49: =IF(D49=0,C49+J49,D49+J49) -> 0 | L49: =B2B!L243 -> 0 | M49: =B2B!M243 -> 0
A50: ="Total "&A29 -> Total Expenditure - Functional | B50: 3 | C50: =C30+C34+C40+C44+C49 -> 223430361.5 | D50: =D30+D34+D40+D44+D49 -> 0 | E50: 0 | F50: 0 | G50: 0 | H50: 0 | I50: 52033105 | J50: 52033105 | K50: 275463466.5 | L50: 281847689 | M50: 299822196
A51: Surplus/ (Deficit) for the year | C51: =C27-C50 -> 179277318.9 | D51: 0 | E51: 0 | F51: 0 | G51: 0 | H51: 0 | I51: -5615904 | J51: -5615904 | K51: 173661414.9 | L51: 174389794 | M51: 192009875.5
A52: =head27a -> References
A53: 1. Government Finance Statistics Functions and Sub-functions are standardised to assist the compilation of national and international accounts for comparison purposes
A54: 2. Total Revenue by standard classification must reconcile to Total Operating Revenue shown in the Adjustments Budget Financial Performance (revenue and expenditure)
A55: 3. Total Operating Expenditure by standard classification must reconcile to Total Operating Expenditure shown in the Adjustments Budget Financial Performance (revenue and expenditure)
A56: 4. All amounts must be classified under a standard classification (modified GFS). The GFS function 'Other' is only for Abbatoirs, Air Transport, Markets and Tourism - and if used must be supported by footnotes. Nothing else may be placed under 'Other'. Assign associate share to relevant classification
A57: 5. Only complete if a previous adjusted budget has been approved in the same financial year. Reflect most recent adjusted budget.
A58: 6. Additional cash-backed accumulated funds/unspent funds (MFMA section 18(1)(b) and section 28(2)(e)) identified after the Original Budget approved and after annual financial statements audited (note: only where underspending could not reasonably have been foreseen)
A59: 7. Increases of funds approved under MFMA section 31
A60: 8. Adjustments approved in accordance with MFMA section 29
A61: 9. Adjustments to transfers from National or Provincial Government
A62: 10. Adjusts. = 'Other' Adjustments proposed to be approved; including revenue under-collection (MFMA section 28(2)(a)); additional revenue appropriation on existing programmes (section 28(2))(b); projected savings (section 28(2)(d)); error correction (section 28(2)(f))
A63: 11. G = B + C + D + E + F
A64: 12. Adjusted Budget H = (A or A1/2 etc) + G

Sheet B2B
A1: =muni&" - "&_ADJ3&" - B"&" - "&Date -> LIM332 Greater Letaba - Table B2 Adjustments Budget Financial Performance (functional classification) - B - 27 February 2019
A2: ="Standard Classification "&desc -> Standard Classification Description | B2: =head27 -> Ref | C2: =Head2 -> Budget Year 2018/19 | L2: =Head10 -> Budget Year +1 2019/20 | M2: =Head11 -> Budget Year +2 2020/21
C3: =Head6 -> Original Budget | D3: =Head54 -> Prior Adjusted | E3: =Head51 -> Accum. Funds | F3: =Head52 -> Multi-year capital | G3: =Head53 -> Unfore. Unavoid. | H3: =Head55 -> Nat. or Prov. Govt | I3: =Head50 -> Other Adjusts. | J3: =Head56 -> Total Adjusts. | K3: =Head7 -> Adjusted Budget | L3: =Head7 -> Adjusted Budget | M3: =Head7 -> Adjusted Budget
D4: 5 | E4: =D4+1 -> 6 | F4: 7 | G4: 8 | H4: 9 | I4: 10 | J4: 11 | K4: 12
A5: R thousand | B5: 1 | C5: A | D5: A1 | E5: B | F5: C | G5: D | H5: E | I5: F | J5: G | K5: H
A6: Revenue - Functional
A7: Municipal governance and administration | C7: =C8+C11+C26 -> 366195307 | D7: 0 | E7: 0 | F7: 0 | G7: 0 | H7: 0 | I7: 15394214 | J7: =SUM(E7:I7) -> 15394214 | K7: =IF(D7=0,C7+J7,D7+J7) -> 381589521 | L7: 384096221 | M7: 413827901.5
A8: Executive and council | C8: =SUM(C9:C10) -> 0 | D8: =SUM(D9:D10) -> 0 | E8: 0 | F8: 0 | G8: 0 | H8: 0 | I8: 0 | J8: =SUM(E8:I8) -> 0 | K8: =IF(D8=0,C8+J8,D8+J8) -> 0 | L8: =SUM(L9:L10) -> 0 | M8: =SUM(M9:M10) -> 0
A9: Mayor and Council | J9: =SUM(E9:I9) -> 0 | K9: =IF(D9=0,C9+J9,D9+J9) -> 0
A10: Municipal Manager, Town Secretary and Chief Executive | J10: =SUM(E10:I10) -> 0 | K10: =IF(D10=0,C10+J10,D10+J10) -> 0
A11: Finance and administration | C11: =SUM(C12:C25) -> 366195307 | D11: =SUM(D12:D25) -> 0 | E11: 0 | F11: 0 | G11: 0 | H11: 0 | I11: 15394214 | J11: 15394214 | K11: 381589521 | L11: =SUM(L12:L25) -> 384096221 | M11: =SUM(M12:M25) -> 413827901.5
A12: Administrative and Corporate Support | J12: 0 | K12: 0
A13: Asset Management | J13: 0 | K13: 0
A14: Budget and Treasury Office | C14: 366195307 | I14: =3607959+8786255+3000000 -> 15394214 | J14: 15394214 | K14: 381589521 | L14: =386617221-2521000 -> 384096221 | M14: =417083255-3255353.5 -> 413827901.5
A15: Finance | J15: 0 | K15: 0
A16: Fleet Management | J16: 0 | K16: 0
A17: Human Resources | J17: 0 | K17: 0
A18: Information Technology | J18: 0 | K18: 0
A19: Legal Services | J19: 0 | K19: 0
A20: Marketing, Customer Relations, Publicity and Media Co-ordination | J20: 0 | K20: 0
A21: Property Services | J21: 0 | K21: 0
A22: Risk Management | J22: 0 | K22: 0
A23: Security Services | J23: 0 | K23: 0
A24: Supply Chain Management | J24: 0 | K24: 0
A25: Valuation Service | J25: 0 | K25: 0
A26: Internal audit | C26: =SUM(C27:C27) -> 0 | D26: 0 | E26: 0 | F26: 0 | G26: 0 | H26: 0 | I26: 0 | J26: 0 | K26: 0 | L26: 0 | M26: 0
A27: Governance Function | J27: 0 | K27: 0
A28: Community and public safety | C28: =C29+C51+C57+C64+C67 -> 0 | D28: =D29+D51+D57+D64+D67 -> 0 | E28: 0 | F28: 0 | G28: 0 | H28: 0 | I28: 0 | J28: 0 | K28: 0 | L28: 0 | M28: 0
A29: Community and social services | C29: =SUM(C30:C50) -> 0 | D29: 0 | E29: 0 | F29: 0 | G29: 0 | H29: 0 | I29: 0 | J29: 0 | K29: 0 | L29: 0 | M29: 0
A30: Aged Care | J30: 0 | K30: 0
A31: Agricultural | J31: 0 | K31: 0
A32: Animal Care and Diseases | J32: 0 | K32: 0
A33: Cemeteries, Funeral Parlours and Crematoriums | J33: 0 | K33: 0
A34: Child Care Facilities | J34: 0 | K34: 0
A35: Community Halls and Facilities | J35: 0 | K35: 0
A36: Consumer Protection | J36: 0 | K36: 0
A37: Cultural Matters | J37: 0 | K37: 0
A38: Disaster Management | J38: 0 | K38: 0
A39: Education | J39: 0 | K39: 0
A40: Indigenous and Customary Law | J40: 0 | K40: 0
A41: Industrial Promotion | J41: 0 | K41: 0
A42: Language Policy | J42: 0 | K42: 0
A43: Libraries and Archives | J43: 0 | K43: 0
A44: Literacy Programmes | J44: 0 | K44: 0
A45: Media Services | J45: 0 | K45: 0
A46: Museums and Art Galleries | J46: 0 | K46: 0
A47: Population Development | J47: 0 | K47: 0
A48: Provincial Cultural Matters | J48: 0 | K48: 0
A49: Theatres | J49: 0 | K49: 0
A50: Zoo's | J50: 0 | K50: 0
A51: Sport and recreation | C51: =SUM(C52:C56) -> 0 | D51: 0 | E51: 0 | F51: 0 | G51: 0 | H51: 0 | I51: 0 | J51: 0 | K51: 0 | L51: 0 | M51: 0
A52: Beaches and Jetties | J52: 0 | K52: 0
A53: Casinos, Racing, Gambling, Wagering | J53: 0 | K53: 0
A54: Community Parks (including Nurseries) | J54: 0 | K54: 0
A55: Recreational Facilities | J55: 0 | K55: 0
A56: Sports Grounds and Stadiums | J56: 0 | K56: 0
A57: Public safety | C57: =SUM(C58:C63) -> 0 | D57: 0 | E57: 0 | F57: 0 | G57: 0 | H57: 0 | I57: 0 | J57: 0 | K57: 0 | L57: 0 | M57: 0
A58: Civil Defence | J58: 0 | K58: 0
A59: Cleansing | J59: 0 | K59: 0
A60: Control of Public Nuisances | J60: 0 | K60: 0
A61: Fencing and Fences | J61: 0 | K61: 0
A62: Fire Fighting and Protection | J62: 0 | K62: 0
A63: Licensing and Control of Animals | J63: 0 | K63: 0
A64: Housing | C64: =SUM(C65:C66) -> 0 | D64: =SUM(D65:D66) -> 0 | E64: 0 | F64: 0 | G64: 0 | H64: 0 | I64: 0 | J64: 0 | K64: 0 | L64: =SUM(L65:L66) -> 0 | M64: =SUM(M65:M66) -> 0
A65: Housing | J65: 0 | K65: 0
A66: Informal Settlements | J66: 0 | K66: 0
A67: Health | C67: =SUM(C68:C74) -> 0 | D67: =SUM(D68:D74) -> 0 | E67: 0 | F67: 0 | G67: 0 | H67: 0 | I67: 0 | J67: 0 | K67: 0 | L67: =SUM(L68:L74) -> 0 | M67: =SUM(M68:M74) -> 0
A68: Ambulance | J68: 0 | K68: 0
A69: Health Services | J69: 0 | K69: 0
A70: Laboratory Services | J70: 0 | K70: 0
A71: Food Control | J71: 0 | K71: 0
A72: Health Surveillance and Prevention of Communicable Diseases including immunizations | J72: 0 | K72: 0
A73: Vector Control | J73: 0 | K73: 0
A74: Chemical Safety | J74: =SUM(E74:I74) -> 0 | K74: =IF(D74=0,C74+J74,D74+J74) -> 0
A75: Economic and environmental services | C75: =C76+C87+C94 -> 11461019 | D75: =D76+D87+D94 -> 0 | E75: 0 | F75: 0 | G75: 0 | H75: 0 | I75: 14600000 | J75: 14600000 | K75: 26061019 | L75: =L76+L87+L94 -> 27754985 | M75: =M76+M87+M94 -> 29559059
A76: Planning and development | C76: =SUM(C77:C86) -> 0 | D76: =SUM(D77:D86) -> 0 | E76: 0 | F76: 0 | G76: 0 | H76: 0 | I76: 0 | J76: 0 | K76: 0 | L76: =SUM(L77:L86) -> 0 | M76: =SUM(M77:M86) -> 0
A77: Billboards | J77: 0 | K77: 0
A78: Corporate Wide Strategic Planning (IDPs, LEDs) | J78: 0 | K78: 0
A79: Central City Improvement District | J79: 0 | K79: 0
A80: Development Facilitation | J80: 0 | K80: 0
A81: Economic Development/Planning | J81: 0 | K81: 0
A82: Regional Planning and Development | J82: 0 | K82: 0
A83: Town Planning, Building Regulations and Enforcement, and City Engineer | J83: 0 | K83: 0
A84: Project Management Unit | J84: 0 | K84: 0
A85: Provincial Planning | J85: 0 | K85: 0
A86: Support to Local Municipalities | J86: 0 | K86: 0
A87: Road transport | C87: =SUM(C88:C93) -> 11461019 | D87: =SUM(D88:D93) -> 0 | E87: 0 | F87: 0 | G87: 0 | H87: 0 | I87: 14600000 | J87: 14600000 | K87: 26061019 | L87: =SUM(L88:L93) -> 27754985 | M87: =SUM(M88:M93) -> 29559059
A88: Police Forces, Traffic and Street Parking Control | C88: 11461019 | I88: 14600000 | J88: 14600000 | K88: 26061019 | L88: 27754985 | M88: 29559059
A89: Pounds | J89: 0 | K89: 0
A90: Public Transport | J90: 0 | K90: 0
A91: Road and Traffic Regulation | J91: 0 | K91: 0
A92: Roads | J92: 0 | K92: 0
A93: Taxi Ranks | J93: 0 | K93: 0
A94: Environmental protection | C94: =SUM(C95:C100) -> 0 | D94: =SUM(D95:D100) -> 0 | E94: 0 | F94: 0 | G94: 0 | H94: 0 | I94: 0 | J94: 0 | K94: 0 | L94: =SUM(L95:L100) -> 0 | M94: =SUM(M95:M100) -> 0
A95: Biodiversity and Landscape | J95: 0 | K95: 0
A96: Coastal Protection | J96: 0 | K96: 0
A97: Indigenous Forests | J97: 0 | K97: 0
A98: Nature Conservation | J98: 0 | K98: 0
A99: Pollution Control | J99: 0 | K99: 0
A100: Soil Conservation | J100: 0 | K100: 0
A101: Trading services | C101: =C102+C106+C110+C115 -> 25051354.47 | D101: =D102+D106+D110+D115 -> 0 | E101: 0 | F101: 0 | G101: 0 | H101: 0 | I101: 16422987 | J101: 16422987 | K101: 41474341.47 | L101: 44386277 | M101: 48445111
A102: Energy sources | C102: =SUM(C103:C105) -> 18807957.47 | D102: =SUM(D103:D105) -> 0 | E102: 0 | F102: 0 | G102: 0 | H102: 0 | I102: 14422987 | J102: 14422987 | K102: 33230944.47 | L102: =SUM(L103:L105) -> 36672060 | M102: =SUM(M103:M105) -> 40229469
A103: Electricity | C103: 18807957.47 | I103: =9800000+1822987+800000+2000000 -> 14422987 | J103: 14422987 | K103: 33230944.47 | L103: 36672060 | M103: 40229469
A104: Street Lighting and Signal Systems | J104: 0 | K104: 0
A105: Nonelectric Energy | J105: 0 | K105: 0
A106: Water management | C106: =SUM(C107:C109) -> 0 | D106: =SUM(D107:D109) -> 0 | E106: 0 | F106: 0 | G106: 0 | H106: 0 | I106: 0 | J106: 0 | K106: 0 | L106: =SUM(L107:L109) -> 0 | M106: =SUM(M107:M109) -> 0
A107: Water Treatment | J107: 0 | K107: 0
A108: Water Distribution | J108: 0 | K108: 0
A109: Water Storage | J109: 0 | K109: 0
A110: Waste water management | C110: =SUM(C111:C114) -> 0 | D110: =SUM(D111:D114) -> 0 | E110: 0 | F110: 0 | G110: 0 | H110: 0 | I110: 0 | J110: 0 | K110: 0 | L110: =SUM(L111:L114) -> 0 | M110: =SUM(M111:M114) -> 0
A111: Public Toilets | J111: 0 | K111: 0
A112: Sewerage | J112: 0 | K112: 0
A113: Storm Water Management | J113: 0 | K113: 0
A114: Waste Water Treatment | J114: 0 | K114: 0
A115: Waste management | C115: =SUM(C116:C119) -> 6243397 | D115: =SUM(D116:D119) -> 0 | E115: 0 | F115: 0 | G115: 0 | H115: 0 | I115: 2000000 | J115: 2000000 | K115: 8243397 | L115: 7714217 | M115: =SUM(M116:M119) -> 8215642
A116: Recycling | J116: 0 | K116: 0
A117: Solid Waste Disposal (Landfill Sites) | J117: 0 | K117: 0
A118: Solid Waste Removal | C118: 6243397 | I118: =1000000+1000000 -> 2000000 | J118: 2000000 | K118: 8243397 | L118: 7714217 | M118: 8215642
A119: Street Cleaning | J119: 0 | K119: 0
A120: Other | C120: =SUM(C121:C126) -> 0 | D120: 0 | E120: 0 | F120: 0 | G120: 0 | H120: 0 | I120: 0 | J120: 0 | K120: 0 | L120: 0 | M120: 0
A121: Abattoirs | J121: 0 | K121: 0
A122: Air Transport | J122: 0 | K122: 0
A123: Forestry | J123: 0 | K123: 0
A124: Licensing and Regulation | J124: 0 | K124: 0
A125: Markets | J125: 0 | K125: 0
A126: Tourism | J126: 0 | K126: 0
A127: ="Total "&A6 -> Total Revenue - Functional | B127: 2 | C127: =C7+C28+C75+C101+C120 -> 402707680.4 | D127: =D7+D28+D75+D101+D120 -> 0 | E127: 0 | F127: 0 | G127: 0 | H127: 0 | I127: 46417201 | J127: 46417201 | K127: 449124881.4 | L127: 456237483 | M127: 491832071.5
J128: 0 | K128: 0
A129: Expenditure - Functional | J129: 0 | K129: 0
A130: =A7 -> Municipal governance and administration | C130: =C131+C134+C149 -> 124146230.9 | D130: 0 | E130: 0 | F130: 0 | G130: 0 | H130: 0 | I130: 21605438 | J130: 21605438 | K130: 145751668.9 | L130: =L131+L134+L149 -> 156319101 | M130: =M131+M134+M149 -> 166179736
A131: =A8 -> Executive and council | C131: =SUM(C132:C133) -> 47800391.17 | D131: 0 | E131: 0 | F131: 0 | G131: 0 | H131: 0 | I131: 4582728 | J131: 4582728 | K131: 52383119.17 | L131: =SUM(L132:L133) -> 56492940 | M131: =SUM(M132:M133) -> 60004430
A132: =A9 -> Mayor and Council | C132: 39561229.98 | I132: 3700272 | J132: 3700272 | K132: 43261501.98 | L132: 46774124 | M132: 49653891
A133: =A10 -> Municipal Manager, Town Secretary and Chief Executive | C133: 8239161.19 | I133: 882456 | J133: 882456 | K133: 9121617.19 | L133: 9718816 | M133: 10350539
A134: =A11 -> Finance and administration | C134: =SUM(C135:C148) -> 74406900.69 | D134: 0 | E134: 0 | F134: 0 | G134: 0 | H134: 0 | I134: 16494696 | J134: 16494696 | K134: 90901596.69 | L134: =SUM(L135:L148) -> 97198856 | M134: =SUM(M135:M148) -> 103377226
A135: Administrative and Corporate Support | C135: 20206768.22 | I135: 972091 | J135: 972091 | K135: 21178859.22 | L135: 22555485 | M135: 24021591
A136: Asset Management | C136: 4087160.29 | I136: 189245 | J136: 189245 | K136: 4276405.29 | L136: 4554372 | M136: 4850406
A137: Budget and Treasury Office | C137: 23968834.34 | I137: 7797348 | J137: 7797348 | K137: 31766182.34 | L137: 34223934 | M137: 36308935
A138: Finance | C138: 0 | J138: =SUM(E138:I138) -> 0 | K138: =IF(D138=0,C138+J138,D138+J138) -> 0 | L138: 0 | M138: 0
A139: Fleet Management | C139: 0 | J139: 0 | K139: 0 | L139: 0 | M139: 0
A140: Human Resources | C140: 6977174.93 | I140: 1085365 | J140: 1085365 | K140: 8062539.93 | L140: 8586605 | M140: 9144735
A141: Information Technology | C141: 6403449.82 | I141: -964704 | J141: -964704 | K141: 5438745.82 | L141: 5787970 | M141: 6164188
A142: Legal Services | C142: 4346185.1 | I142: 2744083 | J142: 2744083 | K142: 7090268.1 | L142: 7551135 | M142: 8041959
A143: Marketing, Customer Relations, Publicity and Media Co-ordination | C143: 2151894.46 | I143: 0 | J143: 0 | K143: 2151894.46 | L143: 2291767 | M143: 2440732
A144: Property Services | C144: 3136452 | I144: 4463160 | J144: 4463160 | K144: 7599612 | L144: 8093587 | M144: 8619670
A145: Risk Management | C145: 847756.79 | I145: 17107 | J145: 17107 | K145: 864863.79 | L145: 921080 | M145: 980950
A146: Security Services | C146: 0 | I146: 0 | J146: 0 | K146: 0 | L146: 0 | M146: 0
A147: Supply Chain Management | C147: 2281224.74 | I147: 191001 | J147: 191001 | K147: 2472225.74 | L147: 2632921 | M147: 2804060
A148: Valuation Service | C148: 0 | J148: 0 | K148: 0 | L148: 0 | M148: 0
A149: =A26 -> Internal audit | C149: =SUM(C150:C150) -> 1938939.02 | D149: 0 | E149: 0 | F149: 0 | G149: 0 | H149: 0 | I149: 528014 | J149: 528014 | K149: 2466953.02 | L149: 2627305 | M149: 2798080
A150: =A27 -> Governance Function | C150: 1938939.02 | I150: 528014 | J150: 528014 | K150: 2466953.02 | L150: 2627305 | M150: 2798080
A151: =A28 -> Community and public safety | C151: =C152+C174+C180+C187+C190 -> 12752759.72 | D151: 0 | E151: 0 | F151: 0 | G151: 0 | H151: 0 | I151: 5320886 | J151: 5320886 | K151: 18073645.72 | L151: =L152+L174+L180+L187+L190 -> 19248432 | M151: =M152+M174+M180+M187+M190 -> 20499580
A152: =A29 -> Community and social services | C152: =SUM(C153:C173) -> 4334295.18 | D152: 0 | E152: 0 | F152: 0 | G152: 0 | H152: 0 | I152: 681923 | J152: 681923 | K152: 5016218.18 | L152: =SUM(L153:L173) -> 5342273 | M152: =SUM(M153:M173) -> 5689520
A153: =A30 -> Aged Care | J153: 0 | K153: 0 | L153: 0 | M153: 0
A154: =A31 -> Agricultural | J154: 0 | K154: 0 | L154: 0 | M154: 0
A155: Animal Care and Diseases | J155: 0 | K155: 0 | L155: 0 | M155: 0
A156: Cemeteries, Funeral Parlours and Crematoriums | C156: 257880.39 | I156: -1318 | J156: -1318 | K156: 256562.39 | L156: 273239 | M156: 290999
A157: Child Care Facilities | C157: 0 | J157: 0 | K157: 0
A158: Community Halls and Facilities | C158: 1484481.45 | I158: 18320 | J158: 18320 | K158: 1502801.45 | L158: 1600484 | M158: 1704516
A159: Consumer Protection | C159: 0 | J159: 0 | K159: 0 | L159: 0 | M159: 0
A160: Cultural Matters | C160: 0 | J160: 0 | K160: 0 | L160: 0 | M160: 0
A161: Disaster Management | C161: 1038276.39 | I161: 109241 | J161: 109241 | K161: 1147517.39 | L161: 1222106 | M161: 1301542
A162: Education | C162: 0 | J162: 0 | K162: 0 | L162: 0 | M162: 0
A163: Indigenous and Customary Law | C163: 0 | J163: 0 | K163: 0 | L163: 0 | M163: 0
A164: Industrial Promotion | C164: 0 | J164: 0 | K164: 0 | L164: 0 | M164: 0
A165: Language Policy | C165: 0 | J165: 0 | K165: 0 | L165: 0 | M165: 0
A166: Libraries and Archives | C166: 1553656.95 | I166: 555680 | J166: 555680 | K166: 2109336.95 | L166: 2246444 | M166: 2392463
A167: Literacy Programmes | J167: 0 | K167: 0 | L167: 0 | M167: 0
A168: Media Services | J168: 0 | K168: 0
A169: Museums and Art Galleries | J169: 0 | K169: 0
A170: Population Development | J170: 0 | K170: 0
A171: Provincial Cultural Matters | J171: 0 | K171: 0
A172: Theatres | J172: 0 | K172: 0
A173: Zoo's | J173: 0 | K173: 0
A174: Sport and recreation | C174: =SUM(C175:C179) -> 7690965.43 | D174: 0 | E174: 0 | F174: 0 | G174: 0 | H174: 0 | I174: 4638963 | J174: 4638963 | K174: 12329928.43 | L174: =SUM(L175:L179) -> 13131373 | M174: =SUM(M175:M179) -> 13984913
A175: Beaches and Jetties | J175: 0 | K175: 0
A176: Casinos, Racing, Gambling, Wagering | J176: 0 | K176: 0
A177: Community Parks (including Nurseries) | C177: 7690965.43 | I177: 4638963 | J177: 4638963 | K177: 12329928.43 | L177: 13131373 | M177: 13984913
A178: Recreational Facilities | J178: 0 | K178: 0
A179: Sports Grounds and Stadiums | J179: 0 | K179: 0
A180: Public safety | C180: =SUM(C181:C186) -> 0 | D180: 0 | E180: 0 | F180: 0 | G180: 0 | H180: 0 | I180: 0 | J180: 0 | K180: 0 | L180: =SUM(L181:L186) -> 0 | M180: =SUM(M181:M186) -> 0
A181: Civil Defence | J181: 0 | K181: 0
A182: Cleansing | J182: 0 | K182: 0
A183: Control of Public Nuisances | J183: 0 | K183: 0
A184: Fencing and Fences | J184: 0 | K184: 0
A185: Fire Fighting and Protection | J185: 0 | K185: 0
A186: Licensing and Control of Animals | J186: 0 | K186: 0
A187: =A64 -> Housing | C187: =SUM(C188:C189) -> 727499.11 | D187: =SUM(D188:D189) -> 0 | E187: 0 | F187: 0 | G187: 0 | H187: 0 | I187: 0 | J187: 0 | K187: 727499.11 | L187: 774786 | M187: 825147
A188: =A65 -> Housing | C188: 727499.11 | I188: 0 | J188: 0 | K188: 727499.11 | L188: 774786 | M188: 825147
A189: =A66 -> Informal Settlements | J189: 0 | K189: 0
A190: Health | C190: =SUM(C191:C197) -> 0 | D190: 0 | E190: 0 | F190: 0 | G190: 0 | H190: 0 | I190: 0 | J190: 0 | K190: 0 | L190: =SUM(L191:L197) -> 0 | M190: =SUM(M191:M197) -> 0
A191: Ambulance | J191: 0 | K191: 0
A192: Health Services | J192: 0 | K192: 0
A193: Laboratory Services | J193: 0 | K193: 0
A194: Food Control | J194: 0 | K194: 0
A195: Health Surveillance and Prevention of Communicable Diseases including immunizations | J195: 0 | K195: 0
A196: Vector Control | J196: 0 | K196: 0
A197: Chemical Safety | J197: 0 | K197: 0
A198: =A75 -> Economic and environmental services | C198: =C199+C210+C217 -> 48381784.74 | D198: 0 | E198: 0 | F198: 0 | G198: 0 | H198: 0 | I198: 17036145 | J198: 17036145 | K198: 65417929.74 | L198: =L199+L210+L217 -> 57055622 | M198: =M199+M210+M217 -> 60718751
A199: =A76 -> Planning and development | C199: =SUM(C200:C209) -> 13504109.48 | D199: 0 | E199: 0 | F199: 0 | G199: 0 | H199: 0 | I199: -1917559 | J199: -1917559 | K199: 11586550.48 | L199: =SUM(L200:L209) -> 12339676 | M199: =SUM(M200:M209) -> 13141754
A200: =A77 -> Billboards | J200: 0 | K200: 0
... 56 more rows

Sheet B3-FinPerf V
A1: =muni&" - "&_ADJ2&" - "&Date -> LIM332 Greater Letaba - Table B3 Adjustments Budget Financial Performance (revenue and expenditure by municipal vote) - 27 February 2019
A2: =Vdesc -> Vote Description | B2: =head27 -> Ref | C2: =Head2 -> Budget Year 2018/19 | L2: =Head10 -> Budget Year +1 2019/20 | M2: =Head11 -> Budget Year +2 2020/21
C3: =Head6 -> Original Budget | D3: =Head54 -> Prior Adjusted | E3: =Head51 -> Accum. Funds | F3: =Head52 -> Multi-year capital | G3: =Head53 -> Unfore. Unavoid. | H3: =Head55 -> Nat. or Prov. Govt | I3: =Head50 -> Other Adjusts. | J3: =Head56 -> Total Adjusts. | K3: =Head7 -> Adjusted Budget | L3: =Head7 -> Adjusted Budget | M3: =Head7 -> Adjusted Budget
A4: [Insert departmental structure etc] | D4: 3 | E4: 4 | F4: 5 | G4: 6 | H4: 7 | I4: 8 | J4: 9 | K4: 10
A5: R thousands | C5: A | D5: A1 | E5: B | F5: C | G5: D | H5: E | I5: F | J5: G | K5: H
A6: Revenue by Vote | B6: 1
A7: =B3B!A7 -> Vote 1 - Executive & Council | C7: =B3B!C7 -> 0 | D7: =B3B!D7 -> 0 | E7: =B3B!E7 -> 0 | F7: =B3B!F7 -> 0 | G7: =B3B!G7 -> 0 | H7: =B3B!H7 -> 0 | I7: =B3B!I7 -> 0 | J7: =SUM(E7:I7) -> 0 | K7: =IF(D7=0,C7+J7,D7+J7) -> 0 | L7: =B3B!L7 -> 0 | M7: =B3B!M7 -> 0
A8: =B3B!A18 -> Vote 2 - Finance and Administration | C8: =B3B!C18 -> 366195307 | D8: =B3B!D18 -> 0 | E8: =B3B!E18 -> 0 | F8: =B3B!F18 -> 0 | G8: =B3B!G18 -> 0 | H8: =B3B!H18 -> 0 | I8: =B3B!I18 -> 15394214 | J8: 15394214 | K8: 381589521 | L8: =B3B!L18 -> 384096221 | M8: =B3B!M18 -> 413827901.5
A9: =B3B!A29 -> Vote 3 - Internal Audit | C9: =B3B!C29 -> 0 | D9: =B3B!D29 -> 0 | E9: =B3B!E29 -> 0 | F9: =B3B!F29 -> 0 | G9: =B3B!G29 -> 0 | H9: =B3B!H29 -> 0 | I9: =B3B!I29 -> 0 | J9: 0 | K9: 0 | L9: =B3B!L29 -> 0 | M9: =B3B!M29 -> 0
A10: =B3B!A40 -> Vote 4 - Community and Public Safety | C10: =B3B!C40 -> 0 | D10: =B3B!D40 -> 0 | E10: =B3B!E40 -> 0 | F10: =B3B!F40 -> 0 | G10: =B3B!G40 -> 0 | H10: =B3B!H40 -> 0 | I10: =B3B!I40 -> 0 | J10: 0 | K10: 0 | L10: =B3B!L40 -> 0 | M10: =B3B!M40 -> 0
A11: =B3B!A51 -> Vote 5 - Sports and Recreation | C11: =B3B!C51 -> 0 | D11: =B3B!D51 -> 0 | E11: =B3B!E51 -> 0 | F11: =B3B!F51 -> 0 | G11: =B3B!G51 -> 0 | H11: =B3B!H51 -> 0 | I11: =B3B!I51 -> 0 | J11: 0 | K11: 0 | L11: =B3B!L51 -> 0 | M11: =B3B!M51 -> 0
A12: =B3B!A62 -> Vote 6 - Housing | C12: =B3B!C62 -> 0 | D12: =B3B!D62 -> 0 | E12: =B3B!E62 -> 0 | F12: =B3B!F62 -> 0 | G12: =B3B!G62 -> 0 | H12: =B3B!H62 -> 0 | I12: =B3B!I62 -> 0 | J12: 0 | K12: 0 | L12: =B3B!L62 -> 0 | M12: =B3B!M62 -> 0
A13: =B3B!A73 -> Vote 7 - Planning and development | C13: =B3B!C73 -> 0 | D13: =B3B!D73 -> 0 | E13: =B3B!E73 -> 0 | F13: =B3B!F73 -> 0 | G13: =B3B!G73 -> 0 | H13: =B3B!H73 -> 0 | I13: =B3B!I73 -> 0 | J13: 0 | K13: 0 | L13: =B3B!L73 -> 0 | M13: =B3B!M73 -> 0
A14: =B3B!A84 -> Vote 8 - Road Transport | C14: =B3B!C84 -> 11461019 | D14: =B3B!D84 -> 0 | E14: =B3B!E84 -> 0 | F14: =B3B!F84 -> 0 | G14: =B3B!G84 -> 0 | H14: =B3B!H84 -> 0 | I14: =B3B!I84 -> 14600000 | J14: 14600000 | K14: 26061019 | L14: =B3B!L84 -> 27754985 | M14: =B3B!M84 -> 29559059
A15: =B3B!A95 -> Vote 9 - Energy Sources | C15: =B3B!C95 -> 18807957.47 | D15: =B3B!D95 -> 0 | E15: =B3B!E95 -> 0 | F15: =B3B!F95 -> 0 | G15: =B3B!G95 -> 0 | H15: =B3B!H95 -> 0 | I15: =B3B!I95 -> 14422987 | J15: 14422987 | K15: 33230944.47 | L15: =B3B!L95 -> 36672060 | M15: =B3B!M95 -> 40229469
A16: =B3B!A106 -> Vote 10 - Waste Water Management | C16: =B3B!C106 -> 0 | D16: =B3B!D106 -> 0 | E16: =B3B!E106 -> 0 | F16: =B3B!F106 -> 0 | G16: =B3B!G106 -> 0 | H16: =B3B!H106 -> 0 | I16: =B3B!I106 -> 0 | J16: 0 | K16: 0 | L16: =B3B!L106 -> 0 | M16: =B3B!M106 -> 0
A17: =B3B!A117 -> Vote 11 - Waste Management | C17: =B3B!C117 -> 6243397 | D17: =B3B!D117 -> 0 | E17: =B3B!E117 -> 0 | F17: =B3B!F117 -> 0 | G17: =B3B!G117 -> 0 | H17: =B3B!H117 -> 0 | I17: =B3B!I117 -> 2000000 | J17: 2000000 | K17: 8243397 | L17: =B3B!L117 -> 7714217 | M17: =B3B!M117 -> 8215642
A18: =B3B!A128 -> Vote 12 - [NAME OF VOTE 12] | C18: =B3B!C128 -> 0 | D18: =B3B!D128 -> 0 | E18: =B3B!E128 -> 0 | F18: =B3B!F128 -> 0 | G18: =B3B!G128 -> 0 | H18: =B3B!H128 -> 0 | I18: =B3B!I128 -> 0 | J18: 0 | K18: 0 | L18: =B3B!L128 -> 0 | M18: =B3B!M128 -> 0
A19: =B3B!A139 -> Vote 13 - [NAME OF VOTE 13] | C19: =B3B!C139 -> 0 | D19: =B3B!D139 -> 0 | E19: =B3B!E139 -> 0 | F19: =B3B!F139 -> 0 | G19: =B3B!G139 -> 0 | H19: =B3B!H139 -> 0 | I19: =B3B!I139 -> 0 | J19: 0 | K19: 0 | L19: =B3B!L139 -> 0 | M19: =B3B!M139 -> 0
A20: =B3B!A150 -> Vote 14 - [NAME OF VOTE 14] | C20: =B3B!C150 -> 0 | D20: =B3B!D150 -> 0 | E20: =B3B!E150 -> 0 | F20: =B3B!F150 -> 0 | G20: =B3B!G150 -> 0 | H20: =B3B!H150 -> 0 | I20: =B3B!I150 -> 0 | J20: 0 | K20: 0 | L20: =B3B!L150 -> 0 | M20: =B3B!M150 -> 0
A21: =B3B!A161 -> Vote 15 - [NAME OF VOTE 15] | C21: =B3B!C161 -> 0 | D21: =B3B!D161 -> 0 | E21: =B3B!E161 -> 0 | F21: =B3B!F161 -> 0 | G21: =B3B!G161 -> 0 | H21: =B3B!H161 -> 0 | I21: =B3B!I161 -> 0 | J21: 0 | K21: 0 | L21: =B3B!L161 -> 0 | M21: =B3B!M161 -> 0
A22: Total Revenue by Vote | B22: 2 | C22: =SUM(C7:C21) -> 402707680.4 | D22: =SUM(D7:D21) -> 0 | E22: 0 | F22: 0 | G22: 0 | H22: 0 | I22: 46417201 | J22: =SUM(J7:J21) -> 46417201 | K22: 449124881.4 | L22: =SUM(L7:L21) -> 456237483 | M22: =SUM(M7:M21) -> 491832071.5
A24: Expenditure by Vote | B24: 1
A25: =B3B!A175 -> Vote 1 - Executive & Council | C25: =B3B!C175 -> 47800391.17 | D25: =B3B!D175 -> 0 | E25: =B3B!E175 -> 0 | F25: =B3B!F175 -> 0 | G25: =B3B!G175 -> 0 | H25: =B3B!H175 -> 0 | I25: =B3B!I175 -> 4582730 | J25: =SUM(E25:I25) -> 4582730 | K25: =IF(D25=0,C25+J25,D25+J25) -> 52383121.17 | L25: =B3B!L175 -> 56492940 | M25: =B3B!M175 -> 60004430
A26: =B3B!A186 -> Vote 2 - Finance and Administration | C26: =B3B!C186 -> 74406900.69 | D26: =B3B!D186 -> 0 | E26: =B3B!E186 -> 0 | F26: =B3B!F186 -> 0 | G26: =B3B!G186 -> 0 | H26: =B3B!H186 -> 0 | I26: =B3B!I186 -> 16494809 | J26: 16494809 | K26: 90901709.69 | L26: =B3B!L186 -> 97198856 | M26: =B3B!M186 -> 103377226
A27: =B3B!A197 -> Vote 3 - Internal Audit | C27: =B3B!C197 -> 1938939.02 | D27: =B3B!D197 -> 0 | E27: =B3B!E197 -> 0 | F27: =B3B!F197 -> 0 | G27: =B3B!G197 -> 0 | H27: =B3B!H197 -> 0 | I27: =B3B!I197 -> 528014 | J27: 528014 | K27: 2466953.02 | L27: =B3B!L197 -> 2627305 | M27: =B3B!M197 -> 2798080
A28: =B3B!A208 -> Vote 4 - Community and Public Safety | C28: =B3B!C208 -> 4334295.18 | D28: =B3B!D208 -> 0 | E28: =B3B!E208 -> 0 | F28: =B3B!F208 -> 0 | G28: =B3B!G208 -> 0 | H28: =B3B!H208 -> 0 | I28: =B3B!I208 -> 681923 | J28: 681923 | K28: 5016218.18 | L28: =B3B!L208 -> 5342273 | M28: =B3B!M208 -> 5689520
A29: =B3B!A219 -> Vote 5 - Sports and Recreation | C29: =B3B!C219 -> 7690965.43 | D29: =B3B!D219 -> 0 | E29: =B3B!E219 -> 0 | F29: =B3B!F219 -> 0 | G29: =B3B!G219 -> 0 | H29: =B3B!H219 -> 0 | I29: =B3B!I219 -> 4638963 | J29: 4638963 | K29: 12329928.43 | L29: =B3B!L219 -> 13131373 | M29: =B3B!M219 -> 13984913
A30: =B3B!A230 -> Vote 6 - Housing | C30: =B3B!C230 -> 727499.11 | D30: =B3B!D230 -> 0 | E30: =B3B!E230 -> 0 | F30: =B3B!F230 -> 0 | G30: =B3B!G230 -> 0 | H30: =B3B!H230 -> 0 | I30: =B3B!I230 -> 0 | J30: 0 | K30: 727499.11 | L30: =B3B!L230 -> 774786 | M30: =B3B!M230 -> 825147
A31: =B3B!A241 -> Vote 7 - Planning and development | C31: =B3B!C241 -> 13504109.48 | D31: =B3B!D241 -> 0 | E31: =B3B!E241 -> 0 | F31: =B3B!F241 -> 0 | G31: =B3B!G241 -> 0 | H31: =B3B!H241 -> 0 | I31: =B3B!I241 -> -1917559 | J31: -1917559 | K31: 11586550.48 | L31: =B3B!L241 -> 12339676 | M31: =B3B!M241 -> 13141754
A32: =B3B!A252 -> Vote 8 - Road Transport | C32: =B3B!C252 -> 34877675.26 | D32: =B3B!D252 -> 0 | E32: =B3B!E252 -> 0 | F32: =B3B!F252 -> 0 | G32: =B3B!G252 -> 0 | H32: =B3B!H252 -> 0 | I32: =B3B!I252 -> 18953704 | J32: 18953704 | K32: 53831379.26 | L32: =B3B!L252 -> 44715946 | M32: =B3B!M252 -> 47576997
A33: =B3B!A263 -> Vote 9 - Energy Sources | C33: =B3B!C263 -> 32487354.72 | D33: =B3B!D263 -> 0 | E33: =B3B!E263 -> 0 | F33: =B3B!F263 -> 0 | G33: =B3B!G263 -> 0 | H33: =B3B!H263 -> 0 | I33: =B3B!I263 -> 7962807 | J33: 7962807 | K33: 40450161.72 | L33: =B3B!L263 -> 43079420 | M33: =B3B!M263 -> 45879583
A34: =B3B!A274 -> Vote 10 - Waste Water Management | C34: =B3B!C274 -> 686133 | D34: =B3B!D274 -> 0 | E34: =B3B!E274 -> 0 | F34: =B3B!F274 -> 0 | G34: =B3B!G274 -> 0 | H34: =B3B!H274 -> 0 | I34: =B3B!I274 -> 14324 | J34: 14324 | K34: 700457 | L34: =B3B!L274 -> 745986 | M34: =B3B!M274 -> 794475
A35: =B3B!A285 -> Vote 11 - Waste Management | C35: =B3B!C285 -> 4976098.47 | D35: =B3B!D285 -> 0 | E35: =B3B!E285 -> 0 | F35: =B3B!F285 -> 0 | G35: =B3B!G285 -> 0 | H35: =B3B!H285 -> 0 | I35: =B3B!I285 -> 93505 | J35: 93505 | K35: 5069603.47 | L35: =B3B!L285 -> 5399128 | M35: =B3B!M285 -> 5750071
A36: =B3B!A296 -> Vote 12 - [NAME OF VOTE 12] | C36: =B3B!C296 -> 0 | D36: =B3B!D296 -> 0 | E36: =B3B!E296 -> 0 | F36: =B3B!F296 -> 0 | G36: =B3B!G296 -> 0 | H36: =B3B!H296 -> 0 | I36: =B3B!I296 -> 0 | J36: 0 | K36: 0 | L36: =B3B!L296 -> 0 | M36: =B3B!M296 -> 0
A37: =B3B!A307 -> Vote 13 - [NAME OF VOTE 13] | C37: =B3B!C307 -> 0 | D37: =B3B!D307 -> 0 | E37: =B3B!E307 -> 0 | F37: =B3B!F307 -> 0 | G37: =B3B!G307 -> 0 | H37: =B3B!H307 -> 0 | I37: =B3B!I307 -> 0 | J37: 0 | K37: 0 | L37: =B3B!L307 -> 0 | M37: =B3B!M307 -> 0
A38: =B3B!A318 -> Vote 14 - [NAME OF VOTE 14] | C38: =B3B!C318 -> 0 | D38: =B3B!D318 -> 0 | E38: =B3B!E318 -> 0 | F38: =B3B!F318 -> 0 | G38: =B3B!G318 -> 0 | H38: =B3B!H318 -> 0 | I38: =B3B!I318 -> 0 | J38: 0 | K38: 0 | L38: =B3B!L318 -> 0 | M38: =B3B!M318 -> 0
A39: =B3B!A329 -> Vote 15 - [NAME OF VOTE 15] | C39: =B3B!C329 -> 0 | D39: =B3B!D329 -> 0 | E39: =B3B!E329 -> 0 | F39: =B3B!F329 -> 0 | G39: =B3B!G329 -> 0 | H39: =B3B!H329 -> 0 | I39: =B3B!I329 -> 0 | J39: 0 | K39: 0 | L39: =B3B!L329 -> 0 | M39: =B3B!M329 -> 0
A40: Total Expenditure by Vote | B40: 2 | C40: =SUM(C25:C39) -> 223430361.5 | D40: =SUM(D25:D39) -> 0 | E40: 0 | F40: 0 | G40: 0 | H40: 0 | I40: 52033220 | J40: =SUM(J25:J39) -> 52033220 | K40: =SUM(K25:K39) -> 275463581.5 | L40: =SUM(L25:L39) -> 281847689 | M40: =SUM(M25:M39) -> 299822196
A41: =result -> Surplus/ (Deficit) for the year | B41: 2 | C41: =C22-C40 -> 179277318.9 | D41: =D22-D40 -> 0 | E41: 0 | F41: 0 | G41: 0 | H41: 0 | I41: -5616019 | J41: -5616019 | K41: 173661299.9 | L41: 174389794 | M41: 192009875.5
A42: =head27a -> References
A43: 1. Insert 'Vote'; e.g. Department, if different to standard classification structure
A44: 2. Must reconcile to Budgeted Financial Performance (revenue and expenditure)
A45: 3. Only complete if a previous adjusted budget has been approved in the same financial year. Reflect most recent adjusted budget.
A46: 4. Additional cash-backed accumulated funds/unspent funds (MFMA section 18(1)(b) and section 28(2)(e)) identified after the Original Budget approved and after annual financial statements audited (note: only where underspending could not reasonably have been foreseen)
A47: 5. Increases of funds approved under MFMA section 31
A48: 6. Adjustments approved in accordance with MFMA section 29
A49: 7. Adjustments to transfers from National or Provincial Government
A50: 8. Adjusts. = 'Other' Adjustments proposed to be approved; including revenue under-collection (MFMA section 28(2)(a)); additional revenue appropriation on existing programmes (section 28(2))(b); projected savings (section 28(2)(d)); error correction (section 28(2)(f))
A51: 9. G = B + C + D + E + F
A52: 10. Adjusted Budget H = (A or A1/2 etc) + G
A54: check revenue | C54: =C22-'B4-FinPerf RE'!C62 -> 8000.21 | D54: =D22-'B4-FinPerf RE'!D62 -> 0 | E54: =E22-'B4-FinPerf RE'!E62 -> 0 | F54: =F22-'B4-FinPerf RE'!F62 -> 0 | G54: =G22-'B4-FinPerf RE'!G62 -> 0 | H54: =H22-'B4-FinPerf RE'!H62 -> 0 | I54: =I22-'B4-FinPerf RE'!I62 -> -7999 | J54: =J22-'B4-FinPerf RE'!J62 -> -7999 | K54: =K22-'B4-FinPerf RE'!K62 -> 1.210000038 | L54: =L22-'B4-FinPerf RE'!L62 -> 902 | M54: =M22-'B4-FinPerf RE'!M62 -> -6.5
A55: check expenditure | C55: =C40-'B4-FinPerf RE'!C37 -> 0.1675999761 | D55: =D40-'B4-FinPerf RE'!D37 -> 0 | E55: =E40-'B4-FinPerf RE'!E37 -> 0 | F55: =F40-'B4-FinPerf RE'!F37 -> 0 | G55: =G40-'B4-FinPerf RE'!G37 -> 0 | H55: =H40-'B4-FinPerf RE'!H37 -> 0 | I55: =I40-'B4-FinPerf RE'!I37 -> 764.3 | J55: =J40-'B4-FinPerf RE'!J37 -> 764.3 | K55: =K40-'B4-FinPerf RE'!K37 -> 764.4676001 | L55: =L40-'B4-FinPerf RE'!L37 -> 122.72235 | M55: =M40-'B4-FinPerf RE'!M37 -> 469.6043428

Sheet B3B
A1: =muni&" - "&_ADJ2&" - B"&" - "&Date -> LIM332 Greater Letaba - Table B3 Adjustments Budget Financial Performance (revenue and expenditure by municipal vote) - B - 27 February 2019
A2: =Vdesc -> Vote Description | B2: =head27 -> Ref | C2: =Head2 -> Budget Year 2018/19 | L2: =Head10 -> Budget Year +1 2019/20 | M2: =Head11 -> Budget Year +2 2020/21
C3: =Head6 -> Original Budget | D3: =Head54 -> Prior Adjusted | E3: =Head51 -> Accum. Funds | F3: =Head52 -> Multi-year capital | G3: =Head53 -> Unfore. Unavoid. | H3: =Head55 -> Nat. or Prov. Govt | I3: =Head50 -> Other Adjusts. | J3: =Head56 -> Total Adjusts. | K3: =Head7 -> Adjusted Budget | L3: =Head7 -> Adjusted Budget | M3: =Head7 -> Adjusted Budget
A4: [Insert departmental structure etc] | D4: 3 | E4: 4 | F4: 5 | G4: 6 | H4: 7 | I4: 8 | J4: 9 | K4: 10
A5: R thousands | C5: A | D5: A1 | E5: B | F5: C | G5: D | H5: E | I5: F | J5: G | K5: H
A6: Revenue by Vote | B6: 1
A7: ='Org structure'!A2 -> Vote 1 - Executive & Council | C7: =SUM(C8:C17) -> 0 | D7: =SUM(D8:D17) -> 0 | E7: 0 | F7: 0 | G7: 0 | H7: 0 | I7: 0 | J7: =SUM(E7:I7) -> 0 | K7: =IF(D7=0,C7+J7,D7+J7) -> 0 | L7: =SUM(L8:L17) -> 0 | M7: =SUM(M8:M17) -> 0
A8: ='Org structure'!E3 -> 1,1 - Mayor and Council | J8: =SUM(E8:I8) -> 0 | K8: =IF(D8=0,C8+J8,D8+J8) -> 0
A9: ='Org structure'!E4 -> 1,2 - Municipal Manager | J9: 0 | K9: 0
A10: ='Org structure'!E5 -> 0 | J10: 0 | K10: 0
A11: ='Org structure'!E6 -> 0 | J11: 0 | K11: 0
A12: ='Org structure'!E7 -> 0 | J12: 0 | K12: 0
A13: ='Org structure'!E8 -> 0 | J13: 0 | K13: 0
A14: ='Org structure'!E9 -> 0 | J14: 0 | K14: 0
A15: ='Org structure'!E10 -> 0 | J15: 0 | K15: 0
A16: ='Org structure'!E11 -> 0 | J16: 0 | K16: 0
A17: ='Org structure'!E12 -> 0 | J17: 0 | K17: 0
A18: ='Org structure'!A3 -> Vote 2 - Finance and Administration | C18: =SUM(C19:C28) -> 366195307 | D18: =SUM(D19:D28) -> 0 | E18: 0 | F18: 0 | G18: 0 | H18: 0 | I18: 15394214 | J18: 15394214 | K18: 381589521 | L18: =SUM(L19:L28) -> 384096221 | M18: =SUM(M19:M28) -> 413827901.5
A19: ='Org structure'!E14 -> 2,1 - Administrative and Corporate Support | J19: 0 | K19: 0
A20: ='Org structure'!E15 -> 2,2 - Asset Management | J20: 0 | K20: 0
A21: ='Org structure'!E16 -> 2,3 - Budget and Treasury Office | C21: 366195307 | I21: 15394214 | J21: 15394214 | K21: 381589521 | L21: =386617221-2521000 -> 384096221 | M21: =417083255-3255353.5 -> 413827901.5
A22: ='Org structure'!E17 -> 2,4 - Human Resource | J22: 0 | K22: 0
A23: ='Org structure'!E18 -> 2,5 - Information Technology | J23: 0 | K23: 0
A24: ='Org structure'!E19 -> 2,6 - Legal Services | J24: 0 | K24: 0
A25: ='Org structure'!E20 -> 2,7 - Customer Relation and Coordination | J25: 0 | K25: 0
A26: ='Org structure'!E21 -> 2,8 - Property Services | J26: 0 | K26: 0
A27: ='Org structure'!E22 -> 2,9 - Risk Management | J27: 0 | K27: 0
A28: ='Org structure'!E23 -> 2.10 - Supply Chain Management | J28: 0 | K28: 0
A29: ='Org structure'!A4 -> Vote 3 - Internal Audit | C29: =SUM(C30:C39) -> 0 | D29: 0 | E29: 0 | F29: 0 | G29: 0 | H29: 0 | I29: 0 | J29: 0 | K29: 0 | L29: =SUM(L30:L39) -> 0 | M29: =SUM(M30:M39) -> 0
A30: ='Org structure'!E25 -> 3,1 - Governance Function | J30: 0 | K30: 0
A31: ='Org structure'!E26 -> 0 | J31: 0 | K31: 0
A32: ='Org structure'!E27 -> 0 | J32: 0 | K32: 0
A33: ='Org structure'!E28 -> 0 | J33: 0 | K33: 0
A34: ='Org structure'!E29 -> 0 | J34: 0 | K34: 0
A35: ='Org structure'!E30 -> 0 | J35: 0 | K35: 0
A36: ='Org structure'!E31 -> 0 | J36: 0 | K36: 0
A37: ='Org structure'!E32 -> 0 | J37: 0 | K37: 0
A38: ='Org structure'!E33 -> 0 | J38: 0 | K38: 0
A39: ='Org structure'!E34 -> 0 | J39: 0 | K39: 0
A40: ='Org structure'!A5 -> Vote 4 - Community and Public Safety | C40: =SUM(C41:C50) -> 0 | D40: 0 | E40: 0 | F40: 0 | G40: 0 | H40: 0 | I40: 0 | J40: 0 | K40: 0 | L40: =SUM(L41:L50) -> 0 | M40: =SUM(M41:M50) -> 0
A41: ='Org structure'!E36 -> 4,1 - Cemetries and crematoriums | J41: 0 | K41: 0
A42: ='Org structure'!E37 -> 4,2 - Community halls and Facilities | J42: 0 | K42: 0
A43: ='Org structure'!E38 -> 4,3 - Disaster Management | J43: 0 | K43: 0
A44: ='Org structure'!E39 -> 4,4 - Libraries and Archives | J44: 0 | K44: 0
A45: ='Org structure'!E40 -> 0 | J45: 0 | K45: 0
A46: ='Org structure'!E41 -> 0 | J46: 0 | K46: 0
A47: ='Org structure'!E42 -> 0 | J47: 0 | K47: 0
A48: ='Org structure'!E43 -> 0 | J48: 0 | K48: 0
A49: ='Org structure'!E44 -> 0 | J49: 0 | K49: 0
A50: ='Org structure'!E45 -> 0 | J50: 0 | K50: 0
A51: ='Org structure'!A6 -> Vote 5 - Sports and Recreation | C51: =SUM(C52:C61) -> 0 | D51: =SUM(D52:D61) -> 0 | E51: 0 | F51: 0 | G51: 0 | H51: 0 | I51: 0 | J51: 0 | K51: 0 | L51: =SUM(L52:L61) -> 0 | M51: =SUM(M52:M61) -> 0
A52: ='Org structure'!E47 -> 5,1 - Community parks | J52: 0 | K52: 0
A53: ='Org structure'!E48 -> 0 | J53: 0 | K53: 0
A54: ='Org structure'!E49 -> 0 | J54: 0 | K54: 0
A55: ='Org structure'!E50 -> 0 | J55: 0 | K55: 0
A56: ='Org structure'!E51 -> 0 | J56: 0 | K56: 0
A57: ='Org structure'!E52 -> 0 | J57: 0 | K57: 0
A58: ='Org structure'!E53 -> 0 | J58: 0 | K58: 0
A59: ='Org structure'!E54 -> 0 | J59: 0 | K59: 0
A60: ='Org structure'!E55 -> 0 | J60: 0 | K60: 0
A61: ='Org structure'!E56 -> 0 | J61: 0 | K61: 0
A62: ='Org structure'!A7 -> Vote 6 - Housing | C62: =SUM(C63:C72) -> 0 | D62: =SUM(D63:D72) -> 0 | E62: 0 | F62: 0 | G62: 0 | H62: 0 | I62: 0 | J62: 0 | K62: 0 | L62: =SUM(L63:L72) -> 0 | M62: =SUM(M63:M72) -> 0
A63: ='Org structure'!E58 -> 6,1 - Housing | J63: 0 | K63: 0
A64: ='Org structure'!E59 -> 0 | J64: 0 | K64: 0
A65: ='Org structure'!E60 -> 0 | J65: 0 | K65: 0
A66: ='Org structure'!E61 -> 0 | J66: 0 | K66: 0
A67: ='Org structure'!E62 -> 0 | J67: 0 | K67: 0
A68: ='Org structure'!E63 -> 0 | J68: 0 | K68: 0
A69: ='Org structure'!E64 -> 0 | J69: 0 | K69: 0
A70: ='Org structure'!E65 -> 0 | J70: 0 | K70: 0
A71: ='Org structure'!E66 -> 0 | J71: 0 | K71: 0
A72: ='Org structure'!E67 -> 0 | J72: =SUM(E72:I72) -> 0 | K72: =IF(D72=0,C72+J72,D72+J72) -> 0
A73: ='Org structure'!A8 -> Vote 7 - Planning and development | C73: =SUM(C74:C83) -> 0 | D73: 0 | E73: 0 | F73: 0 | G73: 0 | H73: 0 | I73: 0 | J73: 0 | K73: 0 | L73: =SUM(L74:L83) -> 0 | M73: =SUM(M74:M83) -> 0
A74: ='Org structure'!E69 -> 7,1 - Corporate Wide Strategic Planning (IDP & LED) | J74: 0 | K74: 0
A75: ='Org structure'!E70 -> 7,2 - Town Planning and Building Regulations | J75: 0 | K75: 0
A76: ='Org structure'!E71 -> 7,3 - Project Management Unit | J76: 0 | K76: 0
A77: ='Org structure'!E72 -> 0 | J77: 0 | K77: 0
A78: ='Org structure'!E73 -> 0 | J78: 0 | K78: 0
A79: ='Org structure'!E74 -> 0 | J79: 0 | K79: 0
A80: ='Org structure'!E75 -> 0 | J80: 0 | K80: 0
A81: ='Org structure'!E76 -> 0 | J81: 0 | K81: 0
A82: ='Org structure'!E77 -> 0 | J82: 0 | K82: 0
A83: ='Org structure'!E78 -> 0 | J83: 0 | K83: 0
A84: ='Org structure'!A9 -> Vote 8 - Road Transport | C84: =SUM(C85:C94) -> 11461019 | D84: =SUM(D85:D94) -> 0 | E84: 0 | F84: 0 | G84: 0 | H84: 0 | I84: 14600000 | J84: 14600000 | K84: 26061019 | L84: =SUM(L85:L94) -> 27754985 | M84: =SUM(M85:M94) -> 29559059
A85: ='Org structure'!E80 -> 8,1 - Road and Traffic Regulations | C85: 11461019 | I85: 14600000 | J85: 14600000 | K85: 26061019 | L85: 27754985 | M85: 29559059
A86: ='Org structure'!E81 -> 8,2 - Roads | J86: 0 | K86: 0
A87: ='Org structure'!E82 -> 8,3 - Taxi Ranks | J87: 0 | K87: 0
A88: ='Org structure'!E83 -> 0 | J88: 0 | K88: 0
A89: ='Org structure'!E84 -> 0 | J89: 0 | K89: 0
A90: ='Org structure'!E85 -> 0 | J90: 0 | K90: 0
A91: ='Org structure'!E86 -> 0 | J91: 0 | K91: 0
A92: ='Org structure'!E87 -> 0 | J92: 0 | K92: 0
A93: ='Org structure'!E88 -> 0 | J93: 0 | K93: 0
A94: ='Org structure'!E89 -> 0 | J94: 0 | K94: 0
A95: ='Org structure'!A10 -> Vote 9 - Energy Sources | C95: =SUM(C96:C105) -> 18807957.47 | D95: =SUM(D96:D105) -> 0 | E95: 0 | F95: 0 | G95: 0 | H95: 0 | I95: 14422987 | J95: 14422987 | K95: 33230944.47 | L95: =SUM(L96:L105) -> 36672060 | M95: =SUM(M96:M105) -> 40229469
A96: ='Org structure'!E91 -> 9,1 - Electricity | C96: 18807957.47 | I96: =9800000+1822987+800000+2000000 -> 14422987 | J96: 14422987 | K96: 33230944.47 | L96: 36672060 | M96: 40229469
A97: ='Org structure'!E92 -> 9,2 - Street Lighting | J97: 0 | K97: 0
A98: ='Org structure'!E93 -> 0 | J98: 0 | K98: 0
A99: ='Org structure'!E94 -> 0 | J99: 0 | K99: 0
A100: ='Org structure'!E95 -> 0 | J100: 0 | K100: 0
A101: ='Org structure'!E96 -> 0 | J101: 0 | K101: 0
A102: ='Org structure'!E97 -> 0 | J102: 0 | K102: 0
A103: ='Org structure'!E98 -> 0 | J103: 0 | K103: 0
A104: ='Org structure'!E99 -> 0 | J104: 0 | K104: 0
A105: ='Org structure'!E100 -> 0 | J105: 0 | K105: 0
A106: ='Org structure'!A11 -> Vote 10 - Waste Water Management | C106: =SUM(C107:C116) -> 0 | D106: =SUM(D107:D116) -> 0 | E106: 0 | F106: 0 | G106: 0 | H106: 0 | I106: 0 | J106: 0 | K106: 0 | L106: =SUM(L107:L116) -> 0 | M106: =SUM(M107:M116) -> 0
A107: ='Org structure'!E102 -> 10,1 - Public Toilets | J107: 0 | K107: 0
A108: ='Org structure'!E103 -> 0 | J108: 0 | K108: 0
A109: ='Org structure'!E104 -> 0 | J109: 0 | K109: 0
A110: ='Org structure'!E105 -> 0 | J110: 0 | K110: 0
A111: ='Org structure'!E106 -> 0 | J111: 0 | K111: 0
A112: ='Org structure'!E107 -> 0 | J112: 0 | K112: 0
A113: ='Org structure'!E108 -> 0 | J113: 0 | K113: 0
A114: ='Org structure'!E109 -> 0 | J114: 0 | K114: 0
A115: ='Org structure'!E110 -> 0 | J115: 0 | K115: 0
A116: ='Org structure'!E111 -> 0 | J116: 0 | K116: 0
A117: ='Org structure'!A12 -> Vote 11 - Waste Management | C117: =SUM(C118:C127) -> 6243397 | D117: =SUM(D118:D127) -> 0 | E117: 0 | F117: 0 | G117: 0 | H117: 0 | I117: 2000000 | J117: 2000000 | K117: 8243397 | L117: =SUM(L118:L127) -> 7714217 | M117: =SUM(M118:M127) -> 8215642
A118: ='Org structure'!E113 -> 11,1 - Solid Waste Removal | C118: 6243397 | I118: 2000000 | J118: 2000000 | K118: 8243397 | L118: 7714217 | M118: 8215642
A119: ='Org structure'!E114 -> 0 | J119: 0 | K119: 0
A120: ='Org structure'!E115 -> 0 | J120: 0 | K120: 0
A121: ='Org structure'!E116 -> 0 | J121: 0 | K121: 0
A122: ='Org structure'!E117 -> 0 | J122: 0 | K122: 0
A123: ='Org structure'!E118 -> 0 | J123: 0 | K123: 0
A124: ='Org structure'!E119 -> 0 | J124: 0 | K124: 0
A125: ='Org structure'!E120 -> 0 | J125: 0 | K125: 0
A126: ='Org structure'!E121 -> 0 | J126: 0 | K126: 0
A127: ='Org structure'!E122 -> 0 | J127: 0 | K127: 0
A128: ='Org structure'!A13 -> Vote 12 - [NAME OF VOTE 12] | C128: =SUM(C129:C138) -> 0 | D128: =SUM(D129:D138) -> 0 | E128: 0 | F128: 0 | G128: 0 | H128: 0 | I128: 0 | J128: 0 | K128: 0 | L128: =SUM(L129:L138) -> 0 | M128: =SUM(M129:M138) -> 0
A129: ='Org structure'!E124 -> 12.1 - [Name of sub-vote] | J129: 0 | K129: 0
A130: ='Org structure'!E125 -> 0 | J130: 0 | K130: 0
A131: ='Org structure'!E126 -> 0 | J131: 0 | K131: 0
A132: ='Org structure'!E127 -> 0 | J132: 0 | K132: 0
A133: ='Org structure'!E128 -> 0 | J133: 0 | K133: 0
A134: ='Org structure'!E129 -> 0 | J134: 0 | K134: 0
A135: ='Org structure'!E130 -> 0 | J135: 0 | K135: 0
A136: ='Org structure'!E131 -> 0 | J136: =SUM(E136:I136) -> 0 | K136: =IF(D136=0,C136+J136,D136+J136) -> 0
A137: ='Org structure'!E132 -> 0 | J137: 0 | K137: 0
A138: ='Org structure'!E133 -> 0 | J138: 0 | K138: 0
A139: ='Org structure'!A14 -> Vote 13 - [NAME OF VOTE 13] | C139: =SUM(C140:C149) -> 0 | D139: =SUM(D140:D149) -> 0 | E139: 0 | F139: 0 | G139: 0 | H139: 0 | I139: 0 | J139: 0 | K139: 0 | L139: =SUM(L140:L149) -> 0 | M139: =SUM(M140:M149) -> 0
A140: ='Org structure'!E135 -> 13.1 - [Name of sub-vote] | J140: 0 | K140: 0
A141: ='Org structure'!E136 -> 0 | J141: 0 | K141: 0
A142: ='Org structure'!E137 -> 0 | J142: 0 | K142: 0
A143: ='Org structure'!E138 -> 0 | J143: 0 | K143: 0
A144: ='Org structure'!E139 -> 0 | J144: 0 | K144: 0
A145: ='Org structure'!E140 -> 0 | J145: 0 | K145: 0
A146: ='Org structure'!E141 -> 0 | J146: 0 | K146: 0
A147: ='Org structure'!E142 -> 0 | J147: 0 | K147: 0
A148: ='Org structure'!E143 -> 0 | J148: 0 | K148: 0
A149: ='Org structure'!E144 -> 0 | J149: 0 | K149: 0
A150: ='Org structure'!A15 -> Vote 14 - [NAME OF VOTE 14] | C150: =SUM(C151:C160) -> 0 | D150: =SUM(D151:D160) -> 0 | E150: 0 | F150: 0 | G150: 0 | H150: 0 | I150: 0 | J150: 0 | K150: 0 | L150: =SUM(L151:L160) -> 0 | M150: =SUM(M151:M160) -> 0
A151: ='Org structure'!E146 -> 14.1 - [Name of sub-vote] | J151: 0 | K151: 0
A152: ='Org structure'!E147 -> 0 | J152: 0 | K152: 0
A153: ='Org structure'!E148 -> 0 | J153: 0 | K153: 0
A154: ='Org structure'!E149 -> 0 | J154: 0 | K154: 0
A155: ='Org structure'!E150 -> 0 | J155: 0 | K155: 0
A156: ='Org structure'!E151 -> 0 | J156: 0 | K156: 0
A157: ='Org structure'!E152 -> 0 | J157: 0 | K157: 0
A158: ='Org structure'!E153 -> 0 | J158: 0 | K158: 0
A159: ='Org structure'!E154 -> 0 | J159: 0 | K159: 0
A160: ='Org structure'!E155 -> 0 | J160: 0 | K160: 0
A161: ='Org structure'!A16 -> Vote 15 - [NAME OF VOTE 15] | C161: =SUM(C162:C171) -> 0 | D161: =SUM(D162:D171) -> 0 | E161: 0 | F161: 0 | G161: 0 | H161: 0 | I161: 0 | J161: 0 | K161: 0 | L161: =SUM(L162:L171) -> 0 | M161: =SUM(M162:M171) -> 0
A162: ='Org structure'!E157 -> 15.1 - [Name of sub-vote] | J162: 0 | K162: 0
A163: ='Org structure'!E158 -> 0 | J163: 0 | K163: 0
A164: ='Org structure'!E159 -> 0 | J164: 0 | K164: 0
A165: ='Org structure'!E160 -> 0 | J165: 0 | K165: 0
A166: ='Org structure'!E161 -> 0 | J166: 0 | K166: 0
A167: ='Org structure'!E162 -> 0 | J167: 0 | K167: 0
A168: ='Org structure'!E163 -> 0 | J168: 0 | K168: 0
A169: ='Org structure'!E164 -> 0 | J169: 0 | K169: 0
A170: ='Org structure'!E165 -> 0 | J170: 0 | K170: 0
A171: ='Org structure'!E166 -> 0 | J171: 0 | K171: 0
A172: Total Revenue by Vote | B172: 2 | C172: =C7+C18+C29+C40+C51+C62+C73+C84+C95+C106+C117+C128+C139+C150+C161 -> 402707680.4 | D172: =D7+D18+D29+D40+D51+D62+D73+D84+D95+D106+D117+D128+D139+D150+D161 -> 0 | E172: 0 | F172: 0 | G172: 0 | H172: 0 | I172: 46417201 | J172: =SUM(E172:I172) -> 46417201 | K172: =IF(D172=0,C172+J172,D172+J172) -> 449124881.4 | L172: =L7+L18+L29+L40+L51+L62+L73+L84+L95+L106+L117+L128+L139+L150+L161 -> 456237483 | M172: =M7+M18+M29+M40+M51+M62+M73+M84+M95+M106+M117+M128+M139+M150+M161 -> 491832071.5
A174: Expenditure by Vote | B174: 1
A175: =A7 -> Vote 1 - Executive & Council | C175: =SUM(C176:C185) -> 47800391.17 | D175: 0 | E175: 0 | F175: 0 | G175: 0 | H175: 0 | I175: 4582730 | J175: =SUM(E175:I175) -> 4582730 | K175: =IF(D175=0,C175+J175,D175+J175) -> 52383121.17 | L175: =SUM(L176:L185) -> 56492940 | M175: =SUM(M176:M185) -> 60004430
A176: =A8 -> 1,1 - Mayor and Council | C176: 39561229.98 | I176: 3700273 | J176: =SUM(E176:I176) -> 3700273 | K176: =IF(D176=0,C176+J176,D176+J176) -> 43261502.98 | L176: 46774124 | M176: 49653891
A177: 1,2 - Municipal Manager | C177: 8239161.19 | I177: 882457 | J177: 882457 | K177: 9121618.19 | L177: 9718816 | M177: 10350539
A178: 0 | J178: 0 | K178: 0
A179: 0 | J179: 0 | K179: 0
A180: 0 | J180: 0 | K180: 0
A181: 0 | J181: 0 | K181: 0
A182: 0 | J182: 0 | K182: 0
A183: 0 | J183: 0 | K183: 0
A184: 0 | J184: 0 | K184: 0
A185: 0 | J185: 0 | K185: 0
A186: =A18 -> Vote 2 - Finance and Administration | C186: =SUM(C187:C196) -> 74406900.69 | D186: 0 | E186: 0 | F186: 0 | G186: 0 | H186: 0 | I186: 16494809 | J186: 16494809 | K186: 90901709.69 | L186: =SUM(L187:L196) -> 97198856 | M186: =SUM(M187:M196) -> 103377226
A187: =A19 -> 2,1 - Administrative and Corporate Support | C187: 20206768.22 | I187: 972091 | J187: 972091 | K187: 21178859.22 | L187: 22555485 | M187: 24021591
A188: 2,2 - Asset Management | C188: 4087160.29 | I188: 189245 | J188: 189245 | K188: 4276405.29 | L188: 4554372 | M188: 4850406
A189: 2,3 - Budget and Treasury Office | C189: 23968834.34 | I189: 7797348 | J189: 7797348 | K189: 31766182.34 | L189: 34223934 | M189: 36308935
A190: 2,4 - Human Resource | C190: 6977174.93 | I190: 1085368 | J190: 1085368 | K190: 8062542.93 | L190: 8586605 | M190: 9144735
A191: 2,5 - Information Technology | C191: 6403449.82 | I191: -964705 | J191: -964705 | K191: 5438744.82 | L191: 5787970 | M191: 6164188
A192: 2,6 - Legal Services | C192: 4346185.1 | I192: 2744083 | J192: 2744083 | K192: 7090268.1 | L192: 7551135 | M192: 8041959
A193: 2,7 - Customer Relation and Coordination | C193: 2151894.46 | I193: 0 | J193: 0 | K193: 2151894.46 | L193: 2291767 | M193: 2440732
A194: 2,8 - Property Services | C194: 3136452 | I194: 4463160 | J194: 4463160 | K194: 7599612 | L194: 8093587 | M194: 8619670
A195: 2,9 - Risk Management | C195: 847756.79 | I195: 17107 | J195: 17107 | K195: 864863.79 | L195: 921080 | M195: 980950
A196: 2.10 - Supply Chain Management | C196: 2281224.74 | I196: 191112 | J196: 191112 | K196: 2472336.74 | L196: 2632921 | M196: 2804060
A197: Vote 3 - Internal Audit | C197: =SUM(C198:C207) -> 1938939.02 | D197: 0 | E197: 0 | F197: 0 | G197: 0 | H197: 0 | I197: 528014 | J197: 528014 | K197: 2466953.02 | L197: =SUM(L198:L207) -> 2627305 | M197: =SUM(M198:M207) -> 2798080
A198: 3,1 - Governance Function | C198: 1938939.02 | I198: 528014 | J198: 528014 | K198: 2466953.02 | L198: 2627305 | M198: 2798080
A199: 0 | J199: 0 | K199: 0
A200: 0 | J200: 0 | K200: 0
A201: 0 | J201: 0 | K201: 0
... 144 more rows

Sheet B4-FinPerf RE
A1: =muni&" - "&_ADJ4&" - "&Date -> LIM332 Greater Letaba - Table B4 Adjustments Budget Financial Performance (revenue and expenditure) - 27 February 2019
A2: =desc -> Description | B2: =head27 -> Ref | C2: =Head2 -> Budget Year 2018/19 | L2: =Head10 -> Budget Year +1 2019/20 | M2: =Head11 -> Budget Year +2 2020/21
C3: =Head6 -> Original Budget | D3: =Head54 -> Prior Adjusted | E3: =Head51 -> Accum. Funds | F3: =Head52 -> Multi-year capital | G3: =Head53 -> Unfore. Unavoid. | H3: =Head55 -> Nat. or Prov. Govt | I3: =Head50 -> Other Adjusts. | J3: =Head56 -> Total Adjusts. | K3: =Head7 -> Adjusted Budget | L3: =Head7 -> Adjusted Budget | M3: =Head7 -> Adjusted Budget
D4: 3 | E4: 4 | F4: 5 | G4: 6 | H4: 7 | I4: 8 | J4: 9 | K4: 10
A5: R thousands | B5: 1 | C5: A | D5: A1 | E5: B | F5: C | G5: D | H5: E | I5: F | J5: G | K5: H
A6: Revenue By Source
A7: Property rates | B7: 2 | C7: ='SB1'!C10 -> 12255327.57 | D7: ='SB1'!D10 -> 0 | E7: ='SB1'!E10 -> 0 | F7: ='SB1'!F10 -> 0 | G7: ='SB1'!G10 -> 0 | H7: ='SB1'!H10 -> 0 | I7: ='SB1'!I10 -> 4607959 | J7: =SUM(E7:I7) -> 4607959 | K7: =IF(D7=0,C7+J7,D7+J7) -> 16863286.57 | L7: ='SB1'!L10 -> 16894401 | M7: ='SB1'!M10 -> 17992537
A8: Service charges - electricity revenue | B8: 2 | C8: ='SB1'!C16 -> 12658643.21 | D8: ='SB1'!D16 -> 0 | E8: ='SB1'!E16 -> 0 | F8: ='SB1'!F16 -> 0 | G8: ='SB1'!G16 -> 0 | H8: ='SB1'!H16 -> 0 | I8: ='SB1'!I16 -> 11808000 | J8: 11808000 | K8: 24466643.21 | L8: ='SB1'!L16 -> 23926975 | M8: ='SB1'!M16 -> 25482229
A9: Service charges - water revenue | B9: 2 | C9: ='SB1'!C22 -> 0 | D9: ='SB1'!D22 -> 0 | E9: ='SB1'!E22 -> 0 | F9: ='SB1'!F22 -> 0 | G9: ='SB1'!G22 -> 0 | H9: ='SB1'!H22 -> 0 | I9: ='SB1'!I22 -> 0 | J9: 0 | K9: 0 | L9: ='SB1'!L22 -> 0 | M9: ='SB1'!M22 -> 0
A10: Service charges - sanitation revenue | B10: 2 | C10: ='SB1'!C28 -> 0 | D10: ='SB1'!D28 -> 0 | E10: ='SB1'!E28 -> 0 | F10: ='SB1'!F28 -> 0 | G10: ='SB1'!G28 -> 0 | H10: ='SB1'!H28 -> 0 | I10: ='SB1'!I28 -> 0 | J10: 0 | K10: 0 | L10: ='SB1'!L28 -> 0 | M10: ='SB1'!M28 -> 0
A11: Service charges - refuse revenue | B11: 2 | C11: ='SB1'!C35 -> 6243396.82 | D11: ='SB1'!D35 -> 0 | E11: ='SB1'!E35 -> 0 | F11: ='SB1'!F35 -> 0 | G11: ='SB1'!G35 -> 0 | H11: ='SB1'!H35 -> 0 | I11: ='SB1'!I35 -> 2000000 | J11: 2000000 | K11: 8243396.82 | L11: ='SB1'!L35 -> 7714218 | M11: ='SB1'!M35 -> 8215642
A12: Service charges - other | C12: 0 | I12: 0 | J12: 0 | K12: 0 | L12: 0 | M12: 0
A13: Rental of facilities and equipment | C13: 956797.77 | I13: 0 | J13: 0 | K13: 956797.77 | L13: 1018989 | M13: 1085223
A14: Interest earned - external investments | C14: 4519515.44 | I14: 0 | J14: 0 | K14: 4519515.44 | L14: 4813283 | M14: 5126147
A15: Interest earned - outstanding debtors | C15: 8441397.77 | I15: =8786255+2000000 -> 10786255 | J15: 10786255 | K15: 19227652.77 | L15: 18347450 | M15: 19540035
A16: Dividends received | C16: 0 | I16: 0 | J16: 0 | K16: 0 | L16: 0 | M16: 0
A17: Fines, penalties and forfeits | C17: 1200000 | I17: 0 | J17: 0 | K17: 1200000 | L17: 1278000 | M17: 1361070
A18: Licences and permits | C18: 8085004.64 | I18: 14600000 | J18: 14600000 | K18: 22685004.64 | L18: 24159530 | M18: 25729899
A19: Agency services | C19: 2176014.33 | I19: 0 | J19: 0 | K19: 2176014.33 | L19: 2317455 | M19: 2468089
A20: Transfers and subsidies | C20: 248358000 | I20: 0 | J20: 0 | K20: 248358000 | L20: 274109000 | M20: 297262000
A21: Other revenue | B21: 2 | C21: ='SB1'!C50 -> 34785582.68 | D21: ='SB1'!D50 -> 0 | E21: ='SB1'!E50 -> 0 | F21: ='SB1'!F50 -> 0 | G21: ='SB1'!G50 -> 0 | H21: ='SB1'!H50 -> 0 | I21: ='SB1'!I50 -> 2622986 | J21: 2622986 | K21: 37408568.68 | L21: ='SB1'!L50 -> 12799775 | M21: ='SB1'!M50 -> 13631760
A22: Gains on disposal of PPE | C22: 577000 | I22: 0 | J22: 0 | K22: 577000 | L22: 614505 | M22: 654447
A23: Total Revenue (excluding capital transfers and contributions) | C23: =SUM(C7:C22) -> 340256680.2 | D23: 0 | E23: 0 | F23: 0 | G23: 0 | H23: 0 | I23: 46425200 | J23: 46425200 | K23: 386681880.2 | L23: 387993581 | M23: 418549078
A25: Expenditure By Type
A26: Employee related costs | C26: ='SB1'!C68 -> 78303797.25 | D26: ='SB1'!D68 -> 0 | E26: ='SB1'!E68 -> 0 | F26: ='SB1'!F68 -> 0 | G26: ='SB1'!G68 -> 0 | H26: ='SB1'!H68 -> 0 | I26: ='SB1'!I68 -> 16962495 | J26: =SUM(E26:I26) -> 16962495 | K26: =IF(D26=0,C26+J26,D26+J26) -> 95266292.25 | L26: ='SB1'!L68 -> 101544882 | M26: ='SB1'!M68 -> 108008806
A27: Remuneration of councillors | C27: 22467855 | D27: 0 | E27: 0 | F27: 0 | G27: 0 | H27: 0 | I27: 414177 | J27: 414177 | K27: 22882032 | L27: 24369368 | M27: 25953376
A28: Debt impairment | C28: 1956620.19 | D28: 0 | E28: 0 | F28: 0 | G28: 0 | H28: 0 | I28: 0 | J28: 0 | K28: 1956620.19 | L28: 2083801 | M28: 2219248
A29: Depreciation & asset impairment | C29: ='SB1'!C84 -> 5043379.81 | D29: ='SB1'!D84 -> 0 | E29: ='SB1'!E84 -> 0 | F29: ='SB1'!F84 -> 0 | G29: ='SB1'!G84 -> 0 | H29: ='SB1'!H84 -> 0 | I29: ='SB1'!I84 -> 898831 | J29: 898831 | K29: 5942210.81 | L29: ='SB1'!L84 -> 6865248 | M29: ='SB1'!M84 -> 7311489
A30: Finance charges | C30: 0 | D30: 0 | E30: 0 | F30: 0 | G30: 0 | H30: 0 | I30: 0 | J30: 0 | K30: 0 | L30: 0 | M30: 0
A31: Bulk purchases | C31: ='SB1'!C89 -> 17096559 | D31: ='SB1'!D89 -> 0 | E31: ='SB1'!E89 -> 0 | F31: ='SB1'!F89 -> 0 | G31: ='SB1'!G89 -> 0 | H31: ='SB1'!H89 -> 0 | I31: ='SB1'!I89 -> 0 | J31: 0 | K31: 17096559 | L31: ='SB1'!L89 -> 18207835 | M31: ='SB1'!M89 -> 19391344
A32: Other materials | C32: 0 | D32: 0 | E32: 0 | F32: 0 | G32: 0 | H32: 0 | I32: 0 | J32: 0 | K32: 0 | L32: 0 | M32: 0
A33: Contracted services | C33: ='SB1'!C128 -> 15119136.5 | D33: ='SB1'!D128 -> 0 | E33: ='SB1'!E128 -> 0 | F33: ='SB1'!F128 -> 0 | G33: ='SB1'!G128 -> 0 | H33: ='SB1'!H128 -> 0 | I33: ='SB1'!I128 -> 4257029 | J33: 4257029 | K33: 19376165.5 | L33: ='SB1'!L128 -> 20635616 | M33: ='SB1'!M128 -> 21976931
A34: Transfers and subsidies | C34: 0 | D34: 0 | E34: 0 | F34: 0 | G34: 0 | H34: 0 | I34: 0 | J34: 0 | K34: 0 | L34: 0 | M34: 0
A35: Other expenditure | C35: ='SB1'!C158 -> 83443013.61 | D35: ='SB1'!D158 -> 0 | E35: ='SB1'!E158 -> 0 | F35: ='SB1'!F158 -> 0 | G35: ='SB1'!G158 -> 0 | H35: ='SB1'!H158 -> 0 | I35: ='SB1'!I158 -> 29499923.7 | J35: 29499923.7 | K35: 112942937.3 | L35: ='SB1'!L158 -> 108140816.3 | M35: ='SB1'!M158 -> 114960532.4
A36: Loss on disposal of PPE | C36: 0 | D36: 0 | E36: 0 | F36: 0 | G36: 0 | H36: 0 | I36: 0 | J36: 0 | K36: 0 | L36: 0 | M36: 0
A37: Total Expenditure | C37: =SUM(C26:C36) -> 223430361.4 | D37: 0 | E37: 0 | F37: 0 | G37: 0 | H37: 0 | I37: 52032455.7 | J37: 52032455.7 | K37: 275462817.1 | L37: 281847566.3 | M37: 299821726.4
A39: Surplus/(Deficit) | C39: =C23-C37 -> 116826318.9 | D39: 0 | E39: 0 | F39: 0 | G39: 0 | H39: 0 | I39: -5607255.7 | J39: -5607255.7 | K39: 111219063.2 | L39: 106146014.7 | M39: 118727351.6
A40: Transfers and subsidies - capital (monetary allocations) (National / Provincial and District) | C40: =56460000+5983000 -> 62443000 | D40: 0 | E40: 0 | F40: 0 | G40: 0 | I40: 0 | J40: =SUM(E40:I40) -> 0 | K40: =IF(D40=0,C40+J40,D40+J40) -> 62443000 | L40: =57608000+10635000 -> 68243000 | M40: =60783000+12500000 -> 73283000
A41: Transfers and subsidies - capital (monetary allocations) (National / Provincial Departmental Agencies, Households, Non-profit Institutions, Private Enterprises, Public Corporatons, Higher Educational Institutions) | C41: 0 | D41: 0 | E41: 0 | F41: 0 | G41: 0 | H41: 0 | I41: 0 | J41: =SUM(E41:I41) -> 0 | K41: =IF(D41=0,C41+J41,D41+J41) -> 0 | L41: 0 | M41: 0
A42: Transfers and subsidies - capital (in-kind - all) | C42: 0 | D42: 0 | E42: 0 | F42: 0 | G42: 0 | H42: 0 | I42: 0 | J42: =SUM(E42:I42) -> 0 | K42: =IF(D42=0,C42+J42,D42+J42) -> 0 | L42: 0 | M42: 0
A43: Surplus/(Deficit) before taxation | C43: =SUM(C39:C42) -> 179269318.9 | D43: 0 | E43: 0 | F43: 0 | G43: 0 | H43: 0 | I43: -5607255.7 | J43: -5607255.7 | K43: 173662063.2 | L43: 174389014.7 | M43: 192010351.6
A44: Taxation | C44: 0 | D44: 0 | E44: 0 | F44: 0 | G44: 0 | H44: 0 | I44: 0 | J44: =SUM(E44:I44) -> 0 | K44: =IF(D44=0,C44+J44,D44+J44) -> 0 | L44: 0 | M44: 0
A45: Surplus/(Deficit) after taxation | C45: =C43-C44 -> 179269318.9 | D45: 0 | E45: 0 | F45: 0 | G45: 0 | H45: 0 | I45: -5607255.7 | J45: -5607255.7 | K45: 173662063.2 | L45: 174389014.7 | M45: 192010351.6
A46: Attributable to minorities | C46: 0 | D46: 0 | E46: 0 | F46: 0 | G46: 0 | H46: 0 | I46: 0 | J46: =SUM(E46:I46) -> 0 | K46: =IF(D46=0,C46+J46,D46+J46) -> 0 | L46: 0 | M46: 0
A47: Surplus/(Deficit) attributable to municipality | C47: =SUM(C45:C46) -> 179269318.9 | D47: 0 | E47: 0 | F47: 0 | G47: 0 | H47: 0 | I47: -5607255.7 | J47: -5607255.7 | K47: 173662063.2 | L47: 174389014.7 | M47: 192010351.6
A48: Share of surplus/ (deficit) of associate | C48: 0 | D48: 0 | E48: 0 | F48: 0 | G48: 0 | H48: 0 | I48: 0 | J48: =SUM(E48:I48) -> 0 | K48: =IF(D48=0,C48+J48,D48+J48) -> 0 | L48: 0 | M48: 0
A49: Surplus/ (Deficit) for the year | C49: =C47+C48 -> 179269318.9 | D49: 0 | E49: 0 | F49: 0 | G49: 0 | H49: 0 | I49: -5607255.7 | J49: -5607255.7 | K49: 173662063.2 | L49: 174389014.7 | M49: 192010351.6
A50: =head27a -> References
A51: 1. Classifications are revenue sources and expenditure type
A52: 2. Detail to be provided in Table SB1
A53: 3. Only complete if a previous adjusted budget has been approved in the same financial year. Reflect most recent adjusted budget.
A54: 4. Additional cash-backed accumulated funds/unspent funds (MFMA section 18(1)(b) and section 28(2)(e)) identified after the Original Budget approved and after annual financial statements audited (note: only where underspending could not reasonably have been foreseen)
A55: 5. Increases of funds approved under MFMA section 31
A56: 6. Adjustments approved in accordance with MFMA section 29
A57: 7. Adjustments to transfers from National or Provincial Government
A58: 8. Adjusts. = 'Other' Adjustments proposed to be approved; including revenue under-collection (MFMA section 28(2)(a)); additional revenue appropriation on existing programmes (section 28(2))(b); projected savings (section 28(2)(d)); error correction (section 28(2)(f))
A59: 9. G = B + C + D + E + F
A60: 10. Adjusted Budget H = (A or A1/2 etc) + G
A62: Revenue total | C62: =C23+C40+C41+C42 -> 402699680.2 | D62: 0 | E62: 0 | F62: 0 | G62: 0 | H62: 0 | I62: 46425200 | J62: 46425200 | K62: 449124880.2 | L62: 456236581 | M62: 491832078

Sheet B5-Capex
A1: =muni&" - "&_ADJ5&" - "&Date -> LIM332 Greater Letaba - Table B5 Adjustments Capital Expenditure Budget by vote and funding - 27 February 2019
A2: =desc -> Description | B2: =head27 -> Ref | C2: =Head2 -> Budget Year 2018/19 | L2: =Head10 -> Budget Year +1 2019/20 | M2: =Head11 -> Budget Year +2 2020/21
C3: =Head6 -> Original Budget | D3: =Head54 -> Prior Adjusted | E3: =Head51 -> Accum. Funds | F3: =Head52 -> Multi-year capital | G3: =Head53 -> Unfore. Unavoid. | H3: =Head55 -> Nat. or Prov. Govt | I3: =Head50 -> Other Adjusts. | J3: =Head56 -> Total Adjusts. | K3: =Head7 -> Adjusted Budget | L3: =Head7 -> Adjusted Budget | M3: =Head7 -> Adjusted Budget
D4: 5 | E4: 6 | F4: 7 | G4: 8 | H4: 9 | I4: 10 | J4: 11 | K4: 12
A5: R thousands | C5: A | D5: A1 | E5: B | F5: C | G5: D | H5: E | I5: F | J5: G | K5: H
A6: Capital expenditure - Vote
A7: Multi-year expenditure to be adjusted | B7: 2
A8: =B5B!A8 -> Vote 1 - Executive & Council | C8: =B5B!C8 -> 0 | D8: =B5B!D8 -> 0 | E8: =B5B!E8 -> 0 | F8: =B5B!F8 -> 0 | G8: =B5B!G8 -> 0 | H8: =B5B!H8 -> 0 | I8: =B5B!I8 -> 0 | J8: =SUM(E8:I8) -> 0 | K8: =IF(D8=0,C8+J8,D8+J8) -> 0 | L8: =B5B!L8 -> 0 | M8: =B5B!M8 -> 0
A9: =B5B!A19 -> Vote 2 - Finance and Administration | C9: =B5B!C19 -> 0 | D9: =B5B!D19 -> 0 | E9: =B5B!E19 -> 0 | F9: =B5B!F19 -> 0 | G9: =B5B!G19 -> 0 | H9: =B5B!H19 -> 0 | I9: =B5B!I19 -> 0 | J9: =SUM(E9:I9) -> 0 | K9: 0 | L9: =B5B!L19 -> 0 | M9: =B5B!M19 -> 0
A10: =B5B!A30 -> Vote 3 - Internal Audit | C10: =B5B!C30 -> 0 | D10: =B5B!D30 -> 0 | E10: =B5B!E30 -> 0 | F10: =B5B!F30 -> 0 | G10: =B5B!G30 -> 0 | H10: =B5B!H30 -> 0 | I10: =B5B!I30 -> 0 | J10: 0 | K10: 0 | L10: =B5B!L30 -> 0 | M10: =B5B!M30 -> 0
A11: =B5B!A41 -> Vote 4 - Community and Public Safety | C11: =B5B!C41 -> 3218446 | D11: =B5B!D41 -> 0 | E11: =B5B!E41 -> 0 | F11: =B5B!F41 -> 0 | G11: =B5B!G41 -> 0 | H11: =B5B!H41 -> 0 | I11: =B5B!I41 -> -1500000 | J11: -1500000 | K11: 1718446 | L11: =B5B!L41 -> 3200000 | M11: =B5B!M41 -> 7500000
A12: =B5B!A52 -> Vote 5 - Sports and Recreation | C12: =B5B!C52 -> 63505497 | D12: =B5B!D52 -> 0 | E12: =B5B!E52 -> 0 | F12: =B5B!F52 -> 0 | G12: =B5B!G52 -> 0 | H12: =B5B!H52 -> 0 | I12: =B5B!I52 -> 3165815 | J12: 3165815 | K12: 66671312 | L12: =B5B!L52 -> 59635415 | M12: =B5B!M52 -> 40832889
A13: =B5B!A63 -> Vote 6 - Housing | C13: =B5B!C63 -> 0 | D13: =B5B!D63 -> 0 | E13: =B5B!E63 -> 0 | F13: =B5B!F63 -> 0 | G13: =B5B!G63 -> 0 | H13: =B5B!H63 -> 0 | I13: =B5B!I63 -> 0 | J13: 0 | K13: 0 | L13: =B5B!L63 -> 0 | M13: =B5B!M63 -> 0
A14: =B5B!A74 -> Vote 7 - Planning and development | C14: =B5B!C74 -> 0 | D14: =B5B!D74 -> 0 | E14: =B5B!E74 -> 0 | F14: =B5B!F74 -> 0 | G14: =B5B!G74 -> 0 | H14: =B5B!H74 -> 0 | I14: =B5B!I74 -> 0 | J14: 0 | K14: 0 | L14: =B5B!L74 -> 0 | M14: =B5B!M74 -> 0
A15: =B5B!A85 -> Vote 8 - Road Transport | C15: =B5B!C85 -> 57269303.81 | D15: =B5B!D85 -> 0 | E15: =B5B!E85 -> 0 | F15: =B5B!F85 -> 0 | G15: =B5B!G85 -> 0 | H15: =B5B!H85 -> 0 | I15: =B5B!I85 -> -16412343 | J15: -16412343 | K15: 40856960.81 | L15: =B5B!L85 -> 50559811 | M15: =B5B!M85 -> 88870950
A16: =B5B!A96 -> Vote 9 - Energy Sources | C16: =B5B!C96 -> 0 | D16: =B5B!D96 -> 0 | E16: =B5B!E96 -> 0 | F16: =B5B!F96 -> 0 | G16: =B5B!G96 -> 0 | H16: =B5B!H96 -> 0 | I16: =B5B!I96 -> 0 | J16: 0 | K16: 0 | L16: =B5B!L96 -> 0 | M16: =B5B!M96 -> 0
A17: =B5B!A107 -> Vote 10 - Waste Water Management | C17: =B5B!C107 -> 0 | D17: =B5B!D107 -> 0 | E17: =B5B!E107 -> 0 | F17: =B5B!F107 -> 0 | G17: =B5B!G107 -> 0 | H17: =B5B!H107 -> 0 | I17: =B5B!I107 -> 0 | J17: 0 | K17: 0 | L17: =B5B!L107 -> 0 | M17: =B5B!M107 -> 0
A18: =B5B!A118 -> Vote 11 - Waste Management | C18: =B5B!C118 -> 0 | D18: =B5B!D118 -> 0 | E18: =B5B!E118 -> 0 | F18: =B5B!F118 -> 0 | G18: =B5B!G118 -> 0 | H18: =B5B!H118 -> 0 | I18: =B5B!I118 -> 0 | J18: 0 | K18: 0 | L18: =B5B!L118 -> 0 | M18: =B5B!M118 -> 0
A19: =B5B!A129 -> Vote 12 - [NAME OF VOTE 12] | C19: =B5B!C129 -> 0 | D19: =B5B!D129 -> 0 | E19: =B5B!E129 -> 0 | F19: =B5B!F129 -> 0 | G19: =B5B!G129 -> 0 | H19: =B5B!H129 -> 0 | I19: =B5B!I129 -> 0 | J19: 0 | K19: 0 | L19: =B5B!L129 -> 0 | M19: =B5B!M129 -> 0
A20: =B5B!A140 -> Vote 13 - [NAME OF VOTE 13] | C20: =B5B!C140 -> 0 | D20: =B5B!D140 -> 0 | E20: =B5B!E140 -> 0 | F20: =B5B!F140 -> 0 | G20: =B5B!G140 -> 0 | H20: =B5B!H140 -> 0 | I20: =B5B!I140 -> 0 | J20: 0 | K20: 0 | L20: =B5B!L140 -> 0 | M20: =B5B!M140 -> 0
A21: =B5B!A151 -> Vote 14 - [NAME OF VOTE 14] | C21: =B5B!C151 -> 0 | D21: =B5B!D151 -> 0 | E21: =B5B!E151 -> 0 | F21: =B5B!F151 -> 0 | G21: =B5B!G151 -> 0 | H21: =B5B!H151 -> 0 | I21: =B5B!I151 -> 0 | J21: 0 | K21: 0 | L21: =B5B!L151 -> 0 | M21: =B5B!M151 -> 0
A22: =B5B!A162 -> Vote 15 - [NAME OF VOTE 15] | C22: =B5B!C162 -> 0 | D22: =B5B!D162 -> 0 | E22: =B5B!E162 -> 0 | F22: =B5B!F162 -> 0 | G22: =B5B!G162 -> 0 | H22: =B5B!H162 -> 0 | I22: =B5B!I162 -> 0 | J22: 0 | K22: 0 | L22: =B5B!L162 -> 0 | M22: =B5B!M162 -> 0
A23: Capital multi-year expenditure sub-total | B23: 3 | C23: =SUM(C8:C22) -> 123993246.8 | D23: =SUM(D8:D22) -> 0 | E23: 0 | F23: 0 | G23: 0 | H23: 0 | I23: -14746528 | J23: =SUM(J8:J22) -> -14746528 | K23: =SUM(K8:K22) -> 109246718.8 | L23: =SUM(L8:L22) -> 113395226 | M23: =SUM(M8:M22) -> 137203839
A25: Single-year expenditure to be adjusted | B25: 2
A26: =B5B!A177 -> Vote 1 - Executive & Council | C26: =B5B!C177 -> 0 | D26: =B5B!D177 -> 0 | E26: =B5B!E177 -> 0 | F26: =B5B!F177 -> 0 | G26: =B5B!G177 -> 0 | H26: =B5B!H177 -> 0 | I26: =B5B!I177 -> 0 | J26: =SUM(E26:I26) -> 0 | K26: =IF(D26=0,C26+J26,D26+J26) -> 0 | L26: =B5B!L177 -> 0 | M26: =B5B!M177 -> 0
A27: =B5B!A188 -> Vote 2 - Finance and Administration | C27: =B5B!C188 -> 7086000 | D27: =B5B!D188 -> 0 | E27: =B5B!E188 -> 0 | F27: =B5B!F188 -> 0 | G27: =B5B!G188 -> 0 | H27: =B5B!H188 -> 0 | I27: =B5B!I188 -> -666335 | J27: -666335 | K27: 6419665 | L27: =B5B!L188 -> 2030000 | M27: =B5B!M188 -> 0
A28: =B5B!A199 -> Vote 3 - Internal Audit | C28: =B5B!C199 -> 0 | D28: =B5B!D199 -> 0 | E28: =B5B!E199 -> 0 | F28: =B5B!F199 -> 0 | G28: =B5B!G199 -> 0 | H28: =B5B!H199 -> 0 | I28: =B5B!I199 -> 0 | J28: 0 | K28: 0 | L28: =B5B!L199 -> 0 | M28: =B5B!M199 -> 0
A29: =B5B!A210 -> Vote 4 - Community and Public Safety | C29: =B5B!C210 -> 400000 | D29: =B5B!D210 -> 0 | E29: =B5B!E210 -> 0 | F29: =B5B!F210 -> 0 | G29: =B5B!G210 -> 0 | H29: =B5B!H210 -> 0 | I29: =B5B!I210 -> 0 | J29: 0 | K29: 400000 | L29: =B5B!L210 -> 0 | M29: =B5B!M210 -> 0
A30: =B5B!A221 -> Vote 5 - Sports and Recreation | C30: =B5B!C221 -> 0 | D30: =B5B!D221 -> 0 | E30: =B5B!E221 -> 0 | F30: =B5B!F221 -> 0 | G30: =B5B!G221 -> 0 | H30: =B5B!H221 -> 0 | I30: =B5B!I221 -> 0 | J30: 0 | K30: 0 | L30: =B5B!L221 -> 0 | M30: =B5B!M221 -> 0
A31: =B5B!A232 -> Vote 6 - Housing | C31: =B5B!C232 -> 0 | D31: =B5B!D232 -> 0 | E31: =B5B!E232 -> 0 | F31: =B5B!F232 -> 0 | G31: =B5B!G232 -> 0 | H31: =B5B!H232 -> 0 | I31: =B5B!I232 -> 0 | J31: 0 | K31: 0 | L31: =B5B!L232 -> 0 | M31: =B5B!M232 -> 0
A32: =B5B!A243 -> Vote 7 - Planning and development | C32: =B5B!C243 -> 0 | D32: =B5B!D243 -> 0 | E32: =B5B!E243 -> 0 | F32: =B5B!F243 -> 0 | G32: =B5B!G243 -> 0 | H32: =B5B!H243 -> 0 | I32: =B5B!I243 -> 0 | J32: 0 | K32: 0 | L32: =B5B!L243 -> 0 | M32: =B5B!M243 -> 0
A33: =B5B!A254 -> Vote 8 - Road Transport | C33: =B5B!C254 -> 17659306.26 | D33: =B5B!D254 -> 0 | E33: =B5B!E254 -> 0 | F33: =B5B!F254 -> 0 | G33: =B5B!G254 -> 0 | H33: =B5B!H254 -> 0 | I33: =B5B!I254 -> 1869694 | J33: 1869694 | K33: 19529000.26 | L33: =B5B!L254 -> 11615000 | M33: =B5B!M254 -> 2342092
A34: =B5B!A265 -> Vote 9 - Energy Sources | C34: =B5B!C265 -> 18334111.6 | D34: =B5B!D265 -> 0 | E34: =B5B!E265 -> 0 | F34: =B5B!F265 -> 0 | G34: =B5B!G265 -> 0 | H34: =B5B!H265 -> 0 | I34: =B5B!I265 -> 8127256 | J34: 8127256 | K34: 26461367.6 | L34: =B5B!L265 -> 24635000 | M34: =B5B!M265 -> 35169000
A35: =B5B!A276 -> Vote 10 - Waste Water Management | C35: =B5B!C276 -> 5664654.45 | D35: =B5B!D276 -> 0 | E35: =B5B!E276 -> 0 | F35: =B5B!F276 -> 0 | G35: =B5B!G276 -> 0 | H35: =B5B!H276 -> 0 | I35: =B5B!I276 -> 800000 | J35: 800000 | K35: 6464654.45 | L35: =B5B!L276 -> 19013657 | M35: =B5B!M276 -> 17294945
A36: =B5B!A287 -> Vote 11 - Waste Management | C36: =B5B!C287 -> 6140000 | D36: =B5B!D287 -> 0 | E36: =B5B!E287 -> 0 | F36: =B5B!F287 -> 0 | G36: =B5B!G287 -> 0 | H36: =B5B!H287 -> 0 | I36: =B5B!I287 -> -1000000 | J36: -1000000 | K36: 5140000 | L36: =B5B!L287 -> 3700000 | M36: =B5B!M287 -> 0
A37: =B5B!A298 -> Vote 12 - [NAME OF VOTE 12] | C37: =B5B!C298 -> 0 | D37: =B5B!D298 -> 0 | E37: =B5B!E298 -> 0 | F37: =B5B!F298 -> 0 | G37: =B5B!G298 -> 0 | H37: =B5B!H298 -> 0 | I37: =B5B!I298 -> 0 | J37: 0 | K37: =IF(D37=0,C37+J37,D37+J37) -> 0 | L37: =B5B!L298 -> 0 | M37: =B5B!M298 -> 0
A38: =B5B!A309 -> Vote 13 - [NAME OF VOTE 13] | C38: =B5B!C309 -> 0 | D38: =B5B!D309 -> 0 | E38: =B5B!E309 -> 0 | F38: =B5B!F309 -> 0 | G38: =B5B!G309 -> 0 | H38: =B5B!H309 -> 0 | I38: =B5B!I309 -> 0 | J38: 0 | K38: 0 | L38: =B5B!L309 -> 0 | M38: =B5B!M309 -> 0
A39: =B5B!A320 -> Vote 14 - [NAME OF VOTE 14] | C39: =B5B!C320 -> 0 | D39: =B5B!D320 -> 0 | E39: =B5B!E320 -> 0 | F39: =B5B!F320 -> 0 | G39: =B5B!G320 -> 0 | H39: =B5B!H320 -> 0 | I39: =B5B!I320 -> 0 | J39: 0 | K39: 0 | L39: =B5B!L320 -> 0 | M39: =B5B!M320 -> 0
A40: =B5B!A331 -> Vote 15 - [NAME OF VOTE 15] | C40: =B5B!C331 -> 0 | D40: =B5B!D331 -> 0 | E40: =B5B!E331 -> 0 | F40: =B5B!F331 -> 0 | G40: =B5B!G331 -> 0 | H40: =B5B!H331 -> 0 | I40: =B5B!I331 -> 0 | J40: 0 | K40: 0 | L40: =B5B!L331 -> 0 | M40: =B5B!M331 -> 0
A41: Capital single-year expenditure sub-total | C41: =SUM(C26:C40) -> 55284072.31 | D41: =SUM(D26:D40) -> 0 | E41: 0 | F41: 0 | G41: 0 | H41: 0 | I41: 9130615 | J41: =SUM(J26:J40) -> 9130615 | K41: =SUM(K26:K40) -> 64414687.31 | L41: =SUM(L26:L40) -> 60993657 | M41: =SUM(M26:M40) -> 54806037
A42: Total Capital Expenditure - Vote | C42: =C41+C23 -> 179277319.1 | D42: =D41+D23 -> 0 | E42: 0 | F42: 0 | G42: 0 | H42: 0 | I42: -5615913 | J42: =J23+J41 -> -5615913 | K42: =K23+K41 -> 173661406.1 | L42: =L41+L23 -> 174388883 | M42: =M41+M23 -> 192009876
A44: Capital Expenditure - Functional
A45: Governance and administration | C45: =SUM(C46:C48) -> 7086000 | D45: 0 | E45: 0 | F45: 0 | G45: 0 | H45: 0 | I45: -666335 | J45: =SUM(J46:J48) -> -666335 | K45: 6419665 | L45: 2030000 | M45: 0
A46: Executive and council | C46: 0 | J46: =SUM(E46:I46) -> 0 | K46: =IF(D46=0,C46+J46,D46+J46) -> 0
A47: Finance and administration | C47: =730000+1300000+1446000+3610000 -> 7086000 | I47: =170000+806838+956827-2600000 -> -666335 | J47: =SUM(E47:I47) -> -666335 | K47: =IF(D47=0,C47+J47,D47+J47) -> 6419665 | L47: =350000+80000+1600000 -> 2030000 | M47: 0
A48: Internal audit | C48: 0 | J48: =SUM(E48:I48) -> 0 | K48: =IF(D48=0,C48+J48,D48+J48) -> 0
A49: Community and public safety | C49: =SUM(C50:C54) -> 44240432.2 | D49: 0 | E49: 0 | F49: 0 | G49: 0 | H49: 0 | I49: 21795 | J49: =SUM(J50:J54) -> 21795 | K49: 44262227.2 | L49: 76835415 | M49: 71001889
A50: Community and social services | C50: =1618446.4+1600000+400000 -> 3618446.4 | I50: =-500000-1000000 -> -1500000 | J50: =SUM(E50:I50) -> -1500000 | K50: =IF(D50=0,C50+J50,D50+J50) -> 2118446.4 | L50: =800000+2400000 -> 3200000 | M50: =3000000+4500000 -> 7500000
A51: Sport and recreation | C51: =25235573.8+5593206+5593206 -> 36421985.8 | I51: =3165815+130602-2175064-3144237+2067270 -> 44386 | J51: =SUM(E51:I51) -> 44386 | K51: =IF(D51=0,C51+J51,D51+J51) -> 36466371.8 | L51: =15402226+8233189+18000000+18000000 -> 59635415 | M51: =20181858+20651031 -> 40832889
A52: Public safety | C52: 4200000 | I52: 1477409 | J52: =SUM(E52:I52) -> 1477409 | K52: =IF(D52=0,C52+J52,D52+J52) -> 5677409 | L52: 14000000 | M52: 22669000
A53: Housing | C53: 0 | I53: 0 | J53: =SUM(E53:I53) -> 0 | K53: =IF(D53=0,C53+J53,D53+J53) -> 0 | L53: 0 | M53: 0
A54: Health | C54: 0 | I54: 0 | J54: =SUM(E54:I54) -> 0 | K54: =IF(D54=0,C54+J54,D54+J54) -> 0 | L54: 0 | M54: 0
A55: Economic and environmental services | C55: =SUM(C56:C58) -> 102012120.6 | D55: 0 | E55: 0 | F55: 0 | G55: 0 | H55: 0 | I55: -11421219 | J55: -11421219 | K55: 90590901.61 | L55: 62174811 | M55: 91213042
A56: Planning and development | C56: 0 | I56: 0 | J56: =SUM(E56:I56) -> 0 | K56: =IF(D56=0,C56+J56,D56+J56) -> 0 | L56: 0 | M56: 0
A57: Road transport | C57: =31350000+1486306.26+11001978+5283210+7450000+4987800+5503600+5401000+2823000+500000+1948852.39+39005.98+2078851.78+169575.27+3584408.39+16081532.54+2323000 -> 102012120.6 | I57: =-16412343-1330306+769782+1711451+739005+719575+1909462-2727845+2000000+1200000 -> -11421219 | J57: =SUM(E57:I57) -> -11421219 | K57: =IF(D57=0,C57+J57,D57+J57) -> 90590901.61 | L57: =48800000+3115000+10259811 -> 62174811 | M57: =71262930+2342092+16408020+600000+600000 -> 91213042
A58: Environmental protection | C58: 0 | I58: 0 | J58: =SUM(E58:I58) -> 0 | K58: =IF(D58=0,C58+J58,D58+J58) -> 0
A59: Trading services | C59: =SUM(C60:C63) -> 25938766.05 | D59: =SUM(D60:D63) -> 0 | E59: 0 | F59: 0 | G59: 0 | H59: 0 | I59: =SUM(I60:I63) -> 6450000 | J59: =SUM(J60:J63) -> 6450000 | K59: 32388766.05 | L59: 33348657 | M59: 29794945
A60: Energy sources | C60: =8151111.6+5983000 -> 14134111.6 | I60: 6650000 | J60: =SUM(E60:I60) -> 6650000 | K60: =IF(D60=0,C60+J60,D60+J60) -> 20784111.6 | L60: 10635000 | M60: 12500000
A61: Water management | C61: 0 | I61: 0 | J61: =SUM(E61:I61) -> 0 | K61: =IF(D61=0,C61+J61,D61+J61) -> 0 | L61: 0 | M61: 0
A62: Waste water management | C62: 5664654.45 | I62: 800000 | J62: =SUM(E62:I62) -> 800000 | K62: =IF(D62=0,C62+J62,D62+J62) -> 6464654.45 | L62: 19013657 | M62: 17294945
A63: Waste management | C63: 6140000 | I63: -1000000 | J63: =SUM(E63:I63) -> -1000000 | K63: =IF(D63=0,C63+J63,D63+J63) -> 5140000 | L63: 3700000 | M63: 0
A64: Other | C64: 0 | I64: 0 | J64: =SUM(E64:I64) -> 0 | K64: =IF(D64=0,C64+J64,D64+J64) -> 0
A65: Total Capital Expenditure - Functional | B65: 3 | C65: =C45+C49+C55+C59+C64 -> 179277318.9 | D65: =D45+D49+D55+D59+D64 -> 0 | E65: 0 | F65: 0 | G65: 0 | H65: 0 | I65: =I45+I49+I55+I59+I64 -> -5615759 | J65: -5615759 | K65: 173661559.9 | L65: 174388883 | M65: 192009876
A67: Funded by:
A68: National Government | C68: 56460000 | I68: 0 | J68: =SUM(E68:I68) -> 0 | K68: =IF(D68=0,C68+J68,D68+J68) -> 56460000 | L68: 57608000 | M68: 60783000
A69: Provincial Government | J69: =SUM(E69:I69) -> 0 | K69: =IF(D69=0,C69+J69,D69+J69) -> 0
A70: District Municipality | J70: =SUM(E70:I70) -> 0 | K70: =IF(D70=0,C70+J70,D70+J70) -> 0
A71: Other transfers and grants | C71: 5983000 | I71: 0 | J71: =SUM(E71:I71) -> 0 | K71: =IF(D71=0,C71+J71,D71+J71) -> 5983000 | L71: 10635000 | M71: 12500000
A72: Transfers recognised - capital | B72: 4 | C72: =SUM(C68:C71) -> 62443000 | D72: 0 | E72: 0 | F72: 0 | G72: 0 | H72: 0 | I72: 0 | J72: 0 | K72: 62443000 | L72: 68243000 | M72: 73283000
A73: Public contributions & donations | J73: =SUM(E73:I73) -> 0 | K73: =IF(D73=0,C73+J73,D73+J73) -> 0
A74: Borrowing | J74: =SUM(E74:I74) -> 0 | K74: =IF(D74=0,C74+J74,D74+J74) -> 0
A75: Internally generated funds | C75: 116834318.9 | I75: =-8815914+2000000+1200000+155 -> -5615759 | J75: =SUM(E75:H75) -> 0 | K75: =IF(D75=0,C75+J75,D75+J75) -> 116834318.9 | L75: 118557914 | M75: 115157538
A76: Total Capital Funding | C76: =SUM(C72:C75) -> 179277318.9 | D76: 0 | E76: 0 | F76: 0 | G76: 0 | H76: =SUM(H72:H75) -> 0 | I76: -5615759 | J76: 0 | K76: 179277318.9 | L76: 186800914 | M76: 188440538
A77: =head27a -> References
A78: 1. Municipalities may choose to appropriate for capital expenditure for three years or for one year (if one year appropriation projected expenditure required for yr2 and yr3).
A79: 2. Include capital component of PPP unitary payment. Note that capital transfers are only appropriated to municipalities for the budget year
A80: 3. Capital expenditure by standard classification must reconcile to the appropriations by vote
A81: 4. Must reconcile to supporting table SB7 and to Adjustments Budget Financial Performance (revenue and expenditure)
A82: 5. Only complete if a previous adjusted budget has been approved in the same financial year. Reflect most recent adjusted budget.
A83: 6. Additional cash-backed accumulated funds/unspent funds (MFMA section 18(1)(b) and section 28(2)(e)) identified after the Original Budget approved and after annual financial statements audited (note: only where underspending could not reasonably have been foreseen)
A84: 7. Increases of funds approved under MFMA section 31
A85: 8. Adjustments approved in accordance with MFMA section 29
A86: 9. Adjustments to transfers from National or Provincial Government
A87: 10. Adjusts. = 'Other' Adjustments proposed to be approved; including revenue under-collection (MFMA section 28(2)(a)); additional revenue appropriation on existing programmes (section 28(2))(b); projected savings (section 28(2)(d)); error correction (section 28(2)(f))
A88: 11. G = B + C + D + E + F
A89: 12. Adjusted Budget H = (A or A1/2 etc) + G
A91: check balance | C91: =C65-C76 -> 0 | D91: =D65-D76 -> 0 | E91: =E65-E76 -> 0 | H91: =H65-H76 -> 0 | I91: =I65-I76 -> 0 | J91: =J65-J76 -> -5615759 | K91: =K65-K76 -> -5615759 | L91: =L65-L76 -> -12412031 | M91: =K23-K76 -> -70030600.05

Sheet B5B
A1: =muni&" - "&_ADJ5&" - B"&" - "&Date -> LIM332 Greater Letaba - Table B5 Adjustments Capital Expenditure Budget by vote and funding - B - 27 February 2019
A2: =Vdesc -> Vote Description | B2: =head27 -> Ref | C2: =Head2 -> Budget Year 2018/19 | L2: =Head10 -> Budget Year +1 2019/20 | M2: =Head11 -> Budget Year +2 2020/21
C3: =Head6 -> Original Budget | D3: =Head54 -> Prior Adjusted | E3: =Head51 -> Accum. Funds | F3: =Head52 -> Multi-year capital | G3: =Head53 -> Unfore. Unavoid. | H3: =Head55 -> Nat. or Prov. Govt | I3: =Head50 -> Other Adjusts. | J3: =Head56 -> Total Adjusts. | K3: =Head7 -> Adjusted Budget | L3: =Head7 -> Adjusted Budget | M3: =Head7 -> Adjusted Budget
A4: [Insert departmental structure etc] | D4: 3 | E4: 4 | F4: 5 | G4: 6 | H4: 7 | I4: 8 | J4: 9 | K4: 10
A5: R thousands | C5: A | D5: A1 | E5: B | F5: C | G5: D | H5: E | I5: F | J5: G | K5: H
A6: Capital expenditure - Municipal Vote
A7: Multi-year expenditure appropriation | B7: 2
A8: ='Org structure'!A2 -> Vote 1 - Executive & Council | C8: =SUM(C9:C18) -> 0 | D8: =SUM(D9:D18) -> 0 | E8: 0 | F8: 0 | G8: 0 | H8: 0 | I8: 0 | J8: =SUM(E8:I8) -> 0 | K8: =IF(D8=0,C8+J8,D8+J8) -> 0 | L8: =SUM(L9:L18) -> 0 | M8: =SUM(M9:M18) -> 0
A9: ='Org structure'!E3 -> 1,1 - Mayor and Council | J9: 0 | K9: 0
A10: ='Org structure'!E4 -> 1,2 - Municipal Manager | J10: 0 | K10: 0
A11: ='Org structure'!E5 -> 0 | J11: 0 | K11: 0
A12: ='Org structure'!E6 -> 0 | J12: 0 | K12: 0
A13: ='Org structure'!E7 -> 0 | J13: 0 | K13: 0
A14: ='Org structure'!E8 -> 0 | J14: 0 | K14: 0
A15: ='Org structure'!E9 -> 0 | J15: 0 | K15: 0
A16: ='Org structure'!E10 -> 0 | J16: 0 | K16: 0
A17: ='Org structure'!E11 -> 0 | J17: 0 | K17: 0
A18: ='Org structure'!E12 -> 0 | J18: 0 | K18: 0
A19: ='Org structure'!A3 -> Vote 2 - Finance and Administration | C19: =SUM(C20:C29) -> 0 | D19: =SUM(D20:D29) -> 0 | E19: 0 | F19: 0 | G19: 0 | H19: 0 | I19: 0 | J19: 0 | K19: 0 | L19: =SUM(L20:L29) -> 0 | M19: =SUM(M20:M29) -> 0
A20: ='Org structure'!E14 -> 2,1 - Administrative and Corporate Support | J20: 0 | K20: 0
A21: ='Org structure'!E15 -> 2,2 - Asset Management | J21: 0 | K21: 0
A22: ='Org structure'!E16 -> 2,3 - Budget and Treasury Office | J22: 0 | K22: 0
A23: ='Org structure'!E17 -> 2,4 - Human Resource | J23: 0 | K23: 0
A24: ='Org structure'!E18 -> 2,5 - Information Technology | J24: 0 | K24: 0
A25: ='Org structure'!E19 -> 2,6 - Legal Services | J25: 0 | K25: 0
A26: ='Org structure'!E20 -> 2,7 - Customer Relation and Coordination | J26: 0 | K26: 0
A27: ='Org structure'!E21 -> 2,8 - Property Services | J27: 0 | K27: 0
A28: ='Org structure'!E22 -> 2,9 - Risk Management | J28: 0 | K28: 0
A29: ='Org structure'!E23 -> 2.10 - Supply Chain Management | J29: 0 | K29: 0
A30: ='Org structure'!A4 -> Vote 3 - Internal Audit | C30: =SUM(C31:C40) -> 0 | D30: =SUM(D31:D40) -> 0 | E30: 0 | F30: 0 | G30: 0 | H30: 0 | I30: 0 | J30: 0 | K30: 0 | L30: =SUM(L31:L40) -> 0 | M30: =SUM(M31:M40) -> 0
A31: ='Org structure'!E25 -> 3,1 - Governance Function | J31: 0 | K31: 0
A32: ='Org structure'!E26 -> 0 | J32: 0 | K32: 0
A33: ='Org structure'!E27 -> 0 | J33: 0 | K33: 0
A34: ='Org structure'!E28 -> 0 | J34: 0 | K34: 0
A35: ='Org structure'!E29 -> 0 | J35: 0 | K35: 0
A36: ='Org structure'!E30 -> 0 | J36: 0 | K36: 0
A37: ='Org structure'!E31 -> 0 | J37: 0 | K37: 0
A38: ='Org structure'!E32 -> 0 | J38: 0 | K38: 0
A39: ='Org structure'!E33 -> 0 | J39: 0 | K39: 0
A40: ='Org structure'!E34 -> 0 | J40: 0 | K40: 0
A41: ='Org structure'!A5 -> Vote 4 - Community and Public Safety | C41: =SUM(C42:C51) -> 3218446 | D41: =SUM(D42:D51) -> 0 | E41: 0 | F41: 0 | G41: 0 | H41: 0 | I41: -1500000 | J41: -1500000 | K41: 1718446 | L41: =SUM(L42:L51) -> 3200000 | M41: =SUM(M42:M51) -> 7500000
A42: ='Org structure'!E36 -> 4,1 - Cemetries and crematoriums | C42: 0 | I42: 0 | J42: 0 | K42: 0 | L42: 0 | M42: 0
A43: ='Org structure'!E37 -> 4,2 - Community halls and Facilities | C43: =600000+600000+400000 -> 1600000 | I43: -1000000 | J43: -1000000 | K43: 600000 | L43: 2400000 | M43: 4500000
A44: ='Org structure'!E38 -> 4,3 - Disaster Management | C44: 0 | I44: 0 | J44: 0 | K44: 0 | L44: 0 | M44: 0
A45: ='Org structure'!E39 -> 4,4 - Libraries and Archives | C45: =500000+1118446 -> 1618446 | I45: -500000 | J45: -500000 | K45: 1118446 | L45: 800000 | M45: 3000000
A46: ='Org structure'!E40 -> 0 | J46: 0 | K46: 0 | L46: 0 | M46: 0
A47: ='Org structure'!E41 -> 0 | J47: 0 | K47: 0 | L47: 0 | M47: 0
A48: ='Org structure'!E42 -> 0 | J48: 0 | K48: 0 | L48: 0 | M48: 0
A49: ='Org structure'!E43 -> 0 | J49: 0 | K49: 0 | L49: 0 | M49: 0
A50: ='Org structure'!E44 -> 0 | J50: 0 | K50: 0 | L50: 0 | M50: 0
A51: ='Org structure'!E45 -> 0 | J51: 0 | K51: 0 | L51: 0 | M51: 0
A52: ='Org structure'!A6 -> Vote 5 - Sports and Recreation | C52: =SUM(C53:C62) -> 63505497 | D52: =SUM(D53:D62) -> 0 | E52: 0 | F52: 0 | G52: 0 | H52: 0 | I52: 3165815 | J52: 3165815 | K52: 66671312 | L52: =SUM(L53:L62) -> 59635415 | M52: =SUM(M53:M62) -> 40832889
A53: ='Org structure'!E47 -> 5,1 - Community parks | C53: =13050771+11884803+11001978+5593206+5593206+16081533+300000 -> 63505497 | I53: 3165815 | J53: 3165815 | K53: 66671312 | L53: 59635415 | M53: 40832889
A54: ='Org structure'!E48 -> 0 | J54: 0 | K54: 0
A55: ='Org structure'!E49 -> 0 | J55: 0 | K55: 0
A56: ='Org structure'!E50 -> 0 | J56: 0 | K56: 0
A57: ='Org structure'!E51 -> 0 | J57: 0 | K57: 0
A58: ='Org structure'!E52 -> 0 | J58: 0 | K58: 0
A59: ='Org structure'!E53 -> 0 | J59: 0 | K59: 0
A60: ='Org structure'!E54 -> 0 | J60: 0 | K60: 0
A61: ='Org structure'!E55 -> 0 | J61: 0 | K61: 0
A62: ='Org structure'!E56 -> 0 | J62: 0 | K62: 0
A63: ='Org structure'!A7 -> Vote 6 - Housing | C63: =SUM(C64:C73) -> 0 | D63: =SUM(D64:D73) -> 0 | E63: 0 | F63: 0 | G63: 0 | H63: 0 | I63: 0 | J63: 0 | K63: 0 | L63: =SUM(L64:L73) -> 0 | M63: =SUM(M64:M73) -> 0
A64: ='Org structure'!E58 -> 6,1 - Housing | J64: 0 | K64: 0
A65: ='Org structure'!E59 -> 0 | J65: 0 | K65: 0
A66: ='Org structure'!E60 -> 0 | J66: 0 | K66: 0
A67: ='Org structure'!E61 -> 0 | J67: 0 | K67: 0
A68: ='Org structure'!E62 -> 0 | J68: 0 | K68: 0
A69: ='Org structure'!E63 -> 0 | J69: 0 | K69: 0
A70: ='Org structure'!E64 -> 0 | J70: 0 | K70: 0
A71: ='Org structure'!E65 -> 0 | J71: 0 | K71: 0
A72: ='Org structure'!E66 -> 0 | J72: =SUM(E72:I72) -> 0 | K72: =IF(D72=0,C72+J72,D72+J72) -> 0
A73: ='Org structure'!E67 -> 0 | J73: 0 | K73: 0
A74: ='Org structure'!A8 -> Vote 7 - Planning and development | C74: =SUM(C75:C84) -> 0 | D74: =SUM(D75:D84) -> 0 | E74: 0 | F74: 0 | G74: 0 | H74: 0 | I74: 0 | J74: 0 | K74: 0 | L74: =SUM(L75:L84) -> 0 | M74: =SUM(M75:M84) -> 0
A75: ='Org structure'!E69 -> 7,1 - Corporate Wide Strategic Planning (IDP & LED) | J75: 0 | K75: 0
A76: ='Org structure'!E70 -> 7,2 - Town Planning and Building Regulations | J76: 0 | K76: 0
A77: ='Org structure'!E71 -> 7,3 - Project Management Unit | J77: 0 | K77: 0
A78: ='Org structure'!E72 -> 0 | J78: 0 | K78: 0
A79: ='Org structure'!E73 -> 0 | J79: 0 | K79: 0
A80: ='Org structure'!E74 -> 0 | J80: 0 | K80: 0
A81: ='Org structure'!E75 -> 0 | J81: 0 | K81: 0
A82: ='Org structure'!E76 -> 0 | J82: 0 | K82: 0
A83: ='Org structure'!E77 -> 0 | J83: 0 | K83: 0
A84: ='Org structure'!E78 -> 0 | J84: 0 | K84: 0
A85: ='Org structure'!A9 -> Vote 8 - Road Transport | C85: =SUM(C86:C95) -> 57269303.81 | D85: =SUM(D86:D95) -> 0 | E85: 0 | F85: 0 | G85: 0 | H85: 0 | I85: -16412343 | J85: -16412343 | K85: 40856960.81 | L85: =SUM(L86:L95) -> 50559811 | M85: =SUM(M86:M95) -> 88870950
A86: ='Org structure'!E80 -> 8,1 - Road and Traffic Regulations | J86: 0 | K86: 0 | L86: 0 | M86: 0
A87: ='Org structure'!E81 -> 8,2 - Roads | C87: =500000+800000+800000+800000+6000000+400000+600000+600000+7000000+5283210+7450000+4987800+5503600+5401000+1000000+1948852.39+39005.98+2078851.78+169575.27+3584408.39+2323000 -> 57269303.81 | I87: -16412343 | J87: -16412343 | K87: 40856960.81 | L87: 50559811 | M87: 88870950
A88: ='Org structure'!E82 -> 8,3 - Taxi Ranks | J88: 0 | K88: 0
A89: ='Org structure'!E83 -> 0 | J89: 0 | K89: 0
A90: ='Org structure'!E84 -> 0 | J90: 0 | K90: 0
A91: ='Org structure'!E85 -> 0 | J91: 0 | K91: 0
A92: ='Org structure'!E86 -> 0 | J92: 0 | K92: 0
A93: ='Org structure'!E87 -> 0 | J93: 0 | K93: 0
A94: ='Org structure'!E88 -> 0 | J94: 0 | K94: 0
A95: ='Org structure'!E89 -> 0 | J95: 0 | K95: 0
A96: ='Org structure'!A10 -> Vote 9 - Energy Sources | C96: =SUM(C97:C106) -> 0 | D96: =SUM(D97:D106) -> 0 | E96: 0 | F96: 0 | G96: 0 | H96: 0 | I96: 0 | J96: 0 | K96: 0 | L96: =SUM(L97:L106) -> 0 | M96: =SUM(M97:M106) -> 0
A97: ='Org structure'!E91 -> 9,1 - Electricity | J97: 0 | K97: 0
A98: ='Org structure'!E92 -> 9,2 - Street Lighting | J98: 0 | K98: 0
A99: ='Org structure'!E93 -> 0 | J99: 0 | K99: 0
A100: ='Org structure'!E94 -> 0 | J100: 0 | K100: 0
A101: ='Org structure'!E95 -> 0 | J101: 0 | K101: 0
A102: ='Org structure'!E96 -> 0 | J102: 0 | K102: 0
A103: ='Org structure'!E97 -> 0 | J103: 0 | K103: 0
A104: ='Org structure'!E98 -> 0 | J104: 0 | K104: 0
A105: ='Org structure'!E99 -> 0 | J105: 0 | K105: 0
A106: ='Org structure'!E100 -> 0 | J106: 0 | K106: 0
A107: ='Org structure'!A11 -> Vote 10 - Waste Water Management | C107: =SUM(C108:C117) -> 0 | D107: =SUM(D108:D117) -> 0 | E107: 0 | F107: 0 | G107: 0 | H107: 0 | I107: 0 | J107: 0 | K107: 0 | L107: =SUM(L108:L117) -> 0 | M107: =SUM(M108:M117) -> 0
A108: ='Org structure'!E102 -> 10,1 - Public Toilets | J108: 0 | K108: 0
A109: ='Org structure'!E103 -> 0 | J109: 0 | K109: 0
A110: ='Org structure'!E104 -> 0 | J110: 0 | K110: 0
A111: ='Org structure'!E105 -> 0 | J111: 0 | K111: 0
A112: ='Org structure'!E106 -> 0 | J112: 0 | K112: 0
A113: ='Org structure'!E107 -> 0 | J113: 0 | K113: 0
A114: ='Org structure'!E108 -> 0 | J114: 0 | K114: 0
A115: ='Org structure'!E109 -> 0 | J115: 0 | K115: 0
A116: ='Org structure'!E110 -> 0 | J116: 0 | K116: 0
A117: ='Org structure'!E111 -> 0 | J117: 0 | K117: 0
A118: ='Org structure'!A12 -> Vote 11 - Waste Management | C118: =SUM(C119:C128) -> 0 | D118: =SUM(D119:D128) -> 0 | E118: 0 | F118: 0 | G118: 0 | H118: 0 | I118: 0 | J118: 0 | K118: 0 | L118: =SUM(L119:L128) -> 0 | M118: =SUM(M119:M128) -> 0
A119: ='Org structure'!E113 -> 11,1 - Solid Waste Removal | J119: 0 | K119: 0
A120: ='Org structure'!E114 -> 0 | J120: 0 | K120: 0
A121: ='Org structure'!E115 -> 0 | J121: 0 | K121: 0
A122: ='Org structure'!E116 -> 0 | J122: 0 | K122: 0
A123: ='Org structure'!E117 -> 0 | J123: 0 | K123: 0
A124: ='Org structure'!E118 -> 0 | J124: 0 | K124: 0
A125: ='Org structure'!E119 -> 0 | J125: 0 | K125: 0
A126: ='Org structure'!E120 -> 0 | J126: 0 | K126: 0
A127: ='Org structure'!E121 -> 0 | J127: 0 | K127: 0
A128: ='Org structure'!E122 -> 0 | J128: 0 | K128: 0
A129: ='Org structure'!A13 -> Vote 12 - [NAME OF VOTE 12] | C129: =SUM(C130:C139) -> 0 | D129: =SUM(D130:D139) -> 0 | E129: 0 | F129: 0 | G129: 0 | H129: 0 | I129: 0 | J129: 0 | K129: 0 | L129: =SUM(L130:L139) -> 0 | M129: =SUM(M130:M139) -> 0
A130: ='Org structure'!E124 -> 12.1 - [Name of sub-vote] | J130: 0 | K130: 0
A131: ='Org structure'!E125 -> 0 | J131: 0 | K131: 0
A132: ='Org structure'!E126 -> 0 | J132: 0 | K132: 0
A133: ='Org structure'!E127 -> 0 | J133: 0 | K133: 0
A134: ='Org structure'!E128 -> 0 | J134: 0 | K134: 0
A135: ='Org structure'!E129 -> 0 | J135: 0 | K135: 0
A136: ='Org structure'!E130 -> 0 | J136: =SUM(E136:I136) -> 0 | K136: =IF(D136=0,C136+J136,D136+J136) -> 0
A137: ='Org structure'!E131 -> 0 | J137: 0 | K137: 0
A138: ='Org structure'!E132 -> 0 | J138: 0 | K138: 0
A139: ='Org structure'!E133 -> 0 | J139: 0 | K139: 0
A140: ='Org structure'!A14 -> Vote 13 - [NAME OF VOTE 13] | C140: =SUM(C141:C150) -> 0 | D140: =SUM(D141:D150) -> 0 | E140: 0 | F140: 0 | G140: 0 | H140: 0 | I140: 0 | J140: 0 | K140: 0 | L140: =SUM(L141:L150) -> 0 | M140: =SUM(M141:M150) -> 0
A141: ='Org structure'!E135 -> 13.1 - [Name of sub-vote] | J141: 0 | K141: 0
A142: ='Org structure'!E136 -> 0 | J142: 0 | K142: 0
A143: ='Org structure'!E137 -> 0 | J143: 0 | K143: 0
A144: ='Org structure'!E138 -> 0 | J144: 0 | K144: 0
A145: ='Org structure'!E139 -> 0 | J145: 0 | K145: 0
A146: ='Org structure'!E140 -> 0 | J146: 0 | K146: 0
A147: ='Org structure'!E141 -> 0 | J147: 0 | K147: 0
A148: ='Org structure'!E142 -> 0 | J148: 0 | K148: 0
A149: ='Org structure'!E143 -> 0 | J149: 0 | K149: 0
A150: ='Org structure'!E144 -> 0 | J150: 0 | K150: 0
A151: ='Org structure'!A15 -> Vote 14 - [NAME OF VOTE 14] | C151: =SUM(C152:C161) -> 0 | D151: =SUM(D152:D161) -> 0 | E151: 0 | F151: 0 | G151: 0 | H151: 0 | I151: 0 | J151: 0 | K151: 0 | L151: =SUM(L152:L161) -> 0 | M151: =SUM(M152:M161) -> 0
A152: ='Org structure'!E146 -> 14.1 - [Name of sub-vote] | J152: 0 | K152: 0
A153: ='Org structure'!E147 -> 0 | J153: 0 | K153: 0
A154: ='Org structure'!E148 -> 0 | J154: 0 | K154: 0
A155: ='Org structure'!E149 -> 0 | J155: 0 | K155: 0
A156: ='Org structure'!E150 -> 0 | J156: 0 | K156: 0
A157: ='Org structure'!E151 -> 0 | J157: 0 | K157: 0
A158: ='Org structure'!E152 -> 0 | J158: 0 | K158: 0
A159: ='Org structure'!E153 -> 0 | J159: 0 | K159: 0
A160: ='Org structure'!E154 -> 0 | J160: 0 | K160: 0
A161: ='Org structure'!E155 -> 0 | J161: 0 | K161: 0
A162: ='Org structure'!A16 -> Vote 15 - [NAME OF VOTE 15] | C162: =SUM(C163:C172) -> 0 | D162: =SUM(D163:D172) -> 0 | E162: 0 | F162: 0 | G162: 0 | H162: 0 | I162: 0 | J162: 0 | K162: 0 | L162: =SUM(L163:L172) -> 0 | M162: =SUM(M163:M172) -> 0
A163: ='Org structure'!E157 -> 15.1 - [Name of sub-vote] | J163: 0 | K163: 0
A164: ='Org structure'!E158 -> 0 | J164: 0 | K164: 0
A165: ='Org structure'!E159 -> 0 | J165: 0 | K165: 0
A166: ='Org structure'!E160 -> 0 | J166: 0 | K166: 0
A167: ='Org structure'!E161 -> 0 | J167: 0 | K167: 0
A168: ='Org structure'!E162 -> 0 | J168: 0 | K168: 0
A169: ='Org structure'!E163 -> 0 | J169: 0 | K169: 0
A170: ='Org structure'!E164 -> 0 | J170: 0 | K170: 0
A171: ='Org structure'!E165 -> 0 | J171: 0 | K171: 0
A172: ='Org structure'!E166 -> 0 | J172: 0 | K172: 0
A173: Capital multi-year expenditure sub-total | C173: =C8+C19+C30+C41+C52+C63+C74+C85+C96+C107+C118+C129+C140+C151+C162 -> 123993246.8 | D173: =D8+D19+D30+D41+D52+D63+D74+D85+D96+D107+D118+D129+D140+D151+D162 -> 0 | E173: 0 | F173: 0 | G173: 0 | H173: 0 | I173: -14746528 | J173: -14746528 | K173: 109246718.8 | L173: =L8+L19+L30+L41+L52+L63+L74+L85+L96+L107+L118+L129+L140+L151+L162 -> 113395226 | M173: =M8+M19+M30+M41+M52+M63+M74+M85+M96+M107+M118+M129+M140+M151+M162 -> 137203839
A175: Capital expenditure - Municipal Vote | B175: 2
A176: Single-year expenditure appropriation
A177: =B5B!A8 -> Vote 1 - Executive & Council | C177: =SUM(C178:C187) -> 0 | D177: =SUM(D178:D187) -> 0 | E177: 0 | F177: 0 | G177: 0 | H177: 0 | I177: 0 | J177: =SUM(E177:I177) -> 0 | K177: =IF(D177=0,C177+J177,D177+J177) -> 0 | L177: =SUM(L178:L187) -> 0 | M177: =SUM(M178:M187) -> 0
A178: =B5B!A9 -> 1,1 - Mayor and Council | J178: 0 | K178: 0 | L178: 0 | M178: 0
A179: =B5B!A10 -> 1,2 - Municipal Manager | J179: 0 | K179: 0 | L179: 0 | M179: 0
A180: =B5B!A11 -> 0 | J180: 0 | K180: 0
A181: =B5B!A12 -> 0 | J181: 0 | K181: 0
A182: =B5B!A13 -> 0 | J182: 0 | K182: 0
A183: =B5B!A14 -> 0 | J183: 0 | K183: 0
A184: =B5B!A15 -> 0 | J184: 0 | K184: 0
A185: =B5B!A16 -> 0 | J185: 0 | K185: 0
A186: =B5B!A17 -> 0 | J186: 0 | K186: 0
A187: =B5B!A18 -> 0 | J187: 0 | K187: 0
A188: =B5B!A19 -> Vote 2 - Finance and Administration | C188: =SUM(C189:C198) -> 7086000 | D188: =SUM(D189:D198) -> 0 | E188: 0 | F188: 0 | G188: 0 | H188: 0 | I188: -666335 | J188: -666335 | K188: 6419665 | L188: =SUM(L189:L198) -> 2030000 | M188: =SUM(M189:M198) -> 0
A189: =B5B!A20 -> 2,1 - Administrative and Corporate Support | C189: 0 | J189: 0 | K189: 0 | L189: 0 | M189: 0
A190: =B5B!A21 -> 2,2 - Asset Management | C190: 0 | J190: 0 | K190: 0 | L190: 0 | M190: 0
A191: =B5B!A22 -> 2,3 - Budget and Treasury Office | C191: 730000 | I191: 170000 | J191: 170000 | K191: 900000 | L191: 80000 | M191: 0
A192: =B5B!A23 -> 2,4 - Human Resource | C192: 1300000 | I192: 806838 | J192: 806838 | K192: 2106838 | L192: 0 | M192: 0
A193: =B5B!A24 -> 2,5 - Information Technology | C193: 1446000 | I193: 956827 | J193: 956827 | K193: 2402827 | L193: 350000 | M193: 0
A194: =B5B!A25 -> 2,6 - Legal Services | C194: 0 | I194: 0 | J194: 0 | K194: 0 | L194: 0 | M194: 0
A195: =B5B!A26 -> 2,7 - Customer Relation and Coordination | C195: 0 | I195: 0 | J195: 0 | K195: 0 | L195: 0 | M195: 0
A196: =B5B!A27 -> 2,8 - Property Services | C196: 3610000 | I196: -2600000 | J196: -2600000 | K196: 1010000 | L196: 1600000 | M196: 0
A197: =B5B!A28 -> 2,9 - Risk Management | C197: 0 | J197: 0 | K197: 0
A198: =B5B!A29 -> 2.10 - Supply Chain Management | C198: 0 | J198: 0 | K198: 0
A199: =B5B!A30 -> Vote 3 - Internal Audit | C199: =SUM(C200:C209) -> 0 | D199: =SUM(D200:D209) -> 0 | E199: 0 | F199: 0 | G199: 0 | H199: 0 | I199: 0 | J199: 0 | K199: 0 | L199: =SUM(L200:L209) -> 0 | M199: =SUM(M200:M209) -> 0
A200: =B5B!A31 -> 3,1 - Governance Function | J200: 0 | K200: 0
A201: =B5B!A32 -> 0 | J201: 0 | K201: 0
... 146 more rows

Sheet B6-FinPos
A1: =muni&" - "&_ADJ6&" - "&Date -> LIM332 Greater Letaba - Table B6 Adjustments Budget Financial Position - 27 February 2019
A2: =desc -> Description | B2: =head27 -> Ref | C2: =Head2 -> Budget Year 2018/19 | L2: =Head10 -> Budget Year +1 2019/20 | M2: =Head11 -> Budget Year +2 2020/21
C3: =Head6 -> Original Budget | D3: =Head54 -> Prior Adjusted | E3: =Head51 -> Accum. Funds | F3: =Head52 -> Multi-year capital | G3: =Head53 -> Unfore. Unavoid. | H3: =Head55 -> Nat. or Prov. Govt | I3: =Head50 -> Other Adjusts. | J3: =Head56 -> Total Adjusts. | K3: =Head7 -> Adjusted Budget | L3: =Head7 -> Adjusted Budget | M3: =Head7 -> Adjusted Budget
D4: 3 | E4: 4 | F4: 5 | G4: 6 | H4: 7 | I4: 8 | J4: 9 | K4: 10
A5: R thousands | C5: A | D5: A1 | E5: B | F5: C | G5: D | H5: E | I5: F | J5: G | K5: H
A6: ASSETS
A7: Current assets
A8: Cash | C8: 1200000 | I8: -695000 | J8: =SUM(E8:I8) -> -695000 | K8: =IF(D8=0,C8+J8,D8+J8) -> 505000 | L8: 1895000 | M8: 2115000
A9: Call investment deposits | B9: 1 | C9: ='SB2'!C10 -> 28521281.53 | D9: ='SB2'!D10 -> 0 | E9: ='SB2'!E10 -> 0 | F9: ='SB2'!F10 -> 0 | G9: ='SB2'!G10 -> 0 | H9: ='SB2'!H10 -> 0 | I9: ='SB2'!I10 -> -25000000 | J9: -25000000 | K9: 3521281.53 | L9: ='SB2'!L10 -> 5131281.53 | M9: ='SB2'!M10 -> 5413502.014
A10: Consumer debtors | B10: 1 | C10: ='SB2'!C14 -> 6900000 | D10: ='SB2'!D14 -> 0 | E10: ='SB2'!E14 -> 0 | F10: ='SB2'!F14 -> 0 | G10: ='SB2'!G14 -> 0 | H10: ='SB2'!H14 -> 0 | I10: ='SB2'!I14 -> 0 | J10: 0 | K10: 6900000 | L10: ='SB2'!L14 -> 7000000 | M10: ='SB2'!M14 -> 7000000
A11: Other debtors | C11: 44274458.96 | I11: 0 | J11: 0 | K11: 44274458.96 | L11: 46665279.74 | M11: 49231870.13
A12: Current portion of long-term receivables | C12: 12078140.61 | I12: 0 | J12: 0 | K12: 12078140.61 | L12: 12730360.2 | M12: 13430530.01
A13: Inventory | C13: 3215395.237 | I13: 0 | J13: 0 | K13: 3215395.237 | L13: 3389026.579 | M13: 3575423.041
A14: Total current assets | C14: =SUM(C8:C13) -> 96189276.33 | D14: 0 | E14: 0 | F14: 0 | G14: 0 | H14: 0 | I14: -25695000 | J14: -25695000 | K14: 70494276.33 | L14: 76810948.05 | M14: 80766325.19
A16: Non current assets
A17: Long-term receivables | C17: 0 | I17: 0 | J17: =SUM(E17:I17) -> 0 | K17: =IF(D17=0,C17+J17,D17+J17) -> 0 | L17: 0 | M17: 0
A18: Investments | C18: 0 | I18: 0 | J18: 0 | K18: 0 | L18: 0 | M18: 0
A19: Investment property | C19: 249045 | I19: 0 | J19: 0 | K19: 249045 | L19: 249045 | M19: 249045
A20: Investment in Associate | C20: 0 | I20: 0 | J20: 0 | K20: 0 | L20: 0 | M20: 0
A21: Property, plant and equipment | B21: 1 | C21: ='SB2'!C24 -> 853915938.6 | D21: ='SB2'!D24 -> 0 | E21: ='SB2'!E24 -> 0 | F21: ='SB2'!F24 -> 0 | G21: ='SB2'!G24 -> 0 | H21: ='SB2'!H24 -> 0 | I21: ='SB2'!I24 -> -5305913 | J21: -5305913 | K21: 848610025.6 | L21: ='SB2'!L24 -> 1004098928 | M21: ='SB2'!M24 -> 1010395707
A22: Agricultural | C22: 0 | I22: 0 | J22: 0 | K22: 0 | L22: 0 | M22: 0
A23: Biological | C23: 0 | I23: 0 | J23: 0 | K23: 0 | L23: 0 | M23: 0
A24: Intangible | C24: 208103 | I24: 0 | J24: 0 | K24: 208103 | L24: 208103 | M24: 208103
A25: Other non-current assets | C25: 548500 | I25: 0 | J25: 0 | K25: 548500 | L25: 548500 | M25: 548500
A26: Total non current assets | C26: =SUM(C17:C25) -> 854921586.6 | D26: 0 | E26: 0 | F26: 0 | G26: 0 | H26: 0 | I26: -5305913 | J26: -5305913 | K26: 849615673.6 | L26: 1005104576 | M26: 1011401355
A27: TOTAL ASSETS | C27: =C14+C26 -> 951110862.9 | D27: 0 | E27: 0 | F27: 0 | G27: 0 | H27: 0 | I27: -31000913 | J27: -31000913 | K27: 920109949.9 | L27: 1081915524 | M27: 1092167680
A29: LIABILITIES
A30: Current liabilities
A31: Bank overdraft | C31: 0 | I31: 0 | J31: =SUM(E31:I31) -> 0 | K31: =IF(D31=0,C31+J31,D31+J31) -> 0 | L31: 0 | M31: 0
A32: Borrowing | C32: ='SB2'!C30 -> 0 | D32: ='SB2'!D30 -> 0 | E32: ='SB2'!E30 -> 0 | F32: ='SB2'!F30 -> 0 | G32: ='SB2'!G30 -> 0 | H32: ='SB2'!H30 -> 0 | I32: ='SB2'!I30 -> 0 | J32: =SUM(E32:I32) -> 0 | K32: =IF(D32=0,C32+J32,D32+J32) -> 0 | L32: ='SB2'!L30 -> 0 | M32: ='SB2'!M30 -> 0
A33: Consumer deposits | C33: 369922.059 | I33: 0 | J33: =SUM(E33:I33) -> 0 | K33: =IF(D33=0,C33+J33,D33+J33) -> 369922.059 | L33: 389897.8502 | M33: 411342.2319
A34: Trade and other payables | C34: ='SB2'!C35 -> 35693282 | D34: ='SB2'!D35 -> 0 | E34: ='SB2'!E35 -> 0 | F34: ='SB2'!F35 -> 0 | G34: ='SB2'!G35 -> 0 | H34: ='SB2'!H35 -> 0 | I34: ='SB2'!I35 -> 0 | J34: =SUM(E34:I34) -> 0 | K34: =IF(D34=0,C34+J34,D34+J34) -> 35693282 | L34: ='SB2'!L35 -> 35000000 | M34: ='SB2'!M35 -> 36100000
A35: Provisions | C35: 0 | D35: 0 | E35: 0 | F35: 0 | G35: 0 | H35: 0 | I35: 0 | J35: =SUM(E35:I35) -> 0 | K35: =IF(D35=0,C35+J35,D35+J35) -> 0 | L35: 0 | M35: 0
A36: Total current liabilities | C36: =SUM(C31:C35) -> 36063204.06 | D36: 0 | E36: 0 | F36: 0 | G36: 0 | H36: 0 | I36: 0 | J36: 0 | K36: 36063204.06 | L36: 35389897.85 | M36: 36511342.23
A38: Non current liabilities
A39: Borrowing | B39: 1 | C39: ='SB2'!C39 -> 0 | D39: ='SB2'!D39 -> 0 | E39: ='SB2'!E39 -> 0 | F39: ='SB2'!F39 -> 0 | G39: ='SB2'!G39 -> 0 | H39: ='SB2'!H39 -> 0 | I39: ='SB2'!I39 -> 0 | J39: =SUM(E39:I39) -> 0 | K39: =IF(D39=0,C39+J39,D39+J39) -> 0 | L39: ='SB2'!L39 -> 0 | M39: ='SB2'!M39 -> 0
A40: Provisions | B40: 1 | C40: ='SB2'!C45 -> 14744449.65 | D40: ='SB2'!D45 -> 0 | E40: ='SB2'!E45 -> 0 | F40: ='SB2'!F45 -> 0 | G40: ='SB2'!G45 -> 0 | H40: ='SB2'!H45 -> 0 | I40: ='SB2'!I45 -> 0 | J40: =SUM(E40:I40) -> 0 | K40: =IF(D40=0,C40+J40,D40+J40) -> 14744449.65 | L40: ='SB2'!L45 -> 15410142.73 | M40: ='SB2'!M45 -> 16124776.58
A41: Total non current liabilities | C41: =SUM(C39:C40) -> 14744449.65 | D41: 0 | E41: 0 | F41: 0 | G41: 0 | H41: 0 | I41: 0 | J41: 0 | K41: 14744449.65 | L41: 15410142.73 | M41: 16124776.58
A42: TOTAL LIABILITIES | C42: =C36+C41 -> 50807653.71 | D42: 0 | E42: 0 | F42: 0 | G42: 0 | H42: 0 | I42: 0 | J42: 0 | K42: 50807653.71 | L42: 50800040.58 | M42: 52636118.81
A44: NET ASSETS | B44: 2 | C44: =C27-C42 -> 900303209.2 | D44: 0 | E44: 0 | F44: 0 | G44: 0 | H44: 0 | I44: -31000913 | J44: -31000913 | K44: 869302296.2 | L44: 1031115483 | M44: 1039531561
A46: COMMUNITY WEALTH/EQUITY
A47: Accumulated Surplus/(Deficit) | C47: ='SB2'!C54 -> 900303209.2 | D47: ='SB2'!D54 -> 0 | E47: ='SB2'!E54 -> 0 | F47: ='SB2'!F54 -> 0 | G47: ='SB2'!G54 -> 0 | H47: ='SB2'!H54 -> 0 | I47: ='SB2'!I54 -> -31000913 | J47: =SUM(E47:I47) -> -31000913 | K47: =IF(D47=0,C47+J47,D47+J47) -> 869302296.2 | L47: ='SB2'!L54 -> 1031115483 | M47: ='SB2'!M54 -> 1039531561
A48: Reserves | C48: ='SB2'!C61 -> 0 | D48: ='SB2'!D61 -> 0 | E48: ='SB2'!E61 -> 0 | F48: ='SB2'!F61 -> 0 | G48: ='SB2'!G61 -> 0 | H48: ='SB2'!H61 -> 0 | I48: ='SB2'!I61 -> 0 | J48: =SUM(E48:I48) -> 0 | K48: =IF(D48=0,C48+J48,D48+J48) -> 0 | L48: ='SB2'!L61 -> 0 | M48: ='SB2'!M61 -> 0
A49: Minorities' interests | C49: 0 | D49: 0 | E49: 0 | F49: 0 | G49: 0 | H49: 0 | I49: 0 | J49: =SUM(E49:I49) -> 0 | K49: =IF(D49=0,C49+J49,D49+J49) -> 0 | L49: 0 | M49: 0
A50: TOTAL COMMUNITY WEALTH/EQUITY | C50: =SUM(C47:C49) -> 900303209.2 | D50: =SUM(D47:D49) -> 0 | E50: 0 | F50: 0 | G50: 0 | H50: 0 | I50: -31000913 | J50: -31000913 | K50: 869302296.2 | L50: 1031115483 | M50: 1039531561
A51: =head27a -> References
A52: 1. Detail to be provided in Table SA3
A53: 2. Net assets must balance with Total Community Wealth/Equity
A54: 3. Only complete if a previous adjusted budget has been approved in the same financial year. Reflect most recent adjusted budget.
A55: 4. Additional cash-backed accumulated funds/unspent funds (MFMA section 18(1)(b) and section 28(2)(e)) identified after the Original Budget approved and after annual financial statements audited (note: only where underspending could not reasonably have been foreseen)
A56: 5. Increases of funds approved under MFMA section 31
A57: 6. Adjustments approved in accordance with MFMA section 29
A58: 7. Adjustments to transfers from National or Provincial Government
A59: 8. Adjusts. = 'Other' Adjustments proposed to be approved; including revenue under-collection (MFMA section 28(2)(a)); additional revenue appropriation on existing programmes (section 28(2))(b); projected savings (section 28(2)(d)); error correction (section 28(2)(f))
A60: 9. G = B + C + D + E + F
A61: 10. Adjusted Budget H = (A or A1/2 etc) + G
A63: check balance | C63: =C44-C50 -> 0 | D63: 0 | E63: 0 | F63: 0 | G63: 0 | H63: 0 | I63: 0 | J63: 0 | K63: 0 | L63: 0 | M63: 0

Sheet B7-CFlow
A1: =muni&" - "&_ADJ7&" - "&Date -> LIM332 Greater Letaba - Table B7 Adjustments Budget Cash Flows - 27 February 2019
A2: =desc -> Description | B2: =head27 -> Ref | C2: =Head2 -> Budget Year 2018/19 | L2: =Head10 -> Budget Year +1 2019/20 | M2: =Head11 -> Budget Year +2 2020/21
C3: =Head6 -> Original Budget | D3: =Head54 -> Prior Adjusted | E3: =Head51 -> Accum. Funds | F3: =Head52 -> Multi-year capital | G3: =Head53 -> Unfore. Unavoid. | H3: =Head55 -> Nat. or Prov. Govt | I3: =Head50 -> Other Adjusts. | J3: =Head56 -> Total Adjusts. | K3: =Head7 -> Adjusted Budget | L3: =Head7 -> Adjusted Budget | M3: =Head7 -> Adjusted Budget
D4: 3 | E4: 4 | F4: 5 | G4: 6 | H4: 7 | I4: 8 | J4: 9 | K4: 10
A5: R thousands | C5: A | D5: A1 | E5: B | F5: C | G5: D | H5: E | I5: F | J5: G | K5: H
A6: CASH FLOW FROM OPERATING ACTIVITIES
A7: Receipts
A8: Property rates | C8: 6453196.542 | I8: 3665000 | J8: =SUM(E8:I8) -> 3665000 | K8: =IF(D8=0,C8+J8,D8+J8) -> 10118196.54 | L8: =16894401*0.6 -> 10136640.6 | M8: =17992537*0.6 -> 10795522.2
A9: Service charges | C9: 13879352.66 | I9: 10640000 | J9: =SUM(E9:I9) -> 10640000 | K9: =IF(D9=0,C9+J9,D9+J9) -> 24519352.66 | L9: =19142000+4629000 -> 23771000 | M9: =20386000+4929000 -> 25315000
A10: Other revenue | C10: 28562039.65 | I10: 28580000 | J10: 28580000 | K10: 57142039.65 | L10: =1019000+767000+16912000+2317000+12800000 -> 33815000 | M10: =1085000+817000+18011000+2468000+13632000 -> 36013000
A11: Government - operating | B11: 1 | C11: 248358000 | I11: 0 | J11: 0 | K11: 248358000 | L11: 274109000 | M11: 297262000
A12: Government - capital | B12: 1 | C12: 62443000 | I12: 0 | J12: 0 | K12: 62443000 | L12: 70764900 | M12: 73538344
A13: Interest | C13: 9584354.102 | I13: 8513000 | J13: 8513000 | K13: 18097354.1 | L13: =2888000+14678000 -> 17566000 | M13: =3076000+15632000 -> 18708000
A14: Dividends | C14: 0 | I14: 0 | J14: 0 | K14: 0 | L14: 0 | M14: 0
A15: Payments
A16: Suppliers and employees | C16: -217786402.5 | I16: -49779000 | J16: =SUM(E16:I16) -> -49779000 | K16: =IF(D16=0,C16+J16,D16+J16) -> -267565402.5 | L16: =-272898908*0.9 -> -245609017.2 | M16: =-290291664*0.9 -> -261262497.6
A17: Finance charges | C17: 0 | I17: 0 | J17: =SUM(E17:I17) -> 0 | K17: =IF(D17=0,C17+J17,D17+J17) -> 0 | L17: 0 | M17: 0
A18: Transfers and Grants | B18: 1 | C18: 0 | I18: 0 | J18: =SUM(E18:I18) -> 0 | K18: =IF(D18=0,C18+J18,D18+J18) -> 0 | L18: 0 | M18: 0
A19: NET CASH FROM/(USED) OPERATING ACTIVITIES | C19: =SUM(C8:C14)+SUM(C16:C18) -> 151493540.5 | D19: =SUM(D8:D14)+SUM(D16:D18) -> 0 | E19: 0 | F19: 0 | G19: 0 | H19: 0 | I19: 1619000 | J19: =SUM(J8:J18) -> 1619000 | K19: =SUM(K8:K18) -> 153112540.5 | L19: =SUM(L8:L14)+SUM(L16:L18) -> 184553523.4 | M19: =SUM(M8:M14)+SUM(M16:M18) -> 200369368.6
A21: CASH FLOWS FROM INVESTING ACTIVITIES
A22: Receipts
A23: Proceeds on disposal of PPE | C23: 577000 | I23: 0 | J23: =SUM(E23:I23) -> 0 | K23: =IF(D23=0,C23+J23,D23+J23) -> 577000 | L23: 608158 | M23: 641607
A24: Decrease (Increase) in non-current debtors | C24: 0 | I24: 0 | J24: =SUM(E24:I24) -> 0 | K24: =IF(D24=0,C24+J24,D24+J24) -> 0 | L24: 0 | M24: 0
A25: Decrease (increase) other non-current receivables | C25: 0 | I25: 0 | J25: =SUM(E25:I25) -> 0 | K25: =IF(D25=0,C25+J25,D25+J25) -> 0 | L25: 0 | M25: 0
A26: Decrease (increase) in non-current investments | C26: 0 | I26: 0 | J26: =SUM(E26:I26) -> 0 | K26: =IF(D26=0,C26+J26,D26+J26) -> 0 | L26: 0 | M26: 0
A27: Payments
A28: Capital assets | C28: -145091398 | I28: =-18748000+505000 -> -18243000 | J28: =SUM(E28:I28) -> -18243000 | K28: =IF(D28=0,C28+J28,D28+J28) -> -163334398 | L28: =-186136900+2585000 -> -183551900 | M28: =-171056344-30000000+328000 -> -200728344
A29: NET CASH FROM/(USED) INVESTING ACTIVITIES | C29: =SUM(C23:C26)+C28 -> -144514398 | D29: =SUM(D23:D26)+D28 -> 0 | E29: 0 | F29: 0 | G29: 0 | H29: 0 | I29: -18243000 | J29: =SUM(J23:J28) -> -18243000 | K29: =SUM(K23:K28) -> -162757398 | L29: =SUM(L23:L26)+L28 -> -182943742 | M29: =SUM(M23:M26)+M28 -> -200086737
A31: CASH FLOWS FROM FINANCING ACTIVITIES
A32: Receipts
A33: Short term loans | J33: =SUM(E33:I33) -> 0 | K33: =IF(D33=0,C33+J33,D33+J33) -> 0
A34: Borrowing long term/refinancing | J34: =SUM(E34:I34) -> 0 | K34: =IF(D34=0,C34+J34,D34+J34) -> 0
A35: Increase (decrease) in consumer deposits | J35: =SUM(E35:I35) -> 0 | K35: =IF(D35=0,C35+J35,D35+J35) -> 0
A36: Payments
A37: Repayment of borrowing | J37: =SUM(E37:I37) -> 0 | K37: =IF(D37=0,C37+J37,D37+J37) -> 0
A38: NET CASH FROM/(USED) FINANCING ACTIVITIES | C38: =SUM(C33:C35)+C37 -> 0 | D38: =SUM(D33:D35)+D37 -> 0 | E38: 0 | F38: 0 | G38: 0 | H38: 0 | I38: 0 | J38: =SUM(J33:J37) -> 0 | K38: =SUM(K33:K37) -> 0 | L38: =SUM(L33:L35)+L37 -> 0 | M38: =SUM(M33:M35)+M37 -> 0
A40: NET INCREASE/ (DECREASE) IN CASH HELD | C40: =C19+C29+C38 -> 6979142.487 | D40: =D19+D29+D38 -> 0 | E40: 0 | F40: 0 | G40: 0 | H40: 0 | I40: -16624000 | J40: -16624000 | K40: -9644857.513 | L40: 1609781.4 | M40: 282631.6
A41: Cash/cash equivalents at the year begin: | B41: 2 | C41: 13671000 | I41: 0 | J41: =SUM(E41:I41) -> 0 | K41: =IF(D41=0,C41+J41,D41+J41) -> 13671000 | L41: 4026000 | M41: 5636000
A42: Cash/cash equivalents at the year end: | B42: 2 | C42: =C40+C41 -> 20650142.49 | D42: =D40+D41 -> 0 | E42: 0 | F42: 0 | G42: 0 | H42: 0 | I42: -16624000 | J42: -16624000 | K42: =K40+K41 -> 4026142.487 | L42: =L40+L41 -> 5635781.4 | M42: =M40+M41 -> 5918631.6
A43: =head27a -> References
A44: 1. Local/District municipalities to include transfers from/to District/Local Municipalities
A45: 2. Cash equivalents includes investments with maturities of 3 months or less
A46: 3. Only complete if a previous adjusted budget has been approved in the same financial year. Reflect most recent adjusted budget.
A47: 4. Additional cash-backed accumulated funds/unspent funds (MFMA section 18(1)(b) and section 28(2)(e)) identified after the Original Budget approved and after annual financial statements audited (note: only where underspending could not reasonably have been foreseen)
A48: 5. Increases of funds approved under MFMA section 31
A49: 6. Adjustments approved in accordance with MFMA section 29
A50: 7. Adjustments to transfers from National or Provincial Government
A51: 8. Adjusts. = 'Other' Adjustments proposed to be approved; including revenue under-collection (MFMA section 28(2)(a)); additional revenue appropriation on existing programmes (section 28(2))(b); projected savings (section 28(2)(d)); error correction (section 28(2)(f))
A52: 9. G = B + C + D + E + F
A53: 10. Adjusted Budget H = (A or A1/2 etc) + G

Sheet B8-ResRecon
A1: =muni&" - "&_ADJ8&" - "&Date -> LIM332 Greater Letaba - Table B8 Cash backed reserves/accumulated surplus reconciliation - 27 February 2019
A2: =desc -> Description | B2: =head27 -> Ref | C2: =Head2 -> Budget Year 2018/19 | L2: =Head10 -> Budget Year +1 2019/20 | M2: =Head11 -> Budget Year +2 2020/21
C3: =Head6 -> Original Budget | D3: =Head54 -> Prior Adjusted | E3: =Head51 -> Accum. Funds | F3: =Head52 -> Multi-year capital | G3: =Head53 -> Unfore. Unavoid. | H3: =Head55 -> Nat. or Prov. Govt | I3: =Head50 -> Other Adjusts. | J3: =Head56 -> Total Adjusts. | K3: =Head7 -> Adjusted Budget | L3: =Head7 -> Adjusted Budget | M3: =Head7 -> Adjusted Budget
D4: 3 | E4: 4 | F4: 5 | G4: 6 | H4: 7 | I4: 8 | J4: 9 | K4: 10
A5: R thousands | C5: A | D5: A1 | E5: B | F5: C | G5: D | H5: E | I5: F | J5: G | K5: H
A6: Cash and investments available
A7: Cash/cash equivalents at the year end | B7: 1 | C7: ='B7-CFlow'!C42 -> 20650142.49 | D7: ='B7-CFlow'!D42 -> 0 | E7: ='B7-CFlow'!E42 -> 0 | F7: ='B7-CFlow'!F42 -> 0 | G7: ='B7-CFlow'!G42 -> 0 | H7: ='B7-CFlow'!H42 -> 0 | I7: ='B7-CFlow'!I42 -> -16624000 | J7: =SUM(E7:I7) -> -16624000 | K7: =IF(D7=0,C7+J7,D7+J7) -> 4026142.487 | L7: ='B7-CFlow'!L42 -> 5635781.4 | M7: ='B7-CFlow'!M42 -> 5918631.6
A8: Other current investments > 90 days | C8: ='B6-FinPos'!C8+'B6-FinPos'!C9-'B6-FinPos'!C31-'B8-ResRecon'!C7 -> 9071139.043 | D8: ='B6-FinPos'!D8+'B6-FinPos'!D9-'B6-FinPos'!D31-'B8-ResRecon'!D7 -> 0 | E8: ='B6-FinPos'!E8+'B6-FinPos'!E9-'B6-FinPos'!E31-'B8-ResRecon'!E7 -> 0 | F8: ='B6-FinPos'!F8+'B6-FinPos'!F9-'B6-FinPos'!F31-'B8-ResRecon'!F7 -> 0 | G8: ='B6-FinPos'!G8+'B6-FinPos'!G9-'B6-FinPos'!G31-'B8-ResRecon'!G7 -> 0 | H8: ='B6-FinPos'!H8+'B6-FinPos'!H9-'B6-FinPos'!H31-'B8-ResRecon'!H7 -> 0 | I8: ='B6-FinPos'!I8+'B6-FinPos'!I9-'B6-FinPos'!I31-'B8-ResRecon'!I7 -> -9071000 | J8: =SUM(E8:I8) -> -9071000 | K8: =IF(D8=0,C8+J8,D8+J8) -> 139.043 | L8: ='B6-FinPos'!L8+'B6-FinPos'!L9-'B6-FinPos'!L31-'B8-ResRecon'!L7 -> 1390500.13 | M8: ='B6-FinPos'!M8+'B6-FinPos'!M9-'B6-FinPos'!M31-'B8-ResRecon'!M7 -> 1609870.414
A9: Non current assets - Investments | B9: 1 | C9: ='B6-FinPos'!C18 -> 0 | D9: ='B6-FinPos'!D18 -> 0 | E9: ='B6-FinPos'!E18 -> 0 | F9: ='B6-FinPos'!F18 -> 0 | G9: ='B6-FinPos'!G18 -> 0 | H9: ='B6-FinPos'!H18 -> 0 | I9: ='B6-FinPos'!I18 -> 0 | J9: =SUM(E9:I9) -> 0 | K9: =IF(D9=0,C9+J9,D9+J9) -> 0 | L9: ='B6-FinPos'!L18 -> 0 | M9: ='B6-FinPos'!M18 -> 0
A10: Cash and investments available: | C10: =SUM(C7:C9) -> 29721281.53 | D10: 0 | E10: 0 | F10: 0 | G10: 0 | H10: 0 | I10: -25695000 | J10: -25695000 | K10: 4026281.53 | L10: 7026281.53 | M10: 7528502.014
A12: Applications of cash and investments
A13: Unspent conditional transfers | C13: ='SB2'!C33 -> 0 | D13: ='SB2'!D33 -> 0 | E13: ='SB2'!E33 -> 0 | F13: ='SB2'!F33 -> 0 | G13: ='SB2'!G33 -> 0 | H13: ='SB2'!H33 -> 0 | I13: ='SB2'!I33 -> 0 | J13: =SUM(E13:I13) -> 0 | K13: =IF(D13=0,C13+J13,D13+J13) -> 0 | L13: ='SB2'!L33 -> 0 | M13: ='SB2'!M33 -> 0
A14: Unspent borrowing | C14: 0 | I14: 0 | J14: 0 | K14: =IF(D14=0,C14+J14,D14+J14) -> 0 | L14: 0 | M14: 0
A15: Statutory requirements | C15: 3025100 | I15: 0 | J15: 0 | K15: =IF(D15=0,C15+J15,D15+J15) -> 3025100 | L15: 3025100 | M15: 3025100
A16: Other working capital requirements | B16: 2 | C16: =-C40 -> 6867340 | D16: =-D40 -> 0 | I16: =IF(D16=0,(K16-C16)-SUM(E16:H16),(K16-D16)-SUM(E16:H16)) -> -6427857 | J16: -6427857 | K16: =-K40 -> 439483 | L16: =-L40 -> 1490301 | M16: =-M40 -> 988200
A17: Other provisions | C17: 14744449.65 | I17: 0 | J17: 0 | K17: =IF(D17=0,C17+J17,D17+J17) -> 14744449.65 | L17: 14744449.65 | M17: 14744449.65
A18: Long term investments committed | C18: =C50 -> 0 | D18: =D50 -> 0 | I18: =IF(D18=0,(K18-C18)-SUM(E18:H18),(K18-D18)-SUM(E18:H18)) -> 0 | J18: 0 | K18: =K50 -> 0 | L18: =L50 -> 0 | M18: =M50 -> 0
A19: Reserves to be backed by cash/investments | C19: =C57 -> 0 | D19: =D57 -> 0 | I19: =IF(D19=0,(K19-C19)-SUM(E19:H19),(K19-D19)-SUM(E19:H19)) -> 0 | J19: 0 | K19: =K57 -> 0 | L19: =L57 -> 0 | M19: =M57 -> 0
A20: Total Application of cash and investments: | C20: =SUM(C13:C19) -> 24636889.65 | D20: 0 | E20: 0 | F20: 0 | G20: 0 | H20: 0 | I20: -6427857 | J20: -6427857 | K20: 18209032.65 | L20: 19259850.65 | M20: 18757749.65
A21: Surplus(shortfall) | C21: =C10-C20 -> 5084391.882 | D21: 0 | E21: 0 | F21: 0 | G21: 0 | H21: 0 | I21: -19267143 | J21: -19267143 | K21: -14182751.12 | L21: -12233569.12 | M21: -11229247.63
A22: =head27a -> References
A23: 1. Must reconcile with the Adjustments Budget Cash Flow and Adjustements Budget Financial Position
A24: 2. Council approval for policy required - include sufficient working capital (e.g. allowing for a % of current debtors > 90 days as uncollectable)
A25: 3. Only complete if a previous adjusted budget has been approved in the same financial year. Reflect most recent adjusted budget.
A26: 4. Additional cash-backed accumulated funds/unspent funds (MFMA section 18(1)(b) and section 28(2)(e)) identified after the Original Budget approved and after annual financial statements audited (note: only where underspending could not reasonably have been foreseen)
A27: 5. Increases of funds approved under MFMA section 31
A28: 6. Adjustments approved in accordance with MFMA section 29
A29: 7. Adjustments to transfers from National or Provincial Government
A30: 8. Adjusts. = 'Other' Adjustments proposed to be approved; including revenue under-collection (MFMA section 28(2)(a)); additional revenue appropriation on existing programmes (section 28(2))(b); projected savings (section 28(2)(d)); error correction (section 28(2)(f))
A31: 9. G = B + C + D + E + F
A32: 10. Adjusted Budget H = (A or A1/2 etc) + G
A37: =A16 -> Other working capital requirements
A38: Debtors | C38: =IF(ISERROR(ROUND(C43*C44,0)),0,(ROUND(C43*C44,0))) -> 28825942 | D38: =IF(ISERROR(ROUND(D43*D44,0)),0,(ROUND(D43*D44,0))) -> 0 | K38: =IF(ISERROR(ROUND(K43*K44,0)),0,(ROUND(K43*K44,0))) -> 35253799 | L38: =IF(ISERROR(ROUND(L43*L44,0)),0,(ROUND(L43*L44,0))) -> 33509699 | M38: =IF(ISERROR(ROUND(M43*M44,0)),0,(ROUND(M43*M44,0))) -> 35111800
A39: Creditors due | C39: ='SB2'!C32 -> 35693282 | D39: ='SB2'!D32 -> 0 | K39: ='SB2'!K32 -> 35693282 | L39: ='SB2'!L32 -> 35000000 | M39: ='SB2'!M32 -> 36100000
A40: Total | C40: =C38-C39 -> -6867340 | D40: =D38-D39 -> 0 | K40: =K38-K39 -> -439483 | L40: =L38-L39 -> -1490301 | M40: =M38-M39 -> -988200
A42: Debtors collection assumptions:
A43: Balance outstanding - debtors | C43: ='B6-FinPos'!C10+'B6-FinPos'!C11+'B6-FinPos'!C17 -> 51174458.96 | D43: ='B6-FinPos'!D10+'B6-FinPos'!D11+'B6-FinPos'!D17 -> 0 | K43: ='B6-FinPos'!K10+'B6-FinPos'!K11+'B6-FinPos'!K17 -> 51174458.96 | L43: ='B6-FinPos'!L10+'B6-FinPos'!L11+'B6-FinPos'!L17 -> 53665279.74 | M43: ='B6-FinPos'!M10+'B6-FinPos'!M11+'B6-FinPos'!M17 -> 56231870.13
A44: Estimate of debtors collection rate | C44: =IF(ISERROR('SB6'!G10),0,('SB6'!G10)) -> 0.5632876665 | D44: =IF(ISERROR('SB6'!H10),0,('SB6'!H10)) -> 0 | K44: =IF(ISERROR('SB6'!I10),0,('SB6'!I10)) -> 0.6888944249 | L44: =IF(ISERROR('SB6'!J10),0,('SB6'!J10)) -> 0.6244204602 | M44: =IF(ISERROR('SB6'!K10),0,('SB6'!K10)) -> 0.6244110261
A46: =A18 -> Long term investments committed
A47: (Insert description; eg sinking fund)
C50: =SUM(C47:C49) -> 0 | D50: =SUM(D47:D49) -> 0 | K50: =SUM(K47:K49) -> 0 | L50: =SUM(L47:L49) -> 0 | M50: =SUM(M47:M49) -> 0
A52: =A19 -> Reserves to be backed by cash/investments
A53: ='SB2'!A56 -> Housing Development Fund | C53: ='SB2'!C56 -> 0 | D53: ='SB2'!D56 -> 0 | K53: ='SB2'!K56 -> 0 | L53: ='SB2'!L56 -> 0 | M53: ='SB2'!M56 -> 0
A54: ='SB2'!A57 -> Capital replacement | C54: ='SB2'!C57 -> 0 | D54: ='SB2'!D57 -> 0 | K54: ='SB2'!K57 -> 0 | L54: ='SB2'!L57 -> 0 | M54: ='SB2'!M57 -> 0
A55: ='SB2'!A58 -> Self-insurance | C55: ='SB2'!C58 -> 0 | D55: ='SB2'!D58 -> 0 | K55: ='SB2'!K58 -> 0 | L55: ='SB2'!L58 -> 0 | M55: ='SB2'!M58 -> 0
A56: ='SB2'!A59 -> Other reserves (list) | C56: ='SB2'!C59 -> 0 | D56: ='SB2'!D59 -> 0 | K56: ='SB2'!K59 -> 0 | L56: ='SB2'!L59 -> 0 | M56: ='SB2'!M59 -> 0
C57: =SUM(C53:C56) -> 0 | D57: =SUM(D53:D56) -> 0 | K57: =SUM(K53:K56) -> 0 | L57: =SUM(L53:L56) -> 0 | M57: =SUM(M53:M56) -> 0

Sheet B9-Asset
A1: =muni&" - "&_ADJ9&" - "&Date -> LIM332 Greater Letaba - Table B9 Asset Management - 27 February 2019
A2: =desc -> Description | B2: =head27 -> Ref | C2: =Head2 -> Budget Year 2018/19 | L2: =Head10 -> Budget Year +1 2019/20 | M2: =Head11 -> Budget Year +2 2020/21
C3: =Head6 -> Original Budget | D3: =Head54 -> Prior Adjusted | E3: =Head51 -> Accum. Funds | F3: =Head52 -> Multi-year capital | G3: =Head53 -> Unfore. Unavoid. | H3: =Head55 -> Nat. or Prov. Govt | I3: =Head50 -> Other Adjusts. | J3: =Head56 -> Total Adjusts. | K3: =Head7 -> Adjusted Budget | L3: =Head7 -> Adjusted Budget | M3: =Head7 -> Adjusted Budget
D4: 7 | E4: 8 | F4: 9 | G4: 10 | H4: 11 | I4: 12 | J4: 13 | K4: 14
A5: R thousands | C5: A | D5: A1 | E5: B | F5: C | G5: D | H5: E | I5: F | J5: G | K5: H
A6: CAPITAL EXPENDITURE
A7: Total New Assets to be adjusted | B7: 1 | C7: =C17+C20+C21+C24+C27+C28+SUM(C31:C37) -> 152192808.3 | D7: =D17+D20+D21+D24+D27+D28+SUM(D31:D37) -> 0 | E7: 0 | F7: 0 | G7: 0 | H7: 0 | I7: -5615605 | J7: -5615605 | K7: 146577203.3 | L7: 174388883 | M7: 192009876
A8: Roads Infrastructure | C8: =SB18a!C9 -> 65206303.81 | D8: =SB18a!D9 -> 0 | E8: =SB18a!E9 -> 0 | F8: =SB18a!F9 -> 0 | G8: =SB18a!G9 -> 0 | H8: =SB18a!H9 -> 0 | I8: =SB18a!I9 -> -13212343 | J8: =SB18a!J9 -> -13212343 | K8: =SB18a!K9 -> 51993960.81 | L8: =SB18a!L9 -> 59059811 | M8: =SB18a!M9 -> 88870950
A9: Storm water Infrastructure | C9: =SB18a!C14 -> 5664654.45 | D9: =SB18a!D14 -> 0 | E9: =SB18a!E14 -> 0 | F9: =SB18a!F14 -> 0 | G9: =SB18a!G14 -> 0 | H9: =SB18a!H14 -> 0 | I9: =SB18a!I14 -> 0 | J9: =SB18a!J14 -> 0 | K9: =SB18a!K14 -> 5664654.45 | L9: =SB18a!L14 -> 19013657 | M9: =SB18a!M14 -> 17294945
A10: Electrical Infrastructure | C10: =SB18a!C18 -> 15457760 | D10: =SB18a!D18 -> 0 | E10: =SB18a!E18 -> 0 | F10: =SB18a!F18 -> 0 | G10: =SB18a!G18 -> 0 | H10: =SB18a!H18 -> 0 | I10: =SB18a!I18 -> 6650000 | J10: =SB18a!J18 -> 6650000 | K10: =SB18a!K18 -> 22107760 | L10: =SB18a!L18 -> 23825000 | M10: =SB18a!M18 -> 35169000
A11: Water Supply Infrastructure | C11: =SB18a!C28 -> 0 | D11: =SB18a!D28 -> 0 | E11: =SB18a!E28 -> 0 | F11: =SB18a!F28 -> 0 | G11: =SB18a!G28 -> 0 | H11: =SB18a!H28 -> 0 | I11: =SB18a!I28 -> 0 | J11: =SB18a!J28 -> 0 | K11: =SB18a!K28 -> 0 | L11: =SB18a!L28 -> 0 | M11: =SB18a!M28 -> 0
A12: Sanitation Infrastructure | C12: =SB18a!C39 -> 0 | D12: =SB18a!D39 -> 0 | E12: =SB18a!E39 -> 0 | F12: =SB18a!F39 -> 0 | G12: =SB18a!G39 -> 0 | H12: =SB18a!H39 -> 0 | I12: =SB18a!I39 -> 0 | J12: =SB18a!J39 -> 0 | K12: =SB18a!K39 -> 0 | L12: =SB18a!L39 -> 0 | M12: =SB18a!M39 -> 0
A13: Solid Waste Infrastructure | C13: =SB18a!C46 -> 1700000 | D13: =SB18a!D46 -> 0 | E13: =SB18a!E46 -> 0 | F13: =SB18a!F46 -> 0 | G13: =SB18a!G46 -> 0 | H13: =SB18a!H46 -> 0 | I13: =SB18a!I46 -> -1700000 | J13: =SB18a!J46 -> -1700000 | K13: =SB18a!K46 -> 0 | L13: =SB18a!L46 -> 3700000 | M13: =SB18a!M46 -> 0
A14: Rail Infrastructure | C14: =SB18a!C54 -> 0 | D14: =SB18a!D54 -> 0 | E14: =SB18a!E54 -> 0 | F14: =SB18a!F54 -> 0 | G14: =SB18a!G54 -> 0 | H14: =SB18a!H54 -> 0 | I14: =SB18a!I54 -> 0 | J14: =SB18a!J54 -> 0 | K14: =SB18a!K54 -> 0 | L14: =SB18a!L54 -> 0 | M14: =SB18a!M54 -> 0
A15: Coastal Infrastructure | C15: =SB18a!C64 -> 0 | D15: =SB18a!D64 -> 0 | E15: =SB18a!E64 -> 0 | F15: =SB18a!F64 -> 0 | G15: =SB18a!G64 -> 0 | H15: =SB18a!H64 -> 0 | I15: =SB18a!I64 -> 0 | J15: =SB18a!J64 -> 0 | K15: =SB18a!K64 -> 0 | L15: =SB18a!L64 -> 0 | M15: =SB18a!M64 -> 0
A16: Information and Communication Infrastructure | C16: =SB18a!C70 -> 0 | D16: =SB18a!D70 -> 0 | E16: =SB18a!E70 -> 0 | F16: =SB18a!F70 -> 0 | G16: =SB18a!G70 -> 0 | H16: =SB18a!H70 -> 0 | I16: =SB18a!I70 -> 0 | J16: =SB18a!J70 -> 0 | K16: =SB18a!K70 -> 0 | L16: =SB18a!L70 -> 0 | M16: =SB18a!M70 -> 0
A17: Infrastructure | C17: =SUM(C8:C16) -> 88028718.26 | D17: =SUM(D8:D16) -> 0 | E17: 0 | F17: 0 | G17: 0 | H17: 0 | I17: -8262343 | J17: -8262343 | K17: 79766375.26 | L17: 105598468 | M17: 141334895
A18: Community Facilities | C18: =SB18a!C77 -> 4418446.4 | D18: =SB18a!D77 -> 0 | E18: =SB18a!E77 -> 0 | F18: =SB18a!F77 -> 0 | G18: =SB18a!G77 -> 0 | H18: =SB18a!H77 -> 0 | I18: =SB18a!I77 -> -2300000 | J18: =SB18a!J77 -> -2300000 | K18: =SB18a!K77 -> 2118446.4 | L18: =SB18a!L77 -> 4000000 | M18: =SB18a!M77 -> 7500000
A19: Sport and Recreation Facilities | C19: =SB18a!C100 -> 36421985.8 | D19: =SB18a!D100 -> 0 | E19: =SB18a!E100 -> 0 | F19: =SB18a!F100 -> 0 | G19: =SB18a!G100 -> 0 | H19: =SB18a!H100 -> 0 | I19: =SB18a!I100 -> 2939900 | J19: =SB18a!J100 -> 2939900 | K19: =SB18a!K100 -> 39361885.8 | L19: =SB18a!L100 -> 59635415 | M19: =SB18a!M100 -> 40832889
A20: Community Assets | C20: =SUM(C18:C19) -> 40840432.2 | D20: =SUM(D18:D19) -> 0 | E20: 0 | F20: 0 | G20: 0 | H20: 0 | I20: 639900 | J20: 639900 | K20: 41480332.2 | L20: 63635415 | M20: 48332889
A21: Heritage Assets | C21: =SB18a!C105 -> 0 | D21: =SB18a!D105 -> 0 | E21: =SB18a!E105 -> 0 | F21: =SB18a!F105 -> 0 | G21: =SB18a!G105 -> 0 | H21: =SB18a!H105 -> 0 | I21: =SB18a!I105 -> 0 | J21: =SB18a!J105 -> 0 | K21: =SB18a!K105 -> 0 | L21: =SB18a!L105 -> 0 | M21: =SB18a!M105 -> 0
A22: Revenue Generating | C22: =SB18a!C113 -> 0 | D22: =SB18a!D113 -> 0 | E22: =SB18a!E113 -> 0 | F22: =SB18a!F113 -> 0 | G22: =SB18a!G113 -> 0 | H22: =SB18a!H113 -> 0 | I22: =SB18a!I113 -> 0 | J22: =SB18a!J113 -> 0 | K22: =SB18a!K113 -> 0 | L22: =SB18a!L113 -> 0 | M22: =SB18a!M113 -> 0
A23: Non-revenue Generating | C23: =SB18a!C116 -> 0 | D23: =SB18a!D116 -> 0 | E23: =SB18a!E116 -> 0 | F23: =SB18a!F116 -> 0 | G23: =SB18a!G116 -> 0 | H23: =SB18a!H116 -> 0 | I23: =SB18a!I116 -> 0 | J23: =SB18a!J116 -> 0 | K23: =SB18a!K116 -> 0 | L23: =SB18a!L116 -> 0 | M23: =SB18a!M116 -> 0
A24: Investment properties | C24: =SUM(C22:C23) -> 0 | D24: =SUM(D22:D23) -> 0 | E24: 0 | F24: 0 | G24: 0 | H24: 0 | I24: 0 | J24: 0 | K24: 0 | L24: 0 | M24: 0
A25: Operational Buildings | C25: =SB18a!C121 -> 9383657.86 | D25: =SB18a!D121 -> 0 | E25: =SB18a!E121 -> 0 | F25: =SB18a!F121 -> 0 | G25: =SB18a!G121 -> 0 | H25: =SB18a!H121 -> 0 | I25: =SB18a!I121 -> -800000 | J25: =SB18a!J121 -> -800000 | K25: =SB18a!K121 -> 8583657.86 | L25: =SB18a!L121 -> 3955000 | M25: =SB18a!M121 -> 2342092
A26: Housing | C26: =SB18a!C133 -> 0 | D26: =SB18a!D133 -> 0 | E26: =SB18a!E133 -> 0 | F26: =SB18a!F133 -> 0 | G26: =SB18a!G133 -> 0 | H26: =SB18a!H133 -> 0 | I26: =SB18a!I133 -> 0 | J26: =SB18a!J133 -> 0 | K26: =SB18a!K133 -> 0 | L26: =SB18a!L133 -> 0 | M26: =SB18a!M133 -> 0
A27: Other Assets | B27: 6 | C27: =SUM(C25:C26) -> 9383657.86 | D27: =SUM(D25:D26) -> 0 | E27: 0 | F27: 0 | G27: 0 | H27: 0 | I27: -800000 | J27: -800000 | K27: 8583657.86 | L27: 3955000 | M27: 2342092
A28: Biological or Cultivated Assets | C28: =SB18a!C138 -> 0 | D28: =SB18a!D138 -> 0 | E28: =SB18a!E138 -> 0 | F28: =SB18a!F138 -> 0 | G28: =SB18a!G138 -> 0 | H28: =SB18a!H138 -> 0 | I28: =SB18a!I138 -> 0 | J28: =SB18a!J138 -> 0 | K28: =SB18a!K138 -> 0 | L28: =SB18a!L138 -> 0 | M28: =SB18a!M138 -> 0
A29: Servitudes | C29: =SB18a!C142 -> 0 | D29: =SB18a!D142 -> 0 | E29: =SB18a!E142 -> 0 | F29: =SB18a!F142 -> 0 | G29: =SB18a!G142 -> 0 | H29: =SB18a!H142 -> 0 | I29: =SB18a!I142 -> 0 | J29: =SB18a!J142 -> 0 | K29: =SB18a!K142 -> 0 | L29: =SB18a!L142 -> 0 | M29: =SB18a!M142 -> 0
A30: Licences and Rights | C30: =SB18a!C143 -> 1050000 | D30: =SB18a!D143 -> 0 | E30: =SB18a!E143 -> 0 | F30: =SB18a!F143 -> 0 | G30: =SB18a!G143 -> 0 | H30: =SB18a!H143 -> 0 | I30: =SB18a!I143 -> 0 | J30: =SB18a!J143 -> 0 | K30: =SB18a!K143 -> 1050000 | L30: =SB18a!L143 -> 0 | M30: =SB18a!M143 -> 0
A31: Intangible Assets | C31: =SUM(C29:C30) -> 1050000 | D31: =SUM(D29:D30) -> 0 | E31: 0 | F31: 0 | G31: 0 | H31: 0 | I31: 0 | J31: 0 | K31: 1050000 | L31: 0 | M31: 0
A32: Computer Equipment | C32: =SB18a!C151 -> 380000 | D32: =SB18a!D151 -> 0 | E32: =SB18a!E151 -> 0 | F32: =SB18a!F151 -> 0 | G32: =SB18a!G151 -> 0 | H32: =SB18a!H151 -> 0 | I32: =SB18a!I151 -> 0 | J32: =SB18a!J151 -> 0 | K32: =SB18a!K151 -> 380000 | L32: =SB18a!L151 -> 0 | M32: =SB18a!M151 -> 0
A33: Furniture and Office Equipment | C33: =SB18a!C154 -> 1660000 | D33: =SB18a!D154 -> 0 | E33: =SB18a!E154 -> 0 | F33: =SB18a!F154 -> 0 | G33: =SB18a!G154 -> 0 | H33: =SB18a!H154 -> 0 | I33: =SB18a!I154 -> 806838 | J33: =SB18a!J154 -> 806838 | K33: =SB18a!K154 -> 2466838 | L33: =SB18a!L154 -> 0 | M33: =SB18a!M154 -> 0
A34: Machinery and Equipment | C34: =SB18a!C157 -> 9750000 | D34: =SB18a!D157 -> 0 | E34: =SB18a!E157 -> 0 | F34: =SB18a!F157 -> 0 | G34: =SB18a!G157 -> 0 | H34: =SB18a!H157 -> 0 | I34: =SB18a!I157 -> 2000000 | J34: =SB18a!J157 -> 2000000 | K34: =SB18a!K157 -> 11750000 | L34: =SB18a!L157 -> 1200000 | M34: =SB18a!M157 -> 0
A35: Transport Assets | C35: =SB18a!C160 -> 1100000 | D35: =SB18a!D160 -> 0 | E35: =SB18a!E160 -> 0 | F35: =SB18a!F160 -> 0 | G35: =SB18a!G160 -> 0 | H35: =SB18a!H160 -> 0 | I35: =SB18a!I160 -> 0 | J35: =SB18a!J160 -> 0 | K35: =SB18a!K160 -> 1100000 | L35: =SB18a!L160 -> 0 | M35: =SB18a!M160 -> 0
A36: Land | C36: =SB18a!C163 -> 0 | D36: =SB18a!D163 -> 0 | E36: =SB18a!E163 -> 0 | F36: =SB18a!F163 -> 0 | G36: =SB18a!G163 -> 0 | H36: =SB18a!H163 -> 0 | I36: =SB18a!I163 -> 0 | J36: =SB18a!J163 -> 0 | K36: =SB18a!K163 -> 0 | L36: =SB18a!L163 -> 0 | M36: =SB18a!M163 -> 0
A37: Zoo's, Marine and Non-biological Animals | C37: =SB18a!C166 -> 0 | D37: =SB18a!D166 -> 0 | E37: =SB18a!E166 -> 0 | F37: =SB18a!F166 -> 0 | G37: =SB18a!G166 -> 0 | H37: =SB18a!H166 -> 0 | I37: =SB18a!I166 -> 0 | J37: =SB18a!J166 -> 0 | K37: =SB18a!K166 -> 0 | L37: =SB18a!L166 -> 0 | M37: =SB18a!M166 -> 0
A39: Total Renewal of Existing Assets to be adjusted | B39: 2 | C39: =C49+C52+C53+C56+C59+C60+SUM(C63:C69) -> 27083510.54 | D39: =D49+D52+D53+D56+D59+D60+SUM(D63:D69) -> 0 | E39: 0 | F39: 0 | G39: 0 | H39: 0 | I39: 0 | J39: 0 | K39: 27083510.54 | L39: 0 | M39: 0
A40: Roads Infrastructure | C40: =SB18b!C9 -> 0 | D40: =SB18b!D9 -> 0 | E40: =SB18b!E9 -> 0 | F40: =SB18b!F9 -> 0 | G40: =SB18b!G9 -> 0 | H40: =SB18b!H9 -> 0 | I40: =SB18b!I9 -> 0 | J40: =SB18b!J9 -> 0 | K40: =SB18b!K9 -> 0 | L40: =SB18b!L9 -> 0 | M40: =SB18b!M9 -> 0
A41: Storm water Infrastructure | C41: =SB18b!C14 -> 0 | D41: =SB18b!D14 -> 0 | E41: =SB18b!E14 -> 0 | F41: =SB18b!F14 -> 0 | G41: =SB18b!G14 -> 0 | H41: =SB18b!H14 -> 0 | I41: =SB18b!I14 -> 0 | J41: =SB18b!J14 -> 0 | K41: =SB18b!K14 -> 0 | L41: =SB18b!L14 -> 0 | M41: =SB18b!M14 -> 0
A42: Electrical Infrastructure | C42: =SB18b!C18 -> 0 | D42: =SB18b!D18 -> 0 | E42: =SB18b!E18 -> 0 | F42: =SB18b!F18 -> 0 | G42: =SB18b!G18 -> 0 | H42: =SB18b!H18 -> 0 | I42: =SB18b!I18 -> 0 | J42: =SB18b!J18 -> 0 | K42: =SB18b!K18 -> 0 | L42: =SB18b!L18 -> 0 | M42: =SB18b!M18 -> 0
A43: Water Supply Infrastructure | C43: =SB18b!C28 -> 0 | D43: =SB18b!D28 -> 0 | E43: =SB18b!E28 -> 0 | F43: =SB18b!F28 -> 0 | G43: =SB18b!G28 -> 0 | H43: =SB18b!H28 -> 0 | I43: =SB18b!I28 -> 0 | J43: =SB18b!J28 -> 0 | K43: =SB18b!K28 -> 0 | L43: =SB18b!L28 -> 0 | M43: =SB18b!M28 -> 0
A44: Sanitation Infrastructure | C44: =SB18b!C39 -> 0 | D44: =SB18b!D39 -> 0 | E44: =SB18b!E39 -> 0 | F44: =SB18b!F39 -> 0 | G44: =SB18b!G39 -> 0 | H44: =SB18b!H39 -> 0 | I44: =SB18b!I39 -> 0 | J44: =SB18b!J39 -> 0 | K44: =SB18b!K39 -> 0 | L44: =SB18b!L39 -> 0 | M44: =SB18b!M39 -> 0
A45: Solid Waste Infrastructure | C45: =SB18b!C46 -> 0 | D45: =SB18b!D46 -> 0 | E45: =SB18b!E46 -> 0 | F45: =SB18b!F46 -> 0 | G45: =SB18b!G46 -> 0 | H45: =SB18b!H46 -> 0 | I45: =SB18b!I46 -> 0 | J45: =SB18b!J46 -> 0 | K45: =SB18b!K46 -> 0 | L45: =SB18b!L46 -> 0 | M45: =SB18b!M46 -> 0
A46: Rail Infrastructure | C46: =SB18b!C54 -> 0 | D46: =SB18b!D54 -> 0 | E46: =SB18b!E54 -> 0 | F46: =SB18b!F54 -> 0 | G46: =SB18b!G54 -> 0 | H46: =SB18b!H54 -> 0 | I46: =SB18b!I54 -> 0 | J46: =SB18b!J54 -> 0 | K46: =SB18b!K54 -> 0 | L46: =SB18b!L54 -> 0 | M46: =SB18b!M54 -> 0
A47: Coastal Infrastructure | C47: =SB18b!C64 -> 0 | D47: =SB18b!D64 -> 0 | E47: =SB18b!E64 -> 0 | F47: =SB18b!F64 -> 0 | G47: =SB18b!G64 -> 0 | H47: =SB18b!H64 -> 0 | I47: =SB18b!I64 -> 0 | J47: =SB18b!J64 -> 0 | K47: =SB18b!K64 -> 0 | L47: =SB18b!L64 -> 0 | M47: =SB18b!M64 -> 0
A48: Information and Communication Infrastructure | C48: =SB18b!C70 -> 0 | D48: =SB18b!D70 -> 0 | E48: =SB18b!E70 -> 0 | F48: =SB18b!F70 -> 0 | G48: =SB18b!G70 -> 0 | H48: =SB18b!H70 -> 0 | I48: =SB18b!I70 -> 0 | J48: =SB18b!J70 -> 0 | K48: =SB18b!K70 -> 0 | L48: =SB18b!L70 -> 0 | M48: =SB18b!M70 -> 0
A49: Infrastructure | C49: =SUM(C40:C48) -> 0 | D49: =SUM(D40:D48) -> 0 | E49: 0 | F49: 0 | G49: 0 | H49: 0 | I49: 0 | J49: 0 | K49: 0 | L49: 0 | M49: 0
A50: Community Facilities | C50: =SB18b!C77 -> 0 | D50: =SB18b!D77 -> 0 | E50: =SB18b!E77 -> 0 | F50: =SB18b!F77 -> 0 | G50: =SB18b!G77 -> 0 | H50: =SB18b!H77 -> 0 | I50: =SB18b!I77 -> 0 | J50: =SB18b!J77 -> 0 | K50: =SB18b!K77 -> 0 | L50: =SB18b!L77 -> 0 | M50: =SB18b!M77 -> 0
A51: Sport and Recreation Facilities | C51: =SB18b!C100 -> 27083510.54 | D51: =SB18b!D100 -> 0 | E51: =SB18b!E100 -> 0 | F51: =SB18b!F100 -> 0 | G51: =SB18b!G100 -> 0 | H51: =SB18b!H100 -> 0 | I51: =SB18b!I100 -> 0 | J51: =SB18b!J100 -> 0 | K51: =SB18b!K100 -> 27083510.54 | L51: =SB18b!L100 -> 0 | M51: =SB18b!M100 -> 0
A52: Community Assets | C52: =SUM(C50:C51) -> 27083510.54 | D52: =SUM(D50:D51) -> 0 | E52: 0 | F52: 0 | G52: 0 | H52: 0 | I52: 0 | J52: 0 | K52: 27083510.54 | L52: 0 | M52: 0
A53: Heritage Assets | C53: =SB18b!C105 -> 0 | D53: =SB18b!D105 -> 0 | E53: =SB18b!E105 -> 0 | F53: =SB18b!F105 -> 0 | G53: =SB18b!G105 -> 0 | H53: =SB18b!H105 -> 0 | I53: =SB18b!I105 -> 0 | J53: =SB18b!J105 -> 0 | K53: =SB18b!K105 -> 0 | L53: =SB18b!L105 -> 0 | M53: =SB18b!M105 -> 0
A54: Revenue Generating | C54: =SB18b!C113 -> 0 | D54: =SB18b!D113 -> 0 | E54: =SB18b!E113 -> 0 | F54: =SB18b!F113 -> 0 | G54: =SB18b!G113 -> 0 | H54: =SB18b!H113 -> 0 | I54: =SB18b!I113 -> 0 | J54: =SB18b!J113 -> 0 | K54: =SB18b!K113 -> 0 | L54: =SB18b!L113 -> 0 | M54: =SB18b!M113 -> 0
A55: Non-revenue Generating | C55: =SB18b!C116 -> 0 | D55: =SB18b!D116 -> 0 | E55: =SB18b!E116 -> 0 | F55: =SB18b!F116 -> 0 | G55: =SB18b!G116 -> 0 | H55: =SB18b!H116 -> 0 | I55: =SB18b!I116 -> 0 | J55: =SB18b!J116 -> 0 | K55: =SB18b!K116 -> 0 | L55: =SB18b!L116 -> 0 | M55: =SB18b!M116 -> 0
A56: Investment properties | C56: =SUM(C54:C55) -> 0 | D56: =SUM(D54:D55) -> 0 | E56: 0 | F56: 0 | G56: 0 | H56: 0 | I56: 0 | J56: 0 | K56: 0 | L56: 0 | M56: 0
A57: Operational Buildings | C57: =SB18b!C121 -> 0 | D57: =SB18b!D121 -> 0 | E57: =SB18b!E121 -> 0 | F57: =SB18b!F121 -> 0 | G57: =SB18b!G121 -> 0 | H57: =SB18b!H121 -> 0 | I57: =SB18b!I121 -> 0 | J57: =SB18b!J121 -> 0 | K57: =SB18b!K121 -> 0 | L57: =SB18b!L121 -> 0 | M57: =SB18b!M121 -> 0
A58: Housing | C58: =SB18b!C133 -> 0 | D58: =SB18b!D133 -> 0 | E58: =SB18b!E133 -> 0 | F58: =SB18b!F133 -> 0 | G58: =SB18b!G133 -> 0 | H58: =SB18b!H133 -> 0 | I58: =SB18b!I133 -> 0 | J58: =SB18b!J133 -> 0 | K58: =SB18b!K133 -> 0 | L58: =SB18b!L133 -> 0 | M58: =SB18b!M133 -> 0
A59: Other Assets | B59: 6 | C59: =SUM(C57:C58) -> 0 | D59: =SUM(D57:D58) -> 0 | E59: 0 | F59: 0 | G59: 0 | H59: 0 | I59: 0 | J59: 0 | K59: 0 | L59: 0 | M59: 0
A60: Biological or Cultivated Assets | C60: =SB18b!C138 -> 0 | D60: =SB18b!D138 -> 0 | E60: =SB18b!E138 -> 0 | F60: =SB18b!F138 -> 0 | G60: =SB18b!G138 -> 0 | H60: =SB18b!H138 -> 0 | I60: =SB18b!I138 -> 0 | J60: =SB18b!J138 -> 0 | K60: =SB18b!K138 -> 0 | L60: =SB18b!L138 -> 0 | M60: =SB18b!M138 -> 0
A61: Servitudes | C61: =SB18b!C142 -> 0 | D61: =SB18b!D142 -> 0 | E61: =SB18b!E142 -> 0 | F61: =SB18b!F142 -> 0 | G61: =SB18b!G142 -> 0 | H61: =SB18b!H142 -> 0 | I61: =SB18b!I142 -> 0 | J61: =SB18b!J142 -> 0 | K61: =SB18b!K142 -> 0 | L61: =SB18b!L142 -> 0 | M61: =SB18b!M142 -> 0
A62: Licences and Rights | C62: =SB18b!C143 -> 0 | D62: =SB18b!D143 -> 0 | E62: =SB18b!E143 -> 0 | F62: =SB18b!F143 -> 0 | G62: =SB18b!G143 -> 0 | H62: =SB18b!H143 -> 0 | I62: =SB18b!I143 -> 0 | J62: =SB18b!J143 -> 0 | K62: =SB18b!K143 -> 0 | L62: =SB18b!L143 -> 0 | M62: =SB18b!M143 -> 0
A63: Intangible Assets | C63: =SUM(C61:C62) -> 0 | D63: =SUM(D61:D62) -> 0 | E63: 0 | F63: 0 | G63: 0 | H63: 0 | I63: 0 | J63: 0 | K63: 0 | L63: 0 | M63: 0
A64: Computer Equipment | C64: =SB18b!C151 -> 0 | D64: =SB18b!D151 -> 0 | E64: =SB18b!E151 -> 0 | F64: =SB18b!F151 -> 0 | G64: =SB18b!G151 -> 0 | H64: =SB18b!H151 -> 0 | I64: =SB18b!I151 -> 0 | J64: =SB18b!J151 -> 0 | K64: =SB18b!K151 -> 0 | L64: =SB18b!L151 -> 0 | M64: =SB18b!M151 -> 0
A65: Furniture and Office Equipment | C65: =SB18b!C154 -> 0 | D65: =SB18b!D154 -> 0 | E65: =SB18b!E154 -> 0 | F65: =SB18b!F154 -> 0 | G65: =SB18b!G154 -> 0 | H65: =SB18b!H154 -> 0 | I65: =SB18b!I154 -> 0 | J65: =SB18b!J154 -> 0 | K65: =SB18b!K154 -> 0 | L65: =SB18b!L154 -> 0 | M65: =SB18b!M154 -> 0
A66: Machinery and Equipment | C66: =SB18b!C157 -> 0 | D66: =SB18b!D157 -> 0 | E66: =SB18b!E157 -> 0 | F66: =SB18b!F157 -> 0 | G66: =SB18b!G157 -> 0 | H66: =SB18b!H157 -> 0 | I66: =SB18b!I157 -> 0 | J66: =SB18b!J157 -> 0 | K66: =SB18b!K157 -> 0 | L66: =SB18b!L157 -> 0 | M66: =SB18b!M157 -> 0
A67: Transport Assets | C67: =SB18b!C160 -> 0 | D67: =SB18b!D160 -> 0 | E67: =SB18b!E160 -> 0 | F67: =SB18b!F160 -> 0 | G67: =SB18b!G160 -> 0 | H67: =SB18b!H160 -> 0 | I67: =SB18b!I160 -> 0 | J67: =SB18b!J160 -> 0 | K67: =SB18b!K160 -> 0 | L67: =SB18b!L160 -> 0 | M67: =SB18b!M160 -> 0
A68: Land | C68: =SB18b!C163 -> 0 | D68: =SB18b!D163 -> 0 | E68: =SB18b!E163 -> 0 | F68: =SB18b!F163 -> 0 | G68: =SB18b!G163 -> 0 | H68: =SB18b!H163 -> 0 | I68: =SB18b!I163 -> 0 | J68: =SB18b!J163 -> 0 | K68: =SB18b!K163 -> 0 | L68: =SB18b!L163 -> 0 | M68: =SB18b!M163 -> 0
A69: Zoo's, Marine and Non-biological Animals | C69: =SB18b!C166 -> 0 | D69: =SB18b!D166 -> 0 | E69: =SB18b!E166 -> 0 | F69: =SB18b!F166 -> 0 | G69: =SB18b!G166 -> 0 | H69: =SB18b!H166 -> 0 | I69: =SB18b!I166 -> 0 | J69: =SB18b!J166 -> 0 | K69: =SB18b!K166 -> 0 | L69: =SB18b!L166 -> 0 | M69: =SB18b!M166 -> 0
A71: Total Upgrading of Existing Assets to be adjusted | B71: 2a | C71: =C81+C84+C85+C88+C91+C92+SUM(C95:C101) -> 0 | D71: =D81+D84+D85+D88+D91+D92+SUM(D95:D101) -> 0 | E71: 0 | F71: 0 | G71: 0 | H71: 0 | I71: 0 | J71: 0 | K71: 0 | L71: 0 | M71: 0
A72: Roads Infrastructure | C72: =SB18e!C9 -> 0 | D72: =SB18e!D9 -> 0 | E72: =SB18e!E9 -> 0 | F72: =SB18e!F9 -> 0 | G72: =SB18e!G9 -> 0 | H72: =SB18e!H9 -> 0 | I72: =SB18e!I9 -> 0 | J72: =SB18e!J9 -> 0 | K72: =SB18e!K9 -> 0 | L72: =SB18e!L9 -> 0 | M72: =SB18e!M9 -> 0
A73: Storm water Infrastructure | C73: =SB18e!C14 -> 0 | D73: =SB18e!D14 -> 0 | E73: =SB18e!E14 -> 0 | F73: =SB18e!F14 -> 0 | G73: =SB18e!G14 -> 0 | H73: =SB18e!H14 -> 0 | I73: =SB18e!I14 -> 0 | J73: =SB18e!J14 -> 0 | K73: =SB18e!K14 -> 0 | L73: =SB18e!L14 -> 0 | M73: =SB18e!M14 -> 0
A74: Electrical Infrastructure | C74: =SB18e!C18 -> 0 | D74: =SB18e!D18 -> 0 | E74: =SB18e!E18 -> 0 | F74: =SB18e!F18 -> 0 | G74: =SB18e!G18 -> 0 | H74: =SB18e!H18 -> 0 | I74: =SB18e!I18 -> 0 | J74: =SB18e!J18 -> 0 | K74: =SB18e!K18 -> 0 | L74: =SB18e!L18 -> 0 | M74: =SB18e!M18 -> 0
A75: Water Supply Infrastructure | C75: =SB18e!C28 -> 0 | D75: =SB18e!D28 -> 0 | E75: =SB18e!E28 -> 0 | F75: =SB18e!F28 -> 0 | G75: =SB18e!G28 -> 0 | H75: =SB18e!H28 -> 0 | I75: =SB18e!I28 -> 0 | J75: =SB18e!J28 -> 0 | K75: =SB18e!K28 -> 0 | L75: =SB18e!L28 -> 0 | M75: =SB18e!M28 -> 0
A76: Sanitation Infrastructure | C76: =SB18e!C39 -> 0 | D76: =SB18e!D39 -> 0 | E76: =SB18e!E39 -> 0 | F76: =SB18e!F39 -> 0 | G76: =SB18e!G39 -> 0 | H76: =SB18e!H39 -> 0 | I76: =SB18e!I39 -> 0 | J76: =SB18e!J39 -> 0 | K76: =SB18e!K39 -> 0 | L76: =SB18e!L39 -> 0 | M76: =SB18e!M39 -> 0
A77: Solid Waste Infrastructure | C77: =SB18e!C46 -> 0 | D77: =SB18e!D46 -> 0 | E77: =SB18e!E46 -> 0 | F77: =SB18e!F46 -> 0 | G77: =SB18e!G46 -> 0 | H77: =SB18e!H46 -> 0 | I77: =SB18e!I46 -> 0 | J77: =SB18e!J46 -> 0 | K77: =SB18e!K46 -> 0 | L77: =SB18e!L46 -> 0 | M77: =SB18e!M46 -> 0
A78: Rail Infrastructure | C78: =SB18e!C54 -> 0 | D78: =SB18e!D54 -> 0 | E78: =SB18e!E54 -> 0 | F78: =SB18e!F54 -> 0 | G78: =SB18e!G54 -> 0 | H78: =SB18e!H54 -> 0 | I78: =SB18e!I54 -> 0 | J78: =SB18e!J54 -> 0 | K78: =SB18e!K54 -> 0 | L78: =SB18e!L54 -> 0 | M78: =SB18e!M54 -> 0
A79: Coastal Infrastructure | C79: =SB18e!C64 -> 0 | D79: =SB18e!D64 -> 0 | E79: =SB18e!E64 -> 0 | F79: =SB18e!F64 -> 0 | G79: =SB18e!G64 -> 0 | H79: =SB18e!H64 -> 0 | I79: =SB18e!I64 -> 0 | J79: =SB18e!J64 -> 0 | K79: =SB18e!K64 -> 0 | L79: =SB18e!L64 -> 0 | M79: =SB18e!M64 -> 0
A80: Information and Communication Infrastructure | C80: =SB18e!C70 -> 0 | D80: =SB18e!D70 -> 0 | E80: =SB18e!E70 -> 0 | F80: =SB18e!F70 -> 0 | G80: =SB18e!G70 -> 0 | H80: =SB18e!H70 -> 0 | I80: =SB18e!I70 -> 0 | J80: =SB18e!J70 -> 0 | K80: =SB18e!K70 -> 0 | L80: =SB18e!L70 -> 0 | M80: =SB18e!M70 -> 0
A81: Infrastructure | C81: =SUM(C72:C80) -> 0 | D81: =SUM(D72:D80) -> 0 | E81: 0 | F81: 0 | G81: 0 | H81: 0 | I81: 0 | J81: 0 | K81: 0 | L81: 0 | M81: 0
A82: Community Facilities | C82: =SB18e!C77 -> 0 | D82: =SB18e!D77 -> 0 | E82: =SB18e!E77 -> 0 | F82: =SB18e!F77 -> 0 | G82: =SB18e!G77 -> 0 | H82: =SB18e!H77 -> 0 | I82: =SB18e!I77 -> 0 | J82: =SB18e!J77 -> 0 | K82: =SB18e!K77 -> 0 | L82: =SB18e!L77 -> 0 | M82: =SB18e!M77 -> 0
A83: Sport and Recreation Facilities | C83: =SB18e!C100 -> 0 | D83: =SB18e!D100 -> 0 | E83: =SB18e!E100 -> 0 | F83: =SB18e!F100 -> 0 | G83: =SB18e!G100 -> 0 | H83: =SB18e!H100 -> 0 | I83: =SB18e!I100 -> 0 | J83: =SB18e!J100 -> 0 | K83: =SB18e!K100 -> 0 | L83: =SB18e!L100 -> 0 | M83: =SB18e!M100 -> 0
A84: Community Assets | C84: =SUM(C82:C83) -> 0 | D84: =SUM(D82:D83) -> 0 | E84: 0 | F84: 0 | G84: 0 | H84: 0 | I84: 0 | J84: 0 | K84: 0 | L84: 0 | M84: 0
A85: Heritage Assets | C85: =SB18e!C105 -> 0 | D85: =SB18e!D105 -> 0 | E85: =SB18e!E105 -> 0 | F85: =SB18e!F105 -> 0 | G85: =SB18e!G105 -> 0 | H85: =SB18e!H105 -> 0 | I85: =SB18e!I105 -> 0 | J85: =SB18e!J105 -> 0 | K85: =SB18e!K105 -> 0 | L85: =SB18e!L105 -> 0 | M85: =SB18e!M105 -> 0
A86: Revenue Generating | C86: =SB18e!C113 -> 0 | D86: =SB18e!D113 -> 0 | E86: =SB18e!E113 -> 0 | F86: =SB18e!F113 -> 0 | G86: =SB18e!G113 -> 0 | H86: =SB18e!H113 -> 0 | I86: =SB18e!I113 -> 0 | J86: =SB18e!J113 -> 0 | K86: =SB18e!K113 -> 0 | L86: =SB18e!L113 -> 0 | M86: =SB18e!M113 -> 0
A87: Non-revenue Generating | C87: =SB18e!C116 -> 0 | D87: =SB18e!D116 -> 0 | E87: =SB18e!E116 -> 0 | F87: =SB18e!F116 -> 0 | G87: =SB18e!G116 -> 0 | H87: =SB18e!H116 -> 0 | I87: =SB18e!I116 -> 0 | J87: =SB18e!J116 -> 0 | K87: =SB18e!K116 -> 0 | L87: =SB18e!L116 -> 0 | M87: =SB18e!M116 -> 0
A88: Investment properties | C88: =SUM(C86:C87) -> 0 | D88: =SUM(D86:D87) -> 0 | E88: 0 | F88: 0 | G88: 0 | H88: 0 | I88: 0 | J88: 0 | K88: 0 | L88: 0 | M88: 0
A89: Operational Buildings | C89: =SB18e!C121 -> 0 | D89: =SB18e!D121 -> 0 | E89: =SB18e!E121 -> 0 | F89: =SB18e!F121 -> 0 | G89: =SB18e!G121 -> 0 | H89: =SB18e!H121 -> 0 | I89: =SB18e!I121 -> 0 | J89: =SB18e!J121 -> 0 | K89: =SB18e!K121 -> 0 | L89: =SB18e!L121 -> 0 | M89: =SB18e!M121 -> 0
A90: Housing | C90: =SB18e!C133 -> 0 | D90: =SB18e!D133 -> 0 | E90: =SB18e!E133 -> 0 | F90: =SB18e!F133 -> 0 | G90: =SB18e!G133 -> 0 | H90: =SB18e!H133 -> 0 | I90: =SB18e!I133 -> 0 | J90: =SB18e!J133 -> 0 | K90: =SB18e!K133 -> 0 | L90: =SB18e!L133 -> 0 | M90: =SB18e!M133 -> 0
A91: Other Assets | B91: 6 | C91: =SUM(C89:C90) -> 0 | D91: =SUM(D89:D90) -> 0 | E91: 0 | F91: 0 | G91: 0 | H91: 0 | I91: 0 | J91: 0 | K91: 0 | L91: 0 | M91: 0
A92: Biological or Cultivated Assets | C92: =SB18e!C138 -> 0 | D92: =SB18e!D138 -> 0 | E92: =SB18e!E138 -> 0 | F92: =SB18e!F138 -> 0 | G92: =SB18e!G138 -> 0 | H92: =SB18e!H138 -> 0 | I92: =SB18e!I138 -> 0 | J92: =SB18e!J138 -> 0 | K92: =SB18e!K138 -> 0 | L92: =SB18e!L138 -> 0 | M92: =SB18e!M138 -> 0
A93: Servitudes | C93: =SB18e!C142 -> 0 | D93: =SB18e!D142 -> 0 | E93: =SB18e!E142 -> 0 | F93: =SB18e!F142 -> 0 | G93: =SB18e!G142 -> 0 | H93: =SB18e!H142 -> 0 | I93: =SB18e!I142 -> 0 | J93: =SB18e!J142 -> 0 | K93: =SB18e!K142 -> 0 | L93: =SB18e!L142 -> 0 | M93: =SB18e!M142 -> 0
A94: Licences and Rights | C94: =SB18e!C143 -> 0 | D94: =SB18e!D143 -> 0 | E94: =SB18e!E143 -> 0 | F94: =SB18e!F143 -> 0 | G94: =SB18e!G143 -> 0 | H94: =SB18e!H143 -> 0 | I94: =SB18e!I143 -> 0 | J94: =SB18e!J143 -> 0 | K94: =SB18e!K143 -> 0 | L94: =SB18e!L143 -> 0 | M94: =SB18e!M143 -> 0
A95: Intangible Assets | C95: =SUM(C93:C94) -> 0 | D95: =SUM(D93:D94) -> 0 | E95: 0 | F95: 0 | G95: 0 | H95: 0 | I95: 0 | J95: 0 | K95: 0 | L95: 0 | M95: 0
A96: Computer Equipment | C96: =SB18e!C151 -> 0 | D96: =SB18e!D151 -> 0 | E96: =SB18e!E151 -> 0 | F96: =SB18e!F151 -> 0 | G96: =SB18e!G151 -> 0 | H96: =SB18e!H151 -> 0 | I96: =SB18e!I151 -> 0 | J96: =SB18e!J151 -> 0 | K96: =SB18e!K151 -> 0 | L96: =SB18e!L151 -> 0 | M96: =SB18e!M151 -> 0
A97: Furniture and Office Equipment | C97: =SB18e!C154 -> 0 | D97: =SB18e!D154 -> 0 | E97: =SB18e!E154 -> 0 | F97: =SB18e!F154 -> 0 | G97: =SB18e!G154 -> 0 | H97: =SB18e!H154 -> 0 | I97: =SB18e!I154 -> 0 | J97: =SB18e!J154 -> 0 | K97: =SB18e!K154 -> 0 | L97: =SB18e!L154 -> 0 | M97: =SB18e!M154 -> 0
A98: Machinery and Equipment | C98: =SB18e!C157 -> 0 | D98: =SB18e!D157 -> 0 | E98: =SB18e!E157 -> 0 | F98: =SB18e!F157 -> 0 | G98: =SB18e!G157 -> 0 | H98: =SB18e!H157 -> 0 | I98: =SB18e!I157 -> 0 | J98: =SB18e!J157 -> 0 | K98: =SB18e!K157 -> 0 | L98: =SB18e!L157 -> 0 | M98: =SB18e!M157 -> 0
A99: Transport Assets | C99: =SB18e!C160 -> 0 | D99: =SB18e!D160 -> 0 | E99: =SB18e!E160 -> 0 | F99: =SB18e!F160 -> 0 | G99: =SB18e!G160 -> 0 | H99: =SB18e!H160 -> 0 | I99: =SB18e!I160 -> 0 | J99: =SB18e!J160 -> 0 | K99: =SB18e!K160 -> 0 | L99: =SB18e!L160 -> 0 | M99: =SB18e!M160 -> 0
A100: Land | C100: =SB18e!C163 -> 0 | D100: =SB18e!D163 -> 0 | E100: =SB18e!E163 -> 0 | F100: =SB18e!F163 -> 0 | G100: =SB18e!G163 -> 0 | H100: =SB18e!H163 -> 0 | I100: =SB18e!I163 -> 0 | J100: =SB18e!J163 -> 0 | K100: =SB18e!K163 -> 0 | L100: =SB18e!L163 -> 0 | M100: =SB18e!M163 -> 0
A101: Zoo's, Marine and Non-biological Animals | C101: =SB18e!C166 -> 0 | D101: =SB18e!D166 -> 0 | E101: =SB18e!E166 -> 0 | F101: =SB18e!F166 -> 0 | G101: =SB18e!G166 -> 0 | H101: =SB18e!H166 -> 0 | I101: =SB18e!I166 -> 0 | J101: =SB18e!J166 -> 0 | K101: =SB18e!K166 -> 0 | L101: =SB18e!L166 -> 0 | M101: =SB18e!M166 -> 0
A103: Total Capital Expenditure to be adjusted | B103: 4
A104: Roads Infrastructure | C104: =C8+C40+C72 -> 65206303.81 | D104: =D8+D40+D72 -> 0 | E104: 0 | F104: 0 | G104: 0 | H104: 0 | I104: -13212343 | J104: -13212343 | K104: 51993960.81 | L104: 59059811 | M104: 88870950
A105: Storm water Infrastructure | C105: 5664654.45 | D105: 0 | E105: 0 | F105: 0 | G105: 0 | H105: 0 | I105: 0 | J105: 0 | K105: 5664654.45 | L105: 19013657 | M105: 17294945
A106: Electrical Infrastructure | C106: 15457760 | D106: 0 | E106: 0 | F106: 0 | G106: 0 | H106: 0 | I106: 6650000 | J106: 6650000 | K106: 22107760 | L106: 23825000 | M106: 35169000
A107: Water Supply Infrastructure | C107: 0 | D107: =D11+D43+D75 -> 0 | E107: 0 | F107: 0 | G107: 0 | H107: 0 | I107: 0 | J107: 0 | K107: 0 | L107: 0 | M107: 0
A108: Sanitation Infrastructure | C108: 0 | D108: =D12+D44+D76 -> 0 | E108: 0 | F108: 0 | G108: 0 | H108: 0 | I108: 0 | J108: 0 | K108: 0 | L108: 0 | M108: 0
A109: Solid Waste Infrastructure | C109: 1700000 | D109: =D13+D45+D77 -> 0 | E109: 0 | F109: 0 | G109: 0 | H109: 0 | I109: -1700000 | J109: -1700000 | K109: 0 | L109: 3700000 | M109: 0
A110: Rail Infrastructure | C110: 0 | D110: =D14+D46+D78 -> 0 | E110: 0 | F110: 0 | G110: 0 | H110: 0 | I110: 0 | J110: 0 | K110: 0 | L110: 0 | M110: 0
A111: Coastal Infrastructure | C111: 0 | D111: =D15+D47+D79 -> 0 | E111: 0 | F111: 0 | G111: 0 | H111: 0 | I111: 0 | J111: 0 | K111: 0 | L111: 0 | M111: 0
A112: Information and Communication Infrastructure | C112: 0 | D112: =D16+D48+D80 -> 0 | E112: 0 | F112: 0 | G112: 0 | H112: 0 | I112: 0 | J112: 0 | K112: 0 | L112: 0 | M112: 0
A113: Infrastructure | C113: 88028718.26 | D113: =D17+D49+D81 -> 0 | E113: 0 | F113: 0 | G113: 0 | H113: 0 | I113: -8262343 | J113: -8262343 | K113: 79766375.26 | L113: 105598468 | M113: 141334895
A114: Community Facilities | C114: 4418446.4 | D114: =D18+D50+D82 -> 0 | E114: 0 | F114: 0 | G114: 0 | H114: 0 | I114: -2300000 | J114: -2300000 | K114: 2118446.4 | L114: 4000000 | M114: 7500000
A115: Sport and Recreation Facilities | C115: 63505496.34 | D115: =D19+D51+D83 -> 0 | E115: 0 | F115: 0 | G115: 0 | H115: 0 | I115: 2939900 | J115: 2939900 | K115: 66445396.34 | L115: 59635415 | M115: 40832889
A116: Community Assets | C116: 67923942.74 | D116: =D20+D52+D84 -> 0 | E116: 0 | F116: 0 | G116: 0 | H116: 0 | I116: 639900 | J116: 639900 | K116: 68563842.74 | L116: 63635415 | M116: 48332889
A117: Heritage Assets | C117: 0 | D117: =D21+D53+D85 -> 0 | E117: 0 | F117: 0 | G117: 0 | H117: 0 | I117: 0 | J117: 0 | K117: 0 | L117: 0 | M117: 0
A118: Revenue Generating | C118: 0 | D118: =D22+D54+D86 -> 0 | E118: 0 | F118: 0 | G118: 0 | H118: 0 | I118: 0 | J118: 0 | K118: 0 | L118: 0 | M118: 0
A119: Non-revenue Generating | C119: 0 | D119: =D23+D55+D87 -> 0 | E119: 0 | F119: 0 | G119: 0 | H119: 0 | I119: 0 | J119: 0 | K119: 0 | L119: 0 | M119: 0
A120: Investment properties | C120: 0 | D120: =D24+D56+D88 -> 0 | E120: 0 | F120: 0 | G120: 0 | H120: 0 | I120: 0 | J120: 0 | K120: 0 | L120: 0 | M120: 0
A121: Operational Buildings | C121: 9383657.86 | D121: =D25+D57+D89 -> 0 | E121: 0 | F121: 0 | G121: 0 | H121: 0 | I121: -800000 | J121: -800000 | K121: 8583657.86 | L121: 3955000 | M121: 2342092
A122: Housing | C122: 0 | D122: =D26+D58+D90 -> 0 | E122: 0 | F122: 0 | G122: 0 | H122: 0 | I122: 0 | J122: 0 | K122: 0 | L122: 0 | M122: 0
A123: Other Assets | C123: 9383657.86 | D123: =D27+D59+D91 -> 0 | E123: 0 | F123: 0 | G123: 0 | H123: 0 | I123: -800000 | J123: -800000 | K123: 8583657.86 | L123: 3955000 | M123: 2342092
A124: Biological or Cultivated Assets | C124: 0 | D124: =D28+D60+D92 -> 0 | E124: 0 | F124: 0 | G124: 0 | H124: 0 | I124: 0 | J124: 0 | K124: 0 | L124: 0 | M124: 0
A125: Servitudes | C125: 0 | D125: =D29+D61+D93 -> 0 | E125: 0 | F125: 0 | G125: 0 | H125: 0 | I125: 0 | J125: 0 | K125: 0 | L125: 0 | M125: 0
A126: Licences and Rights | C126: 1050000 | D126: =D30+D62+D94 -> 0 | E126: 0 | F126: 0 | G126: 0 | H126: 0 | I126: 0 | J126: 0 | K126: 1050000 | L126: 0 | M126: 0
A127: Intangible Assets | C127: 1050000 | D127: =D31+D63+D95 -> 0 | E127: 0 | F127: 0 | G127: 0 | H127: 0 | I127: 0 | J127: 0 | K127: 1050000 | L127: 0 | M127: 0
A128: Computer Equipment | C128: 380000 | D128: =D32+D64+D96 -> 0 | E128: 0 | F128: 0 | G128: 0 | H128: 0 | I128: 0 | J128: 0 | K128: 380000 | L128: 0 | M128: 0
A129: Furniture and Office Equipment | C129: 1660000 | D129: =D33+D65+D97 -> 0 | E129: 0 | F129: 0 | G129: 0 | H129: 0 | I129: 806838 | J129: 806838 | K129: 2466838 | L129: 0 | M129: 0
A130: Machinery and Equipment | C130: 9750000 | D130: =D34+D66+D98 -> 0 | E130: 0 | F130: 0 | G130: 0 | H130: 0 | I130: 2000000 | J130: 2000000 | K130: 11750000 | L130: 1200000 | M130: 0
A131: Transport Assets | C131: 1100000 | D131: =D35+D67+D99 -> 0 | E131: 0 | F131: 0 | G131: 0 | H131: 0 | I131: 0 | J131: 0 | K131: 1100000 | L131: 0 | M131: 0
A132: Land | C132: 0 | D132: =D36+D68+D100 -> 0 | E132: 0 | F132: 0 | G132: 0 | H132: 0 | I132: 0 | J132: 0 | K132: 0 | L132: 0 | M132: 0
A133: Zoo's, Marine and Non-biological Animals | C133: 0 | D133: =D37+D69+D101 -> 0 | E133: 0 | F133: 0 | G133: 0 | H133: 0 | I133: 0 | J133: 0 | K133: 0 | L133: 0 | M133: 0
A134: TOTAL CAPITAL EXPENDITURE to be adjusted | B134: 4 | C134: =C7+C39+C71 -> 179276318.9 | D134: =D7+D39+D71 -> 0 | E134: 0 | F134: 0 | G134: 0 | H134: 0 | I134: -5615605 | J134: -5615605 | K134: 173660713.9 | L134: 174388883 | M134: 192009876
A136: ASSET REGISTER SUMMARY - PPE (WDV) | B136: 5
A137: =+A8 -> Roads Infrastructure | C137: =441610253+2500000+1700000+1200000+800000+800000+6000000+400000+600000+600000+5283210+7450000+4987800+5503600+5401000+50000000 -> 534835863 | I137: =-13212343-2000000 -> -15212343 | J137: =SUM(E137:I137) -> -15212343 | K137: =IF(D137=0,C137+J137,D137+J137) -> 519623520 | L137: =441610253+2500000+1700000+1200000+800000+800000+6000000+400000+600000+600000+5283210+7450000+4987800+5503600+5401000+85000000+1400000+12339739.5452082 -> 583575602.5 | M137: =441610253+2500000+1700000+1200000+800000+800000+6000000+400000+600000+600000+5283210+7450000+4987800+5503600+5401000+91000000+19120548.2540743 -> 594956411.3
A138: =+A9 -> Storm water Infrastructure | C138: 0 | J138: 0 | K138: =IF(D138=0,C138+J138,D138+J138) -> 0
A139: Electrical Infrastructure | C139: =60068441+20000000-6439283.39526117 -> 73629157.6 | I139: =1477256+6650000 -> 8127256 | J139: 8127256 | K139: =IF(D139=0,C139+J139,D139+J139) -> 81756413.6 | L139: =60068441+18410000+3500000 -> 81978441 | M139: =60068441+21450000 -> 81518441
A140: Water Supply Infrastructure | C140: 0 | J140: 0 | K140: =IF(D140=0,C140+J140,D140+J140) -> 0 | L140: 0 | M140: 0
A141: Sanitation Infrastructure | C141: 0 | J141: 0 | K141: =IF(D141=0,C141+J141,D141+J141) -> 0 | L141: 0 | M141: 0
A142: Solid Waste Infrastructure | C142: =2997102+2000000 -> 4997102 | I142: =-1000000+800000 -> -200000 | J142: -200000 | K142: 4797102 | L142: =2997102+2000000+300000 -> 5297102 | M142: 2997102
A143: Rail Infrastructure | C143: 0 | J143: 0 | K143: 0 | L143: 0 | M143: 0
A144: Coastal Infrastructure | C144: 0 | J144: 0 | K144: 0 | L144: 0 | M144: 0
A145: Information and Communication Infrastructure | C145: 0 | J145: 0 | K145: 0 | L145: 0 | M145: 0
A146: Infrastructure | C146: =SUM(C137:C145) -> 613462122.6 | D146: 0 | E146: 0 | F146: 0 | G146: 0 | H146: 0 | I146: -7285087 | J146: -7285087 | K146: 606177035.6 | L146: =SUM(L137:L145) -> 670851145.5 | M146: =SUM(M137:M145) -> 679471954.3
A147: Community Facilities | C147: 0 | J147: =SUM(E147:I147) -> 0 | K147: =IF(D147=0,C147+J147,D147+J147) -> 0 | L147: 0 | M147: 0
A148: Sport and Recreation Facilities | C148: =165446335+5593206+5593206+13050771+11884803 -> 201568321 | I148: =-500000-600000-400000+3165815 -> 1665815 | J148: =SUM(E148:I148) -> 1665815 | K148: =IF(D148=0,C148+J148,D148+J148) -> 203234136 | L148: =165446335+5593206+5593206+13050771+11884803+13902226+10000000+17000000+17000000+25000000 -> 284470547 | M148: =165446335+5593206+5593206+13050771+11884803+13902226+10000000+17000000+17000000+17341500+16341500 -> 293153547
A149: Community Assets | C149: =SUM(C147:C148) -> 201568321 | D149: =SUM(D147:D148) -> 0 | E149: 0 | F149: 0 | G149: 0 | H149: 0 | I149: 1665815 | J149: 1665815 | K149: 203234136 | L149: 284470547 | M149: 293153547
A150: Heritage Assets | J150: =SUM(E150:I150) -> 0 | K150: 0
A151: Revenue Generating | J151: =SUM(E151:I151) -> 0 | K151: 0
A152: Non-revenue Generating | J152: =SUM(E152:I152) -> 0 | K152: 0
A153: Investment properties | C153: =SUM(C151:C152) -> 0 | D153: 0 | E153: 0 | F153: 0 | G153: 0 | H153: 0 | I153: 0 | J153: 0 | K153: 0 | L153: 0 | M153: 0
A154: Operational Buildings | J154: =SUM(E154:I154) -> 0 | K154: =IF(D154=0,C154+J154,D154+J154) -> 0
A155: Housing | J155: =SUM(E155:I155) -> 0 | K155: =IF(D155=0,C155+J155,D155+J155) -> 0
A156: Other Assets | C156: =SUM(C154:C155) -> 0 | D156: 0 | E156: 0 | F156: 0 | G156: 0 | H156: 0 | I156: 0 | J156: 0 | K156: 0 | L156: 0 | M156: 0
A157: Biological or Cultivated Assets | J157: =SUM(E157:I157) -> 0 | K157: =IF(D157=0,C157+J157,D157+J157) -> 0
A158: Servitudes | J158: =SUM(E158:I158) -> 0 | K158: 0
A159: Licences and Rights | J159: =SUM(E159:I159) -> 0 | K159: 0
A160: Intangible Assets | C160: =SUM(C158:C159) -> 0 | D160: 0 | E160: 0 | F160: 0 | G160: 0 | H160: 0 | I160: 0 | J160: 0 | K160: 0 | L160: 0 | M160: 0
A161: Computer Equipment | C161: =2497928+180000+200000 -> 2877928 | I161: =1156827-200000 -> 956827 | J161: =SUM(E161:I161) -> 956827 | K161: =IF(D161=0,C161+J161,D161+J161) -> 3834755 | L161: =2497928+380000+350000+25000 -> 3252928 | M161: =2497928+380000+350000 -> 3227928
A162: Furniture and Office Equipment | C162: =6607690+390000 -> 6997690 | I162: =806838+170000+1000000-200000-800000-600000 -> 376838 | J162: 376838 | K162: 7374528 | L162: =6607690+2500000 -> 9107690 | M162: 6607690
A163: Machinery and Equipment | C163: =1500000+400000+13443574+820000 -> 16163574 | I163: -1330306 | J163: -1330306 | K163: 14833268 | L163: =1500000+400000+13443574+5000000 -> 20343574 | M163: =1500000+400000+13443574 -> 15343574
A164: Transport Assets | C164: =12703451+600000 -> 13303451 | I164: 0 | J164: 0 | K164: 13303451 | L164: =12703451+2500000+1000000 -> 16203451 | M164: 12703451
A165: Land | C165: 0 | J165: 0 | K165: 0 | L165: 0 | M165: 0
A166: Zoo's, Marine and Non-biological Animals | C166: 0 | J166: 0 | K166: 0 | L166: 0 | M166: 0
A167: TOTAL ASSET REGISTER SUMMARY - PPE (WDV) | B167: 5 | C167: =C146+C149+C150+C153+C156+C157+SUM(C160:C166) -> 854373086.6 | D167: =D146+D149+D150+D153+D156+D157+SUM(D160:D166) -> 0 | E167: 0 | F167: 0 | G167: 0 | H167: 0 | I167: -5615913 | J167: -5615913 | K167: 848757173.6 | L167: 1004229336 | M167: 1010508144
A169: EXPENDITURE OTHER ITEMS
A170: Depreciation & asset impairment | C170: =SB18d!C169 -> 5043379.812 | D170: =SB18d!D169 -> 0 | E170: =SB18d!E169 -> 0 | F170: =SB18d!F169 -> 0 | G170: =SB18d!G169 -> 0 | H170: =SB18d!H169 -> 0 | I170: =SB18d!I169 -> 898831.77 | J170: =SB18d!J169 -> 898831.77 | K170: =SB18d!K169 -> 5942211.582 | L170: =SB18d!L169 -> 6865247.683 | M170: =SB18d!M169 -> 7311489.318
A171: Repairs and Maintenance by asset class | B171: 3 | C171: =C181+C184+C185+C188+C191+C192+SUM(C195:C201) -> 22098649.14 | D171: =D181+D184+D185+D188+D191+D192+SUM(D195:D201) -> 0 | E171: =E181+E184+E185+E188+E191+E192+SUM(E195:E201) -> 0 | F171: =F181+F184+F185+F188+F191+F192+SUM(F195:F201) -> 0 | G171: 0 | H171: 0 | I171: 668652 | J171: 668652 | K171: 22767301.14 | L171: =L181+L184+L185+L188+L191+L192+SUM(L195:L201) -> 11633000 | M171: =M181+M184+M185+M188+M191+M192+SUM(M195:M201) -> 12343000
A172: =+A8 -> Roads Infrastructure | C172: =SB18c!C9 -> 9315704 | D172: =SB18c!D9 -> 0 | E172: =SB18c!E9 -> 0 | F172: =SB18c!F9 -> 0 | G172: =SB18c!G9 -> 0 | H172: =SB18c!H9 -> 0 | I172: =SB18c!I9 -> 668652 | J172: =SB18c!J9 -> 668652 | K172: =SB18c!K9 -> 9984356 | L172: =SB18c!L9 -> 2549000 | M172: =SB18c!M9 -> 3799000
A173: =+A9 -> Storm water Infrastructure | C173: =SB18c!C14 -> 0 | D173: =SB18c!D14 -> 0 | E173: =SB18c!E14 -> 0 | F173: =SB18c!F14 -> 0 | G173: =SB18c!G14 -> 0 | H173: =SB18c!H14 -> 0 | I173: =SB18c!I14 -> 0 | J173: =SB18c!J14 -> 0 | K173: =SB18c!K14 -> 0 | L173: =SB18c!L14 -> 0 | M173: =SB18c!M14 -> 0
A174: Electrical Infrastructure | C174: =SB18c!C18 -> 4752470 | D174: =SB18c!D18 -> 0 | E174: =SB18c!E18 -> 0 | F174: =SB18c!F18 -> 0 | G174: =SB18c!G18 -> 0 | H174: =SB18c!H18 -> 0 | I174: =SB18c!I18 -> 0 | J174: =SB18c!J18 -> 0 | K174: =SB18c!K18 -> 4752470 | L174: =SB18c!L18 -> 2009000 | M174: =SB18c!M18 -> 2613000
A175: Water Supply Infrastructure | C175: =SB18c!C28 -> 0 | D175: =SB18c!D28 -> 0 | E175: =SB18c!E28 -> 0 | F175: =SB18c!F28 -> 0 | G175: =SB18c!G28 -> 0 | H175: =SB18c!H28 -> 0 | I175: =SB18c!I28 -> 0 | J175: =SB18c!J28 -> 0 | K175: =SB18c!K28 -> 0 | L175: =SB18c!L28 -> 0 | M175: =SB18c!M28 -> 0
A176: Sanitation Infrastructure | C176: =SB18c!C39 -> 0 | D176: =SB18c!D39 -> 0 | E176: =SB18c!E39 -> 0 | F176: =SB18c!F39 -> 0 | G176: =SB18c!G39 -> 0 | H176: =SB18c!H39 -> 0 | I176: =SB18c!I39 -> 0 | J176: =SB18c!J39 -> 0 | K176: =SB18c!K39 -> 0 | L176: =SB18c!L39 -> 0 | M176: =SB18c!M39 -> 0
A177: Solid Waste Infrastructure | C177: =SB18c!C46 -> 0 | D177: =SB18c!D46 -> 0 | E177: =SB18c!E46 -> 0 | F177: =SB18c!F46 -> 0 | G177: =SB18c!G46 -> 0 | H177: =SB18c!H46 -> 0 | I177: =SB18c!I46 -> 0 | J177: =SB18c!J46 -> 0 | K177: =SB18c!K46 -> 0 | L177: =SB18c!L46 -> 0 | M177: =SB18c!M46 -> 0
A178: Rail Infrastructure | C178: =SB18c!C54 -> 0 | D178: =SB18c!D54 -> 0 | E178: =SB18c!E54 -> 0 | F178: =SB18c!F54 -> 0 | G178: =SB18c!G54 -> 0 | H178: =SB18c!H54 -> 0 | I178: =SB18c!I54 -> 0 | J178: =SB18c!J54 -> 0 | K178: =SB18c!K54 -> 0 | L178: =SB18c!L54 -> 0 | M178: =SB18c!M54 -> 0
A179: Coastal Infrastructure | C179: =SB18c!C64 -> 0 | D179: =SB18c!D64 -> 0 | E179: =SB18c!E64 -> 0 | F179: =SB18c!F64 -> 0 | G179: =SB18c!G64 -> 0 | H179: =SB18c!H64 -> 0 | I179: =SB18c!I64 -> 0 | J179: =SB18c!J64 -> 0 | K179: =SB18c!K64 -> 0 | L179: =SB18c!L64 -> 0 | M179: =SB18c!M64 -> 0
A180: Information and Communication Infrastructure | C180: =SB18c!C70 -> 0 | D180: =SB18c!D70 -> 0 | E180: =SB18c!E70 -> 0 | F180: =SB18c!F70 -> 0 | G180: =SB18c!G70 -> 0 | H180: =SB18c!H70 -> 0 | I180: =SB18c!I70 -> 0 | J180: =SB18c!J70 -> 0 | K180: =SB18c!K70 -> 0 | L180: =SB18c!L70 -> 0 | M180: =SB18c!M70 -> 0
A181: Infrastructure | C181: =SUM(C172:C180) -> 14068174 | D181: =SUM(D172:D180) -> 0 | E181: 0 | F181: 0 | G181: 0 | H181: 0 | I181: 668652 | J181: 668652 | K181: 14736826 | L181: 4558000 | M181: 6412000
A182: Community Facilities | C182: =SB18c!C77 -> 549933 | D182: =SB18c!D77 -> 0 | E182: =SB18c!E77 -> 0 | F182: =SB18c!F77 -> 0 | G182: =SB18c!G77 -> 0 | H182: =SB18c!H77 -> 0 | I182: =SB18c!I77 -> 0 | J182: =SB18c!J77 -> 0 | K182: =SB18c!K77 -> 549933 | L182: =SB18c!L77 -> 580000 | M182: =SB18c!M77 -> 612000
A183: Sport and Recreation Facilities | C183: =SB18c!C100 -> 200000 | D183: =SB18c!D100 -> 0 | E183: =SB18c!E100 -> 0 | F183: =SB18c!F100 -> 0 | G183: =SB18c!G100 -> 0 | H183: =SB18c!H100 -> 0 | I183: =SB18c!I100 -> 0 | J183: =SB18c!J100 -> 0 | K183: =SB18c!K100 -> 200000 | L183: =SB18c!L100 -> 211000 | M183: =SB18c!M100 -> 222000
A184: Community Assets | C184: =SUM(C182:C183) -> 749933 | D184: =SUM(D182:D183) -> 0 | E184: 0 | F184: 0 | G184: 0 | H184: 0 | I184: 0 | J184: 0 | K184: 749933 | L184: 791000 | M184: 834000
A185: Heritage Assets | C185: =SB18c!C105 -> 0 | D185: =SB18c!D105 -> 0 | E185: =SB18c!E105 -> 0 | F185: =SB18c!F105 -> 0 | G185: =SB18c!G105 -> 0 | H185: =SB18c!H105 -> 0 | I185: =SB18c!I105 -> 0 | J185: =SB18c!J105 -> 0 | K185: =SB18c!K105 -> 0 | L185: =SB18c!L105 -> 0 | M185: =SB18c!M105 -> 0
A186: Revenue Generating | C186: =SB18c!C113 -> 0 | D186: =SB18c!D113 -> 0 | E186: =SB18c!E113 -> 0 | F186: =SB18c!F113 -> 0 | G186: =SB18c!G113 -> 0 | H186: =SB18c!H113 -> 0 | I186: =SB18c!I113 -> 0 | J186: =SB18c!J113 -> 0 | K186: =SB18c!K113 -> 0 | L186: =SB18c!L113 -> 0 | M186: =SB18c!M113 -> 0
A187: Non-revenue Generating | C187: =SB18c!C116 -> 0 | D187: =SB18c!D116 -> 0 | E187: =SB18c!E116 -> 0 | F187: =SB18c!F116 -> 0 | G187: =SB18c!G116 -> 0 | H187: =SB18c!H116 -> 0 | I187: =SB18c!I116 -> 0 | J187: =SB18c!J116 -> 0 | K187: =SB18c!K116 -> 0 | L187: =SB18c!L116 -> 0 | M187: =SB18c!M116 -> 0
A188: Investment properties | C188: =SUM(C186:C187) -> 0 | D188: =SUM(D186:D187) -> 0 | E188: 0 | F188: 0 | G188: 0 | H188: 0 | I188: 0 | J188: 0 | K188: 0 | L188: 0 | M188: 0
A189: Operational Buildings | C189: =SB18c!C121 -> 1765731 | D189: =SB18c!D121 -> 0 | E189: =SB18c!E121 -> 0 | F189: =SB18c!F121 -> 0 | G189: =SB18c!G121 -> 0 | H189: =SB18c!H121 -> 0 | I189: =SB18c!I121 -> 0 | J189: =SB18c!J121 -> 0 | K189: =SB18c!K121 -> 1765731 | L189: =SB18c!L121 -> 863000 | M189: =SB18c!M121 -> 965000
A190: Housing | C190: =SB18c!C133 -> 0 | D190: =SB18c!D133 -> 0 | E190: =SB18c!E133 -> 0 | F190: =SB18c!F133 -> 0 | G190: =SB18c!G133 -> 0 | H190: =SB18c!H133 -> 0 | I190: =SB18c!I133 -> 0 | J190: =SB18c!J133 -> 0 | K190: =SB18c!K133 -> 0 | L190: =SB18c!L133 -> 0 | M190: =SB18c!M133 -> 0
A191: Other Assets | C191: =SUM(C189:C190) -> 1765731 | D191: =SUM(D189:D190) -> 0 | E191: 0 | F191: 0 | G191: 0 | H191: 0 | I191: 0 | J191: 0 | K191: 1765731 | L191: 863000 | M191: 965000
A192: Biological or Cultivated Assets | C192: =SB18c!C138 -> 0 | D192: =SB18c!D138 -> 0 | E192: =SB18c!E138 -> 0 | F192: =SB18c!F138 -> 0 | G192: =SB18c!G138 -> 0 | H192: =SB18c!H138 -> 0 | I192: =SB18c!I138 -> 0 | J192: =SB18c!J138 -> 0 | K192: =SB18c!K138 -> 0 | L192: =SB18c!L138 -> 0 | M192: =SB18c!M138 -> 0
A193: Servitudes | C193: =SB18c!C142 -> 0 | D193: =SB18c!D142 -> 0 | E193: =SB18c!E142 -> 0 | F193: =SB18c!F142 -> 0 | G193: =SB18c!G142 -> 0 | H193: =SB18c!H142 -> 0 | I193: =SB18c!I142 -> 0 | J193: =SB18c!J142 -> 0 | K193: =SB18c!K142 -> 0 | L193: =SB18c!L142 -> 0 | M193: =SB18c!M142 -> 0
A194: Licences and Rights | C194: =SB18c!C143 -> 0 | D194: =SB18c!D143 -> 0 | E194: =SB18c!E143 -> 0 | F194: =SB18c!F143 -> 0 | G194: =SB18c!G143 -> 0 | H194: =SB18c!H143 -> 0 | I194: =SB18c!I143 -> 0 | J194: =SB18c!J143 -> 0 | K194: =SB18c!K143 -> 0 | L194: =SB18c!L143 -> 0 | M194: =SB18c!M143 -> 0
A195: Intangible Assets | C195: =SUM(C193:C194) -> 0 | D195: =SUM(D193:D194) -> 0 | E195: 0 | F195: 0 | G195: 0 | H195: 0 | I195: 0 | J195: 0 | K195: 0 | L195: 0 | M195: 0
A196: Computer Equipment | C196: =SB18c!C151 -> 1801663 | D196: =SB18c!D151 -> 0 | E196: =SB18c!E151 -> 0 | F196: =SB18c!F151 -> 0 | G196: =SB18c!G151 -> 0 | H196: =SB18c!H151 -> 0 | I196: =SB18c!I151 -> 0 | J196: =SB18c!J151 -> 0 | K196: =SB18c!K151 -> 1801663 | L196: =SB18c!L151 -> 1899000 | M196: =SB18c!M151 -> 1003000
A197: Furniture and Office Equipment | C197: =SB18c!C154 -> 0 | D197: =SB18c!D154 -> 0 | E197: =SB18c!E154 -> 0 | F197: =SB18c!F154 -> 0 | G197: =SB18c!G154 -> 0 | H197: =SB18c!H154 -> 0 | I197: =SB18c!I154 -> 0 | J197: =SB18c!J154 -> 0 | K197: =SB18c!K154 -> 0 | L197: =SB18c!L154 -> 0 | M197: =SB18c!M154 -> 0
A198: Machinery and Equipment | C198: =SB18c!C157 -> 1100777.14 | D198: =SB18c!D157 -> 0 | E198: =SB18c!E157 -> 0 | F198: =SB18c!F157 -> 0 | G198: =SB18c!G157 -> 0 | H198: =SB18c!H157 -> 0 | I198: =SB18c!I157 -> 0 | J198: =SB18c!J157 -> 0 | K198: =SB18c!K157 -> 1100777.14 | L198: =SB18c!L157 -> 1161000 | M198: =SB18c!M157 -> 1224000
A199: Transport Assets | C199: =SB18c!C160 -> 2612371 | D199: =SB18c!D160 -> 0 | E199: =SB18c!E160 -> 0 | F199: =SB18c!F160 -> 0 | G199: =SB18c!G160 -> 0 | H199: =SB18c!H160 -> 0 | I199: =SB18c!I160 -> 0 | J199: =SB18c!J160 -> 0 | K199: =SB18c!K160 -> 2612371 | L199: =SB18c!L160 -> 2361000 | M199: =SB18c!M160 -> 1905000
A200: Land | C200: =SB18c!C163 -> 0 | D200: =SB18c!D163 -> 0 | E200: =SB18c!E163 -> 0 | F200: =SB18c!F163 -> 0 | G200: =SB18c!G163 -> 0 | H200: =SB18c!H163 -> 0 | I200: =SB18c!I163 -> 0 | J200: =SB18c!J163 -> 0 | K200: =SB18c!K163 -> 0 | L200: =SB18c!L163 -> 0 | M200: =SB18c!M163 -> 0
A201: Zoo's, Marine and Non-biological Animals | B201: 6 | C201: =SB18c!C166 -> 0 | D201: =SB18c!D166 -> 0 | E201: =SB18c!E166 -> 0 | F201: =SB18c!F166 -> 0 | G201: =SB18c!G166 -> 0 | H201: =SB18c!H166 -> 0 | I201: =SB18c!I166 -> 0 | J201: =SB18c!J166 -> 0 | K201: =SB18c!K166 -> 0 | L201: =SB18c!L166 -> 0 | M201: =SB18c!M166 -> 0
A202: TOTAL EXPENDITURE OTHER ITEMS to be adjusted | C202: =+C170+C171 -> 27142028.95 | D202: =+D170+D171 -> 0 | E202: 0 | F202: 0 | G202: 0 | H202: 0 | I202: 1567483.77 | J202: 1567483.77 | K202: 28709512.72 | L202: 18498247.68 | M202: 19654489.32
A204: Renewal and upgrading of Existing Assets as % of total capex | C204: =IF(ISERROR((C39+C71)/C134),0,((C39+C71)/C134)) -> 0.1510713223 | D204: =IF(ISERROR((D39+D71)/D134),0,((D39+D71)/D134)) -> 0 | K204: =IF(ISERROR((K39+K71)/K134),0,((K39+K71)/K134)) -> 0.1559564621 | L204: =IF(ISERROR((L39+L71)/L134),0,((L39+L71)/L134)) -> 0 | M204: =IF(ISERROR((M39+M71)/M134),0,((M39+M71)/M134)) -> 0
A205: Renewal and upgrading of Existing Assets as % of deprecn" | C205: =IF(ISERROR((C39+C71)/C170),0,((C39+C71)/C170)) -> 5.370111225 | D205: =IF(ISERROR((D39+D71)/D170),0,((D39+D71)/D170)) -> 0 | K205: =IF(ISERROR((K39+K71)/K170),0,((K39+K71)/K170)) -> 4.557816592 | L205: =IF(ISERROR((L39+L71)/L170),0,((L39+L71)/L170)) -> 0 | M205: =IF(ISERROR((M39+M71)/M170),0,((M39+M71)/M170)) -> 0
A206: R&M as a % of PPE | C206: =IF(ISERROR(C171/C167),0,(C171/C167)) -> 0.02586533856 | D206: =IF(ISERROR(D171/D167),0,(D171/D167)) -> 0 | K206: =IF(ISERROR(K171/K167),0,(K171/K167)) -> 0.02682428125 | L206: =IF(ISERROR(L171/L167),0,(L171/L167)) -> 0.01158400735 | M206: =IF(ISERROR(M171/M167),0,(M171/M167)) -> 0.01221464673
... 18 more rows

Sheet B10-SerDel
A1: =muni&" - "&_ADJ10&" - "&Date -> LIM332 Greater Letaba - Table B10 Basic service delivery measurement - 27 February 2019
A2: =desc -> Description | B2: =head27 -> Ref | C2: =Head2 -> Budget Year 2018/19 | L2: =Head10 -> Budget Year +1 2019/20 | M2: =Head11 -> Budget Year +2 2020/21
C3: =Head6 -> Original Budget | D3: =Head54 -> Prior Adjusted | E3: =Head51 -> Accum. Funds | F3: =Head52 -> Multi-year capital | G3: =Head53 -> Unfore. Unavoid. | H3: =Head55 -> Nat. or Prov. Govt | I3: =Head50 -> Other Adjusts. | J3: =Head56 -> Total Adjusts. | K3: =Head7 -> Adjusted Budget | L3: =Head7 -> Adjusted Budget | M3: =Head7 -> Adjusted Budget
D4: 7 | E4: 8 | F4: 9 | G4: 10 | H4: 11 | I4: 12 | J4: 13 | K4: 14
C5: A | D5: A1 | E5: B | F5: C | G5: D | H5: E | I5: F | J5: G | K5: H
A6: Household service targets | B6: 1
A7: Water:
A8: Piped water inside dwelling | C8: 7948 | J8: =SUM(E8:I8) -> 0 | K8: =IF(D8=0,C8+J8,D8+J8) -> 7948 | L8: 7948 | M8: 7948
A9: Piped water inside yard (but not in dwelling) | C9: 21320 | J9: 0 | K9: 21320 | L9: 21320 | M9: 21320
A10: Using public tap (at least min.service level) | B10: 2 | C10: 19277 | J10: 0 | K10: 19277 | L10: 19277 | M10: 19277
A11: Other water supply (at least min.service level) | J11: 0 | K11: 0
A12: Minimum Service Level and Above sub-total | C12: =SUM(C8:C11) -> 48545 | D12: 0 | E12: 0 | F12: 0 | G12: 0 | H12: 0 | I12: 0 | J12: 0 | K12: 48545 | L12: 48545 | M12: 48545
A13: Using public tap (< min.service level) | B13: 3 | C13: 48545 | J13: 0 | K13: 48545 | L13: 48545 | M13: 48545
A14: Other water supply (< min.service level) | B14: 3,4 | C14: 9462 | J14: 0 | K14: 9462 | L14: 9462 | M14: 9462
A15: No water supply | C15: 9060 | J15: 0 | K15: 9060 | L15: 9060 | M15: 9060
A16: Below Minimum Servic Level sub-total | C16: =SUM(C13:C15) -> 67067 | D16: 0 | E16: 0 | F16: 0 | G16: 0 | H16: 0 | I16: 0 | J16: 0 | K16: 67067 | L16: 67067 | M16: 67067
A17: Total number of households | B17: 5 | C17: =C12+C16 -> 115612 | D17: 0 | E17: 0 | F17: 0 | G17: 0 | H17: 0 | I17: 0 | J17: 0 | K17: 115612 | L17: 115612 | M17: 115612
A18: Sanitation/sewerage:
A19: Flush toilet (connected to sewerage) | C19: 9003 | J19: =SUM(E19:I19) -> 0 | K19: =IF(D19=0,C19+J19,D19+J19) -> 9003 | L19: 9003 | M19: 9003
A20: Flush toilet (with septic tank) | C20: 8011 | J20: 0 | K20: 8011 | L20: 8011 | M20: 8011
A21: Chemical toilet | C21: 12012 | J21: 0 | K21: 12012 | L21: 12012 | M21: 12012
A22: Pit toilet (ventilated) | C22: 21012 | J22: 0 | K22: 21012 | L22: 21012 | M22: 21012
A23: Other toilet provisions (> min.service level) | C23: 6008 | J23: 0 | K23: 6008 | L23: 6008 | M23: 6008
A24: =$A$12 -> Minimum Service Level and Above sub-total | C24: =SUM(C19:C23) -> 56046 | D24: 0 | E24: 0 | F24: 0 | G24: 0 | H24: 0 | I24: 0 | J24: 0 | K24: 56046 | L24: 56046 | M24: 56046
A25: Bucket toilet | C25: 1000 | J25: 0 | K25: 1000 | L25: 1000 | M25: 1000
A26: Other toilet provisions (< min.service level) | C26: 2011 | J26: 0 | K26: 2011 | L26: 2011 | M26: 2011
A27: No toilet provisions | C27: 8010 | J27: 0 | K27: 8010 | L27: 8010 | M27: 8010
A28: =$A$16 -> Below Minimum Servic Level sub-total | C28: =SUM(C25:C27) -> 11021 | D28: 0 | E28: 0 | F28: 0 | G28: 0 | H28: 0 | I28: 0 | J28: 0 | K28: 11021 | L28: 11021 | M28: 11021
A29: =$A$17 -> Total number of households | B29: =$B$17 -> 5 | C29: =C24+C28 -> 67067 | D29: 0 | E29: 0 | F29: 0 | G29: 0 | H29: 0 | I29: 0 | J29: 0 | K29: 67067 | L29: 67067 | M29: 67067
A30: Energy:
A31: Electricity (at least min. service level) | C31: 56260 | J31: =SUM(E31:I31) -> 0 | K31: =IF(D31=0,C31+J31,D31+J31) -> 56260 | L31: 56260 | M31: 56260
A32: Electricity - prepaid (> min.service level) | C32: 6002 | J32: 0 | K32: 6002 | L32: 6002 | M32: 6002
A33: =$A$12 -> Minimum Service Level and Above sub-total | C33: =SUM(C31:C32) -> 62262 | D33: 0 | E33: 0 | F33: 0 | G33: 0 | H33: 0 | I33: 0 | J33: 0 | K33: 62262 | L33: 62262 | M33: 62262
A34: Electricity (< min.service level) | C34: 0 | J34: 0 | K34: 0 | L34: 0 | M34: 0
A35: Electricity - prepaid (< min. service level) | C35: 4805 | J35: 0 | K35: 4805 | L35: 4805 | M35: 4805
A36: Other energy sources | C36: 0 | J36: 0 | K36: 0 | L36: 0 | M36: 0
A37: =$A$16 -> Below Minimum Servic Level sub-total | C37: =SUM(C34:C36) -> 4805 | D37: 0 | E37: 0 | F37: 0 | G37: 0 | H37: 0 | I37: 0 | J37: 0 | K37: 4805 | L37: 4805 | M37: 4805
A38: =$A$17 -> Total number of households | B38: =$B$17 -> 5 | C38: =C33+C37 -> 67067 | D38: 0 | E38: 0 | F38: 0 | G38: 0 | H38: 0 | I38: 0 | J38: 0 | K38: 67067 | L38: 67067 | M38: 67067
A39: Refuse:
A40: Removed at least once a week (min.service) | C40: 7454 | J40: =SUM(E40:I40) -> 0 | K40: =IF(D40=0,C40+J40,D40+J40) -> 7454 | L40: 7454 | M40: 7454
A41: =$A$12 -> Minimum Service Level and Above sub-total | C41: =SUM(C40) -> 7454 | D41: 0 | E41: 0 | F41: 0 | G41: 0 | H41: 0 | I41: 0 | J41: =SUM(E41:I41) -> 0 | K41: 7454 | L41: =SUM(L40) -> 7454 | M41: =SUM(M40) -> 7454
A42: Removed less frequently than once a week | C42: 978 | J42: 0 | K42: 978 | L42: 978 | M42: 978
A43: Using communal refuse dump | C43: 1051 | J43: 0 | K43: 1051 | L43: 1051 | M43: 1051
A44: Using own refuse dump | C44: 45815 | J44: 0 | K44: 45815 | L44: 45815 | M44: 45815
A45: Other rubbish disposal | C45: 10554 | J45: 0 | K45: 10554 | L45: 10554 | M45: 10554
A46: No rubbish disposal | C46: 1215 | J46: 0 | K46: 1215 | L46: 1215 | M46: 1215
A47: =$A$16 -> Below Minimum Servic Level sub-total | C47: =SUM(C42:C46) -> 59613 | D47: 0 | E47: 0 | F47: 0 | G47: 0 | H47: 0 | I47: 0 | J47: 0 | K47: 59613 | L47: 59613 | M47: 59613
A48: =$A$17 -> Total number of households | B48: =$B$17 -> 5 | C48: =C41+C47 -> 67067 | D48: 0 | E48: 0 | F48: 0 | G48: 0 | H48: 0 | I48: 0 | J48: =J40+J47 -> 0 | K48: =K40+K47 -> 67067 | L48: =L41+L47 -> 67067 | M48: =M41+M47 -> 67067
A50: Households receiving Free Basic Service | B50: 15
A51: Water (6 kilolitres per household per month) | C51: ='SB5'!E263 -> 120 | D51: ='SB5'!F263 -> 0 | E51: ='SB5'!G263 -> 0 | F51: ='SB5'!H263 -> 0 | G51: ='SB5'!I263 -> 0 | H51: ='SB5'!J263 -> 0 | I51: ='SB5'!K263 -> 0 | J51: =SUM(E51:I51) -> 0 | K51: =IF(D51=0,C51+J51,D51+J51) -> 120 | L51: ='SB5'!N263 -> 120 | M51: ='SB5'!O263 -> 120
A52: Sanitation (free minimum level service) | C52: ='SB5'!E275 -> 120 | D52: ='SB5'!F275 -> 0 | E52: ='SB5'!G275 -> 0 | F52: ='SB5'!H275 -> 0 | G52: ='SB5'!I275 -> 0 | H52: ='SB5'!J275 -> 0 | I52: ='SB5'!K275 -> 0 | J52: =SUM(E52:I52) -> 0 | K52: =IF(D52=0,C52+J52,D52+J52) -> 120 | L52: ='SB5'!N275 -> 120 | M52: ='SB5'!O275 -> 120
A53: Electricity/other energy (50kwh per household per month) | C53: ='SB5'!E251 -> 0 | D53: ='SB5'!F251 -> 0 | E53: ='SB5'!G251 -> 0 | F53: ='SB5'!H251 -> 0 | G53: ='SB5'!I251 -> 0 | H53: ='SB5'!J251 -> 0 | I53: ='SB5'!K251 -> 0 | J53: =SUM(E53:I53) -> 0 | K53: =IF(D53=0,C53+J53,D53+J53) -> 0 | L53: ='SB5'!N251 -> 0 | M53: ='SB5'!O251 -> 0
A54: Refuse (removed at least once a week) | C54: ='SB5'!E287 -> 120 | D54: ='SB5'!F287 -> 0 | E54: ='SB5'!G287 -> 0 | F54: ='SB5'!H287 -> 0 | G54: ='SB5'!I287 -> 0 | H54: ='SB5'!J287 -> 0 | I54: ='SB5'!K287 -> 0 | J54: =SUM(E54:I54) -> 0 | K54: =IF(D54=0,C54+J54,D54+J54) -> 120 | L54: ='SB5'!N287 -> 120 | M54: ='SB5'!O287 -> 120
A56: Cost of Free Basic Services provided (R'000) | B56: 16
A57: Water (6 kilolitres per indigent household per month) | C57: ='SB1'!C21 -> 0 | D57: ='SB1'!D21 -> 0 | E57: ='SB1'!E21 -> 0 | F57: ='SB1'!F21 -> 0 | G57: ='SB1'!G21 -> 0 | H57: ='SB1'!H21 -> 0 | I57: ='SB1'!I21 -> 0 | J57: =SUM(E57:I57) -> 0 | K57: =IF(D57=0,C57+J57,D57+J57) -> 0 | L57: ='SB1'!L21 -> 0 | M57: ='SB1'!M21 -> 0
A58: Sanitation (free sanitation service to indigent households) | C58: ='SB1'!C27 -> 0 | D58: ='SB1'!D27 -> 0 | E58: ='SB1'!E27 -> 0 | F58: ='SB1'!F27 -> 0 | G58: ='SB1'!G27 -> 0 | H58: ='SB1'!H27 -> 0 | I58: ='SB1'!I27 -> 0 | J58: =SUM(E58:I58) -> 0 | K58: =IF(D58=0,C58+J58,D58+J58) -> 0 | L58: ='SB1'!L27 -> 0 | M58: ='SB1'!M27 -> 0
A59: Electricity/other energy (50kwh per indigent household per month) | C59: ='SB1'!C15 -> 8000 | D59: ='SB1'!D15 -> 0 | E59: ='SB1'!E15 -> 0 | F59: ='SB1'!F15 -> 0 | G59: ='SB1'!G15 -> 0 | H59: ='SB1'!H15 -> 0 | I59: ='SB1'!I15 -> 0 | J59: =SUM(E59:I59) -> 0 | K59: =IF(D59=0,C59+J59,D59+J59) -> 8000 | L59: ='SB1'!L15 -> 8000 | M59: ='SB1'!M15 -> 8000
A60: Refuse (removed once a week for indigent households) | C60: ='SB1'!C34 -> 0 | D60: ='SB1'!D34 -> 0 | E60: ='SB1'!E34 -> 0 | F60: ='SB1'!F34 -> 0 | G60: ='SB1'!G34 -> 0 | H60: ='SB1'!H34 -> 0 | I60: ='SB1'!I34 -> 0 | J60: =SUM(E60:I60) -> 0 | K60: =IF(D60=0,C60+J60,D60+J60) -> 0 | L60: ='SB1'!L34 -> 0 | M60: ='SB1'!M34 -> 0
A61: Cost of Free Basic Services provided - Informal Formal Settlements (R'000) | C61: ='SB5'!E260+'SB5'!E272+'SB5'!E284+'SB5'!E296 -> 0 | D61: ='SB5'!F260+'SB5'!F272+'SB5'!F284+'SB5'!F296 -> 0 | E61: ='SB5'!G260+'SB5'!G272+'SB5'!G284+'SB5'!G296 -> 0 | F61: ='SB5'!H260+'SB5'!H272+'SB5'!H284+'SB5'!H296 -> 0 | G61: ='SB5'!I260+'SB5'!I272+'SB5'!I284+'SB5'!I296 -> 0 | H61: ='SB5'!J260+'SB5'!J272+'SB5'!J284+'SB5'!J296 -> 0 | I61: ='SB5'!K260+'SB5'!K272+'SB5'!K284+'SB5'!K296 -> 0 | J61: =SUM(E61:I61) -> 0 | K61: =IF(D61=0,C61+J61,D61+J61) -> 0 | L61: ='SB5'!N260+'SB5'!N272+'SB5'!N284+'SB5'!N296 -> 0 | M61: ='SB5'!O260+'SB5'!O272+'SB5'!O284+'SB5'!O296 -> 0
A62: Total cost of FBS provided | C62: =SUM(C57:C61) -> 8000 | D62: =SUM(D57:D61) -> 0 | E62: 0 | F62: 0 | G62: 0 | H62: 0 | I62: 0 | J62: 0 | K62: 8000 | L62: 8000 | M62: 8000
A64: Highest level of free service provided
A65: Property rates (R'000 value threshold) | I65: 0 | J65: =SUM(E65:I65) -> 0 | K65: =IF(D65=0,C65+J65,D65+J65) -> 0
A66: Water (kilolitres per household per month) | C66: 3759.6 | I66: 0 | J66: 0 | K66: 3759.6 | L66: 3759.6 | M66: 3759.6
A67: Sanitation (kilolitres per household per month) | I67: 0 | J67: 0 | K67: 0
A68: Sanitation (Rand per household per month) | C68: 24051.6 | I68: 0 | J68: 0 | K68: 24051.6 | L68: 24051.6 | M68: 24051.6
A69: Electricity (kw per household per month) | C69: 412400 | I69: 0 | J69: 0 | K69: 412400 | L69: 412400 | M69: 412400
A70: Refuse (average litres per week) | J70: 0 | K70: 0
A71: Revenue cost of free services provided (R'000) | B71: 17
A72: Property rates (tariff adjustment) ( impermissable values per section 17 of MPRA) | C72: 3239430.07 | I72: 0 | J72: =SUM(E72:I72) -> 0 | K72: =IF(D72=0,C72+J72,D72+J72) -> 3239430.07 | L72: 3239430.07 | M72: 3239430.07
A73: Property rates exemptions, reductions and rebates and impermissable values in excess of section 17 of MPRA) | C73: ='SB1'!C9 -> 3239430.07 | D73: ='SB1'!D9 -> 0 | E73: ='SB1'!E9 -> 0 | F73: ='SB1'!F9 -> 0 | G73: ='SB1'!G9 -> 0 | H73: ='SB1'!H9 -> 0 | I73: ='SB1'!I9 -> 0 | J73: 0 | K73: 3239430.07 | L73: ='SB1'!L9 -> 3449992 | M73: ='SB1'!M9 -> 3674242
A74: Water (in excess of 6 kilolitres per indigent household per month) | C74: ='SB1'!C20 -> 0 | D74: ='SB1'!D20 -> 0 | E74: ='SB1'!E20 -> 0 | F74: ='SB1'!F20 -> 0 | G74: ='SB1'!G20 -> 0 | H74: ='SB1'!H20 -> 0 | I74: ='SB1'!I20 -> 0 | J74: 0 | K74: 0 | L74: ='SB1'!L20 -> 0 | M74: ='SB1'!M20 -> 0
A75: Sanitation (in excess of free sanitation service to indigent households) | C75: ='SB1'!C26 -> 0 | D75: ='SB1'!D26 -> 0 | E75: ='SB1'!E26 -> 0 | F75: ='SB1'!F26 -> 0 | G75: ='SB1'!G26 -> 0 | H75: ='SB1'!H26 -> 0 | I75: ='SB1'!I26 -> 0 | J75: 0 | K75: 0 | L75: ='SB1'!L26 -> 0 | M75: ='SB1'!M26 -> 0
A76: Electricity/other energy (in excess of 50 kwh per indigent household per month) | C76: ='SB1'!C14 -> 4220837.81 | D76: ='SB1'!D14 -> 0 | E76: ='SB1'!E14 -> 0 | F76: ='SB1'!F14 -> 0 | G76: ='SB1'!G14 -> 0 | H76: ='SB1'!H14 -> 0 | I76: ='SB1'!I14 -> 0 | J76: 0 | K76: 4220837.81 | L76: ='SB1'!L14 -> 4495192 | M76: ='SB1'!M14 -> 4787379
A77: Refuse (in excess of one removal a week for indigent households) | C77: ='SB1'!C33 -> 491829.53 | D77: ='SB1'!D33 -> 0 | E77: ='SB1'!E33 -> 0 | F77: ='SB1'!F33 -> 0 | G77: ='SB1'!G33 -> 0 | H77: ='SB1'!H33 -> 0 | I77: ='SB1'!I33 -> 0 | J77: 0 | K77: 491829.53 | L77: ='SB1'!L33 -> 523798 | M77: ='SB1'!M33 -> 557845
A78: Municipal Housing - rental rebates | J78: 0 | K78: 0
A79: Housing - top structure subsidies | B79: 6 | J79: 0 | K79: 0
A80: Other | J80: 0 | K80: 0
A81: Total revenue cost of subsidised services provided | C81: =SUM(C72:C80) -> 11191527.48 | D81: 0 | E81: 0 | F81: 0 | G81: 0 | H81: 0 | I81: 0 | J81: 0 | K81: 11191527.48 | L81: 11708412.07 | M81: 12258896.07
A82: =head27a -> References
A83: 1. Include services provided by another entity; e.g. Eskom
A84: 2. Stand distance > 200m from dwelling
A85: 3. Stand distance <= 200m from dwelling
A86: 4. Borehole, spring, rain-water tank etc.
A87: 5. Must agree to total number of households in municipal area
A88: 6. Include value of subsidy provided by municipality above provincial subsidy level
A89: 7. Only complete if a previous adjusted budget has been approved in the same financial year. Reflect most recent adjusted budget.
A90: 8. Additional cash-backed accumulated funds/unspent funds (MFMA section 18(1)(b) and section 28(2)(e)) identified after the Original Budget approved and after annual financial statements audited (note: only where underspending could not reasonably have been foreseen)
A91: 9. Increases of funds approved under MFMA section 31
A92: 10. Adjustments approved in accordance with MFMA section 29
A93: 11. Adjustments to transfers from National or Provincial Government
A94: 12. Adjusts. = 'Other' Adjustments proposed to be approved; including revenue under-collection (MFMA section 28(2)(a)); additional revenue appropriation on existing programmes (section 28(2))(b); projected savings (section 28(2)(d)); error correction (section 28(2)(f))
A95: 13. G = B + C + D + E + F
A96: 14. Adjusted Budget H = (A or A1/2 etc) + G
A97: 15. Show number of households receiving at least these levels of services completely free
A98: 16. Must reflect the cost to the municipality of providing the Free Basic Service
A99: 17. Reflect the cost to the municipality in terms of 'revenue foregone' of providing free services (note this will not equal 'Revenue Foregone' on SA1)

Sheet SB1
A1: =muni&" - "&ADJB1&" - "&Date -> LIM332 Greater Letaba - Supporting Table SB1 Supporting detail to 'Budgeted Financial Performance' - 27 February 2019
A2: =desc -> Description | B2: =head27 -> Ref | C2: =Head2 -> Budget Year 2018/19 | L2: =Head10 -> Budget Year +1 2019/20 | M2: =Head11 -> Budget Year +2 2020/21
C3: =Head6 -> Original Budget | D3: =Head54 -> Prior Adjusted | E3: =Head51 -> Accum. Funds | F3: =Head52 -> Multi-year capital | G3: =Head53 -> Unfore. Unavoid. | H3: =Head55 -> Nat. or Prov. Govt | I3: =Head50 -> Other Adjusts. | J3: =Head56 -> Total Adjusts. | K3: =Head7 -> Adjusted Budget | L3: =Head7 -> Adjusted Budget | M3: =Head7 -> Adjusted Budget
D4: 6 | E4: 7 | F4: 8 | G4: 9 | H4: 10 | I4: 11 | J4: 12 | K4: 13
A5: R thousands | C5: A | D5: A1 | E5: B | F5: C | G5: D | H5: E | I5: F | J5: G | K5: H
A6: REVENUE ITEMS
A7: Property rates
A8: Total Property Rates | C8: 15494757.64 | I8: =3607959+1000000 -> 4607959 | J8: =SUM(E8:I8) -> 4607959 | K8: =IF(D8=0,C8+J8,D8+J8) -> 20102716.64 | L8: 20344393 | M8: 21666779
A9: less Revenue Foregone (exemptions, reductions and rebates and impermissable values in excess of section 17 of MPRA) | C9: 3239430.07 | J9: =SUM(E9:I9) -> 0 | K9: =IF(D9=0,C9+J9,D9+J9) -> 3239430.07 | L9: 3449992 | M9: 3674242
A10: Net Property Rates | C10: =C8-C9 -> 12255327.57 | D10: =D8-D9 -> 0 | E10: 0 | F10: 0 | G10: 0 | H10: 0 | I10: 4607959 | J10: 4607959 | K10: 16863286.57 | L10: 16894401 | M10: 17992537
A12: Service charges - electricity revenue
A13: Total Service charges - electricity revenue | C13: 16887481.02 | I13: =9800000+2000000+8000 -> 11808000 | J13: =SUM(E13:I13) -> 11808000 | K13: =IF(D13=0,C13+J13,D13+J13) -> 28695481.02 | L13: =28422167+8000 -> 28430167 | M13: =30269608+8000 -> 30277608
A14: less Revenue Foregone (in excess of 50 kwh per indigent household per month) | C14: 4220837.81 | I14: 0 | J14: =SUM(E14:I14) -> 0 | K14: =IF(D14=0,C14+J14,D14+J14) -> 4220837.81 | L14: 4495192 | M14: 4787379
A15: less Cost of Free Basis Services (50 kwh per indigent household per month) | C15: ='SB5'!E250 -> 8000 | D15: ='SB5'!F250 -> 0 | E15: ='SB5'!G250 -> 0 | F15: ='SB5'!H250 -> 0 | G15: ='SB5'!I250 -> 0 | H15: ='SB5'!J250 -> 0 | I15: ='SB5'!K250 -> 0 | J15: =SUM(E15:I15) -> 0 | K15: =IF(D15=0,C15+J15,D15+J15) -> 8000 | L15: ='SB5'!N250 -> 8000 | M15: ='SB5'!O250 -> 8000
A16: Net Service charges - electricity revenue | C16: =C13-C14-C15 -> 12658643.21 | D16: =D13-D14-D15 -> 0 | E16: 0 | F16: 0 | G16: 0 | H16: 0 | I16: 11808000 | J16: 11808000 | K16: 24466643.21 | L16: 23926975 | M16: 25482229
A18: Service charges - water revenue
A19: Total Service charges - water revenue | J19: =SUM(E19:I19) -> 0 | K19: =IF(D19=0,C19+J19,D19+J19) -> 0
A20: less Revenue Foregone (in excess of 6 kilolitres per indigent household per month) | J20: =SUM(E20:I20) -> 0 | K20: =IF(D20=0,C20+J20,D20+J20) -> 0
A21: less Cost of Free Basis Services (6 kilolitres per indigent household per month) | C21: ='SB5'!E262 -> 0 | D21: ='SB5'!F262 -> 0 | E21: ='SB5'!G262 -> 0 | F21: ='SB5'!H262 -> 0 | G21: ='SB5'!I262 -> 0 | H21: ='SB5'!J262 -> 0 | I21: ='SB5'!K262 -> 0 | J21: =SUM(E21:I21) -> 0 | K21: =IF(D21=0,C21+J21,D21+J21) -> 0 | L21: ='SB5'!N262 -> 0 | M21: ='SB5'!O262 -> 0
A22: Net Service charges - water revenue | C22: =C19-C20-C21 -> 0 | D22: =D19-D20-D21 -> 0 | E22: 0 | F22: 0 | G22: 0 | H22: 0 | I22: 0 | J22: =J19-J20-J21 -> 0 | K22: 0 | L22: 0 | M22: 0
A24: Service charges - sanitation revenue
A25: Total Service charges - sanitation revenue | J25: =SUM(E25:I25) -> 0 | K25: =IF(D25=0,C25+J25,D25+J25) -> 0
A26: less Revenue Foregone (in excess of free sanitation service to indigent households) | J26: =SUM(E26:I26) -> 0 | K26: =IF(D26=0,C26+J26,D26+J26) -> 0
A27: less Cost of Free Basis Services (free sanitation service to indigent households) | C27: ='SB5'!E274 -> 0 | D27: ='SB5'!F274 -> 0 | E27: ='SB5'!G274 -> 0 | F27: ='SB5'!H274 -> 0 | G27: ='SB5'!I274 -> 0 | H27: ='SB5'!J274 -> 0 | I27: ='SB5'!K274 -> 0 | J27: =SUM(E27:I27) -> 0 | K27: =IF(D27=0,C27+J27,D27+J27) -> 0 | L27: ='SB5'!N274 -> 0 | M27: ='SB5'!O274 -> 0
A28: Net Service charges - sanitation revenue | C28: =C25-C26-C27 -> 0 | D28: =D25-D26-D27 -> 0 | E28: 0 | F28: 0 | G28: 0 | H28: 0 | I28: 0 | J28: 0 | K28: 0 | L28: 0 | M28: 0
C29: .
A30: Service charges - refuse revenue
A31: Total refuse removal revenue | C31: 6735226.35 | I31: =1000000+1000000 -> 2000000 | J31: =SUM(E31:I31) -> 2000000 | K31: =IF(D31=0,C31+J31,D31+J31) -> 8735226.35 | L31: 8238016 | M31: 8773487
A32: Total landfill revenue | J32: =SUM(E32:I32) -> 0 | K32: =IF(D32=0,C32+J32,D32+J32) -> 0
A33: less Revenue Foregone (in excess of one removal a week to indigent households) | C33: 491829.53 | J33: =SUM(E33:I33) -> 0 | K33: =IF(D33=0,C33+J33,D33+J33) -> 491829.53 | L33: 523798 | M33: 557845
A34: less Cost of Free Basis Services (removed once a week to indigent households) | C34: ='SB5'!E286 -> 0 | D34: ='SB5'!F286 -> 0 | E34: ='SB5'!G286 -> 0 | F34: ='SB5'!H286 -> 0 | G34: ='SB5'!I286 -> 0 | H34: ='SB5'!J286 -> 0 | I34: ='SB5'!K286 -> 0 | J34: =SUM(E34:I34) -> 0 | K34: =IF(D34=0,C34+J34,D34+J34) -> 0 | L34: ='SB5'!N286 -> 0 | M34: ='SB5'!O286 -> 0
A35: Net Service charges - refuse revenue | C35: =SUM(C31:C32)-SUM(C33:C34) -> 6243396.82 | D35: =SUM(D31:D32)-SUM(D33:D34) -> 0 | E35: 0 | F35: 0 | G35: 0 | H35: 0 | I35: 2000000 | J35: 2000000 | K35: 8243396.82 | L35: 7714218 | M35: 8215642
A37: Other Revenue By Source
A38: Prepaid Electricity | C38: 158314.26 | I38: =1822986+800000 -> 2622986 | J38: =SUM(E38:I38) -> 2622986 | K38: =IF(D38=0,C38+J38,D38+J38) -> 2781300.26 | L38: 2110085 | M38: 2247240
A39: Interest FNB | C39: 3602066.89 | I39: 0 | J39: 0 | K39: 3602066.89 | L39: 3836201 | M39: 4085554
A40: Sale of Tender documents | C40: 1376799.43 | I40: 0 | J40: 0 | K40: 1376799.43 | L40: 1466291 | M40: 1561600
A41: Other revenue | C41: 1058402.1 | I41: 0 | J41: 0 | K41: 1058402.1 | L41: 1127198 | M41: =1200466 -> 1200466
A42: Investment witdrawals | C42: 23390000 | I42: 0 | J42: 0 | K42: 23390000 | L42: 0 | M42: 0
A43: Income: Awards | C43: 0 | J43: 0 | K43: 0
A44: Debt collection services | C44: 2000000 | I44: 0 | J44: 0 | K44: 2000000 | L44: 2130000 | M44: 2268450
A45: Revenue from outdoor adverts | C45: 1200000 | I45: 0 | J45: 0 | K45: 1200000 | L45: 0 | M45: 0
A46: Ga-Kgapane Ext 5 loan accounts | C46: 2000000 | J46: 0 | K46: 2000000 | L46: 2130000 | M46: 2268450
J47: 0 | K47: 0
J48: 0 | K48: 0
J49: 0 | K49: 0
A50: Total 'Other' Revenue | B50: 1 | C50: =SUM(C38:C49) -> 34785582.68 | D50: =SUM(D38:D49) -> 0 | E50: 0 | F50: 0 | G50: 0 | H50: 0 | I50: 2622986 | J50: 2622986 | K50: 37408568.68 | L50: 12799775 | M50: 13631760
A52: EXPENDITURE ITEMS
A53: Employee related costs
A54: Basic Salaries and Wages | C54: 49033296.49 | I54: 14045852 | J54: =SUM(E54:I54) -> 14045852 | K54: =IF(D54=0,C54+J54,D54+J54) -> 63079148.49 | L54: 67286216 | M54: 71561857
A55: Pension and UIF Contributions | C55: 9941819.14 | I55: 1022102 | J55: 1022102 | K55: 10963921.14 | L55: 11664728 | M55: 12403511
A56: Medical Aid Contributions | C56: 3788001.87 | I56: 527788 | J56: 527788 | K56: 4315789.87 | L56: 4582926 | M56: 4869851
A57: Overtime | C57: 2767431.78 | I57: 1135322 | J57: 1135322 | K57: 3902753.78 | L57: 4160938 | M57: 4429124
A58: Performance Bonus | C58: 4651085.81 | I58: -880346 | J58: -880346 | K58: 3770739.81 | L58: 4029375 | M58: 4289044
A59: Motor Vehicle Allowance | C59: 4658216.47 | I59: 515137 | J59: =SUM(E59:I59) -> 515137 | K59: =IF(D59=0,C59+J59,D59+J59) -> 5173353.47 | L59: 5496458 | M59: 5850722
A60: Cellphone Allowance | C60: 0 | J60: =SUM(E60:I60) -> 0 | K60: =IF(D60=0,C60+J60,D60+J60) -> 0
A61: Housing Allowances | C61: 494732.71 | I61: 222834 | J61: =SUM(E61:I61) -> 222834 | K61: =IF(D61=0,C61+J61,D61+J61) -> 717566.71 | L61: 764559 | M61: 814081
A62: Other benefits and allowances | C62: =382582.41+25671.73+304149.52+164025.39 -> 876429.05 | I62: =174670+5274+67641+30974 -> 278559 | J62: 278559 | K62: 1154988.05 | L62: =593201+32937+395957+207675 -> 1229770 | M62: =631650+35069+421694+221173 -> 1309586
A63: Payments in lieu of leave | C63: 2092783.93 | I63: 95247 | J63: 95247 | K63: 2188030.93 | L63: 2329912 | M63: 2481030
A64: Long service awards | C64: 0 | J64: 0 | K64: 0
A65: Post-retirement benefit obligations | B65: 4 | C65: 0 | J65: 0 | K65: 0
A66: sub-total | C66: =SUM(C54:C65) -> 78303797.25 | D66: =SUM(D54:D65) -> 0 | E66: 0 | F66: 0 | G66: 0 | H66: 0 | I66: 16962495 | J66: 16962495 | K66: 95266292.25 | L66: 101544882 | M66: 108008806
A67: Less: Employees costs capitalised to PPE | J67: =SUM(E67:I67) -> 0 | K67: =IF(D67=0,C67+J67,D67+J67) -> 0
A68: ="Total "&A53 -> Total Employee related costs | B68: 1 | C68: =C66-C67 -> 78303797.25 | D68: =D66-D67 -> 0 | E68: 0 | F68: 0 | G68: 0 | H68: 0 | I68: 16962495 | J68: =SUM(J66:J67) -> 16962495 | K68: =SUM(K66:K67) -> 95266292.25 | L68: =L66-L67 -> 101544882 | M68: =M66-M67 -> 108008806
A70: Contributions recognised - capital
A71: List contributions by contract | J71: =SUM(E71:I71) -> 0 | K71: =IF(D71=0,C71+J71,D71+J71) -> 0
J72: 0 | K72: 0
J73: 0 | K73: 0
J74: 0 | K74: 0
J75: 0 | K75: 0
J76: 0 | K76: 0
A77: ="Total "&A70 -> Total Contributions recognised - capital | C77: =SUM(C71:C76) -> 0 | D77: =SUM(D71:D76) -> 0 | E77: =SUM(E71:E76) -> 0 | F77: =SUM(F71:F76) -> 0 | G77: 0 | H77: 0 | I77: 0 | J77: 0 | K77: 0 | L77: 0 | M77: 0
A79: Depreciation & asset impairment
A80: Depreciation of Property, Plant & Equipment | C80: 5043379.81 | I80: 898831 | J80: =SUM(E80:I80) -> 898831 | K80: =IF(D80=0,C80+J80,D80+J80) -> 5942210.81 | L80: 6865248 | M80: 7311489
A81: Lease amortisation | J81: =SUM(E81:I81) -> 0 | K81: =IF(D81=0,C81+J81,D81+J81) -> 0
A82: Capital asset impairment | J82: =SUM(E82:I82) -> 0 | K82: =IF(D82=0,C82+J82,D82+J82) -> 0
A83: Depreciation resulting from revaluation of PPE | J83: =SUM(E83:I83) -> 0 | K83: =IF(D83=0,C83+J83,D83+J83) -> 0
A84: ="Total "&LEFT(A79,35) -> Total Depreciation & asset impairment | B84: 1 | C84: =SUM(C80:C82)-C83 -> 5043379.81 | D84: =SUM(D80:D82)-D83 -> 0 | E84: 0 | F84: 0 | G84: 0 | H84: 0 | I84: 898831 | J84: 898831 | K84: 5942210.81 | L84: 6865248 | M84: 7311489
A86: Bulk purchases
A87: Electricity Bulk Purchases | C87: 17096559 | I87: 0 | J87: =SUM(E87:I87) -> 0 | K87: =IF(D87=0,C87+J87,D87+J87) -> 17096559 | L87: 18207835 | M87: 19391344
A88: Water Bulk Purchases | J88: =SUM(E88:I88) -> 0 | K88: =IF(D88=0,C88+J88,D88+J88) -> 0
A89: Total bulk purchases | B89: 1 | C89: =SUM(C87:C88) -> 17096559 | D89: 0 | E89: 0 | F89: 0 | G89: 0 | H89: 0 | I89: 0 | J89: 0 | K89: 17096559 | L89: 18207835 | M89: 19391344
A91: Transfers and grants
A92: Cash transfers and grants | J92: =SUM(E92:I92) -> 0 | K92: =IF(D92=0,C92+J92,D92+J92) -> 0
A93: Non-cash transfers and grants | J93: =SUM(E93:I93) -> 0 | K93: =IF(D93=0,C93+J93,D93+J93) -> 0
A94: Total transfers and grants | C94: =SUM(C92:C93) -> 0 | D94: 0 | E94: 0 | F94: 0 | G94: 0 | H94: 0 | I94: 0 | J94: =SUM(J92:J93) -> 0 | K94: =SUM(K92:K93) -> 0 | L94: =SUM(L92:L93) -> 0 | M94: =SUM(M92:M93) -> 0
A96: Contracted services
A97: Security services | C97: =8470325.4714-400000-705300 -> 7365025.471 | I97: 4257029 | J97: =SUM(E97:I97) -> 4257029 | K97: =IF(D97=0,C97+J97,D97+J97) -> 11622054.47 | L97: 20635616 | M97: 21976931
A98: Operating lease | C98: 2638500 | J98: 0 | K98: 2638500
A99: Meter readings | C99: 400000 | J99: 0 | K99: 400000
A100: Refuse removal | C100: 1605011.031 | J100: 0 | K100: 1605011.031
A101: Valuation services | C101: 0 | J101: 0 | K101: 0
A102: Unbundling of assets | C102: 1500000 | J102: 0 | K102: 1500000
A103: Annual Financial Statements | C103: 800000 | J103: 0 | K103: 800000
A104: Banking Services | C104: 105300 | J104: 0 | K104: 105300
A105: Accounts printing services | C105: 250000 | J105: 0 | K105: 250000
A106: Debt collection services | C106: 100000 | J106: 0 | K106: 100000
A107: Easy Pay services | C107: 250000 | J107: 0 | K107: 250000
A108: Temporary Workers | C108: 105300 | J108: 0 | K108: 105300
A109: Other contractors | C109: 0 | J109: 0 | K109: 0
A110: Specialist services | C110: 0 | J110: 0 | K110: 0
J111: 0 | K111: 0
J112: 0 | K112: 0
J113: 0 | K113: 0
J114: 0 | K114: 0
J115: 0 | K115: 0
J116: 0 | K116: 0
J117: 0 | K117: 0
J118: 0 | K118: 0
J119: 0 | K119: 0
J120: =SUM(E120:I120) -> 0 | K120: =IF(D120=0,C120+J120,D120+J120) -> 0
J121: =SUM(E121:I121) -> 0 | K121: =IF(D121=0,C121+J121,D121+J121) -> 0
A122: sub-total | B122: 1 | C122: =SUM(C97:C121) -> 15119136.5 | D122: =SUM(D97:D121) -> 0 | E122: =SUM(E97:E121) -> 0 | F122: =SUM(F97:F121) -> 0 | G122: 0 | H122: 0 | I122: 4257029 | J122: 4257029 | K122: 19376165.5 | L122: 20635616 | M122: 21976931
A123: Allocations to organs of state:
A124: Electricity | J124: =SUM(E124:I124) -> 0 | K124: =IF(D124=0,C124+J124,D124+J124) -> 0
A125: Water | J125: =SUM(E125:I125) -> 0 | K125: =IF(D125=0,C125+J125,D125+J125) -> 0
A126: Sanitation | J126: =SUM(E126:I126) -> 0 | K126: =IF(D126=0,C126+J126,D126+J126) -> 0
A127: Other | J127: =SUM(E127:I127) -> 0 | K127: =IF(D127=0,C127+J127,D127+J127) -> 0
A128: Total contracted services?? | C128: =SUM(C122:C127) -> 15119136.5 | D128: =SUM(D122:D127) -> 0 | E128: 0 | F128: 0 | G128: 0 | H128: 0 | I128: 4257029 | J128: 4257029 | K128: 19376165.5 | L128: 20635616 | M128: 21976931
A130: Other Expenditure By Type
A131: Collection costs | C131: 0 | I131: 0 | J131: =SUM(E131:I131) -> 0 | K131: =IF(D131=0,C131+J131,D131+J131) -> 0 | L131: 0 | M131: 0
A132: Contributions to 'other' provisions | C132: 0 | I132: 0 | J132: =SUM(E132:I132) -> 0 | K132: =IF(D132=0,C132+J132,D132+J132) -> 0 | L132: 0 | M132: 0
A133: Consultant fees | C133: 0 | I133: 0 | J133: =SUM(E133:I133) -> 0 | K133: =IF(D133=0,C133+J133,D133+J133) -> 0 | L133: 0 | M133: 0
A134: Audit fees | C134: 4742067.26 | I134: 0 | J134: =SUM(E134:I134) -> 0 | K134: =IF(D134=0,C134+J134,D134+J134) -> 4742067.26 | L134: 5050301.632 | M134: 5378571.238
A135: General expenses | B135: 3,5 | C135: =51874090+138478.96 -> 52012568.96 | I135: =28831920+47000 -> 28878920 | J135: =SUM(E135:I135) -> 28878920 | K135: =IF(D135=0,C135+J135,D135+J135) -> 80891488.96 | L135: =114961207-6820000-15688000 -> 92453207 | M135: =114961207-16545000 -> 98416207
A136: Ward Committee Meetings & Workshops | C136: 3910052.25 | I136: -300000 | J136: =SUM(E136:I136) -> -300000 | K136: =IF(D136=0,C136+J136,D136+J136) -> 3610052.25 | L136: 3844705.646 | M136: 4094611.513
A137: Bursary Scheme | C137: 2234676 | I137: -600000 | J137: -600000 | K137: 1634676 | L137: 2355348.504 | M137: 2484892.672
A138: Internship Program (Finance) | C138: 2145000 | I138: 0 | J138: 0 | K138: 2145000 | L138: 2145000 | M138: 2145000
A139: Imbizos | C139: 400000 | D139: 0 | I139: 0 | J139: 0 | K139: 400000 | L139: 426000 | M139: 453690
A140: Public Participation | C140: 500000 | I140: 952350.7 | J140: 952350.7 | K140: 1452350.7 | L140: 1546753.495 | M140: 1647292.473
A141: Repair and maintenance | C141: 17098649.14 | I141: =-6131347+8000000+2000000-3200000 -> 668653 | J141: 668653 | K141: 17767302.14
A142: Mayor Excellence Award | C142: 400000 | I142: -100000 | J142: -100000 | K142: 300000 | L142: 319500 | M142: 340267.5
J143: 0 | K143: 0
J144: 0 | K144: 0
J145: 0 | K145: 0
J146: 0 | K146: 0
J147: 0 | K147: 0
J148: 0 | K148: 0
J149: 0 | K149: 0
J150: 0 | K150: 0
J151: 0 | K151: 0
J152: 0 | K152: 0
J153: 0 | K153: 0
J154: 0 | K154: 0
J155: 0 | K155: 0
J156: 0 | K156: 0
J157: 0 | K157: 0
A158: Total Other Expenditure | B158: 1 | C158: =SUM(C131:C157) -> 83443013.61 | D158: =SUM(D131:D157) -> 0 | E158: =SUM(E131:E157) -> 0 | F158: =SUM(F131:F157) -> 0 | G158: 0 | H158: 0 | I158: 29499923.7 | J158: 29499923.7 | K158: 112942937.3 | L158: 108140816.3 | M158: 114960532.4
A160: Repairs and Maintenance by Expenditure Item | B160: 14
A161: Employee related costs | J161: =SUM(E161:I161) -> 0 | K161: =IF(D161=0,C161+J161,D161+J161) -> 0
A162: Other materials | C162: =17098649.14+5000000 -> 22098649.14 | I162: -6131347 | J162: =SUM(E162:I162) -> -6131347 | K162: =IF(D162=0,C162+J162,D162+J162) -> 15967302.14
A163: Contracted Services | J163: =SUM(E163:I163) -> 0 | K163: =IF(D163=0,C163+J163,D163+J163) -> 0
A164: Other Expenditure | J164: =SUM(E164:I164) -> 0 | K164: =IF(D164=0,C164+J164,D164+J164) -> 0
A165: Total Repairs and Maintenance Expenditure | B165: 15 | C165: =SUM(C161:C164) -> 22098649.14 | D165: =SUM(D161:D164) -> 0 | E165: 0 | F165: 0 | G165: 0 | H165: 0 | I165: -6131347 | J165: -6131347 | K165: 15967302.14 | L165: 0 | M165: 0
A166: =head27a -> References
A167: 1. Must reconcile with relevant line on the 'Financial Performance' budget
A168: 2. Must reconcile to supporting documentation on staff salaries
A169: 3. Insert other categories where revenue or expenditure is of a material nature
A170: 4. Expenditure to meet any unfunded obligations
A171: 5. Special consideration may have to be given to including 'goodwill arising' or 'joint venture' budgets where circumstances require this (include separately under relevant notes)
A172: 6. Only complete if a previous adjusted budget has been approved in the same financial year. Reflect most recent adjusted budget.
A173: 7. Additional cash-backed accumulated funds/unspent funds (section 18(1)(b) and section 28(2)(e) MFMA) identified after Original Budget approved and after annual financial statements audited (note: only where underspending could not reasonably be have for
A174: 8. Increases of funds approved under section 31 MFMA
A175: 9. Adjustments approved in accordance with section 29 MFMA
A176: 10. Adjustments to funding allocations from National or Provincial Government
A177: 11. Adjusts. = 'Other' Adjustments proposed to be approved; including revenue under-collection (MFMA section 28(2)(a)); additional revenue appropriation on existing programmes (section 28(2))(b); projected savings (section 28(2)(d)); error correction (sec
A178: 12. G = B + C + D + E + F
A179: 13. Adjusted Budget H = (A or A1/2 etc) + G
A180: 14. Repairs and Maintenance is not a GRAP item. However to facilitate transparency, municipalities must provide a breakdown of the amounts included in the relevant GRAP items that will be spent on Repairs and Maintenance.
A181: 15. Must reconcile with Repairs and Maintenance by Asset Class (Total Repairs and Maintenance) on Table SA34c.

Sheet SB2
A1: =muni&" - "&ADJB2&" - "&Date -> LIM332 Greater Letaba - Supporting Table SB2 Supporting detail to 'Financial Position Budget' - 27 February 2019
A2: =desc -> Description | B2: =head27 -> Ref | C2: =Head2 -> Budget Year 2018/19 | L2: =Head10 -> Budget Year +1 2019/20 | M2: =Head11 -> Budget Year +2 2020/21
C3: =Head6 -> Original Budget | D3: =Head54 -> Prior Adjusted | E3: =Head51 -> Accum. Funds | F3: =Head52 -> Multi-year capital | G3: =Head53 -> Unfore. Unavoid. | H3: =Head55 -> Nat. or Prov. Govt | I3: =Head50 -> Other Adjusts. | J3: =Head56 -> Total Adjusts. | K3: =Head7 -> Adjusted Budget | L3: =Head7 -> Adjusted Budget | M3: =Head7 -> Adjusted Budget
D4: 4 | E4: 5 | F4: 6 | G4: 7 | H4: 8 | I4: 9 | J4: 10 | K4: 11
A5: R thousands | C5: A | D5: A1 | E5: B | F5: C | G5: D | H5: E | I5: F | J5: G | K5: H
A6: ASSETS
A7: Call investment deposits
A8: Call deposits | C8: =50342658.94-23390000+1568622.59 -> 28521281.53 | I8: =-10000000-8000000-7000000 -> -25000000 | J8: =SUM(E8:I8) -> -25000000 | K8: =IF(D8=0,C8+J8,D8+J8) -> 3521281.53 | L8: =5131281.53+15000000-15000000 -> 5131281.53 | M8: =5413502.01415+14000000-14000000 -> 5413502.014
A9: Other current investments | C9: 0 | I9: 0 | J9: =SUM(E9:I9) -> 0 | K9: =IF(D9=0,C9+J9,D9+J9) -> 0
A10: ="Total "&A7 -> Total Call investment deposits | B10: 1 | C10: =SUM(C8:C9) -> 28521281.53 | D10: 0 | E10: 0 | F10: 0 | G10: 0 | H10: 0 | I10: -25000000 | J10: -25000000 | K10: 3521281.53 | L10: 5131281.53 | M10: 5413502.014
A11: Consumer debtors
A12: =A11 -> Consumer debtors | C12: 6900000 | I12: 0 | J12: =SUM(E12:I12) -> 0 | K12: =IF(D12=0,C12+J12,D12+J12) -> 6900000 | L12: 7000000 | M12: 7000000
A13: Less: provision for debt impairment | C13: =C19 -> 0 | D13: 0 | E13: 0 | F13: 0 | G13: 0 | H13: 0 | I13: 0 | J13: =SUM(E13:I13) -> 0 | K13: =IF(D13=0,C13+J13,D13+J13) -> 0 | L13: =L19 -> 0 | M13: =M19 -> 0
A14: ="Total "&A11 -> Total Consumer debtors | B14: 1 | C14: =C12-C13 -> 6900000 | D14: =D12-D13 -> 0 | E14: 0 | F14: 0 | G14: 0 | H14: 0 | I14: 0 | J14: 0 | K14: 6900000 | L14: 7000000 | M14: 7000000
A15: Debt impairment provision
A16: Balance at the beginning of the year | J16: =SUM(E16:I16) -> 0 | K16: =IF(D16=0,C16+J16,D16+J16) -> 0 | L16: =IF(SUM(L17:L18)=0,0,K19) -> 0 | M16: =IF(SUM(M17:M18)=0,0,L19) -> 0
A17: Contributions to the provision | J17: =SUM(E17:I17) -> 0 | K17: =IF(D17=0,C17+J17,D17+J17) -> 0
A18: Bad debts written off | J18: =SUM(E18:I18) -> 0 | K18: =IF(D18=0,C18+J18,D18+J18) -> 0
A19: Balance at end of year | C19: =SUM(C16:C18) -> 0 | D19: 0 | E19: 0 | F19: 0 | G19: 0 | H19: 0 | I19: 0 | J19: =J13 -> 0 | K19: =K13 -> 0 | L19: =SUM(L16:L18) -> 0 | M19: =SUM(M16:M18) -> 0
A20: Property, plant & equipment
A21: PPE at cost/valuation (excl. finance leases) | C21: 1056104662 | I21: -5615913 | J21: =SUM(E21:I21) -> -5615913 | K21: =IF(D21=0,C21+J21,D21+J21) -> 1050488749 | L21: =1056104661.92946+160774440 -> 1216879102 | M21: =1056104661.92946+178774129 -> 1234878791
A22: Leases recognised as PPE | B22: 2 | C22: 0 | I22: 0 | J22: =SUM(E22:I22) -> 0 | K22: =IF(D22=0,C22+J22,D22+J22) -> 0 | L22: 0 | M22: 0
A23: Less: Accumulated depreciation | C23: 202188723.3 | I23: -310000 | J23: =SUM(E23:I23) -> -310000 | K23: =IF(D23=0,C23+J23,D23+J23) -> 201878723.3 | L23: =K23*105.4/100 -> 212780174.4 | M23: =L23*105.5/100 -> 224483084
A24: ="Total "&A20 -> Total Property, plant & equipment | B24: 1 | C24: =SUM(C21:C22)-C23 -> 853915938.6 | D24: =SUM(D21:D22)-D23 -> 0 | E24: 0 | F24: 0 | G24: 0 | H24: 0 | I24: -5305913 | J24: -5305913 | K24: 848610025.6 | L24: =SUM(L21:L22)-L23 -> 1004098928 | M24: =SUM(M21:M22)-M23 -> 1010395707
A26: LIABILITIES
A27: Current liabilities - Borrowing
A28: Short term loans (other than bank overdraft) | C28: 0 | D28: 0 | E28: 0 | F28: 0 | G28: 0 | H28: 0 | I28: 0 | J28: =SUM(E28:I28) -> 0 | K28: =IF(D28=0,C28+J28,D28+J28) -> 0 | L28: 0 | M28: 0
A29: Current portion of long-term liabilities | C29: 0 | D29: 0 | E29: 0 | F29: 0 | G29: 0 | H29: 0 | I29: 0 | J29: =SUM(E29:I29) -> 0 | K29: =IF(D29=0,C29+J29,D29+J29) -> 0 | L29: 0 | M29: 0
A30: ="Total "&A27 -> Total Current liabilities - Borrowing | C30: =SUM(C28:C29) -> 0 | D30: 0 | E30: 0 | F30: 0 | G30: 0 | H30: 0 | I30: 0 | J30: 0 | K30: 0 | L30: 0 | M30: 0
A31: Trade and other payables
A32: Creditors | C32: 35693282 | I32: 0 | J32: =SUM(E32:I32) -> 0 | K32: =IF(D32=0,C32+J32,D32+J32) -> 35693282 | L32: 35000000 | M32: 36100000
A33: Unspent conditional grants and receipts | C33: 0 | I33: 0 | J33: =SUM(E33:I33) -> 0 | K33: =IF(D33=0,C33+J33,D33+J33) -> 0 | L33: 0 | M33: 0
A34: VAT | C34: 0 | I34: 0 | J34: =SUM(E34:I34) -> 0 | K34: =IF(D34=0,C34+J34,D34+J34) -> 0 | L34: 0 | M34: 0
A35: ="Total "&A31 -> Total Trade and other payables | B35: 1 | C35: =SUM(C32:C34) -> 35693282 | D35: 0 | E35: 0 | F35: 0 | G35: 0 | H35: 0 | I35: 0 | J35: 0 | K35: 35693282 | L35: 35000000 | M35: 36100000
A36: Non current liabilities - Borrowing
A37: Borrowing | B37: 3 | C37: 0 | I37: 0 | J37: =SUM(E37:I37) -> 0 | K37: =IF(D37=0,C37+J37,D37+J37) -> 0 | L37: 0 | M37: 0
A38: Finance leases (including PPP asset element) | C38: 0 | J38: =SUM(E38:I38) -> 0 | K38: =IF(D38=0,C38+J38,D38+J38) -> 0 | L38: 0 | M38: 0
A39: ="Total "&A36 -> Total Non current liabilities - Borrowing | C39: =SUM(C37:C38) -> 0 | D39: 0 | E39: 0 | F39: 0 | G39: 0 | H39: 0 | I39: 0 | J39: 0 | K39: 0 | L39: 0 | M39: 0
A40: Provisions - non current
A41: Retirement benefits | C41: 12327649.65 | I41: 0 | J41: =SUM(E41:I41) -> 0 | K41: =IF(D41=0,C41+J41,D41+J41) -> 12327649.65 | L41: =K41*105.4/100 -> 12993342.73 | M41: =L41*105.5/100 -> 13707976.58
A42: List other major items | C42: 0 | J42: =SUM(E42:I42) -> 0 | K42: =IF(D42=0,C42+J42,D42+J42) -> 0 | L42: 0 | M42: 0
A43: Refuse landfill site rehabilitation | C43: 2416800 | I43: 0 | J43: =SUM(E43:I43) -> 0 | K43: =IF(D43=0,C43+J43,D43+J43) -> 2416800 | L43: 2416800 | M43: 2416800
A44: Other | C44: 0 | I44: 0 | J44: =SUM(E44:I44) -> 0 | K44: =IF(D44=0,C44+J44,D44+J44) -> 0 | L44: 0 | M44: 0
A45: ="Total "&A40 -> Total Provisions - non current | C45: =SUM(C41:C44) -> 14744449.65 | D45: =SUM(D41:D44) -> 0 | E45: 0 | F45: 0 | G45: 0 | H45: 0 | I45: 0 | J45: 0 | K45: 14744449.65 | L45: 15410142.73 | M45: 16124776.58
A47: CHANGES IN NET ASSETS
A48: Accumulated surplus/(Deficit)
A49: =A48&" - opening balance" -> Accumulated surplus/(Deficit) - opening balance | C49: 900303209.2 | I49: -31000913 | J49: =SUM(E49:I49) -> -31000913 | K49: =IF(D49=0,C49+J49,D49+J49) -> 869302296.2 | L49: 1031115483 | M49: 1039531561
A50: Appropriations to Reserves | C50: 0 | I50: 0 | J50: =SUM(E50:I50) -> 0 | K50: =IF(D50=0,C50+J50,D50+J50) -> 0 | L50: 0 | M50: 0
A51: Transfers from Reserves | C51: 0 | I51: 0 | J51: =SUM(E51:I51) -> 0 | K51: =IF(D51=0,C51+J51,D51+J51) -> 0 | L51: 0 | M51: 0
A52: Depreciation offsets | C52: 0 | I52: 0 | J52: =SUM(E52:I52) -> 0 | K52: =IF(D52=0,C52+J52,D52+J52) -> 0 | L52: 0 | M52: 0
A53: Other adjustments | C53: 0 | I53: 0 | J53: =SUM(E53:I53) -> 0 | K53: =IF(D53=0,C53+J53,D53+J53) -> 0 | L53: 0 | M53: 0
A54: Accumulated Surplus/(Deficit) | B54: 1 | C54: =SUM(C49:C53) -> 900303209.2 | D54: =SUM(D49:D53) -> 0 | E54: 0 | F54: 0 | G54: 0 | H54: 0 | I54: =SUM(I49:I53) -> -31000913 | J54: -31000913 | K54: 869302296.2 | L54: 1031115483 | M54: 1039531561
A55: Reserves
A56: Housing Development Fund | C56: 0 | I56: 0 | J56: =SUM(E56:I56) -> 0 | K56: =IF(D56=0,C56+J56,D56+J56) -> 0 | L56: 0 | M56: 0
A57: Capital replacement | C57: 0 | I57: 0 | J57: =SUM(E57:I57) -> 0 | K57: =IF(D57=0,C57+J57,D57+J57) -> 0 | L57: 0 | M57: 0
A58: Self-insurance | C58: 0 | I58: 0 | J58: =SUM(E58:I58) -> 0 | K58: =IF(D58=0,C58+J58,D58+J58) -> 0 | L58: 0 | M58: 0
A59: Other reserves (list) | C59: 0 | I59: 0 | J59: =SUM(E59:I59) -> 0 | K59: =IF(D59=0,C59+J59,D59+J59) -> 0 | L59: 0 | M59: 0
A60: Revaluation | C60: 0 | I60: 0 | J60: =SUM(E60:I60) -> 0 | K60: =IF(D60=0,C60+J60,D60+J60) -> 0 | L60: 0 | M60: 0
A61: Total Reserves | B61: 2 | C61: =SUM(C56:C60) -> 0 | D61: 0 | E61: 0 | F61: 0 | G61: 0 | H61: 0 | I61: 0 | J61: 0 | K61: 0 | L61: 0 | M61: 0
A62: TOTAL COMMUNITY WEALTH/EQUITY | B62: 2 | C62: =C54+C61 -> 900303209.2 | D62: 0 | E62: 0 | F62: 0 | G62: 0 | H62: 0 | I62: -31000913 | J62: -31000913 | K62: 869302296.2 | L62: 1031115483 | M62: 1039531561
A64: Total capital expenditure includes expenditure on nationally significant priorities:
A65: Provision of basic services | J65: =SUM(E65:I65) -> 0 | K65: =IF(D65=0,C65+J65,D65+J65) -> 0
A66: 2010 World Cup | J66: =SUM(E66:I66) -> 0 | K66: =IF(D66=0,C66+J66,D66+J66) -> 0
J67: =SUM(E67:I67) -> 0 | K67: =IF(D67=0,C67+J67,D67+J67) -> 0
A68: =head27a -> References
A69: 1. Must reconcile with 'Financial Position' budget
A70: 2. Leases treated as assets to be depreciated as the same as purchased/constructed assets. Includes PPP asset element accounted for as finance leases
A71: 3. Borrowing (original budget) must reconcile to Budget Table A16
A72: 4. Only complete if a previous adjusted budget has been approved in the same financial year. Reflect most recent adjusted budget.
A73: 5. Additional cash-backed accumulated funds/unspent funds (section 18(1)(b) and section 28(2)(e) MFMA) identified after Original Budget approved and after annual financial statements audited (note: only where underspending could not reasonably be have for
A74: 6. Increases of funds approved under section 31 MFMA
A75: 7. Adjustments approved in accordance with section 29 MFMA
A76: 8. Adjustments to funding allocations from National or Provincial Government
A77: 9. Adjusts. = 'Other' Adjustments proposed to be approved; including revenue under-collection (MFMA section 28(2)(a)); additional revenue appropriation on existing programmes (section 28(2))(b); projected savings (section 28(2)(d)); error correction (sect
A78: 10. G = B + C + D + E + F
A79: 11. Adjusted Budget H = (A or A1/2 etc) + G
A80: check | C80: =C62-'B6-FinPos'!C50 -> 0 | M80: =K62-'B6-FinPos'!K50 -> 0

Sheet SB3
A1: =muni&" - "&ADJB3&" - "&Date -> LIM332 Greater Letaba - Supporting Table SB3 Adjustments to the SDBIP - performance objectives - 27 February 2019
A2: =desc -> Description | B2: Unit of measurement | C2: =Head2 -> Budget Year 2018/19 | L2: =Head10 -> Budget Year +1 2019/20 | M2: =Head11 -> Budget Year +2 2020/21
C3: =Head6 -> Original Budget | D3: =Head54 -> Prior Adjusted | E3: =Head51 -> Accum. Funds | F3: =Head52 -> Multi-year capital | G3: =Head53 -> Unfore. Unavoid. | H3: =Head55 -> Nat. or Prov. Govt | I3: =Head50 -> Other Adjusts. | J3: =Head56 -> Total Adjusts. | K3: =Head7 -> Adjusted Budget | L3: =Head7 -> Adjusted Budget | M3: =Head7 -> Adjusted Budget
C4: A | D4: A1 | E4: B | F4: C | G4: D | H4: E | I4: F | J4: G | K4: H
A5: Vote 1 - vote name
A6: Function 1 - (Roads)
A7: Eradication of Backlogs
A8: Reduce roads backlogs | B8: Kilometre | C8: 0.01 | I8: 0 | J8: =SUM(E8:I8) -> 0 | K8: =IF(D8=0,C8+J8,D8+J8) -> 0.01 | L8: =IF(E8=0,D8+K8,E8+K8) -> 0.01 | M8: =IF(F8=0,E8+L8,F8+L8) -> 0.01
A10: Sub-function 2 - (Road Maintenance)
A11: Surface roads resurfed/rehabilitated | B11: Kilometre | C11: 0.01 | I11: 0 | J11: =SUM(E11:I11) -> 0 | K11: =IF(D11=0,C11+J11,D11+J11) -> 0.01 | L11: =IF(E11=0,D11+K11,E11+K11) -> 0.01 | M11: =IF(F11=0,E11+L11,F11+L11) -> 0.01
A12: Sub-function 3 - Roads for growth
A13: New roads to be constructed | B13: Kilometre
A15: Function 2 - Storm water | C15: 0.027 | J15: =SUM(E15:I15) -> 0 | K15: =IF(D15=0,C15+J15,D15+J15) -> 0.027 | L15: =IF(E15=0,D15+K15,E15+K15) -> 0.027 | M15: =IF(F15=0,E15+L15,F15+L15) -> 0.027
A16: Sub-function 1 - Reduction of backlogs
A17: Stormwater drainage to reduce backlogs | B17: Kilometre
A19: Sub-function 2 - stormwater for growth | J19: =SUM(E19:I19) -> 0 | K19: =IF(D19=0,C19+J19,D19+J19) -> 0 | L19: =IF(E19=0,D19+K19,E19+K19) -> 0 | M19: =IF(F19=0,E19+L19,F19+L19) -> 0
A20: Stormwater drainage to stimilate growth | B20: Kilometre
J21: =SUM(E21:I21) -> 0 | K21: =IF(D21=0,C21+J21,D21+J21) -> 0 | L21: =IF(E21=0,D21+K21,E21+K21) -> 0 | M21: =IF(F21=0,E21+L21,F21+L21) -> 0
A23: Sub-function 3 - (name) | J23: =SUM(E23:I23) -> 0 | K23: =IF(D23=0,C23+J23,D23+J23) -> 0 | L23: =IF(E23=0,D23+K23,E23+K23) -> 0 | M23: =IF(F23=0,E23+L23,F23+L23) -> 0
A24: Insert measure/s description
J25: =SUM(E25:I25) -> 0 | K25: =IF(D25=0,C25+J25,D25+J25) -> 0 | L25: =IF(E25=0,D25+K25,E25+K25) -> 0 | M25: =IF(F25=0,E25+L25,F25+L25) -> 0
A26: Vote 2 - vote name
A27: Function 1 - (name)
A28: Sub-function 1 - (name)
A29: Insert measure/s description | J29: =SUM(E29:I29) -> 0 | K29: =IF(D29=0,C29+J29,D29+J29) -> 0 | L29: =IF(E29=0,D29+K29,E29+K29) -> 0 | M29: =IF(F29=0,E29+L29,F29+L29) -> 0
A31: Sub-function 2 - (name) | J31: =SUM(E31:I31) -> 0 | K31: =IF(D31=0,C31+J31,D31+J31) -> 0 | L31: =IF(E31=0,D31+K31,E31+K31) -> 0 | M31: =IF(F31=0,E31+L31,F31+L31) -> 0
A32: Insert measure/s description
J33: =SUM(E33:I33) -> 0 | K33: =IF(D33=0,C33+J33,D33+J33) -> 0 | L33: =IF(E33=0,D33+K33,E33+K33) -> 0 | M33: =IF(F33=0,E33+L33,F33+L33) -> 0
A34: Sub-function 3 - (name)
A35: Insert measure/s description | J35: =SUM(E35:I35) -> 0 | K35: =IF(D35=0,C35+J35,D35+J35) -> 0 | L35: =IF(E35=0,D35+K35,E35+K35) -> 0 | M35: =IF(F35=0,E35+L35,F35+L35) -> 0
A37: Function 2 - (name)
A38: Sub-function 1 - (name) | J38: =SUM(E38:I38) -> 0 | K38: =IF(D38=0,C38+J38,D38+J38) -> 0 | L38: =IF(E38=0,D38+K38,E38+K38) -> 0 | M38: =IF(F38=0,E38+L38,F38+L38) -> 0
A39: Insert measure/s description
J40: =SUM(E40:I40) -> 0 | K40: =IF(D40=0,C40+J40,D40+J40) -> 0 | L40: =IF(E40=0,D40+K40,E40+K40) -> 0 | M40: =IF(F40=0,E40+L40,F40+L40) -> 0
A41: Sub-function 2 - (name)
A42: Insert measure/s description | J42: =SUM(E42:I42) -> 0 | K42: =IF(D42=0,C42+J42,D42+J42) -> 0 | L42: =IF(E42=0,D42+K42,E42+K42) -> 0 | M42: =IF(F42=0,E42+L42,F42+L42) -> 0
A44: Sub-function 3 - (name)
A45: Insert measure/s description
J46: =SUM(E46:I46) -> 0 | K46: =IF(D46=0,C46+J46,D46+J46) -> 0 | L46: =IF(E46=0,D46+K46,E46+K46) -> 0 | M46: =IF(F46=0,E46+L46,F46+L46) -> 0
A47: Vote 3 - vote name
A48: Function 1 - (name) | J48: =SUM(E48:I48) -> 0 | K48: =IF(D48=0,C48+J48,D48+J48) -> 0 | L48: =IF(E48=0,D48+K48,E48+K48) -> 0 | M48: =IF(F48=0,E48+L48,F48+L48) -> 0
A49: Sub-function 1 - (name)
A50: Insert measure/s description
J51: =SUM(E51:I51) -> 0 | K51: =IF(D51=0,C51+J51,D51+J51) -> 0 | L51: =IF(E51=0,D51+K51,E51+K51) -> 0 | M51: =IF(F51=0,E51+L51,F51+L51) -> 0
A52: Sub-function 2 - (name)
A53: Insert measure/s description | J53: =SUM(E53:I53) -> 0 | K53: =IF(D53=0,C53+J53,D53+J53) -> 0 | L53: =IF(E53=0,D53+K53,E53+K53) -> 0 | M53: =IF(F53=0,E53+L53,F53+L53) -> 0
A55: Sub-function 3 - (name) | J55: =SUM(E55:I55) -> 0 | K55: =IF(D55=0,C55+J55,D55+J55) -> 0 | L55: =IF(E55=0,D55+K55,E55+K55) -> 0 | M55: =IF(F55=0,E55+L55,F55+L55) -> 0
A56: Insert measure/s description
A58: Function 2 - (name) | J58: =SUM(E58:I58) -> 0 | K58: =IF(D58=0,C58+J58,D58+J58) -> 0 | L58: =IF(E58=0,D58+K58,E58+K58) -> 0 | M58: =IF(F58=0,E58+L58,F58+L58) -> 0
A59: Sub-function 1 - (name)
A60: Insert measure/s description | J60: =SUM(E60:I60) -> 0 | K60: =IF(D60=0,C60+J60,D60+J60) -> 0 | L60: =IF(E60=0,D60+K60,E60+K60) -> 0 | M60: =IF(F60=0,E60+L60,F60+L60) -> 0
A62: Sub-function 2 - (name) | J62: =SUM(E62:I62) -> 0 | K62: =IF(D62=0,C62+J62,D62+J62) -> 0 | L62: =IF(E62=0,D62+K62,E62+K62) -> 0 | M62: =IF(F62=0,E62+L62,F62+L62) -> 0
A63: Insert measure/s description
J64: =SUM(E64:I64) -> 0 | K64: =IF(D64=0,C64+J64,D64+J64) -> 0 | L64: =IF(E64=0,D64+K64,E64+K64) -> 0 | M64: =IF(F64=0,E64+L64,F64+L64) -> 0
A65: Sub-function 3 - (name)
A66: Insert measure/s description | J66: =SUM(E66:I66) -> 0 | K66: =IF(D66=0,C66+J66,D66+J66) -> 0 | L66: =IF(E66=0,D66+K66,E66+K66) -> 0 | M66: =IF(F66=0,E66+L66,F66+L66) -> 0
A68: And so on for the rest of the Votes | J68: =SUM(E68:I68) -> 0 | K68: =IF(D68=0,C68+J68,D68+J68) -> 0 | L68: =IF(E68=0,D68+K68,E68+K68) -> 0 | M68: =IF(F68=0,E68+L68,F68+L68) -> 0
A69: =head27a -> References
A70: 1. Include a measurable performance objective for each revenue source (within a relevant function) and each vote (MFMA s17(3)(b))
A71: 2. Include the estimated effect on the target of each component of an adjustment budget (B to G)
A72: 3. Include all Basic Services performance targets from Table A10 to ensure Table SA7 represents all strategic responsibilities
A73: 4. Total target adjustments G = B + C + D + E + F
A74: 5. Total Adjusted Budget targets H = (A or A1/2 etc) + G
A75: 6. NOTE - include adjustsment by 'exception' (only where amended)

Sheet SB4
A1: =muni&" - "&ADJB4&" - "&Date -> LIM332 Greater Letaba - Supporting Table SB4 Adjustments to budgeted performance indicators and benchmarks - 27 February 2019
A2: =desc&" of financial indicator" -> Description of financial indicator | B2: Basis of calculation | C2: =Head1B -> 2015/16 | D2: =Head1A -> 2016/17 | E2: =Head1 -> 2017/18 | F2: =Head2 -> Budget Year 2018/19 | I2: =Head10 -> Budget Year +1 2019/20 | J2: =Head11 -> Budget Year +2 2020/21
C3: =Head5 -> Audited Outcome | D3: =Head5 -> Audited Outcome | E3: =Head5 -> Audited Outcome | F3: =Head6 -> Original Budget | G3: =Head54 -> Prior Adjusted | H3: =Head7 -> Adjusted Budget | I3: =Head7 -> Adjusted Budget | J3: =Head7 -> Adjusted Budget
A4: Borrowing Management
A6: Credit Rating | B6: Short term/long term rating
